Workbook

Sheet Sheet1 (hidden)
A2: مسلسل | B2: كود الصنف | C2: اسم الصنف | D2: الفئة | E2: اسم المورد | F2: سعر الشراء | G2: رصيد اول | H2: فئة جديدة | I2: الموردين | J2: المخزن | K2: قيمة رصيد اول المدة | L2: مخزن الرئيسي | M2: فرع 2 | N2: فرع 3 | O2: فرع 4 | P2: فرع 5 | Q2: مخزن الفرعي5 | R2: مخزن الفرعي6 | AA2: اسم الصنف | AC2: البحث كمية المتوافرة | AG2: التاريخ
A3: 1 | B3: 25 | C3: موز | D3: عدد | E3: شركة الحنين | F3: 7.5 | G3: 200 | H3: قطعة | I3: شركة الفارس 1 | J3: مخزن الرئيسي | K3: 700 | L3: =G3+SUMIFS(Sheet2!$G$3:$G$1000,Sheet2!$D$3:$D$1000,$C3,Sheet2!$T$3:$T$1000,$L2)+SUMIFS(Sheet2!$P$3:$P$1000,Sheet2!$D$3:$D$1000,$C3,Sheet2!$S$3:$S$1000,$L2)-SUMIFS(Sheet2!$J$3:$J$1000,Sheet2!$D$3:$D$1000,$C3,Sheet2!$T$3:$T$1000,$L2) -> 200 | M3: =SUMIFS(Sheet2!$G$3:$G$1000,Sheet2!$D$3:$D$1000,$C3,Sheet2!$T$3:$T$1000,M$2)+SUMIFS(Sheet2!$P$3:$P$1000,Sheet2!$D$3:$D$1000,$C3,Sheet2!$S$3:$S$1000,M$2)-SUMIFS(Sheet2!$J$3:$J$1000,Sheet2!$D$3:$D$1000,$C3,Sheet2!$T$3:$T$1000,M$2)-SUMIFS(Sheet2!$P$3:$P$1000,Sheet2!$D$3:$D$1000,$C3,Sheet2!$T$3:$T$1000,M$2) -> 0 | N3: =SUMIFS(Sheet2!$G$3:$G$1000,Sheet2!$D$3:$D$1000,$C3,Sheet2!$T$3:$T$1000,N$2)+SUMIFS(Sheet2!$P$3:$P$1000,Sheet2!$D$3:$D$1000,$C3,Sheet2!$S$3:$S$1000,N$2)-SUMIFS(Sheet2!$J$3:$J$1000,Sheet2!$D$3:$D$1000,$C3,Sheet2!$T$3:$T$1000,N$2) -> 0 | O3: =SUMIFS(Sheet2!$G$3:$G$1000,Sheet2!$D$3:$D$1000,$C3,Sheet2!$T$3:$T$1000,O$2)+SUMIFS(Sheet2!$P$3:$P$1000,Sheet2!$D$3:$D$1000,$C3,Sheet2!$S$3:$S$1000,O$2)-SUMIFS(Sheet2!$J$3:$J$1000,Sheet2!$D$3:$D$1000,$C3,Sheet2!$T$3:$T$1000,O$2) -> 0 | P3: =SUMIFS(Sheet2!$G$3:$G$1000,Sheet2!$D$3:$D$1000,$C3,Sheet2!$T$3:$T$1000,P$2)+SUMIFS(Sheet2!$P$3:$P$1000,Sheet2!$D$3:$D$1000,$C3,Sheet2!$S$3:$S$1000,P$2)-SUMIFS(Sheet2!$J$3:$J$1000,Sheet2!$D$3:$D$1000,$C3,Sheet2!$T$3:$T$1000,P$2) -> 0 | Q3: =SUMIFS(Sheet2!$G$3:$G$1000,Sheet2!$D$3:$D$1000,$C3,Sheet2!$T$3:$T$1000,Q$2)+SUMIFS(Sheet2!$P$3:$P$1000,Sheet2!$D$3:$D$1000,$C3,Sheet2!$S$3:$S$1000,Q$2)-SUMIFS(Sheet2!$J$3:$J$1000,Sheet2!$D$3:$D$1000,$C3,Sheet2!$T$3:$T$1000,Q$2) -> 0 | R3: =SUMIFS(Sheet2!$G$3:$G$1000,Sheet2!$D$3:$D$1000,$C3,Sheet2!$T$3:$T$1000,R$2)+SUMIFS(Sheet2!$P$3:$P$1000,Sheet2!$D$3:$D$1000,$C3,Sheet2!$S$3:$S$1000,R$2)-SUMIFS(Sheet2!$J$3:$J$1000,Sheet2!$D$3:$D$1000,$C3,Sheet2!$T$3:$T$1000,R$2) -> 0 | S3: =SUMIFS(Sheet2!$G$3:$G$1000,Sheet2!$D$3:$D$1000,G$3,Sheet2!$T$3:$T$1000,S$2)+SUMIFS(Sheet2!$P$3:$P$1000,Sheet2!$D$3:$D$1000,G$3,Sheet2!$S$3:$S$1000,S$2)-SUMIFS(Sheet2!$J$3:$J$1000,Sheet2!$D$3:$D$1000,G$3,Sheet2!$T$3:$T$1000,S$2) -> 0 | AA3: مشمش | AC3: 2 | AG3: 2018-01-01
A4: =IF(C4="","",A3+1) -> 2 | B4: 2 | C4: تفاح | D4: لتر | E4: شركة الفارس 2 | F4: 3.5 | G4: 1500 | H4: لتر | I4: شركة الفارس 2 | J4: فرع 2 | K4: =IFERROR(G4*F4,"") -> 5250 | L4: =G4+SUMIFS(Sheet2!$G$3:$G$1000,Sheet2!$D$3:$D$1000,$C4,Sheet2!$T$3:$T$1000,$L3)+SUMIFS(Sheet2!$P$3:$P$1000,Sheet2!$D$3:$D$1000,$C4,Sheet2!$S$3:$S$1000,$L3)-SUMIFS(Sheet2!$J$3:$J$1000,Sheet2!$D$3:$D$1000,$C4,Sheet2!$T$3:$T$1000,$L3) -> 1500 | M4: =SUMIFS(Sheet2!$G$3:$G$1000,Sheet2!$D$3:$D$1000,$C4,Sheet2!$T$3:$T$1000,M$2)+SUMIFS(Sheet2!$P$3:$P$1000,Sheet2!$D$3:$D$1000,$C4,Sheet2!$S$3:$S$1000,M$2)-SUMIFS(Sheet2!$J$3:$J$1000,Sheet2!$D$3:$D$1000,$C4,Sheet2!$T$3:$T$1000,M$2)-SUMIFS(Sheet2!$P$3:$P$1000,Sheet2!$D$3:$D$1000,$C4,Sheet2!$T$3:$T$1000,M$2) -> 0 | N4: =SUMIFS(Sheet2!$G$3:$G$1000,Sheet2!$D$3:$D$1000,$C4,Sheet2!$T$3:$T$1000,N$2)+SUMIFS(Sheet2!$P$3:$P$1000,Sheet2!$D$3:$D$1000,$C4,Sheet2!$S$3:$S$1000,N$2)-SUMIFS(Sheet2!$J$3:$J$1000,Sheet2!$D$3:$D$1000,$C4,Sheet2!$T$3:$T$1000,N$2) -> 0 | O4: =SUMIFS(Sheet2!$G$3:$G$1000,Sheet2!$D$3:$D$1000,$C4,Sheet2!$T$3:$T$1000,O$2)+SUMIFS(Sheet2!$P$3:$P$1000,Sheet2!$D$3:$D$1000,$C4,Sheet2!$S$3:$S$1000,O$2)-SUMIFS(Sheet2!$J$3:$J$1000,Sheet2!$D$3:$D$1000,$C4,Sheet2!$T$3:$T$1000,O$2) -> 0 | P4: =SUMIFS(Sheet2!$G$3:$G$1000,Sheet2!$D$3:$D$1000,$C4,Sheet2!$T$3:$T$1000,P$2)+SUMIFS(Sheet2!$P$3:$P$1000,Sheet2!$D$3:$D$1000,$C4,Sheet2!$S$3:$S$1000,P$2)-SUMIFS(Sheet2!$J$3:$J$1000,Sheet2!$D$3:$D$1000,$C4,Sheet2!$T$3:$T$1000,P$2) -> 0 | Q4: =SUMIFS(Sheet2!$G$3:$G$1000,Sheet2!$D$3:$D$1000,$C4,Sheet2!$T$3:$T$1000,Q$2)+SUMIFS(Sheet2!$P$3:$P$1000,Sheet2!$D$3:$D$1000,$C4,Sheet2!$S$3:$S$1000,Q$2)-SUMIFS(Sheet2!$J$3:$J$1000,Sheet2!$D$3:$D$1000,$C4,Sheet2!$T$3:$T$1000,Q$2) -> 0 | R4: =SUMIFS(Sheet2!$G$3:$G$1000,Sheet2!$D$3:$D$1000,$C4,Sheet2!$T$3:$T$1000,R$2)+SUMIFS(Sheet2!$P$3:$P$1000,Sheet2!$D$3:$D$1000,$C4,Sheet2!$S$3:$S$1000,R$2)-SUMIFS(Sheet2!$J$3:$J$1000,Sheet2!$D$3:$D$1000,$C4,Sheet2!$T$3:$T$1000,R$2) -> 0 | AG4: 2018-01-02
A5: 3 | B5: 22 | C5: خيار | D5: قطعة | E5: شركة الفارس 3 | G5: 60 | H5: كيلو | I5: شوبت | J5: فرع 3 | K5: 0 | L5: =G5+SUMIFS(Sheet2!$G$3:$G$1000,Sheet2!$D$3:$D$1000,$C5,Sheet2!$T$3:$T$1000,$L4)+SUMIFS(Sheet2!$P$3:$P$1000,Sheet2!$D$3:$D$1000,$C5,Sheet2!$S$3:$S$1000,$L4)-SUMIFS(Sheet2!$J$3:$J$1000,Sheet2!$D$3:$D$1000,$C5,Sheet2!$T$3:$T$1000,$L4) -> 60 | M5: =SUMIFS(Sheet2!$G$3:$G$1000,Sheet2!$D$3:$D$1000,$C5,Sheet2!$T$3:$T$1000,M$2)+SUMIFS(Sheet2!$P$3:$P$1000,Sheet2!$D$3:$D$1000,$C5,Sheet2!$S$3:$S$1000,M$2)-SUMIFS(Sheet2!$J$3:$J$1000,Sheet2!$D$3:$D$1000,$C5,Sheet2!$T$3:$T$1000,M$2)-SUMIFS(Sheet2!$P$3:$P$1000,Sheet2!$D$3:$D$1000,$C5,Sheet2!$T$3:$T$1000,M$2) -> 0 | N5: =SUMIFS(Sheet2!$G$3:$G$1000,Sheet2!$D$3:$D$1000,$C5,Sheet2!$T$3:$T$1000,N$2)+SUMIFS(Sheet2!$P$3:$P$1000,Sheet2!$D$3:$D$1000,$C5,Sheet2!$S$3:$S$1000,N$2)-SUMIFS(Sheet2!$J$3:$J$1000,Sheet2!$D$3:$D$1000,$C5,Sheet2!$T$3:$T$1000,N$2) -> 0 | O5: =SUMIFS(Sheet2!$G$3:$G$1000,Sheet2!$D$3:$D$1000,$C5,Sheet2!$T$3:$T$1000,O$2)+SUMIFS(Sheet2!$P$3:$P$1000,Sheet2!$D$3:$D$1000,$C5,Sheet2!$S$3:$S$1000,O$2)-SUMIFS(Sheet2!$J$3:$J$1000,Sheet2!$D$3:$D$1000,$C5,Sheet2!$T$3:$T$1000,O$2) -> 0 | P5: =SUMIFS(Sheet2!$G$3:$G$1000,Sheet2!$D$3:$D$1000,$C5,Sheet2!$T$3:$T$1000,P$2)+SUMIFS(Sheet2!$P$3:$P$1000,Sheet2!$D$3:$D$1000,$C5,Sheet2!$S$3:$S$1000,P$2)-SUMIFS(Sheet2!$J$3:$J$1000,Sheet2!$D$3:$D$1000,$C5,Sheet2!$T$3:$T$1000,P$2) -> 0 | Q5: =SUMIFS(Sheet2!$G$3:$G$1000,Sheet2!$D$3:$D$1000,$C5,Sheet2!$T$3:$T$1000,Q$2)+SUMIFS(Sheet2!$P$3:$P$1000,Sheet2!$D$3:$D$1000,$C5,Sheet2!$S$3:$S$1000,Q$2)-SUMIFS(Sheet2!$J$3:$J$1000,Sheet2!$D$3:$D$1000,$C5,Sheet2!$T$3:$T$1000,Q$2) -> 0 | R5: =SUMIFS(Sheet2!$G$3:$G$1000,Sheet2!$D$3:$D$1000,$C5,Sheet2!$T$3:$T$1000,R$2)+SUMIFS(Sheet2!$P$3:$P$1000,Sheet2!$D$3:$D$1000,$C5,Sheet2!$S$3:$S$1000,R$2)-SUMIFS(Sheet2!$J$3:$J$1000,Sheet2!$D$3:$D$1000,$C5,Sheet2!$T$3:$T$1000,R$2) -> 0 | V5: مسلسل | W5: الفئة | X5: مخزن الرئيسي | Y5: فرع 1 | Z5: فرع 2 | AA5: فرع 3 | AB5: فرع 4 | AC5: فرع المطابق للكمية | AG5: 2018-01-03
A6: 4 | B6: 25 | C6: مشمش | D6: كيلو | F6: 20 | G6: 100 | H6: طقم | I6: وسيم | J6: فرع 4 | K6: 2000 | L6: =G6+SUMIFS(Sheet2!$G$3:$G$1000,Sheet2!$D$3:$D$1000,$C6,Sheet2!$T$3:$T$1000,$L5)+SUMIFS(Sheet2!$P$3:$P$1000,Sheet2!$D$3:$D$1000,$C6,Sheet2!$S$3:$S$1000,$L5)-SUMIFS(Sheet2!$J$3:$J$1000,Sheet2!$D$3:$D$1000,$C6,Sheet2!$T$3:$T$1000,$L5) -> 100 | M6: =SUMIFS(Sheet2!$G$3:$G$1000,Sheet2!$D$3:$D$1000,$C6,Sheet2!$T$3:$T$1000,M$2)+SUMIFS(Sheet2!$P$3:$P$1000,Sheet2!$D$3:$D$1000,$C6,Sheet2!$S$3:$S$1000,M$2)-SUMIFS(Sheet2!$J$3:$J$1000,Sheet2!$D$3:$D$1000,$C6,Sheet2!$T$3:$T$1000,M$2)-SUMIFS(Sheet2!$P$3:$P$1000,Sheet2!$D$3:$D$1000,$C6,Sheet2!$T$3:$T$1000,M$2) -> 0 | N6: =SUMIFS(Sheet2!$G$3:$G$1000,Sheet2!$D$3:$D$1000,$C6,Sheet2!$T$3:$T$1000,N$2)+SUMIFS(Sheet2!$P$3:$P$1000,Sheet2!$D$3:$D$1000,$C6,Sheet2!$S$3:$S$1000,N$2)-SUMIFS(Sheet2!$J$3:$J$1000,Sheet2!$D$3:$D$1000,$C6,Sheet2!$T$3:$T$1000,N$2) -> 0 | O6: =SUMIFS(Sheet2!$G$3:$G$1000,Sheet2!$D$3:$D$1000,$C6,Sheet2!$T$3:$T$1000,O$2)+SUMIFS(Sheet2!$P$3:$P$1000,Sheet2!$D$3:$D$1000,$C6,Sheet2!$S$3:$S$1000,O$2)-SUMIFS(Sheet2!$J$3:$J$1000,Sheet2!$D$3:$D$1000,$C6,Sheet2!$T$3:$T$1000,O$2) -> 0 | P6: =SUMIFS(Sheet2!$G$3:$G$1000,Sheet2!$D$3:$D$1000,$C6,Sheet2!$T$3:$T$1000,P$2)+SUMIFS(Sheet2!$P$3:$P$1000,Sheet2!$D$3:$D$1000,$C6,Sheet2!$S$3:$S$1000,P$2)-SUMIFS(Sheet2!$J$3:$J$1000,Sheet2!$D$3:$D$1000,$C6,Sheet2!$T$3:$T$1000,P$2) -> 0 | Q6: =SUMIFS(Sheet2!$G$3:$G$1000,Sheet2!$D$3:$D$1000,$C6,Sheet2!$T$3:$T$1000,Q$2)+SUMIFS(Sheet2!$P$3:$P$1000,Sheet2!$D$3:$D$1000,$C6,Sheet2!$S$3:$S$1000,Q$2)-SUMIFS(Sheet2!$J$3:$J$1000,Sheet2!$D$3:$D$1000,$C6,Sheet2!$T$3:$T$1000,Q$2) -> 0 | R6: =SUMIFS(Sheet2!$G$3:$G$1000,Sheet2!$D$3:$D$1000,$C6,Sheet2!$T$3:$T$1000,R$2)+SUMIFS(Sheet2!$P$3:$P$1000,Sheet2!$D$3:$D$1000,$C6,Sheet2!$S$3:$S$1000,R$2)-SUMIFS(Sheet2!$J$3:$J$1000,Sheet2!$D$3:$D$1000,$C6,Sheet2!$T$3:$T$1000,R$2) -> 0 | V6: 1 | W6: عدد | X6: =IFERROR(INDEX(L$2:L$1000,MATCH($AA$3,$C$2:$C$10000,0),MATCH(X$5,$L$2:$R$2,0)),"") -> 100 | Y6: =IFERROR(INDEX(M$2:M$1000,MATCH($AA$3,$C$2:$C$1000,0)),"") -> 0 | Z6: =IFERROR(INDEX(N$2:N$1000,MATCH($AA$3,$C$2:$C$1000,0)),"") -> 0 | AA6: 0 | AB6: 0 | AC6: =IF(X6=AC3,$X$5,IF(Y6=AC3,$Y$5,IF(Z6=AC3,$Z$5,IF(AA6=AC3,$AA$5,IF(AB6>=AC3,$AB$5," لا يطابق الكمية"))))) -> لا يطابق الكمية | AG6: 2018-01-04
A7: 5 | B7: 33 | C7: برتقال | D7: كيلو | F7: 30 | G7: 500 | I7: شركة مكة | J7: فرع 5 | K7: 15000 | L7: =G7+SUMIFS(Sheet2!$G$3:$G$1000,Sheet2!$D$3:$D$1000,$C7,Sheet2!$T$3:$T$1000,$L6)+SUMIFS(Sheet2!$P$3:$P$1000,Sheet2!$D$3:$D$1000,$C7,Sheet2!$S$3:$S$1000,$L6)-SUMIFS(Sheet2!$J$3:$J$1000,Sheet2!$D$3:$D$1000,$C7,Sheet2!$T$3:$T$1000,$L6) -> 500 | M7: =SUMIFS(Sheet2!$G$3:$G$1000,Sheet2!$D$3:$D$1000,$C7,Sheet2!$T$3:$T$1000,M$2)+SUMIFS(Sheet2!$P$3:$P$1000,Sheet2!$D$3:$D$1000,$C7,Sheet2!$S$3:$S$1000,M$2)-SUMIFS(Sheet2!$J$3:$J$1000,Sheet2!$D$3:$D$1000,$C7,Sheet2!$T$3:$T$1000,M$2)-SUMIFS(Sheet2!$P$3:$P$1000,Sheet2!$D$3:$D$1000,$C7,Sheet2!$T$3:$T$1000,M$2) -> 0 | N7: =SUMIFS(Sheet2!$G$3:$G$1000,Sheet2!$D$3:$D$1000,$C7,Sheet2!$T$3:$T$1000,N$2)+SUMIFS(Sheet2!$P$3:$P$1000,Sheet2!$D$3:$D$1000,$C7,Sheet2!$S$3:$S$1000,N$2)-SUMIFS(Sheet2!$J$3:$J$1000,Sheet2!$D$3:$D$1000,$C7,Sheet2!$T$3:$T$1000,N$2) -> 0 | O7: =SUMIFS(Sheet2!$G$3:$G$1000,Sheet2!$D$3:$D$1000,$C7,Sheet2!$T$3:$T$1000,O$2)+SUMIFS(Sheet2!$P$3:$P$1000,Sheet2!$D$3:$D$1000,$C7,Sheet2!$S$3:$S$1000,O$2)-SUMIFS(Sheet2!$J$3:$J$1000,Sheet2!$D$3:$D$1000,$C7,Sheet2!$T$3:$T$1000,O$2) -> 0 | P7: =SUMIFS(Sheet2!$G$3:$G$1000,Sheet2!$D$3:$D$1000,$C7,Sheet2!$T$3:$T$1000,P$2)+SUMIFS(Sheet2!$P$3:$P$1000,Sheet2!$D$3:$D$1000,$C7,Sheet2!$S$3:$S$1000,P$2)-SUMIFS(Sheet2!$J$3:$J$1000,Sheet2!$D$3:$D$1000,$C7,Sheet2!$T$3:$T$1000,P$2) -> 0 | Q7: =SUMIFS(Sheet2!$G$3:$G$1000,Sheet2!$D$3:$D$1000,$C7,Sheet2!$T$3:$T$1000,Q$2)+SUMIFS(Sheet2!$P$3:$P$1000,Sheet2!$D$3:$D$1000,$C7,Sheet2!$S$3:$S$1000,Q$2)-SUMIFS(Sheet2!$J$3:$J$1000,Sheet2!$D$3:$D$1000,$C7,Sheet2!$T$3:$T$1000,Q$2) -> 0 | R7: =SUMIFS(Sheet2!$G$3:$G$1000,Sheet2!$D$3:$D$1000,$C7,Sheet2!$T$3:$T$1000,R$2)+SUMIFS(Sheet2!$P$3:$P$1000,Sheet2!$D$3:$D$1000,$C7,Sheet2!$S$3:$S$1000,R$2)-SUMIFS(Sheet2!$J$3:$J$1000,Sheet2!$D$3:$D$1000,$C7,Sheet2!$T$3:$T$1000,R$2) -> 0 | X7: =IFERROR(INDEX(L$2:L$1000,MATCH($AA$3,$C$2:$C$10000,0),MATCH(X$5,$L$2:$R$2,0)),"") -> 100 | Y7: =IFERROR(INDEX(M$2:M$1000,MATCH($AA$3,$C$2:$C$1000,0)),"") -> 0 | AG7: 2018-01-05
A8: 6 | B8: 10001 | C8: سمك بلطي | D8: كيلو | F8: 74.25 | G8: 7500 | I8: ... | J8: فرع 6 | K8: 556875 | L8: =G8+SUMIFS(Sheet2!$G$3:$G$1000,Sheet2!$D$3:$D$1000,$C8,Sheet2!$T$3:$T$1000,$L7)+SUMIFS(Sheet2!$P$3:$P$1000,Sheet2!$D$3:$D$1000,$C8,Sheet2!$S$3:$S$1000,$L7)-SUMIFS(Sheet2!$J$3:$J$1000,Sheet2!$D$3:$D$1000,$C8,Sheet2!$T$3:$T$1000,$L7) -> 7500 | M8: =SUMIFS(Sheet2!$G$3:$G$1000,Sheet2!$D$3:$D$1000,$C8,Sheet2!$T$3:$T$1000,M$2)+SUMIFS(Sheet2!$P$3:$P$1000,Sheet2!$D$3:$D$1000,$C8,Sheet2!$S$3:$S$1000,M$2)-SUMIFS(Sheet2!$J$3:$J$1000,Sheet2!$D$3:$D$1000,$C8,Sheet2!$T$3:$T$1000,M$2)-SUMIFS(Sheet2!$P$3:$P$1000,Sheet2!$D$3:$D$1000,$C8,Sheet2!$T$3:$T$1000,M$2) -> 0 | N8: =SUMIFS(Sheet2!$G$3:$G$1000,Sheet2!$D$3:$D$1000,$C8,Sheet2!$T$3:$T$1000,N$2)+SUMIFS(Sheet2!$P$3:$P$1000,Sheet2!$D$3:$D$1000,$C8,Sheet2!$S$3:$S$1000,N$2)-SUMIFS(Sheet2!$J$3:$J$1000,Sheet2!$D$3:$D$1000,$C8,Sheet2!$T$3:$T$1000,N$2) -> 0 | O8: =SUMIFS(Sheet2!$G$3:$G$1000,Sheet2!$D$3:$D$1000,$C8,Sheet2!$T$3:$T$1000,O$2)+SUMIFS(Sheet2!$P$3:$P$1000,Sheet2!$D$3:$D$1000,$C8,Sheet2!$S$3:$S$1000,O$2)-SUMIFS(Sheet2!$J$3:$J$1000,Sheet2!$D$3:$D$1000,$C8,Sheet2!$T$3:$T$1000,O$2) -> 0 | P8: =SUMIFS(Sheet2!$G$3:$G$1000,Sheet2!$D$3:$D$1000,$C8,Sheet2!$T$3:$T$1000,P$2)+SUMIFS(Sheet2!$P$3:$P$1000,Sheet2!$D$3:$D$1000,$C8,Sheet2!$S$3:$S$1000,P$2)-SUMIFS(Sheet2!$J$3:$J$1000,Sheet2!$D$3:$D$1000,$C8,Sheet2!$T$3:$T$1000,P$2) -> 0 | Q8: =SUMIFS(Sheet2!$G$3:$G$1000,Sheet2!$D$3:$D$1000,$C8,Sheet2!$T$3:$T$1000,Q$2)+SUMIFS(Sheet2!$P$3:$P$1000,Sheet2!$D$3:$D$1000,$C8,Sheet2!$S$3:$S$1000,Q$2)-SUMIFS(Sheet2!$J$3:$J$1000,Sheet2!$D$3:$D$1000,$C8,Sheet2!$T$3:$T$1000,Q$2) -> 0 | R8: =SUMIFS(Sheet2!$G$3:$G$1000,Sheet2!$D$3:$D$1000,$C8,Sheet2!$T$3:$T$1000,R$2)+SUMIFS(Sheet2!$P$3:$P$1000,Sheet2!$D$3:$D$1000,$C8,Sheet2!$S$3:$S$1000,R$2)-SUMIFS(Sheet2!$J$3:$J$1000,Sheet2!$D$3:$D$1000,$C8,Sheet2!$T$3:$T$1000,R$2) -> 0 | AG8: 2018-01-06
A9: 7 | B9: 10002 | C9: مانجو | D9: كيلو | F9: 60 | G9: 8500 | I9: شركة الحنين | J9: فرع 7 | K9: 510000 | L9: =G9+SUMIFS(Sheet2!$G$3:$G$1000,Sheet2!$D$3:$D$1000,$C9,Sheet2!$T$3:$T$1000,$L8)+SUMIFS(Sheet2!$P$3:$P$1000,Sheet2!$D$3:$D$1000,$C9,Sheet2!$S$3:$S$1000,$L8)-SUMIFS(Sheet2!$J$3:$J$1000,Sheet2!$D$3:$D$1000,$C9,Sheet2!$T$3:$T$1000,$L8) -> 8500 | M9: =SUMIFS(Sheet2!$G$3:$G$1000,Sheet2!$D$3:$D$1000,$C9,Sheet2!$T$3:$T$1000,M$2)+SUMIFS(Sheet2!$P$3:$P$1000,Sheet2!$D$3:$D$1000,$C9,Sheet2!$S$3:$S$1000,M$2)-SUMIFS(Sheet2!$J$3:$J$1000,Sheet2!$D$3:$D$1000,$C9,Sheet2!$T$3:$T$1000,M$2)-SUMIFS(Sheet2!$P$3:$P$1000,Sheet2!$D$3:$D$1000,$C9,Sheet2!$T$3:$T$1000,M$2) -> 0 | N9: =SUMIFS(Sheet2!$G$3:$G$1000,Sheet2!$D$3:$D$1000,$C9,Sheet2!$T$3:$T$1000,N$2)+SUMIFS(Sheet2!$P$3:$P$1000,Sheet2!$D$3:$D$1000,$C9,Sheet2!$S$3:$S$1000,N$2)-SUMIFS(Sheet2!$J$3:$J$1000,Sheet2!$D$3:$D$1000,$C9,Sheet2!$T$3:$T$1000,N$2) -> 0 | O9: =SUMIFS(Sheet2!$G$3:$G$1000,Sheet2!$D$3:$D$1000,$C9,Sheet2!$T$3:$T$1000,O$2)+SUMIFS(Sheet2!$P$3:$P$1000,Sheet2!$D$3:$D$1000,$C9,Sheet2!$S$3:$S$1000,O$2)-SUMIFS(Sheet2!$J$3:$J$1000,Sheet2!$D$3:$D$1000,$C9,Sheet2!$T$3:$T$1000,O$2) -> 0 | P9: =SUMIFS(Sheet2!$G$3:$G$1000,Sheet2!$D$3:$D$1000,$C9,Sheet2!$T$3:$T$1000,P$2)+SUMIFS(Sheet2!$P$3:$P$1000,Sheet2!$D$3:$D$1000,$C9,Sheet2!$S$3:$S$1000,P$2)-SUMIFS(Sheet2!$J$3:$J$1000,Sheet2!$D$3:$D$1000,$C9,Sheet2!$T$3:$T$1000,P$2) -> 0 | Q9: =SUMIFS(Sheet2!$G$3:$G$1000,Sheet2!$D$3:$D$1000,$C9,Sheet2!$T$3:$T$1000,Q$2)+SUMIFS(Sheet2!$P$3:$P$1000,Sheet2!$D$3:$D$1000,$C9,Sheet2!$S$3:$S$1000,Q$2)-SUMIFS(Sheet2!$J$3:$J$1000,Sheet2!$D$3:$D$1000,$C9,Sheet2!$T$3:$T$1000,Q$2) -> 0 | R9: =SUMIFS(Sheet2!$G$3:$G$1000,Sheet2!$D$3:$D$1000,$C9,Sheet2!$T$3:$T$1000,R$2)+SUMIFS(Sheet2!$P$3:$P$1000,Sheet2!$D$3:$D$1000,$C9,Sheet2!$S$3:$S$1000,R$2)-SUMIFS(Sheet2!$J$3:$J$1000,Sheet2!$D$3:$D$1000,$C9,Sheet2!$T$3:$T$1000,R$2) -> 0 | AG9: 2018-01-07
A10: 8 | B10: 10003 | C10: تيل امامي | D10: كيلو | E10: شركة الضحي | F10: 20.75 | G10: 5000 | I10: بكري | J10: فرع 8 | K10: 103750 | L10: =G10+SUMIFS(Sheet2!$G$3:$G$1000,Sheet2!$D$3:$D$1000,$C10,Sheet2!$T$3:$T$1000,$L9)+SUMIFS(Sheet2!$P$3:$P$1000,Sheet2!$D$3:$D$1000,$C10,Sheet2!$S$3:$S$1000,$L9)-SUMIFS(Sheet2!$J$3:$J$1000,Sheet2!$D$3:$D$1000,$C10,Sheet2!$T$3:$T$1000,$L9) -> 5000 | M10: =SUMIFS(Sheet2!$G$3:$G$1000,Sheet2!$D$3:$D$1000,$C10,Sheet2!$T$3:$T$1000,M$2)+SUMIFS(Sheet2!$P$3:$P$1000,Sheet2!$D$3:$D$1000,$C10,Sheet2!$S$3:$S$1000,M$2)-SUMIFS(Sheet2!$J$3:$J$1000,Sheet2!$D$3:$D$1000,$C10,Sheet2!$T$3:$T$1000,M$2)-SUMIFS(Sheet2!$P$3:$P$1000,Sheet2!$D$3:$D$1000,$C10,Sheet2!$T$3:$T$1000,M$2) -> 0 | N10: =SUMIFS(Sheet2!$G$3:$G$1000,Sheet2!$D$3:$D$1000,$C10,Sheet2!$T$3:$T$1000,N$2)+SUMIFS(Sheet2!$P$3:$P$1000,Sheet2!$D$3:$D$1000,$C10,Sheet2!$S$3:$S$1000,N$2)-SUMIFS(Sheet2!$J$3:$J$1000,Sheet2!$D$3:$D$1000,$C10,Sheet2!$T$3:$T$1000,N$2) -> 0 | O10: =SUMIFS(Sheet2!$G$3:$G$1000,Sheet2!$D$3:$D$1000,$C10,Sheet2!$T$3:$T$1000,O$2)+SUMIFS(Sheet2!$P$3:$P$1000,Sheet2!$D$3:$D$1000,$C10,Sheet2!$S$3:$S$1000,O$2)-SUMIFS(Sheet2!$J$3:$J$1000,Sheet2!$D$3:$D$1000,$C10,Sheet2!$T$3:$T$1000,O$2) -> 0 | P10: =SUMIFS(Sheet2!$G$3:$G$1000,Sheet2!$D$3:$D$1000,$C10,Sheet2!$T$3:$T$1000,P$2)+SUMIFS(Sheet2!$P$3:$P$1000,Sheet2!$D$3:$D$1000,$C10,Sheet2!$S$3:$S$1000,P$2)-SUMIFS(Sheet2!$J$3:$J$1000,Sheet2!$D$3:$D$1000,$C10,Sheet2!$T$3:$T$1000,P$2) -> 0 | Q10: =SUMIFS(Sheet2!$G$3:$G$1000,Sheet2!$D$3:$D$1000,$C10,Sheet2!$T$3:$T$1000,Q$2)+SUMIFS(Sheet2!$P$3:$P$1000,Sheet2!$D$3:$D$1000,$C10,Sheet2!$S$3:$S$1000,Q$2)-SUMIFS(Sheet2!$J$3:$J$1000,Sheet2!$D$3:$D$1000,$C10,Sheet2!$T$3:$T$1000,Q$2) -> 0 | R10: =SUMIFS(Sheet2!$G$3:$G$1000,Sheet2!$D$3:$D$1000,$C10,Sheet2!$T$3:$T$1000,R$2)+SUMIFS(Sheet2!$P$3:$P$1000,Sheet2!$D$3:$D$1000,$C10,Sheet2!$S$3:$S$1000,R$2)-SUMIFS(Sheet2!$J$3:$J$1000,Sheet2!$D$3:$D$1000,$C10,Sheet2!$T$3:$T$1000,R$2) -> 0 | AG10: 2018-01-08
A11: 9 | B11: 10004 | C11: زيت نباتي الهنا | G11: 750 | I11: شركة اليسر | J11: فرع 9 | K11: 0 | L11: =G11+SUMIFS(Sheet2!$G$3:$G$1000,Sheet2!$D$3:$D$1000,$C11,Sheet2!$T$3:$T$1000,$L10)+SUMIFS(Sheet2!$P$3:$P$1000,Sheet2!$D$3:$D$1000,$C11,Sheet2!$S$3:$S$1000,$L10)-SUMIFS(Sheet2!$J$3:$J$1000,Sheet2!$D$3:$D$1000,$C11,Sheet2!$T$3:$T$1000,$L10) -> 750 | M11: =SUMIFS(Sheet2!$G$3:$G$1000,Sheet2!$D$3:$D$1000,$C11,Sheet2!$T$3:$T$1000,M$2)+SUMIFS(Sheet2!$P$3:$P$1000,Sheet2!$D$3:$D$1000,$C11,Sheet2!$S$3:$S$1000,M$2)-SUMIFS(Sheet2!$J$3:$J$1000,Sheet2!$D$3:$D$1000,$C11,Sheet2!$T$3:$T$1000,M$2)-SUMIFS(Sheet2!$P$3:$P$1000,Sheet2!$D$3:$D$1000,$C11,Sheet2!$T$3:$T$1000,M$2) -> 0 | N11: =SUMIFS(Sheet2!$G$3:$G$1000,Sheet2!$D$3:$D$1000,$C11,Sheet2!$T$3:$T$1000,N$2)+SUMIFS(Sheet2!$P$3:$P$1000,Sheet2!$D$3:$D$1000,$C11,Sheet2!$S$3:$S$1000,N$2)-SUMIFS(Sheet2!$J$3:$J$1000,Sheet2!$D$3:$D$1000,$C11,Sheet2!$T$3:$T$1000,N$2) -> 0 | O11: =SUMIFS(Sheet2!$G$3:$G$1000,Sheet2!$D$3:$D$1000,$C11,Sheet2!$T$3:$T$1000,O$2)+SUMIFS(Sheet2!$P$3:$P$1000,Sheet2!$D$3:$D$1000,$C11,Sheet2!$S$3:$S$1000,O$2)-SUMIFS(Sheet2!$J$3:$J$1000,Sheet2!$D$3:$D$1000,$C11,Sheet2!$T$3:$T$1000,O$2) -> 0 | P11: =SUMIFS(Sheet2!$G$3:$G$1000,Sheet2!$D$3:$D$1000,$C11,Sheet2!$T$3:$T$1000,P$2)+SUMIFS(Sheet2!$P$3:$P$1000,Sheet2!$D$3:$D$1000,$C11,Sheet2!$S$3:$S$1000,P$2)-SUMIFS(Sheet2!$J$3:$J$1000,Sheet2!$D$3:$D$1000,$C11,Sheet2!$T$3:$T$1000,P$2) -> 0 | Q11: =SUMIFS(Sheet2!$G$3:$G$1000,Sheet2!$D$3:$D$1000,$C11,Sheet2!$T$3:$T$1000,Q$2)+SUMIFS(Sheet2!$P$3:$P$1000,Sheet2!$D$3:$D$1000,$C11,Sheet2!$S$3:$S$1000,Q$2)-SUMIFS(Sheet2!$J$3:$J$1000,Sheet2!$D$3:$D$1000,$C11,Sheet2!$T$3:$T$1000,Q$2) -> 0 | R11: =SUMIFS(Sheet2!$G$3:$G$1000,Sheet2!$D$3:$D$1000,$C11,Sheet2!$T$3:$T$1000,R$2)+SUMIFS(Sheet2!$P$3:$P$1000,Sheet2!$D$3:$D$1000,$C11,Sheet2!$S$3:$S$1000,R$2)-SUMIFS(Sheet2!$J$3:$J$1000,Sheet2!$D$3:$D$1000,$C11,Sheet2!$T$3:$T$1000,R$2) -> 0 | AG11: 2018-01-09
A12: =IF(C12="","",A11+1) -> 10 | B12: 10005 | C12: زيت نباتي دوار الشمس | G12: 780 | I12: شركة البرنسيسة | J12: فرع 10 | K12: 0 | L12: =G12+SUMIFS(Sheet2!$G$3:$G$1000,Sheet2!$D$3:$D$1000,$C12,Sheet2!$T$3:$T$1000,$L11)+SUMIFS(Sheet2!$P$3:$P$1000,Sheet2!$D$3:$D$1000,$C12,Sheet2!$S$3:$S$1000,$L11)-SUMIFS(Sheet2!$J$3:$J$1000,Sheet2!$D$3:$D$1000,$C12,Sheet2!$T$3:$T$1000,$L11) -> 780 | M12: =SUMIFS(Sheet2!$G$3:$G$1000,Sheet2!$D$3:$D$1000,$C12,Sheet2!$T$3:$T$1000,M$2)+SUMIFS(Sheet2!$P$3:$P$1000,Sheet2!$D$3:$D$1000,$C12,Sheet2!$S$3:$S$1000,M$2)-SUMIFS(Sheet2!$J$3:$J$1000,Sheet2!$D$3:$D$1000,$C12,Sheet2!$T$3:$T$1000,M$2)-SUMIFS(Sheet2!$P$3:$P$1000,Sheet2!$D$3:$D$1000,$C12,Sheet2!$T$3:$T$1000,M$2) -> 0 | N12: =SUMIFS(Sheet2!$G$3:$G$1000,Sheet2!$D$3:$D$1000,$C12,Sheet2!$T$3:$T$1000,N$2)+SUMIFS(Sheet2!$P$3:$P$1000,Sheet2!$D$3:$D$1000,$C12,Sheet2!$S$3:$S$1000,N$2)-SUMIFS(Sheet2!$J$3:$J$1000,Sheet2!$D$3:$D$1000,$C12,Sheet2!$T$3:$T$1000,N$2) -> 0 | O12: =SUMIFS(Sheet2!$G$3:$G$1000,Sheet2!$D$3:$D$1000,$C12,Sheet2!$T$3:$T$1000,O$2)+SUMIFS(Sheet2!$P$3:$P$1000,Sheet2!$D$3:$D$1000,$C12,Sheet2!$S$3:$S$1000,O$2)-SUMIFS(Sheet2!$J$3:$J$1000,Sheet2!$D$3:$D$1000,$C12,Sheet2!$T$3:$T$1000,O$2) -> 0 | P12: =SUMIFS(Sheet2!$G$3:$G$1000,Sheet2!$D$3:$D$1000,$C12,Sheet2!$T$3:$T$1000,P$2)+SUMIFS(Sheet2!$P$3:$P$1000,Sheet2!$D$3:$D$1000,$C12,Sheet2!$S$3:$S$1000,P$2)-SUMIFS(Sheet2!$J$3:$J$1000,Sheet2!$D$3:$D$1000,$C12,Sheet2!$T$3:$T$1000,P$2) -> 0 | Q12: =SUMIFS(Sheet2!$G$3:$G$1000,Sheet2!$D$3:$D$1000,$C12,Sheet2!$T$3:$T$1000,Q$2)+SUMIFS(Sheet2!$P$3:$P$1000,Sheet2!$D$3:$D$1000,$C12,Sheet2!$S$3:$S$1000,Q$2)-SUMIFS(Sheet2!$J$3:$J$1000,Sheet2!$D$3:$D$1000,$C12,Sheet2!$T$3:$T$1000,Q$2) -> 0 | R12: =SUMIFS(Sheet2!$G$3:$G$1000,Sheet2!$D$3:$D$1000,$C12,Sheet2!$T$3:$T$1000,R$2)+SUMIFS(Sheet2!$P$3:$P$1000,Sheet2!$D$3:$D$1000,$C12,Sheet2!$S$3:$S$1000,R$2)-SUMIFS(Sheet2!$J$3:$J$1000,Sheet2!$D$3:$D$1000,$C12,Sheet2!$T$3:$T$1000,R$2) -> 0 | AG12: 2018-01-10
A13: 11 | B13: 10006 | C13: زيت نباتي نفرتيتي | G13: 810 | I13: شركة الحمد | J13: فرع 11 | K13: 0 | L13: =G13+SUMIFS(Sheet2!$G$3:$G$1000,Sheet2!$D$3:$D$1000,$C13,Sheet2!$T$3:$T$1000,$L12)+SUMIFS(Sheet2!$P$3:$P$1000,Sheet2!$D$3:$D$1000,$C13,Sheet2!$S$3:$S$1000,$L12)-SUMIFS(Sheet2!$J$3:$J$1000,Sheet2!$D$3:$D$1000,$C13,Sheet2!$T$3:$T$1000,$L12) -> 810 | M13: =SUMIFS(Sheet2!$G$3:$G$1000,Sheet2!$D$3:$D$1000,$C13,Sheet2!$T$3:$T$1000,M$2)+SUMIFS(Sheet2!$P$3:$P$1000,Sheet2!$D$3:$D$1000,$C13,Sheet2!$S$3:$S$1000,M$2)-SUMIFS(Sheet2!$J$3:$J$1000,Sheet2!$D$3:$D$1000,$C13,Sheet2!$T$3:$T$1000,M$2)-SUMIFS(Sheet2!$P$3:$P$1000,Sheet2!$D$3:$D$1000,$C13,Sheet2!$T$3:$T$1000,M$2) -> 0 | N13: =SUMIFS(Sheet2!$G$3:$G$1000,Sheet2!$D$3:$D$1000,$C13,Sheet2!$T$3:$T$1000,N$2)+SUMIFS(Sheet2!$P$3:$P$1000,Sheet2!$D$3:$D$1000,$C13,Sheet2!$S$3:$S$1000,N$2)-SUMIFS(Sheet2!$J$3:$J$1000,Sheet2!$D$3:$D$1000,$C13,Sheet2!$T$3:$T$1000,N$2) -> 0 | O13: =SUMIFS(Sheet2!$G$3:$G$1000,Sheet2!$D$3:$D$1000,$C13,Sheet2!$T$3:$T$1000,O$2)+SUMIFS(Sheet2!$P$3:$P$1000,Sheet2!$D$3:$D$1000,$C13,Sheet2!$S$3:$S$1000,O$2)-SUMIFS(Sheet2!$J$3:$J$1000,Sheet2!$D$3:$D$1000,$C13,Sheet2!$T$3:$T$1000,O$2) -> 0 | P13: =SUMIFS(Sheet2!$G$3:$G$1000,Sheet2!$D$3:$D$1000,$C13,Sheet2!$T$3:$T$1000,P$2)+SUMIFS(Sheet2!$P$3:$P$1000,Sheet2!$D$3:$D$1000,$C13,Sheet2!$S$3:$S$1000,P$2)-SUMIFS(Sheet2!$J$3:$J$1000,Sheet2!$D$3:$D$1000,$C13,Sheet2!$T$3:$T$1000,P$2) -> 0 | Q13: =SUMIFS(Sheet2!$G$3:$G$1000,Sheet2!$D$3:$D$1000,$C13,Sheet2!$T$3:$T$1000,Q$2)+SUMIFS(Sheet2!$P$3:$P$1000,Sheet2!$D$3:$D$1000,$C13,Sheet2!$S$3:$S$1000,Q$2)-SUMIFS(Sheet2!$J$3:$J$1000,Sheet2!$D$3:$D$1000,$C13,Sheet2!$T$3:$T$1000,Q$2) -> 0 | R13: =SUMIFS(Sheet2!$G$3:$G$1000,Sheet2!$D$3:$D$1000,$C13,Sheet2!$T$3:$T$1000,R$2)+SUMIFS(Sheet2!$P$3:$P$1000,Sheet2!$D$3:$D$1000,$C13,Sheet2!$S$3:$S$1000,R$2)-SUMIFS(Sheet2!$J$3:$J$1000,Sheet2!$D$3:$D$1000,$C13,Sheet2!$T$3:$T$1000,R$2) -> 0 | AG13: 2018-01-11
A14: 12 | B14: 10007 | C14: مكرونة مقاس 1 | G14: 1 | I14: شركة خصوصي | K14: 0 | L14: =G14+SUMIFS(Sheet2!$G$3:$G$1000,Sheet2!$D$3:$D$1000,$C14,Sheet2!$T$3:$T$1000,$L13)+SUMIFS(Sheet2!$P$3:$P$1000,Sheet2!$D$3:$D$1000,$C14,Sheet2!$S$3:$S$1000,$L13)-SUMIFS(Sheet2!$J$3:$J$1000,Sheet2!$D$3:$D$1000,$C14,Sheet2!$T$3:$T$1000,$L13) -> 1 | M14: =SUMIFS(Sheet2!$G$3:$G$1000,Sheet2!$D$3:$D$1000,$C14,Sheet2!$T$3:$T$1000,M$2)+SUMIFS(Sheet2!$P$3:$P$1000,Sheet2!$D$3:$D$1000,$C14,Sheet2!$S$3:$S$1000,M$2)-SUMIFS(Sheet2!$J$3:$J$1000,Sheet2!$D$3:$D$1000,$C14,Sheet2!$T$3:$T$1000,M$2)-SUMIFS(Sheet2!$P$3:$P$1000,Sheet2!$D$3:$D$1000,$C14,Sheet2!$T$3:$T$1000,M$2) -> 0 | N14: =SUMIFS(Sheet2!$G$3:$G$1000,Sheet2!$D$3:$D$1000,$C14,Sheet2!$T$3:$T$1000,N$2)+SUMIFS(Sheet2!$P$3:$P$1000,Sheet2!$D$3:$D$1000,$C14,Sheet2!$S$3:$S$1000,N$2)-SUMIFS(Sheet2!$J$3:$J$1000,Sheet2!$D$3:$D$1000,$C14,Sheet2!$T$3:$T$1000,N$2) -> 0 | O14: =SUMIFS(Sheet2!$G$3:$G$1000,Sheet2!$D$3:$D$1000,$C14,Sheet2!$T$3:$T$1000,O$2)+SUMIFS(Sheet2!$P$3:$P$1000,Sheet2!$D$3:$D$1000,$C14,Sheet2!$S$3:$S$1000,O$2)-SUMIFS(Sheet2!$J$3:$J$1000,Sheet2!$D$3:$D$1000,$C14,Sheet2!$T$3:$T$1000,O$2) -> 0 | P14: =SUMIFS(Sheet2!$G$3:$G$1000,Sheet2!$D$3:$D$1000,$C14,Sheet2!$T$3:$T$1000,P$2)+SUMIFS(Sheet2!$P$3:$P$1000,Sheet2!$D$3:$D$1000,$C14,Sheet2!$S$3:$S$1000,P$2)-SUMIFS(Sheet2!$J$3:$J$1000,Sheet2!$D$3:$D$1000,$C14,Sheet2!$T$3:$T$1000,P$2) -> 0 | Q14: =SUMIFS(Sheet2!$G$3:$G$1000,Sheet2!$D$3:$D$1000,$C14,Sheet2!$T$3:$T$1000,Q$2)+SUMIFS(Sheet2!$P$3:$P$1000,Sheet2!$D$3:$D$1000,$C14,Sheet2!$S$3:$S$1000,Q$2)-SUMIFS(Sheet2!$J$3:$J$1000,Sheet2!$D$3:$D$1000,$C14,Sheet2!$T$3:$T$1000,Q$2) -> 0 | R14: =SUMIFS(Sheet2!$G$3:$G$1000,Sheet2!$D$3:$D$1000,$C14,Sheet2!$T$3:$T$1000,R$2)+SUMIFS(Sheet2!$P$3:$P$1000,Sheet2!$D$3:$D$1000,$C14,Sheet2!$S$3:$S$1000,R$2)-SUMIFS(Sheet2!$J$3:$J$1000,Sheet2!$D$3:$D$1000,$C14,Sheet2!$T$3:$T$1000,R$2) -> 0 | AG14: 2018-01-12
A15: 13 | B15: 10008 | C15: مكرونة مقاس 2 | G15: 870 | I15: شركة حموكشة | K15: 0 | L15: =G15+SUMIFS(Sheet2!$G$3:$G$1000,Sheet2!$D$3:$D$1000,$C15,Sheet2!$T$3:$T$1000,$L14)+SUMIFS(Sheet2!$P$3:$P$1000,Sheet2!$D$3:$D$1000,$C15,Sheet2!$S$3:$S$1000,$L14)-SUMIFS(Sheet2!$J$3:$J$1000,Sheet2!$D$3:$D$1000,$C15,Sheet2!$T$3:$T$1000,$L14) -> 870 | M15: =SUMIFS(Sheet2!$G$3:$G$1000,Sheet2!$D$3:$D$1000,$C15,Sheet2!$T$3:$T$1000,M$2)+SUMIFS(Sheet2!$P$3:$P$1000,Sheet2!$D$3:$D$1000,$C15,Sheet2!$S$3:$S$1000,M$2)-SUMIFS(Sheet2!$J$3:$J$1000,Sheet2!$D$3:$D$1000,$C15,Sheet2!$T$3:$T$1000,M$2)-SUMIFS(Sheet2!$P$3:$P$1000,Sheet2!$D$3:$D$1000,$C15,Sheet2!$T$3:$T$1000,M$2) -> 0 | N15: =SUMIFS(Sheet2!$G$3:$G$1000,Sheet2!$D$3:$D$1000,$C15,Sheet2!$T$3:$T$1000,N$2)+SUMIFS(Sheet2!$P$3:$P$1000,Sheet2!$D$3:$D$1000,$C15,Sheet2!$S$3:$S$1000,N$2)-SUMIFS(Sheet2!$J$3:$J$1000,Sheet2!$D$3:$D$1000,$C15,Sheet2!$T$3:$T$1000,N$2) -> 0 | O15: =SUMIFS(Sheet2!$G$3:$G$1000,Sheet2!$D$3:$D$1000,$C15,Sheet2!$T$3:$T$1000,O$2)+SUMIFS(Sheet2!$P$3:$P$1000,Sheet2!$D$3:$D$1000,$C15,Sheet2!$S$3:$S$1000,O$2)-SUMIFS(Sheet2!$J$3:$J$1000,Sheet2!$D$3:$D$1000,$C15,Sheet2!$T$3:$T$1000,O$2) -> 0 | P15: =SUMIFS(Sheet2!$G$3:$G$1000,Sheet2!$D$3:$D$1000,$C15,Sheet2!$T$3:$T$1000,P$2)+SUMIFS(Sheet2!$P$3:$P$1000,Sheet2!$D$3:$D$1000,$C15,Sheet2!$S$3:$S$1000,P$2)-SUMIFS(Sheet2!$J$3:$J$1000,Sheet2!$D$3:$D$1000,$C15,Sheet2!$T$3:$T$1000,P$2) -> 0 | Q15: =SUMIFS(Sheet2!$G$3:$G$1000,Sheet2!$D$3:$D$1000,$C15,Sheet2!$T$3:$T$1000,Q$2)+SUMIFS(Sheet2!$P$3:$P$1000,Sheet2!$D$3:$D$1000,$C15,Sheet2!$S$3:$S$1000,Q$2)-SUMIFS(Sheet2!$J$3:$J$1000,Sheet2!$D$3:$D$1000,$C15,Sheet2!$T$3:$T$1000,Q$2) -> 0 | R15: =SUMIFS(Sheet2!$G$3:$G$1000,Sheet2!$D$3:$D$1000,$C15,Sheet2!$T$3:$T$1000,R$2)+SUMIFS(Sheet2!$P$3:$P$1000,Sheet2!$D$3:$D$1000,$C15,Sheet2!$S$3:$S$1000,R$2)-SUMIFS(Sheet2!$J$3:$J$1000,Sheet2!$D$3:$D$1000,$C15,Sheet2!$T$3:$T$1000,R$2) -> 0 | AG15: 2018-01-13
A16: 14 | B16: 10009 | C16: مكرونة مقاس 3 | G16: 900 | I16: شركة النور | K16: 0 | L16: =G16+SUMIFS(Sheet2!$G$3:$G$1000,Sheet2!$D$3:$D$1000,$C16,Sheet2!$T$3:$T$1000,$L15)+SUMIFS(Sheet2!$P$3:$P$1000,Sheet2!$D$3:$D$1000,$C16,Sheet2!$S$3:$S$1000,$L15)-SUMIFS(Sheet2!$J$3:$J$1000,Sheet2!$D$3:$D$1000,$C16,Sheet2!$T$3:$T$1000,$L15) -> 900 | M16: =SUMIFS(Sheet2!$G$3:$G$1000,Sheet2!$D$3:$D$1000,$C16,Sheet2!$T$3:$T$1000,M$2)+SUMIFS(Sheet2!$P$3:$P$1000,Sheet2!$D$3:$D$1000,$C16,Sheet2!$S$3:$S$1000,M$2)-SUMIFS(Sheet2!$J$3:$J$1000,Sheet2!$D$3:$D$1000,$C16,Sheet2!$T$3:$T$1000,M$2)-SUMIFS(Sheet2!$P$3:$P$1000,Sheet2!$D$3:$D$1000,$C16,Sheet2!$T$3:$T$1000,M$2) -> 0 | N16: =SUMIFS(Sheet2!$G$3:$G$1000,Sheet2!$D$3:$D$1000,$C16,Sheet2!$T$3:$T$1000,N$2)+SUMIFS(Sheet2!$P$3:$P$1000,Sheet2!$D$3:$D$1000,$C16,Sheet2!$S$3:$S$1000,N$2)-SUMIFS(Sheet2!$J$3:$J$1000,Sheet2!$D$3:$D$1000,$C16,Sheet2!$T$3:$T$1000,N$2) -> 0 | O16: =SUMIFS(Sheet2!$G$3:$G$1000,Sheet2!$D$3:$D$1000,$C16,Sheet2!$T$3:$T$1000,O$2)+SUMIFS(Sheet2!$P$3:$P$1000,Sheet2!$D$3:$D$1000,$C16,Sheet2!$S$3:$S$1000,O$2)-SUMIFS(Sheet2!$J$3:$J$1000,Sheet2!$D$3:$D$1000,$C16,Sheet2!$T$3:$T$1000,O$2) -> 0 | P16: =SUMIFS(Sheet2!$G$3:$G$1000,Sheet2!$D$3:$D$1000,$C16,Sheet2!$T$3:$T$1000,P$2)+SUMIFS(Sheet2!$P$3:$P$1000,Sheet2!$D$3:$D$1000,$C16,Sheet2!$S$3:$S$1000,P$2)-SUMIFS(Sheet2!$J$3:$J$1000,Sheet2!$D$3:$D$1000,$C16,Sheet2!$T$3:$T$1000,P$2) -> 0 | Q16: =SUMIFS(Sheet2!$G$3:$G$1000,Sheet2!$D$3:$D$1000,$C16,Sheet2!$T$3:$T$1000,Q$2)+SUMIFS(Sheet2!$P$3:$P$1000,Sheet2!$D$3:$D$1000,$C16,Sheet2!$S$3:$S$1000,Q$2)-SUMIFS(Sheet2!$J$3:$J$1000,Sheet2!$D$3:$D$1000,$C16,Sheet2!$T$3:$T$1000,Q$2) -> 0 | R16: =SUMIFS(Sheet2!$G$3:$G$1000,Sheet2!$D$3:$D$1000,$C16,Sheet2!$T$3:$T$1000,R$2)+SUMIFS(Sheet2!$P$3:$P$1000,Sheet2!$D$3:$D$1000,$C16,Sheet2!$S$3:$S$1000,R$2)-SUMIFS(Sheet2!$J$3:$J$1000,Sheet2!$D$3:$D$1000,$C16,Sheet2!$T$3:$T$1000,R$2) -> 0 | AG16: 2018-01-14
A17: 15 | B17: 10010 | C17: مكرونة مقاس 4 | G17: 930 | I17: شركة الهدي | K17: 0 | L17: =G17+SUMIFS(Sheet2!$G$3:$G$1000,Sheet2!$D$3:$D$1000,$C17,Sheet2!$T$3:$T$1000,$L16)+SUMIFS(Sheet2!$P$3:$P$1000,Sheet2!$D$3:$D$1000,$C17,Sheet2!$S$3:$S$1000,$L16)-SUMIFS(Sheet2!$J$3:$J$1000,Sheet2!$D$3:$D$1000,$C17,Sheet2!$T$3:$T$1000,$L16) -> 930 | M17: =SUMIFS(Sheet2!$G$3:$G$1000,Sheet2!$D$3:$D$1000,$C17,Sheet2!$T$3:$T$1000,M$2)+SUMIFS(Sheet2!$P$3:$P$1000,Sheet2!$D$3:$D$1000,$C17,Sheet2!$S$3:$S$1000,M$2)-SUMIFS(Sheet2!$J$3:$J$1000,Sheet2!$D$3:$D$1000,$C17,Sheet2!$T$3:$T$1000,M$2)-SUMIFS(Sheet2!$P$3:$P$1000,Sheet2!$D$3:$D$1000,$C17,Sheet2!$T$3:$T$1000,M$2) -> 0 | N17: =SUMIFS(Sheet2!$G$3:$G$1000,Sheet2!$D$3:$D$1000,$C17,Sheet2!$T$3:$T$1000,N$2)+SUMIFS(Sheet2!$P$3:$P$1000,Sheet2!$D$3:$D$1000,$C17,Sheet2!$S$3:$S$1000,N$2)-SUMIFS(Sheet2!$J$3:$J$1000,Sheet2!$D$3:$D$1000,$C17,Sheet2!$T$3:$T$1000,N$2) -> 0 | O17: =SUMIFS(Sheet2!$G$3:$G$1000,Sheet2!$D$3:$D$1000,$C17,Sheet2!$T$3:$T$1000,O$2)+SUMIFS(Sheet2!$P$3:$P$1000,Sheet2!$D$3:$D$1000,$C17,Sheet2!$S$3:$S$1000,O$2)-SUMIFS(Sheet2!$J$3:$J$1000,Sheet2!$D$3:$D$1000,$C17,Sheet2!$T$3:$T$1000,O$2) -> 0 | P17: =SUMIFS(Sheet2!$G$3:$G$1000,Sheet2!$D$3:$D$1000,$C17,Sheet2!$T$3:$T$1000,P$2)+SUMIFS(Sheet2!$P$3:$P$1000,Sheet2!$D$3:$D$1000,$C17,Sheet2!$S$3:$S$1000,P$2)-SUMIFS(Sheet2!$J$3:$J$1000,Sheet2!$D$3:$D$1000,$C17,Sheet2!$T$3:$T$1000,P$2) -> 0 | Q17: =SUMIFS(Sheet2!$G$3:$G$1000,Sheet2!$D$3:$D$1000,$C17,Sheet2!$T$3:$T$1000,Q$2)+SUMIFS(Sheet2!$P$3:$P$1000,Sheet2!$D$3:$D$1000,$C17,Sheet2!$S$3:$S$1000,Q$2)-SUMIFS(Sheet2!$J$3:$J$1000,Sheet2!$D$3:$D$1000,$C17,Sheet2!$T$3:$T$1000,Q$2) -> 0 | R17: =SUMIFS(Sheet2!$G$3:$G$1000,Sheet2!$D$3:$D$1000,$C17,Sheet2!$T$3:$T$1000,R$2)+SUMIFS(Sheet2!$P$3:$P$1000,Sheet2!$D$3:$D$1000,$C17,Sheet2!$S$3:$S$1000,R$2)-SUMIFS(Sheet2!$J$3:$J$1000,Sheet2!$D$3:$D$1000,$C17,Sheet2!$T$3:$T$1000,R$2) -> 0 | AG17: 2018-01-15
B18: 10011 | C18: مكرونة مقاس 5 | G18: 960 | I18: شركة رمضان | K18: 0 | L18: =G18+SUMIFS(Sheet2!$G$3:$G$1000,Sheet2!$D$3:$D$1000,$C18,Sheet2!$T$3:$T$1000,$L17)+SUMIFS(Sheet2!$P$3:$P$1000,Sheet2!$D$3:$D$1000,$C18,Sheet2!$S$3:$S$1000,$L17)-SUMIFS(Sheet2!$J$3:$J$1000,Sheet2!$D$3:$D$1000,$C18,Sheet2!$T$3:$T$1000,$L17) -> 960 | M18: =SUMIFS(Sheet2!$G$3:$G$1000,Sheet2!$D$3:$D$1000,$C18,Sheet2!$T$3:$T$1000,M$2)+SUMIFS(Sheet2!$P$3:$P$1000,Sheet2!$D$3:$D$1000,$C18,Sheet2!$S$3:$S$1000,M$2)-SUMIFS(Sheet2!$J$3:$J$1000,Sheet2!$D$3:$D$1000,$C18,Sheet2!$T$3:$T$1000,M$2)-SUMIFS(Sheet2!$P$3:$P$1000,Sheet2!$D$3:$D$1000,$C18,Sheet2!$T$3:$T$1000,M$2) -> 0 | N18: =SUMIFS(Sheet2!$G$3:$G$1000,Sheet2!$D$3:$D$1000,$C18,Sheet2!$T$3:$T$1000,N$2)+SUMIFS(Sheet2!$P$3:$P$1000,Sheet2!$D$3:$D$1000,$C18,Sheet2!$S$3:$S$1000,N$2)-SUMIFS(Sheet2!$J$3:$J$1000,Sheet2!$D$3:$D$1000,$C18,Sheet2!$T$3:$T$1000,N$2) -> 0 | O18: =SUMIFS(Sheet2!$G$3:$G$1000,Sheet2!$D$3:$D$1000,$C18,Sheet2!$T$3:$T$1000,O$2)+SUMIFS(Sheet2!$P$3:$P$1000,Sheet2!$D$3:$D$1000,$C18,Sheet2!$S$3:$S$1000,O$2)-SUMIFS(Sheet2!$J$3:$J$1000,Sheet2!$D$3:$D$1000,$C18,Sheet2!$T$3:$T$1000,O$2) -> 0 | P18: =SUMIFS(Sheet2!$G$3:$G$1000,Sheet2!$D$3:$D$1000,$C18,Sheet2!$T$3:$T$1000,P$2)+SUMIFS(Sheet2!$P$3:$P$1000,Sheet2!$D$3:$D$1000,$C18,Sheet2!$S$3:$S$1000,P$2)-SUMIFS(Sheet2!$J$3:$J$1000,Sheet2!$D$3:$D$1000,$C18,Sheet2!$T$3:$T$1000,P$2) -> 0 | Q18: =SUMIFS(Sheet2!$G$3:$G$1000,Sheet2!$D$3:$D$1000,$C18,Sheet2!$T$3:$T$1000,Q$2)+SUMIFS(Sheet2!$P$3:$P$1000,Sheet2!$D$3:$D$1000,$C18,Sheet2!$S$3:$S$1000,Q$2)-SUMIFS(Sheet2!$J$3:$J$1000,Sheet2!$D$3:$D$1000,$C18,Sheet2!$T$3:$T$1000,Q$2) -> 0 | R18: =SUMIFS(Sheet2!$G$3:$G$1000,Sheet2!$D$3:$D$1000,$C18,Sheet2!$T$3:$T$1000,R$2)+SUMIFS(Sheet2!$P$3:$P$1000,Sheet2!$D$3:$D$1000,$C18,Sheet2!$S$3:$S$1000,R$2)-SUMIFS(Sheet2!$J$3:$J$1000,Sheet2!$D$3:$D$1000,$C18,Sheet2!$T$3:$T$1000,R$2) -> 0 | AG18: 2018-01-16
A19: 1 | B19: 10012 | C19: مكرونة مقاس 6 | G19: 990 | K19: 0 | L19: =G19+SUMIFS(Sheet2!$G$3:$G$1000,Sheet2!$D$3:$D$1000,$C19,Sheet2!$T$3:$T$1000,$L18)+SUMIFS(Sheet2!$P$3:$P$1000,Sheet2!$D$3:$D$1000,$C19,Sheet2!$S$3:$S$1000,$L18)-SUMIFS(Sheet2!$J$3:$J$1000,Sheet2!$D$3:$D$1000,$C19,Sheet2!$T$3:$T$1000,$L18) -> 990 | M19: =SUMIFS(Sheet2!$G$3:$G$1000,Sheet2!$D$3:$D$1000,$C19,Sheet2!$T$3:$T$1000,M$2)+SUMIFS(Sheet2!$P$3:$P$1000,Sheet2!$D$3:$D$1000,$C19,Sheet2!$S$3:$S$1000,M$2)-SUMIFS(Sheet2!$J$3:$J$1000,Sheet2!$D$3:$D$1000,$C19,Sheet2!$T$3:$T$1000,M$2)-SUMIFS(Sheet2!$P$3:$P$1000,Sheet2!$D$3:$D$1000,$C19,Sheet2!$T$3:$T$1000,M$2) -> 0 | N19: =SUMIFS(Sheet2!$G$3:$G$1000,Sheet2!$D$3:$D$1000,$C19,Sheet2!$T$3:$T$1000,N$2)+SUMIFS(Sheet2!$P$3:$P$1000,Sheet2!$D$3:$D$1000,$C19,Sheet2!$S$3:$S$1000,N$2)-SUMIFS(Sheet2!$J$3:$J$1000,Sheet2!$D$3:$D$1000,$C19,Sheet2!$T$3:$T$1000,N$2) -> 0 | O19: =SUMIFS(Sheet2!$G$3:$G$1000,Sheet2!$D$3:$D$1000,$C19,Sheet2!$T$3:$T$1000,O$2)+SUMIFS(Sheet2!$P$3:$P$1000,Sheet2!$D$3:$D$1000,$C19,Sheet2!$S$3:$S$1000,O$2)-SUMIFS(Sheet2!$J$3:$J$1000,Sheet2!$D$3:$D$1000,$C19,Sheet2!$T$3:$T$1000,O$2) -> 0 | P19: =SUMIFS(Sheet2!$G$3:$G$1000,Sheet2!$D$3:$D$1000,$C19,Sheet2!$T$3:$T$1000,P$2)+SUMIFS(Sheet2!$P$3:$P$1000,Sheet2!$D$3:$D$1000,$C19,Sheet2!$S$3:$S$1000,P$2)-SUMIFS(Sheet2!$J$3:$J$1000,Sheet2!$D$3:$D$1000,$C19,Sheet2!$T$3:$T$1000,P$2) -> 0 | Q19: =SUMIFS(Sheet2!$G$3:$G$1000,Sheet2!$D$3:$D$1000,$C19,Sheet2!$T$3:$T$1000,Q$2)+SUMIFS(Sheet2!$P$3:$P$1000,Sheet2!$D$3:$D$1000,$C19,Sheet2!$S$3:$S$1000,Q$2)-SUMIFS(Sheet2!$J$3:$J$1000,Sheet2!$D$3:$D$1000,$C19,Sheet2!$T$3:$T$1000,Q$2) -> 0 | R19: =SUMIFS(Sheet2!$G$3:$G$1000,Sheet2!$D$3:$D$1000,$C19,Sheet2!$T$3:$T$1000,R$2)+SUMIFS(Sheet2!$P$3:$P$1000,Sheet2!$D$3:$D$1000,$C19,Sheet2!$S$3:$S$1000,R$2)-SUMIFS(Sheet2!$J$3:$J$1000,Sheet2!$D$3:$D$1000,$C19,Sheet2!$T$3:$T$1000,R$2) -> 0 | AG19: 2018-01-17
A20: 2 | B20: 10013 | C20: مكرونة مقاس 7 | G20: 1020 | K20: 0 | L20: =G20+SUMIFS(Sheet2!$G$3:$G$1000,Sheet2!$D$3:$D$1000,$C20,Sheet2!$T$3:$T$1000,$L19)+SUMIFS(Sheet2!$P$3:$P$1000,Sheet2!$D$3:$D$1000,$C20,Sheet2!$S$3:$S$1000,$L19)-SUMIFS(Sheet2!$J$3:$J$1000,Sheet2!$D$3:$D$1000,$C20,Sheet2!$T$3:$T$1000,$L19) -> 1020 | M20: =SUMIFS(Sheet2!$G$3:$G$1000,Sheet2!$D$3:$D$1000,$C20,Sheet2!$T$3:$T$1000,M$2)+SUMIFS(Sheet2!$P$3:$P$1000,Sheet2!$D$3:$D$1000,$C20,Sheet2!$S$3:$S$1000,M$2)-SUMIFS(Sheet2!$J$3:$J$1000,Sheet2!$D$3:$D$1000,$C20,Sheet2!$T$3:$T$1000,M$2)-SUMIFS(Sheet2!$P$3:$P$1000,Sheet2!$D$3:$D$1000,$C20,Sheet2!$T$3:$T$1000,M$2) -> 0 | N20: =SUMIFS(Sheet2!$G$3:$G$1000,Sheet2!$D$3:$D$1000,$C20,Sheet2!$T$3:$T$1000,N$2)+SUMIFS(Sheet2!$P$3:$P$1000,Sheet2!$D$3:$D$1000,$C20,Sheet2!$S$3:$S$1000,N$2)-SUMIFS(Sheet2!$J$3:$J$1000,Sheet2!$D$3:$D$1000,$C20,Sheet2!$T$3:$T$1000,N$2) -> 0 | O20: =SUMIFS(Sheet2!$G$3:$G$1000,Sheet2!$D$3:$D$1000,$C20,Sheet2!$T$3:$T$1000,O$2)+SUMIFS(Sheet2!$P$3:$P$1000,Sheet2!$D$3:$D$1000,$C20,Sheet2!$S$3:$S$1000,O$2)-SUMIFS(Sheet2!$J$3:$J$1000,Sheet2!$D$3:$D$1000,$C20,Sheet2!$T$3:$T$1000,O$2) -> 0 | P20: =SUMIFS(Sheet2!$G$3:$G$1000,Sheet2!$D$3:$D$1000,$C20,Sheet2!$T$3:$T$1000,P$2)+SUMIFS(Sheet2!$P$3:$P$1000,Sheet2!$D$3:$D$1000,$C20,Sheet2!$S$3:$S$1000,P$2)-SUMIFS(Sheet2!$J$3:$J$1000,Sheet2!$D$3:$D$1000,$C20,Sheet2!$T$3:$T$1000,P$2) -> 0 | Q20: =SUMIFS(Sheet2!$G$3:$G$1000,Sheet2!$D$3:$D$1000,$C20,Sheet2!$T$3:$T$1000,Q$2)+SUMIFS(Sheet2!$P$3:$P$1000,Sheet2!$D$3:$D$1000,$C20,Sheet2!$S$3:$S$1000,Q$2)-SUMIFS(Sheet2!$J$3:$J$1000,Sheet2!$D$3:$D$1000,$C20,Sheet2!$T$3:$T$1000,Q$2) -> 0 | R20: =SUMIFS(Sheet2!$G$3:$G$1000,Sheet2!$D$3:$D$1000,$C20,Sheet2!$T$3:$T$1000,R$2)+SUMIFS(Sheet2!$P$3:$P$1000,Sheet2!$D$3:$D$1000,$C20,Sheet2!$S$3:$S$1000,R$2)-SUMIFS(Sheet2!$J$3:$J$1000,Sheet2!$D$3:$D$1000,$C20,Sheet2!$T$3:$T$1000,R$2) -> 0 | AG20: 2018-01-18
A21: 3 | B21: 10014 | C21: مكرونة مقاس 8 | G21: 1050 | K21: 0 | L21: =G21+SUMIFS(Sheet2!$G$3:$G$1000,Sheet2!$D$3:$D$1000,$C21,Sheet2!$T$3:$T$1000,$L20)+SUMIFS(Sheet2!$P$3:$P$1000,Sheet2!$D$3:$D$1000,$C21,Sheet2!$S$3:$S$1000,$L20)-SUMIFS(Sheet2!$J$3:$J$1000,Sheet2!$D$3:$D$1000,$C21,Sheet2!$T$3:$T$1000,$L20) -> 1050 | M21: =SUMIFS(Sheet2!$G$3:$G$1000,Sheet2!$D$3:$D$1000,$C21,Sheet2!$T$3:$T$1000,M$2)+SUMIFS(Sheet2!$P$3:$P$1000,Sheet2!$D$3:$D$1000,$C21,Sheet2!$S$3:$S$1000,M$2)-SUMIFS(Sheet2!$J$3:$J$1000,Sheet2!$D$3:$D$1000,$C21,Sheet2!$T$3:$T$1000,M$2)-SUMIFS(Sheet2!$P$3:$P$1000,Sheet2!$D$3:$D$1000,$C21,Sheet2!$T$3:$T$1000,M$2) -> 0 | N21: =SUMIFS(Sheet2!$G$3:$G$1000,Sheet2!$D$3:$D$1000,$C21,Sheet2!$T$3:$T$1000,N$2)+SUMIFS(Sheet2!$P$3:$P$1000,Sheet2!$D$3:$D$1000,$C21,Sheet2!$S$3:$S$1000,N$2)-SUMIFS(Sheet2!$J$3:$J$1000,Sheet2!$D$3:$D$1000,$C21,Sheet2!$T$3:$T$1000,N$2) -> 0 | O21: =SUMIFS(Sheet2!$G$3:$G$1000,Sheet2!$D$3:$D$1000,$C21,Sheet2!$T$3:$T$1000,O$2)+SUMIFS(Sheet2!$P$3:$P$1000,Sheet2!$D$3:$D$1000,$C21,Sheet2!$S$3:$S$1000,O$2)-SUMIFS(Sheet2!$J$3:$J$1000,Sheet2!$D$3:$D$1000,$C21,Sheet2!$T$3:$T$1000,O$2) -> 0 | P21: =SUMIFS(Sheet2!$G$3:$G$1000,Sheet2!$D$3:$D$1000,$C21,Sheet2!$T$3:$T$1000,P$2)+SUMIFS(Sheet2!$P$3:$P$1000,Sheet2!$D$3:$D$1000,$C21,Sheet2!$S$3:$S$1000,P$2)-SUMIFS(Sheet2!$J$3:$J$1000,Sheet2!$D$3:$D$1000,$C21,Sheet2!$T$3:$T$1000,P$2) -> 0 | Q21: =SUMIFS(Sheet2!$G$3:$G$1000,Sheet2!$D$3:$D$1000,$C21,Sheet2!$T$3:$T$1000,Q$2)+SUMIFS(Sheet2!$P$3:$P$1000,Sheet2!$D$3:$D$1000,$C21,Sheet2!$S$3:$S$1000,Q$2)-SUMIFS(Sheet2!$J$3:$J$1000,Sheet2!$D$3:$D$1000,$C21,Sheet2!$T$3:$T$1000,Q$2) -> 0 | R21: =SUMIFS(Sheet2!$G$3:$G$1000,Sheet2!$D$3:$D$1000,$C21,Sheet2!$T$3:$T$1000,R$2)+SUMIFS(Sheet2!$P$3:$P$1000,Sheet2!$D$3:$D$1000,$C21,Sheet2!$S$3:$S$1000,R$2)-SUMIFS(Sheet2!$J$3:$J$1000,Sheet2!$D$3:$D$1000,$C21,Sheet2!$T$3:$T$1000,R$2) -> 0 | AG21: 2018-01-19
A22: 4 | B22: 10015 | C22: مكرونة مقاس 9 | G22: 1080 | K22: 0 | L22: =G22+SUMIFS(Sheet2!$G$3:$G$1000,Sheet2!$D$3:$D$1000,$C22,Sheet2!$T$3:$T$1000,$L21)+SUMIFS(Sheet2!$P$3:$P$1000,Sheet2!$D$3:$D$1000,$C22,Sheet2!$S$3:$S$1000,$L21)-SUMIFS(Sheet2!$J$3:$J$1000,Sheet2!$D$3:$D$1000,$C22,Sheet2!$T$3:$T$1000,$L21) -> 1080 | M22: =SUMIFS(Sheet2!$G$3:$G$1000,Sheet2!$D$3:$D$1000,$C22,Sheet2!$T$3:$T$1000,M$2)+SUMIFS(Sheet2!$P$3:$P$1000,Sheet2!$D$3:$D$1000,$C22,Sheet2!$S$3:$S$1000,M$2)-SUMIFS(Sheet2!$J$3:$J$1000,Sheet2!$D$3:$D$1000,$C22,Sheet2!$T$3:$T$1000,M$2)-SUMIFS(Sheet2!$P$3:$P$1000,Sheet2!$D$3:$D$1000,$C22,Sheet2!$T$3:$T$1000,M$2) -> 0 | N22: =SUMIFS(Sheet2!$G$3:$G$1000,Sheet2!$D$3:$D$1000,$C22,Sheet2!$T$3:$T$1000,N$2)+SUMIFS(Sheet2!$P$3:$P$1000,Sheet2!$D$3:$D$1000,$C22,Sheet2!$S$3:$S$1000,N$2)-SUMIFS(Sheet2!$J$3:$J$1000,Sheet2!$D$3:$D$1000,$C22,Sheet2!$T$3:$T$1000,N$2) -> 0 | O22: =SUMIFS(Sheet2!$G$3:$G$1000,Sheet2!$D$3:$D$1000,$C22,Sheet2!$T$3:$T$1000,O$2)+SUMIFS(Sheet2!$P$3:$P$1000,Sheet2!$D$3:$D$1000,$C22,Sheet2!$S$3:$S$1000,O$2)-SUMIFS(Sheet2!$J$3:$J$1000,Sheet2!$D$3:$D$1000,$C22,Sheet2!$T$3:$T$1000,O$2) -> 0 | P22: =SUMIFS(Sheet2!$G$3:$G$1000,Sheet2!$D$3:$D$1000,$C22,Sheet2!$T$3:$T$1000,P$2)+SUMIFS(Sheet2!$P$3:$P$1000,Sheet2!$D$3:$D$1000,$C22,Sheet2!$S$3:$S$1000,P$2)-SUMIFS(Sheet2!$J$3:$J$1000,Sheet2!$D$3:$D$1000,$C22,Sheet2!$T$3:$T$1000,P$2) -> 0 | Q22: =SUMIFS(Sheet2!$G$3:$G$1000,Sheet2!$D$3:$D$1000,$C22,Sheet2!$T$3:$T$1000,Q$2)+SUMIFS(Sheet2!$P$3:$P$1000,Sheet2!$D$3:$D$1000,$C22,Sheet2!$S$3:$S$1000,Q$2)-SUMIFS(Sheet2!$J$3:$J$1000,Sheet2!$D$3:$D$1000,$C22,Sheet2!$T$3:$T$1000,Q$2) -> 0 | R22: =SUMIFS(Sheet2!$G$3:$G$1000,Sheet2!$D$3:$D$1000,$C22,Sheet2!$T$3:$T$1000,R$2)+SUMIFS(Sheet2!$P$3:$P$1000,Sheet2!$D$3:$D$1000,$C22,Sheet2!$S$3:$S$1000,R$2)-SUMIFS(Sheet2!$J$3:$J$1000,Sheet2!$D$3:$D$1000,$C22,Sheet2!$T$3:$T$1000,R$2) -> 0 | AG22: 2018-01-20
A23: 5 | B23: 10016 | C23: مكرونة مقاس 10 | G23: 1110 | K23: 0 | L23: =G23+SUMIFS(Sheet2!$G$3:$G$1000,Sheet2!$D$3:$D$1000,$C23,Sheet2!$T$3:$T$1000,$L22)+SUMIFS(Sheet2!$P$3:$P$1000,Sheet2!$D$3:$D$1000,$C23,Sheet2!$S$3:$S$1000,$L22)-SUMIFS(Sheet2!$J$3:$J$1000,Sheet2!$D$3:$D$1000,$C23,Sheet2!$T$3:$T$1000,$L22) -> 1110 | M23: =SUMIFS(Sheet2!$G$3:$G$1000,Sheet2!$D$3:$D$1000,$C23,Sheet2!$T$3:$T$1000,M$2)+SUMIFS(Sheet2!$P$3:$P$1000,Sheet2!$D$3:$D$1000,$C23,Sheet2!$S$3:$S$1000,M$2)-SUMIFS(Sheet2!$J$3:$J$1000,Sheet2!$D$3:$D$1000,$C23,Sheet2!$T$3:$T$1000,M$2)-SUMIFS(Sheet2!$P$3:$P$1000,Sheet2!$D$3:$D$1000,$C23,Sheet2!$T$3:$T$1000,M$2) -> 0 | N23: =SUMIFS(Sheet2!$G$3:$G$1000,Sheet2!$D$3:$D$1000,$C23,Sheet2!$T$3:$T$1000,N$2)+SUMIFS(Sheet2!$P$3:$P$1000,Sheet2!$D$3:$D$1000,$C23,Sheet2!$S$3:$S$1000,N$2)-SUMIFS(Sheet2!$J$3:$J$1000,Sheet2!$D$3:$D$1000,$C23,Sheet2!$T$3:$T$1000,N$2) -> 0 | O23: =SUMIFS(Sheet2!$G$3:$G$1000,Sheet2!$D$3:$D$1000,$C23,Sheet2!$T$3:$T$1000,O$2)+SUMIFS(Sheet2!$P$3:$P$1000,Sheet2!$D$3:$D$1000,$C23,Sheet2!$S$3:$S$1000,O$2)-SUMIFS(Sheet2!$J$3:$J$1000,Sheet2!$D$3:$D$1000,$C23,Sheet2!$T$3:$T$1000,O$2) -> 0 | P23: =SUMIFS(Sheet2!$G$3:$G$1000,Sheet2!$D$3:$D$1000,$C23,Sheet2!$T$3:$T$1000,P$2)+SUMIFS(Sheet2!$P$3:$P$1000,Sheet2!$D$3:$D$1000,$C23,Sheet2!$S$3:$S$1000,P$2)-SUMIFS(Sheet2!$J$3:$J$1000,Sheet2!$D$3:$D$1000,$C23,Sheet2!$T$3:$T$1000,P$2) -> 0 | Q23: =SUMIFS(Sheet2!$G$3:$G$1000,Sheet2!$D$3:$D$1000,$C23,Sheet2!$T$3:$T$1000,Q$2)+SUMIFS(Sheet2!$P$3:$P$1000,Sheet2!$D$3:$D$1000,$C23,Sheet2!$S$3:$S$1000,Q$2)-SUMIFS(Sheet2!$J$3:$J$1000,Sheet2!$D$3:$D$1000,$C23,Sheet2!$T$3:$T$1000,Q$2) -> 0 | R23: =SUMIFS(Sheet2!$G$3:$G$1000,Sheet2!$D$3:$D$1000,$C23,Sheet2!$T$3:$T$1000,R$2)+SUMIFS(Sheet2!$P$3:$P$1000,Sheet2!$D$3:$D$1000,$C23,Sheet2!$S$3:$S$1000,R$2)-SUMIFS(Sheet2!$J$3:$J$1000,Sheet2!$D$3:$D$1000,$C23,Sheet2!$T$3:$T$1000,R$2) -> 0 | AG23: 2018-01-21
A24: 6 | B24: 10017 | C24: مكرونة مقاس 11 | G24: 1140 | K24: 0 | L24: =G24+SUMIFS(Sheet2!$G$3:$G$1000,Sheet2!$D$3:$D$1000,$C24,Sheet2!$T$3:$T$1000,$L23)+SUMIFS(Sheet2!$P$3:$P$1000,Sheet2!$D$3:$D$1000,$C24,Sheet2!$S$3:$S$1000,$L23)-SUMIFS(Sheet2!$J$3:$J$1000,Sheet2!$D$3:$D$1000,$C24,Sheet2!$T$3:$T$1000,$L23) -> 1140 | M24: =SUMIFS(Sheet2!$G$3:$G$1000,Sheet2!$D$3:$D$1000,$C24,Sheet2!$T$3:$T$1000,M$2)+SUMIFS(Sheet2!$P$3:$P$1000,Sheet2!$D$3:$D$1000,$C24,Sheet2!$S$3:$S$1000,M$2)-SUMIFS(Sheet2!$J$3:$J$1000,Sheet2!$D$3:$D$1000,$C24,Sheet2!$T$3:$T$1000,M$2)-SUMIFS(Sheet2!$P$3:$P$1000,Sheet2!$D$3:$D$1000,$C24,Sheet2!$T$3:$T$1000,M$2) -> 0 | N24: =SUMIFS(Sheet2!$G$3:$G$1000,Sheet2!$D$3:$D$1000,$C24,Sheet2!$T$3:$T$1000,N$2)+SUMIFS(Sheet2!$P$3:$P$1000,Sheet2!$D$3:$D$1000,$C24,Sheet2!$S$3:$S$1000,N$2)-SUMIFS(Sheet2!$J$3:$J$1000,Sheet2!$D$3:$D$1000,$C24,Sheet2!$T$3:$T$1000,N$2) -> 0 | O24: =SUMIFS(Sheet2!$G$3:$G$1000,Sheet2!$D$3:$D$1000,$C24,Sheet2!$T$3:$T$1000,O$2)+SUMIFS(Sheet2!$P$3:$P$1000,Sheet2!$D$3:$D$1000,$C24,Sheet2!$S$3:$S$1000,O$2)-SUMIFS(Sheet2!$J$3:$J$1000,Sheet2!$D$3:$D$1000,$C24,Sheet2!$T$3:$T$1000,O$2) -> 0 | P24: =SUMIFS(Sheet2!$G$3:$G$1000,Sheet2!$D$3:$D$1000,$C24,Sheet2!$T$3:$T$1000,P$2)+SUMIFS(Sheet2!$P$3:$P$1000,Sheet2!$D$3:$D$1000,$C24,Sheet2!$S$3:$S$1000,P$2)-SUMIFS(Sheet2!$J$3:$J$1000,Sheet2!$D$3:$D$1000,$C24,Sheet2!$T$3:$T$1000,P$2) -> 0 | Q24: =SUMIFS(Sheet2!$G$3:$G$1000,Sheet2!$D$3:$D$1000,$C24,Sheet2!$T$3:$T$1000,Q$2)+SUMIFS(Sheet2!$P$3:$P$1000,Sheet2!$D$3:$D$1000,$C24,Sheet2!$S$3:$S$1000,Q$2)-SUMIFS(Sheet2!$J$3:$J$1000,Sheet2!$D$3:$D$1000,$C24,Sheet2!$T$3:$T$1000,Q$2) -> 0 | R24: =SUMIFS(Sheet2!$G$3:$G$1000,Sheet2!$D$3:$D$1000,$C24,Sheet2!$T$3:$T$1000,R$2)+SUMIFS(Sheet2!$P$3:$P$1000,Sheet2!$D$3:$D$1000,$C24,Sheet2!$S$3:$S$1000,R$2)-SUMIFS(Sheet2!$J$3:$J$1000,Sheet2!$D$3:$D$1000,$C24,Sheet2!$T$3:$T$1000,R$2) -> 0 | AG24: 2018-01-22
A25: 7 | B25: 10018 | C25: مكرونة مقاس 12 | G25: 1170 | K25: 0 | L25: =G25+SUMIFS(Sheet2!$G$3:$G$1000,Sheet2!$D$3:$D$1000,$C25,Sheet2!$T$3:$T$1000,$L24)+SUMIFS(Sheet2!$P$3:$P$1000,Sheet2!$D$3:$D$1000,$C25,Sheet2!$S$3:$S$1000,$L24)-SUMIFS(Sheet2!$J$3:$J$1000,Sheet2!$D$3:$D$1000,$C25,Sheet2!$T$3:$T$1000,$L24) -> 1170 | M25: =SUMIFS(Sheet2!$G$3:$G$1000,Sheet2!$D$3:$D$1000,$C25,Sheet2!$T$3:$T$1000,M$2)+SUMIFS(Sheet2!$P$3:$P$1000,Sheet2!$D$3:$D$1000,$C25,Sheet2!$S$3:$S$1000,M$2)-SUMIFS(Sheet2!$J$3:$J$1000,Sheet2!$D$3:$D$1000,$C25,Sheet2!$T$3:$T$1000,M$2)-SUMIFS(Sheet2!$P$3:$P$1000,Sheet2!$D$3:$D$1000,$C25,Sheet2!$T$3:$T$1000,M$2) -> 0 | N25: =SUMIFS(Sheet2!$G$3:$G$1000,Sheet2!$D$3:$D$1000,$C25,Sheet2!$T$3:$T$1000,N$2)+SUMIFS(Sheet2!$P$3:$P$1000,Sheet2!$D$3:$D$1000,$C25,Sheet2!$S$3:$S$1000,N$2)-SUMIFS(Sheet2!$J$3:$J$1000,Sheet2!$D$3:$D$1000,$C25,Sheet2!$T$3:$T$1000,N$2) -> 0 | O25: =SUMIFS(Sheet2!$G$3:$G$1000,Sheet2!$D$3:$D$1000,$C25,Sheet2!$T$3:$T$1000,O$2)+SUMIFS(Sheet2!$P$3:$P$1000,Sheet2!$D$3:$D$1000,$C25,Sheet2!$S$3:$S$1000,O$2)-SUMIFS(Sheet2!$J$3:$J$1000,Sheet2!$D$3:$D$1000,$C25,Sheet2!$T$3:$T$1000,O$2) -> 0 | P25: =SUMIFS(Sheet2!$G$3:$G$1000,Sheet2!$D$3:$D$1000,$C25,Sheet2!$T$3:$T$1000,P$2)+SUMIFS(Sheet2!$P$3:$P$1000,Sheet2!$D$3:$D$1000,$C25,Sheet2!$S$3:$S$1000,P$2)-SUMIFS(Sheet2!$J$3:$J$1000,Sheet2!$D$3:$D$1000,$C25,Sheet2!$T$3:$T$1000,P$2) -> 0 | Q25: =SUMIFS(Sheet2!$G$3:$G$1000,Sheet2!$D$3:$D$1000,$C25,Sheet2!$T$3:$T$1000,Q$2)+SUMIFS(Sheet2!$P$3:$P$1000,Sheet2!$D$3:$D$1000,$C25,Sheet2!$S$3:$S$1000,Q$2)-SUMIFS(Sheet2!$J$3:$J$1000,Sheet2!$D$3:$D$1000,$C25,Sheet2!$T$3:$T$1000,Q$2) -> 0 | R25: =SUMIFS(Sheet2!$G$3:$G$1000,Sheet2!$D$3:$D$1000,$C25,Sheet2!$T$3:$T$1000,R$2)+SUMIFS(Sheet2!$P$3:$P$1000,Sheet2!$D$3:$D$1000,$C25,Sheet2!$S$3:$S$1000,R$2)-SUMIFS(Sheet2!$J$3:$J$1000,Sheet2!$D$3:$D$1000,$C25,Sheet2!$T$3:$T$1000,R$2) -> 0 | AG25: 2018-01-23
A26: 8 | B26: 10019 | C26: مكرونة مقاس 13 | G26: 1200 | K26: 0 | L26: =G26+SUMIFS(Sheet2!$G$3:$G$1000,Sheet2!$D$3:$D$1000,$C26,Sheet2!$T$3:$T$1000,$L25)+SUMIFS(Sheet2!$P$3:$P$1000,Sheet2!$D$3:$D$1000,$C26,Sheet2!$S$3:$S$1000,$L25)-SUMIFS(Sheet2!$J$3:$J$1000,Sheet2!$D$3:$D$1000,$C26,Sheet2!$T$3:$T$1000,$L25) -> 1200 | M26: =SUMIFS(Sheet2!$G$3:$G$1000,Sheet2!$D$3:$D$1000,$C26,Sheet2!$T$3:$T$1000,M$2)+SUMIFS(Sheet2!$P$3:$P$1000,Sheet2!$D$3:$D$1000,$C26,Sheet2!$S$3:$S$1000,M$2)-SUMIFS(Sheet2!$J$3:$J$1000,Sheet2!$D$3:$D$1000,$C26,Sheet2!$T$3:$T$1000,M$2)-SUMIFS(Sheet2!$P$3:$P$1000,Sheet2!$D$3:$D$1000,$C26,Sheet2!$T$3:$T$1000,M$2) -> 0 | N26: =SUMIFS(Sheet2!$G$3:$G$1000,Sheet2!$D$3:$D$1000,$C26,Sheet2!$T$3:$T$1000,N$2)+SUMIFS(Sheet2!$P$3:$P$1000,Sheet2!$D$3:$D$1000,$C26,Sheet2!$S$3:$S$1000,N$2)-SUMIFS(Sheet2!$J$3:$J$1000,Sheet2!$D$3:$D$1000,$C26,Sheet2!$T$3:$T$1000,N$2) -> 0 | O26: =SUMIFS(Sheet2!$G$3:$G$1000,Sheet2!$D$3:$D$1000,$C26,Sheet2!$T$3:$T$1000,O$2)+SUMIFS(Sheet2!$P$3:$P$1000,Sheet2!$D$3:$D$1000,$C26,Sheet2!$S$3:$S$1000,O$2)-SUMIFS(Sheet2!$J$3:$J$1000,Sheet2!$D$3:$D$1000,$C26,Sheet2!$T$3:$T$1000,O$2) -> 0 | P26: =SUMIFS(Sheet2!$G$3:$G$1000,Sheet2!$D$3:$D$1000,$C26,Sheet2!$T$3:$T$1000,P$2)+SUMIFS(Sheet2!$P$3:$P$1000,Sheet2!$D$3:$D$1000,$C26,Sheet2!$S$3:$S$1000,P$2)-SUMIFS(Sheet2!$J$3:$J$1000,Sheet2!$D$3:$D$1000,$C26,Sheet2!$T$3:$T$1000,P$2) -> 0 | Q26: =SUMIFS(Sheet2!$G$3:$G$1000,Sheet2!$D$3:$D$1000,$C26,Sheet2!$T$3:$T$1000,Q$2)+SUMIFS(Sheet2!$P$3:$P$1000,Sheet2!$D$3:$D$1000,$C26,Sheet2!$S$3:$S$1000,Q$2)-SUMIFS(Sheet2!$J$3:$J$1000,Sheet2!$D$3:$D$1000,$C26,Sheet2!$T$3:$T$1000,Q$2) -> 0 | R26: =SUMIFS(Sheet2!$G$3:$G$1000,Sheet2!$D$3:$D$1000,$C26,Sheet2!$T$3:$T$1000,R$2)+SUMIFS(Sheet2!$P$3:$P$1000,Sheet2!$D$3:$D$1000,$C26,Sheet2!$S$3:$S$1000,R$2)-SUMIFS(Sheet2!$J$3:$J$1000,Sheet2!$D$3:$D$1000,$C26,Sheet2!$T$3:$T$1000,R$2) -> 0 | AG26: 2018-01-24
A27: 9 | B27: 10020 | C27: مكرونة مقاس 14 | G27: 1230 | K27: 0 | L27: =G27+SUMIFS(Sheet2!$G$3:$G$1000,Sheet2!$D$3:$D$1000,$C27,Sheet2!$T$3:$T$1000,$L26)+SUMIFS(Sheet2!$P$3:$P$1000,Sheet2!$D$3:$D$1000,$C27,Sheet2!$S$3:$S$1000,$L26)-SUMIFS(Sheet2!$J$3:$J$1000,Sheet2!$D$3:$D$1000,$C27,Sheet2!$T$3:$T$1000,$L26) -> 1230 | M27: =SUMIFS(Sheet2!$G$3:$G$1000,Sheet2!$D$3:$D$1000,$C27,Sheet2!$T$3:$T$1000,M$2)+SUMIFS(Sheet2!$P$3:$P$1000,Sheet2!$D$3:$D$1000,$C27,Sheet2!$S$3:$S$1000,M$2)-SUMIFS(Sheet2!$J$3:$J$1000,Sheet2!$D$3:$D$1000,$C27,Sheet2!$T$3:$T$1000,M$2)-SUMIFS(Sheet2!$P$3:$P$1000,Sheet2!$D$3:$D$1000,$C27,Sheet2!$T$3:$T$1000,M$2) -> 0 | N27: =SUMIFS(Sheet2!$G$3:$G$1000,Sheet2!$D$3:$D$1000,$C27,Sheet2!$T$3:$T$1000,N$2)+SUMIFS(Sheet2!$P$3:$P$1000,Sheet2!$D$3:$D$1000,$C27,Sheet2!$S$3:$S$1000,N$2)-SUMIFS(Sheet2!$J$3:$J$1000,Sheet2!$D$3:$D$1000,$C27,Sheet2!$T$3:$T$1000,N$2) -> 0 | O27: =SUMIFS(Sheet2!$G$3:$G$1000,Sheet2!$D$3:$D$1000,$C27,Sheet2!$T$3:$T$1000,O$2)+SUMIFS(Sheet2!$P$3:$P$1000,Sheet2!$D$3:$D$1000,$C27,Sheet2!$S$3:$S$1000,O$2)-SUMIFS(Sheet2!$J$3:$J$1000,Sheet2!$D$3:$D$1000,$C27,Sheet2!$T$3:$T$1000,O$2) -> 0 | P27: =SUMIFS(Sheet2!$G$3:$G$1000,Sheet2!$D$3:$D$1000,$C27,Sheet2!$T$3:$T$1000,P$2)+SUMIFS(Sheet2!$P$3:$P$1000,Sheet2!$D$3:$D$1000,$C27,Sheet2!$S$3:$S$1000,P$2)-SUMIFS(Sheet2!$J$3:$J$1000,Sheet2!$D$3:$D$1000,$C27,Sheet2!$T$3:$T$1000,P$2) -> 0 | Q27: =SUMIFS(Sheet2!$G$3:$G$1000,Sheet2!$D$3:$D$1000,$C27,Sheet2!$T$3:$T$1000,Q$2)+SUMIFS(Sheet2!$P$3:$P$1000,Sheet2!$D$3:$D$1000,$C27,Sheet2!$S$3:$S$1000,Q$2)-SUMIFS(Sheet2!$J$3:$J$1000,Sheet2!$D$3:$D$1000,$C27,Sheet2!$T$3:$T$1000,Q$2) -> 0 | R27: =SUMIFS(Sheet2!$G$3:$G$1000,Sheet2!$D$3:$D$1000,$C27,Sheet2!$T$3:$T$1000,R$2)+SUMIFS(Sheet2!$P$3:$P$1000,Sheet2!$D$3:$D$1000,$C27,Sheet2!$S$3:$S$1000,R$2)-SUMIFS(Sheet2!$J$3:$J$1000,Sheet2!$D$3:$D$1000,$C27,Sheet2!$T$3:$T$1000,R$2) -> 0 | AG27: 2018-01-25
A28: 10 | B28: 10021 | C28: مكرونة مقاس 15 | G28: 1260 | K28: 0 | L28: =G28+SUMIFS(Sheet2!$G$3:$G$1000,Sheet2!$D$3:$D$1000,$C28,Sheet2!$T$3:$T$1000,$L27)+SUMIFS(Sheet2!$P$3:$P$1000,Sheet2!$D$3:$D$1000,$C28,Sheet2!$S$3:$S$1000,$L27)-SUMIFS(Sheet2!$J$3:$J$1000,Sheet2!$D$3:$D$1000,$C28,Sheet2!$T$3:$T$1000,$L27) -> 1260 | M28: =SUMIFS(Sheet2!$G$3:$G$1000,Sheet2!$D$3:$D$1000,$C28,Sheet2!$T$3:$T$1000,M$2)+SUMIFS(Sheet2!$P$3:$P$1000,Sheet2!$D$3:$D$1000,$C28,Sheet2!$S$3:$S$1000,M$2)-SUMIFS(Sheet2!$J$3:$J$1000,Sheet2!$D$3:$D$1000,$C28,Sheet2!$T$3:$T$1000,M$2)-SUMIFS(Sheet2!$P$3:$P$1000,Sheet2!$D$3:$D$1000,$C28,Sheet2!$T$3:$T$1000,M$2) -> 0 | N28: =SUMIFS(Sheet2!$G$3:$G$1000,Sheet2!$D$3:$D$1000,$C28,Sheet2!$T$3:$T$1000,N$2)+SUMIFS(Sheet2!$P$3:$P$1000,Sheet2!$D$3:$D$1000,$C28,Sheet2!$S$3:$S$1000,N$2)-SUMIFS(Sheet2!$J$3:$J$1000,Sheet2!$D$3:$D$1000,$C28,Sheet2!$T$3:$T$1000,N$2) -> 0 | O28: =SUMIFS(Sheet2!$G$3:$G$1000,Sheet2!$D$3:$D$1000,$C28,Sheet2!$T$3:$T$1000,O$2)+SUMIFS(Sheet2!$P$3:$P$1000,Sheet2!$D$3:$D$1000,$C28,Sheet2!$S$3:$S$1000,O$2)-SUMIFS(Sheet2!$J$3:$J$1000,Sheet2!$D$3:$D$1000,$C28,Sheet2!$T$3:$T$1000,O$2) -> 0 | P28: =SUMIFS(Sheet2!$G$3:$G$1000,Sheet2!$D$3:$D$1000,$C28,Sheet2!$T$3:$T$1000,P$2)+SUMIFS(Sheet2!$P$3:$P$1000,Sheet2!$D$3:$D$1000,$C28,Sheet2!$S$3:$S$1000,P$2)-SUMIFS(Sheet2!$J$3:$J$1000,Sheet2!$D$3:$D$1000,$C28,Sheet2!$T$3:$T$1000,P$2) -> 0 | Q28: =SUMIFS(Sheet2!$G$3:$G$1000,Sheet2!$D$3:$D$1000,$C28,Sheet2!$T$3:$T$1000,Q$2)+SUMIFS(Sheet2!$P$3:$P$1000,Sheet2!$D$3:$D$1000,$C28,Sheet2!$S$3:$S$1000,Q$2)-SUMIFS(Sheet2!$J$3:$J$1000,Sheet2!$D$3:$D$1000,$C28,Sheet2!$T$3:$T$1000,Q$2) -> 0 | R28: =SUMIFS(Sheet2!$G$3:$G$1000,Sheet2!$D$3:$D$1000,$C28,Sheet2!$T$3:$T$1000,R$2)+SUMIFS(Sheet2!$P$3:$P$1000,Sheet2!$D$3:$D$1000,$C28,Sheet2!$S$3:$S$1000,R$2)-SUMIFS(Sheet2!$J$3:$J$1000,Sheet2!$D$3:$D$1000,$C28,Sheet2!$T$3:$T$1000,R$2) -> 0 | AG28: 2018-01-26
A29: 11 | B29: 20001 | C29: لبن ميدو | D29: كيلو | E29: بكري | J29: فرع 3 | K29: 0 | L29: =G29+SUMIFS(Sheet2!$G$3:$G$1000,Sheet2!$D$3:$D$1000,$C29,Sheet2!$T$3:$T$1000,$L28)+SUMIFS(Sheet2!$P$3:$P$1000,Sheet2!$D$3:$D$1000,$C29,Sheet2!$S$3:$S$1000,$L28)-SUMIFS(Sheet2!$J$3:$J$1000,Sheet2!$D$3:$D$1000,$C29,Sheet2!$T$3:$T$1000,$L28) -> 0 | M29: =SUMIFS(Sheet2!$G$3:$G$1000,Sheet2!$D$3:$D$1000,$C29,Sheet2!$T$3:$T$1000,M$2)+SUMIFS(Sheet2!$P$3:$P$1000,Sheet2!$D$3:$D$1000,$C29,Sheet2!$S$3:$S$1000,M$2)-SUMIFS(Sheet2!$J$3:$J$1000,Sheet2!$D$3:$D$1000,$C29,Sheet2!$T$3:$T$1000,M$2)-SUMIFS(Sheet2!$P$3:$P$1000,Sheet2!$D$3:$D$1000,$C29,Sheet2!$T$3:$T$1000,M$2) -> 0 | N29: =SUMIFS(Sheet2!$G$3:$G$1000,Sheet2!$D$3:$D$1000,$C29,Sheet2!$T$3:$T$1000,N$2)+SUMIFS(Sheet2!$P$3:$P$1000,Sheet2!$D$3:$D$1000,$C29,Sheet2!$S$3:$S$1000,N$2)-SUMIFS(Sheet2!$J$3:$J$1000,Sheet2!$D$3:$D$1000,$C29,Sheet2!$T$3:$T$1000,N$2) -> 0 | O29: =SUMIFS(Sheet2!$G$3:$G$1000,Sheet2!$D$3:$D$1000,$C29,Sheet2!$T$3:$T$1000,O$2)+SUMIFS(Sheet2!$P$3:$P$1000,Sheet2!$D$3:$D$1000,$C29,Sheet2!$S$3:$S$1000,O$2)-SUMIFS(Sheet2!$J$3:$J$1000,Sheet2!$D$3:$D$1000,$C29,Sheet2!$T$3:$T$1000,O$2) -> 0 | P29: =SUMIFS(Sheet2!$G$3:$G$1000,Sheet2!$D$3:$D$1000,$C29,Sheet2!$T$3:$T$1000,P$2)+SUMIFS(Sheet2!$P$3:$P$1000,Sheet2!$D$3:$D$1000,$C29,Sheet2!$S$3:$S$1000,P$2)-SUMIFS(Sheet2!$J$3:$J$1000,Sheet2!$D$3:$D$1000,$C29,Sheet2!$T$3:$T$1000,P$2) -> 0 | Q29: =SUMIFS(Sheet2!$G$3:$G$1000,Sheet2!$D$3:$D$1000,$C29,Sheet2!$T$3:$T$1000,Q$2)+SUMIFS(Sheet2!$P$3:$P$1000,Sheet2!$D$3:$D$1000,$C29,Sheet2!$S$3:$S$1000,Q$2)-SUMIFS(Sheet2!$J$3:$J$1000,Sheet2!$D$3:$D$1000,$C29,Sheet2!$T$3:$T$1000,Q$2) -> 0 | R29: =SUMIFS(Sheet2!$G$3:$G$1000,Sheet2!$D$3:$D$1000,$C29,Sheet2!$T$3:$T$1000,R$2)+SUMIFS(Sheet2!$P$3:$P$1000,Sheet2!$D$3:$D$1000,$C29,Sheet2!$S$3:$S$1000,R$2)-SUMIFS(Sheet2!$J$3:$J$1000,Sheet2!$D$3:$D$1000,$C29,Sheet2!$T$3:$T$1000,R$2) -> 0 | AG29: 2018-01-27
K30: 0 | L30: =G30+SUMIFS(Sheet2!$G$3:$G$1000,Sheet2!$D$3:$D$1000,$C30,Sheet2!$T$3:$T$1000,$L29)+SUMIFS(Sheet2!$P$3:$P$1000,Sheet2!$D$3:$D$1000,$C30,Sheet2!$S$3:$S$1000,$L29)-SUMIFS(Sheet2!$J$3:$J$1000,Sheet2!$D$3:$D$1000,$C30,Sheet2!$T$3:$T$1000,$L29) -> 0 | M30: =SUMIFS(Sheet2!$G$3:$G$1000,Sheet2!$D$3:$D$1000,$C30,Sheet2!$T$3:$T$1000,M$2)+SUMIFS(Sheet2!$P$3:$P$1000,Sheet2!$D$3:$D$1000,$C30,Sheet2!$S$3:$S$1000,M$2)-SUMIFS(Sheet2!$J$3:$J$1000,Sheet2!$D$3:$D$1000,$C30,Sheet2!$T$3:$T$1000,M$2)-SUMIFS(Sheet2!$P$3:$P$1000,Sheet2!$D$3:$D$1000,$C30,Sheet2!$T$3:$T$1000,M$2) -> 0 | N30: =SUMIFS(Sheet2!$G$3:$G$1000,Sheet2!$D$3:$D$1000,$C30,Sheet2!$T$3:$T$1000,N$2)+SUMIFS(Sheet2!$P$3:$P$1000,Sheet2!$D$3:$D$1000,$C30,Sheet2!$S$3:$S$1000,N$2)-SUMIFS(Sheet2!$J$3:$J$1000,Sheet2!$D$3:$D$1000,$C30,Sheet2!$T$3:$T$1000,N$2) -> 0 | O30: =SUMIFS(Sheet2!$G$3:$G$1000,Sheet2!$D$3:$D$1000,$C30,Sheet2!$T$3:$T$1000,O$2)+SUMIFS(Sheet2!$P$3:$P$1000,Sheet2!$D$3:$D$1000,$C30,Sheet2!$S$3:$S$1000,O$2)-SUMIFS(Sheet2!$J$3:$J$1000,Sheet2!$D$3:$D$1000,$C30,Sheet2!$T$3:$T$1000,O$2) -> 0 | P30: =SUMIFS(Sheet2!$G$3:$G$1000,Sheet2!$D$3:$D$1000,$C30,Sheet2!$T$3:$T$1000,P$2)+SUMIFS(Sheet2!$P$3:$P$1000,Sheet2!$D$3:$D$1000,$C30,Sheet2!$S$3:$S$1000,P$2)-SUMIFS(Sheet2!$J$3:$J$1000,Sheet2!$D$3:$D$1000,$C30,Sheet2!$T$3:$T$1000,P$2) -> 0 | Q30: =SUMIFS(Sheet2!$G$3:$G$1000,Sheet2!$D$3:$D$1000,$C30,Sheet2!$T$3:$T$1000,Q$2)+SUMIFS(Sheet2!$P$3:$P$1000,Sheet2!$D$3:$D$1000,$C30,Sheet2!$S$3:$S$1000,Q$2)-SUMIFS(Sheet2!$J$3:$J$1000,Sheet2!$D$3:$D$1000,$C30,Sheet2!$T$3:$T$1000,Q$2) -> 0 | R30: =SUMIFS(Sheet2!$G$3:$G$1000,Sheet2!$D$3:$D$1000,$C30,Sheet2!$T$3:$T$1000,R$2)+SUMIFS(Sheet2!$P$3:$P$1000,Sheet2!$D$3:$D$1000,$C30,Sheet2!$S$3:$S$1000,R$2)-SUMIFS(Sheet2!$J$3:$J$1000,Sheet2!$D$3:$D$1000,$C30,Sheet2!$T$3:$T$1000,R$2) -> 0 | AG30: 2018-01-28
K31: 0 | L31: =G31+SUMIFS(Sheet2!$G$3:$G$1000,Sheet2!$D$3:$D$1000,$C31,Sheet2!$T$3:$T$1000,$L30)+SUMIFS(Sheet2!$P$3:$P$1000,Sheet2!$D$3:$D$1000,$C31,Sheet2!$S$3:$S$1000,$L30)-SUMIFS(Sheet2!$J$3:$J$1000,Sheet2!$D$3:$D$1000,$C31,Sheet2!$T$3:$T$1000,$L30) -> 0 | M31: =SUMIFS(Sheet2!$G$3:$G$1000,Sheet2!$D$3:$D$1000,$C31,Sheet2!$T$3:$T$1000,M$2)+SUMIFS(Sheet2!$P$3:$P$1000,Sheet2!$D$3:$D$1000,$C31,Sheet2!$S$3:$S$1000,M$2)-SUMIFS(Sheet2!$J$3:$J$1000,Sheet2!$D$3:$D$1000,$C31,Sheet2!$T$3:$T$1000,M$2)-SUMIFS(Sheet2!$P$3:$P$1000,Sheet2!$D$3:$D$1000,$C31,Sheet2!$T$3:$T$1000,M$2) -> 0 | N31: =SUMIFS(Sheet2!$G$3:$G$1000,Sheet2!$D$3:$D$1000,$C31,Sheet2!$T$3:$T$1000,N$2)+SUMIFS(Sheet2!$P$3:$P$1000,Sheet2!$D$3:$D$1000,$C31,Sheet2!$S$3:$S$1000,N$2)-SUMIFS(Sheet2!$J$3:$J$1000,Sheet2!$D$3:$D$1000,$C31,Sheet2!$T$3:$T$1000,N$2) -> 0 | O31: =SUMIFS(Sheet2!$G$3:$G$1000,Sheet2!$D$3:$D$1000,$C31,Sheet2!$T$3:$T$1000,O$2)+SUMIFS(Sheet2!$P$3:$P$1000,Sheet2!$D$3:$D$1000,$C31,Sheet2!$S$3:$S$1000,O$2)-SUMIFS(Sheet2!$J$3:$J$1000,Sheet2!$D$3:$D$1000,$C31,Sheet2!$T$3:$T$1000,O$2) -> 0 | P31: =SUMIFS(Sheet2!$G$3:$G$1000,Sheet2!$D$3:$D$1000,$C31,Sheet2!$T$3:$T$1000,P$2)+SUMIFS(Sheet2!$P$3:$P$1000,Sheet2!$D$3:$D$1000,$C31,Sheet2!$S$3:$S$1000,P$2)-SUMIFS(Sheet2!$J$3:$J$1000,Sheet2!$D$3:$D$1000,$C31,Sheet2!$T$3:$T$1000,P$2) -> 0 | Q31: =SUMIFS(Sheet2!$G$3:$G$1000,Sheet2!$D$3:$D$1000,$C31,Sheet2!$T$3:$T$1000,Q$2)+SUMIFS(Sheet2!$P$3:$P$1000,Sheet2!$D$3:$D$1000,$C31,Sheet2!$S$3:$S$1000,Q$2)-SUMIFS(Sheet2!$J$3:$J$1000,Sheet2!$D$3:$D$1000,$C31,Sheet2!$T$3:$T$1000,Q$2) -> 0 | R31: =SUMIFS(Sheet2!$G$3:$G$1000,Sheet2!$D$3:$D$1000,$C31,Sheet2!$T$3:$T$1000,R$2)+SUMIFS(Sheet2!$P$3:$P$1000,Sheet2!$D$3:$D$1000,$C31,Sheet2!$S$3:$S$1000,R$2)-SUMIFS(Sheet2!$J$3:$J$1000,Sheet2!$D$3:$D$1000,$C31,Sheet2!$T$3:$T$1000,R$2) -> 0 | AG31: 2018-01-29
K32: 0 | L32: =G32+SUMIFS(Sheet2!$G$3:$G$1000,Sheet2!$D$3:$D$1000,$C32,Sheet2!$T$3:$T$1000,$L31)+SUMIFS(Sheet2!$P$3:$P$1000,Sheet2!$D$3:$D$1000,$C32,Sheet2!$S$3:$S$1000,$L31)-SUMIFS(Sheet2!$J$3:$J$1000,Sheet2!$D$3:$D$1000,$C32,Sheet2!$T$3:$T$1000,$L31) -> 0 | M32: =SUMIFS(Sheet2!$G$3:$G$1000,Sheet2!$D$3:$D$1000,$C32,Sheet2!$T$3:$T$1000,M$2)+SUMIFS(Sheet2!$P$3:$P$1000,Sheet2!$D$3:$D$1000,$C32,Sheet2!$S$3:$S$1000,M$2)-SUMIFS(Sheet2!$J$3:$J$1000,Sheet2!$D$3:$D$1000,$C32,Sheet2!$T$3:$T$1000,M$2)-SUMIFS(Sheet2!$P$3:$P$1000,Sheet2!$D$3:$D$1000,$C32,Sheet2!$T$3:$T$1000,M$2) -> 0 | N32: =SUMIFS(Sheet2!$G$3:$G$1000,Sheet2!$D$3:$D$1000,$C32,Sheet2!$T$3:$T$1000,N$2)+SUMIFS(Sheet2!$P$3:$P$1000,Sheet2!$D$3:$D$1000,$C32,Sheet2!$S$3:$S$1000,N$2)-SUMIFS(Sheet2!$J$3:$J$1000,Sheet2!$D$3:$D$1000,$C32,Sheet2!$T$3:$T$1000,N$2) -> 0 | O32: =SUMIFS(Sheet2!$G$3:$G$1000,Sheet2!$D$3:$D$1000,$C32,Sheet2!$T$3:$T$1000,O$2)+SUMIFS(Sheet2!$P$3:$P$1000,Sheet2!$D$3:$D$1000,$C32,Sheet2!$S$3:$S$1000,O$2)-SUMIFS(Sheet2!$J$3:$J$1000,Sheet2!$D$3:$D$1000,$C32,Sheet2!$T$3:$T$1000,O$2) -> 0 | P32: =SUMIFS(Sheet2!$G$3:$G$1000,Sheet2!$D$3:$D$1000,$C32,Sheet2!$T$3:$T$1000,P$2)+SUMIFS(Sheet2!$P$3:$P$1000,Sheet2!$D$3:$D$1000,$C32,Sheet2!$S$3:$S$1000,P$2)-SUMIFS(Sheet2!$J$3:$J$1000,Sheet2!$D$3:$D$1000,$C32,Sheet2!$T$3:$T$1000,P$2) -> 0 | Q32: =SUMIFS(Sheet2!$G$3:$G$1000,Sheet2!$D$3:$D$1000,$C32,Sheet2!$T$3:$T$1000,Q$2)+SUMIFS(Sheet2!$P$3:$P$1000,Sheet2!$D$3:$D$1000,$C32,Sheet2!$S$3:$S$1000,Q$2)-SUMIFS(Sheet2!$J$3:$J$1000,Sheet2!$D$3:$D$1000,$C32,Sheet2!$T$3:$T$1000,Q$2) -> 0 | R32: =SUMIFS(Sheet2!$G$3:$G$1000,Sheet2!$D$3:$D$1000,$C32,Sheet2!$T$3:$T$1000,R$2)+SUMIFS(Sheet2!$P$3:$P$1000,Sheet2!$D$3:$D$1000,$C32,Sheet2!$S$3:$S$1000,R$2)-SUMIFS(Sheet2!$J$3:$J$1000,Sheet2!$D$3:$D$1000,$C32,Sheet2!$T$3:$T$1000,R$2) -> 0 | AG32: 2018-01-30
K33: 0 | L33: =G33+SUMIFS(Sheet2!$G$3:$G$1000,Sheet2!$D$3:$D$1000,$C33,Sheet2!$T$3:$T$1000,$L32)+SUMIFS(Sheet2!$P$3:$P$1000,Sheet2!$D$3:$D$1000,$C33,Sheet2!$S$3:$S$1000,$L32)-SUMIFS(Sheet2!$J$3:$J$1000,Sheet2!$D$3:$D$1000,$C33,Sheet2!$T$3:$T$1000,$L32) -> 0 | M33: =SUMIFS(Sheet2!$G$3:$G$1000,Sheet2!$D$3:$D$1000,$C33,Sheet2!$T$3:$T$1000,M$2)+SUMIFS(Sheet2!$P$3:$P$1000,Sheet2!$D$3:$D$1000,$C33,Sheet2!$S$3:$S$1000,M$2)-SUMIFS(Sheet2!$J$3:$J$1000,Sheet2!$D$3:$D$1000,$C33,Sheet2!$T$3:$T$1000,M$2)-SUMIFS(Sheet2!$P$3:$P$1000,Sheet2!$D$3:$D$1000,$C33,Sheet2!$T$3:$T$1000,M$2) -> 0 | N33: =SUMIFS(Sheet2!$G$3:$G$1000,Sheet2!$D$3:$D$1000,$C33,Sheet2!$T$3:$T$1000,N$2)+SUMIFS(Sheet2!$P$3:$P$1000,Sheet2!$D$3:$D$1000,$C33,Sheet2!$S$3:$S$1000,N$2)-SUMIFS(Sheet2!$J$3:$J$1000,Sheet2!$D$3:$D$1000,$C33,Sheet2!$T$3:$T$1000,N$2) -> 0 | O33: =SUMIFS(Sheet2!$G$3:$G$1000,Sheet2!$D$3:$D$1000,$C33,Sheet2!$T$3:$T$1000,O$2)+SUMIFS(Sheet2!$P$3:$P$1000,Sheet2!$D$3:$D$1000,$C33,Sheet2!$S$3:$S$1000,O$2)-SUMIFS(Sheet2!$J$3:$J$1000,Sheet2!$D$3:$D$1000,$C33,Sheet2!$T$3:$T$1000,O$2) -> 0 | P33: =SUMIFS(Sheet2!$G$3:$G$1000,Sheet2!$D$3:$D$1000,$C33,Sheet2!$T$3:$T$1000,P$2)+SUMIFS(Sheet2!$P$3:$P$1000,Sheet2!$D$3:$D$1000,$C33,Sheet2!$S$3:$S$1000,P$2)-SUMIFS(Sheet2!$J$3:$J$1000,Sheet2!$D$3:$D$1000,$C33,Sheet2!$T$3:$T$1000,P$2) -> 0 | Q33: =SUMIFS(Sheet2!$G$3:$G$1000,Sheet2!$D$3:$D$1000,$C33,Sheet2!$T$3:$T$1000,Q$2)+SUMIFS(Sheet2!$P$3:$P$1000,Sheet2!$D$3:$D$1000,$C33,Sheet2!$S$3:$S$1000,Q$2)-SUMIFS(Sheet2!$J$3:$J$1000,Sheet2!$D$3:$D$1000,$C33,Sheet2!$T$3:$T$1000,Q$2) -> 0 | R33: =SUMIFS(Sheet2!$G$3:$G$1000,Sheet2!$D$3:$D$1000,$C33,Sheet2!$T$3:$T$1000,R$2)+SUMIFS(Sheet2!$P$3:$P$1000,Sheet2!$D$3:$D$1000,$C33,Sheet2!$S$3:$S$1000,R$2)-SUMIFS(Sheet2!$J$3:$J$1000,Sheet2!$D$3:$D$1000,$C33,Sheet2!$T$3:$T$1000,R$2) -> 0 | AG33: 2018-01-31
K34: 0 | L34: =G34+SUMIFS(Sheet2!$G$3:$G$1000,Sheet2!$D$3:$D$1000,$C34,Sheet2!$T$3:$T$1000,$L33)+SUMIFS(Sheet2!$P$3:$P$1000,Sheet2!$D$3:$D$1000,$C34,Sheet2!$S$3:$S$1000,$L33)-SUMIFS(Sheet2!$J$3:$J$1000,Sheet2!$D$3:$D$1000,$C34,Sheet2!$T$3:$T$1000,$L33) -> 0 | M34: =SUMIFS(Sheet2!$G$3:$G$1000,Sheet2!$D$3:$D$1000,$C34,Sheet2!$T$3:$T$1000,M$2)+SUMIFS(Sheet2!$P$3:$P$1000,Sheet2!$D$3:$D$1000,$C34,Sheet2!$S$3:$S$1000,M$2)-SUMIFS(Sheet2!$J$3:$J$1000,Sheet2!$D$3:$D$1000,$C34,Sheet2!$T$3:$T$1000,M$2)-SUMIFS(Sheet2!$P$3:$P$1000,Sheet2!$D$3:$D$1000,$C34,Sheet2!$T$3:$T$1000,M$2) -> 0 | N34: =SUMIFS(Sheet2!$G$3:$G$1000,Sheet2!$D$3:$D$1000,$C34,Sheet2!$T$3:$T$1000,N$2)+SUMIFS(Sheet2!$P$3:$P$1000,Sheet2!$D$3:$D$1000,$C34,Sheet2!$S$3:$S$1000,N$2)-SUMIFS(Sheet2!$J$3:$J$1000,Sheet2!$D$3:$D$1000,$C34,Sheet2!$T$3:$T$1000,N$2) -> 0 | O34: =SUMIFS(Sheet2!$G$3:$G$1000,Sheet2!$D$3:$D$1000,$C34,Sheet2!$T$3:$T$1000,O$2)+SUMIFS(Sheet2!$P$3:$P$1000,Sheet2!$D$3:$D$1000,$C34,Sheet2!$S$3:$S$1000,O$2)-SUMIFS(Sheet2!$J$3:$J$1000,Sheet2!$D$3:$D$1000,$C34,Sheet2!$T$3:$T$1000,O$2) -> 0 | P34: =SUMIFS(Sheet2!$G$3:$G$1000,Sheet2!$D$3:$D$1000,$C34,Sheet2!$T$3:$T$1000,P$2)+SUMIFS(Sheet2!$P$3:$P$1000,Sheet2!$D$3:$D$1000,$C34,Sheet2!$S$3:$S$1000,P$2)-SUMIFS(Sheet2!$J$3:$J$1000,Sheet2!$D$3:$D$1000,$C34,Sheet2!$T$3:$T$1000,P$2) -> 0 | Q34: =SUMIFS(Sheet2!$G$3:$G$1000,Sheet2!$D$3:$D$1000,$C34,Sheet2!$T$3:$T$1000,Q$2)+SUMIFS(Sheet2!$P$3:$P$1000,Sheet2!$D$3:$D$1000,$C34,Sheet2!$S$3:$S$1000,Q$2)-SUMIFS(Sheet2!$J$3:$J$1000,Sheet2!$D$3:$D$1000,$C34,Sheet2!$T$3:$T$1000,Q$2) -> 0 | R34: =SUMIFS(Sheet2!$G$3:$G$1000,Sheet2!$D$3:$D$1000,$C34,Sheet2!$T$3:$T$1000,R$2)+SUMIFS(Sheet2!$P$3:$P$1000,Sheet2!$D$3:$D$1000,$C34,Sheet2!$S$3:$S$1000,R$2)-SUMIFS(Sheet2!$J$3:$J$1000,Sheet2!$D$3:$D$1000,$C34,Sheet2!$T$3:$T$1000,R$2) -> 0 | AG34: 2018-02-01
K35: 0 | L35: =G35+SUMIFS(Sheet2!$G$3:$G$1000,Sheet2!$D$3:$D$1000,$C35,Sheet2!$T$3:$T$1000,$L34)+SUMIFS(Sheet2!$P$3:$P$1000,Sheet2!$D$3:$D$1000,$C35,Sheet2!$S$3:$S$1000,$L34)-SUMIFS(Sheet2!$J$3:$J$1000,Sheet2!$D$3:$D$1000,$C35,Sheet2!$T$3:$T$1000,$L34) -> 0 | M35: =SUMIFS(Sheet2!$G$3:$G$1000,Sheet2!$D$3:$D$1000,$C35,Sheet2!$T$3:$T$1000,M$2)+SUMIFS(Sheet2!$P$3:$P$1000,Sheet2!$D$3:$D$1000,$C35,Sheet2!$S$3:$S$1000,M$2)-SUMIFS(Sheet2!$J$3:$J$1000,Sheet2!$D$3:$D$1000,$C35,Sheet2!$T$3:$T$1000,M$2)-SUMIFS(Sheet2!$P$3:$P$1000,Sheet2!$D$3:$D$1000,$C35,Sheet2!$T$3:$T$1000,M$2) -> 0 | N35: =SUMIFS(Sheet2!$G$3:$G$1000,Sheet2!$D$3:$D$1000,$C35,Sheet2!$T$3:$T$1000,N$2)+SUMIFS(Sheet2!$P$3:$P$1000,Sheet2!$D$3:$D$1000,$C35,Sheet2!$S$3:$S$1000,N$2)-SUMIFS(Sheet2!$J$3:$J$1000,Sheet2!$D$3:$D$1000,$C35,Sheet2!$T$3:$T$1000,N$2) -> 0 | O35: =SUMIFS(Sheet2!$G$3:$G$1000,Sheet2!$D$3:$D$1000,$C35,Sheet2!$T$3:$T$1000,O$2)+SUMIFS(Sheet2!$P$3:$P$1000,Sheet2!$D$3:$D$1000,$C35,Sheet2!$S$3:$S$1000,O$2)-SUMIFS(Sheet2!$J$3:$J$1000,Sheet2!$D$3:$D$1000,$C35,Sheet2!$T$3:$T$1000,O$2) -> 0 | P35: =SUMIFS(Sheet2!$G$3:$G$1000,Sheet2!$D$3:$D$1000,$C35,Sheet2!$T$3:$T$1000,P$2)+SUMIFS(Sheet2!$P$3:$P$1000,Sheet2!$D$3:$D$1000,$C35,Sheet2!$S$3:$S$1000,P$2)-SUMIFS(Sheet2!$J$3:$J$1000,Sheet2!$D$3:$D$1000,$C35,Sheet2!$T$3:$T$1000,P$2) -> 0 | Q35: =SUMIFS(Sheet2!$G$3:$G$1000,Sheet2!$D$3:$D$1000,$C35,Sheet2!$T$3:$T$1000,Q$2)+SUMIFS(Sheet2!$P$3:$P$1000,Sheet2!$D$3:$D$1000,$C35,Sheet2!$S$3:$S$1000,Q$2)-SUMIFS(Sheet2!$J$3:$J$1000,Sheet2!$D$3:$D$1000,$C35,Sheet2!$T$3:$T$1000,Q$2) -> 0 | R35: =SUMIFS(Sheet2!$G$3:$G$1000,Sheet2!$D$3:$D$1000,$C35,Sheet2!$T$3:$T$1000,R$2)+SUMIFS(Sheet2!$P$3:$P$1000,Sheet2!$D$3:$D$1000,$C35,Sheet2!$S$3:$S$1000,R$2)-SUMIFS(Sheet2!$J$3:$J$1000,Sheet2!$D$3:$D$1000,$C35,Sheet2!$T$3:$T$1000,R$2) -> 0 | AG35: 2018-02-02
K36: 0 | L36: =G36+SUMIFS(Sheet2!$G$3:$G$1000,Sheet2!$D$3:$D$1000,$C36,Sheet2!$T$3:$T$1000,$L35)+SUMIFS(Sheet2!$P$3:$P$1000,Sheet2!$D$3:$D$1000,$C36,Sheet2!$S$3:$S$1000,$L35)-SUMIFS(Sheet2!$J$3:$J$1000,Sheet2!$D$3:$D$1000,$C36,Sheet2!$T$3:$T$1000,$L35) -> 0 | M36: =SUMIFS(Sheet2!$G$3:$G$1000,Sheet2!$D$3:$D$1000,$C36,Sheet2!$T$3:$T$1000,M$2)+SUMIFS(Sheet2!$P$3:$P$1000,Sheet2!$D$3:$D$1000,$C36,Sheet2!$S$3:$S$1000,M$2)-SUMIFS(Sheet2!$J$3:$J$1000,Sheet2!$D$3:$D$1000,$C36,Sheet2!$T$3:$T$1000,M$2)-SUMIFS(Sheet2!$P$3:$P$1000,Sheet2!$D$3:$D$1000,$C36,Sheet2!$T$3:$T$1000,M$2) -> 0 | N36: =SUMIFS(Sheet2!$G$3:$G$1000,Sheet2!$D$3:$D$1000,$C36,Sheet2!$T$3:$T$1000,N$2)+SUMIFS(Sheet2!$P$3:$P$1000,Sheet2!$D$3:$D$1000,$C36,Sheet2!$S$3:$S$1000,N$2)-SUMIFS(Sheet2!$J$3:$J$1000,Sheet2!$D$3:$D$1000,$C36,Sheet2!$T$3:$T$1000,N$2) -> 0 | O36: =SUMIFS(Sheet2!$G$3:$G$1000,Sheet2!$D$3:$D$1000,$C36,Sheet2!$T$3:$T$1000,O$2)+SUMIFS(Sheet2!$P$3:$P$1000,Sheet2!$D$3:$D$1000,$C36,Sheet2!$S$3:$S$1000,O$2)-SUMIFS(Sheet2!$J$3:$J$1000,Sheet2!$D$3:$D$1000,$C36,Sheet2!$T$3:$T$1000,O$2) -> 0 | P36: =SUMIFS(Sheet2!$G$3:$G$1000,Sheet2!$D$3:$D$1000,$C36,Sheet2!$T$3:$T$1000,P$2)+SUMIFS(Sheet2!$P$3:$P$1000,Sheet2!$D$3:$D$1000,$C36,Sheet2!$S$3:$S$1000,P$2)-SUMIFS(Sheet2!$J$3:$J$1000,Sheet2!$D$3:$D$1000,$C36,Sheet2!$T$3:$T$1000,P$2) -> 0 | Q36: =SUMIFS(Sheet2!$G$3:$G$1000,Sheet2!$D$3:$D$1000,$C36,Sheet2!$T$3:$T$1000,Q$2)+SUMIFS(Sheet2!$P$3:$P$1000,Sheet2!$D$3:$D$1000,$C36,Sheet2!$S$3:$S$1000,Q$2)-SUMIFS(Sheet2!$J$3:$J$1000,Sheet2!$D$3:$D$1000,$C36,Sheet2!$T$3:$T$1000,Q$2) -> 0 | R36: =SUMIFS(Sheet2!$G$3:$G$1000,Sheet2!$D$3:$D$1000,$C36,Sheet2!$T$3:$T$1000,R$2)+SUMIFS(Sheet2!$P$3:$P$1000,Sheet2!$D$3:$D$1000,$C36,Sheet2!$S$3:$S$1000,R$2)-SUMIFS(Sheet2!$J$3:$J$1000,Sheet2!$D$3:$D$1000,$C36,Sheet2!$T$3:$T$1000,R$2) -> 0 | AG36: 2018-02-03
K37: 0 | L37: =G37+SUMIFS(Sheet2!$G$3:$G$1000,Sheet2!$D$3:$D$1000,$C37,Sheet2!$T$3:$T$1000,$L36)+SUMIFS(Sheet2!$P$3:$P$1000,Sheet2!$D$3:$D$1000,$C37,Sheet2!$S$3:$S$1000,$L36)-SUMIFS(Sheet2!$J$3:$J$1000,Sheet2!$D$3:$D$1000,$C37,Sheet2!$T$3:$T$1000,$L36) -> 0 | M37: =SUMIFS(Sheet2!$G$3:$G$1000,Sheet2!$D$3:$D$1000,$C37,Sheet2!$T$3:$T$1000,M$2)+SUMIFS(Sheet2!$P$3:$P$1000,Sheet2!$D$3:$D$1000,$C37,Sheet2!$S$3:$S$1000,M$2)-SUMIFS(Sheet2!$J$3:$J$1000,Sheet2!$D$3:$D$1000,$C37,Sheet2!$T$3:$T$1000,M$2)-SUMIFS(Sheet2!$P$3:$P$1000,Sheet2!$D$3:$D$1000,$C37,Sheet2!$T$3:$T$1000,M$2) -> 0 | N37: =SUMIFS(Sheet2!$G$3:$G$1000,Sheet2!$D$3:$D$1000,$C37,Sheet2!$T$3:$T$1000,N$2)+SUMIFS(Sheet2!$P$3:$P$1000,Sheet2!$D$3:$D$1000,$C37,Sheet2!$S$3:$S$1000,N$2)-SUMIFS(Sheet2!$J$3:$J$1000,Sheet2!$D$3:$D$1000,$C37,Sheet2!$T$3:$T$1000,N$2) -> 0 | O37: =SUMIFS(Sheet2!$G$3:$G$1000,Sheet2!$D$3:$D$1000,$C37,Sheet2!$T$3:$T$1000,O$2)+SUMIFS(Sheet2!$P$3:$P$1000,Sheet2!$D$3:$D$1000,$C37,Sheet2!$S$3:$S$1000,O$2)-SUMIFS(Sheet2!$J$3:$J$1000,Sheet2!$D$3:$D$1000,$C37,Sheet2!$T$3:$T$1000,O$2) -> 0 | P37: =SUMIFS(Sheet2!$G$3:$G$1000,Sheet2!$D$3:$D$1000,$C37,Sheet2!$T$3:$T$1000,P$2)+SUMIFS(Sheet2!$P$3:$P$1000,Sheet2!$D$3:$D$1000,$C37,Sheet2!$S$3:$S$1000,P$2)-SUMIFS(Sheet2!$J$3:$J$1000,Sheet2!$D$3:$D$1000,$C37,Sheet2!$T$3:$T$1000,P$2) -> 0 | Q37: =SUMIFS(Sheet2!$G$3:$G$1000,Sheet2!$D$3:$D$1000,$C37,Sheet2!$T$3:$T$1000,Q$2)+SUMIFS(Sheet2!$P$3:$P$1000,Sheet2!$D$3:$D$1000,$C37,Sheet2!$S$3:$S$1000,Q$2)-SUMIFS(Sheet2!$J$3:$J$1000,Sheet2!$D$3:$D$1000,$C37,Sheet2!$T$3:$T$1000,Q$2) -> 0 | R37: =SUMIFS(Sheet2!$G$3:$G$1000,Sheet2!$D$3:$D$1000,$C37,Sheet2!$T$3:$T$1000,R$2)+SUMIFS(Sheet2!$P$3:$P$1000,Sheet2!$D$3:$D$1000,$C37,Sheet2!$S$3:$S$1000,R$2)-SUMIFS(Sheet2!$J$3:$J$1000,Sheet2!$D$3:$D$1000,$C37,Sheet2!$T$3:$T$1000,R$2) -> 0 | AG37: 2018-02-04
K38: 0 | L38: =G38+SUMIFS(Sheet2!$G$3:$G$1000,Sheet2!$D$3:$D$1000,$C38,Sheet2!$T$3:$T$1000,$L37)+SUMIFS(Sheet2!$P$3:$P$1000,Sheet2!$D$3:$D$1000,$C38,Sheet2!$S$3:$S$1000,$L37)-SUMIFS(Sheet2!$J$3:$J$1000,Sheet2!$D$3:$D$1000,$C38,Sheet2!$T$3:$T$1000,$L37) -> 0 | M38: =SUMIFS(Sheet2!$G$3:$G$1000,Sheet2!$D$3:$D$1000,$C38,Sheet2!$T$3:$T$1000,M$2)+SUMIFS(Sheet2!$P$3:$P$1000,Sheet2!$D$3:$D$1000,$C38,Sheet2!$S$3:$S$1000,M$2)-SUMIFS(Sheet2!$J$3:$J$1000,Sheet2!$D$3:$D$1000,$C38,Sheet2!$T$3:$T$1000,M$2)-SUMIFS(Sheet2!$P$3:$P$1000,Sheet2!$D$3:$D$1000,$C38,Sheet2!$T$3:$T$1000,M$2) -> 0 | N38: =SUMIFS(Sheet2!$G$3:$G$1000,Sheet2!$D$3:$D$1000,$C38,Sheet2!$T$3:$T$1000,N$2)+SUMIFS(Sheet2!$P$3:$P$1000,Sheet2!$D$3:$D$1000,$C38,Sheet2!$S$3:$S$1000,N$2)-SUMIFS(Sheet2!$J$3:$J$1000,Sheet2!$D$3:$D$1000,$C38,Sheet2!$T$3:$T$1000,N$2) -> 0 | O38: =SUMIFS(Sheet2!$G$3:$G$1000,Sheet2!$D$3:$D$1000,$C38,Sheet2!$T$3:$T$1000,O$2)+SUMIFS(Sheet2!$P$3:$P$1000,Sheet2!$D$3:$D$1000,$C38,Sheet2!$S$3:$S$1000,O$2)-SUMIFS(Sheet2!$J$3:$J$1000,Sheet2!$D$3:$D$1000,$C38,Sheet2!$T$3:$T$1000,O$2) -> 0 | P38: =SUMIFS(Sheet2!$G$3:$G$1000,Sheet2!$D$3:$D$1000,$C38,Sheet2!$T$3:$T$1000,P$2)+SUMIFS(Sheet2!$P$3:$P$1000,Sheet2!$D$3:$D$1000,$C38,Sheet2!$S$3:$S$1000,P$2)-SUMIFS(Sheet2!$J$3:$J$1000,Sheet2!$D$3:$D$1000,$C38,Sheet2!$T$3:$T$1000,P$2) -> 0 | Q38: =SUMIFS(Sheet2!$G$3:$G$1000,Sheet2!$D$3:$D$1000,$C38,Sheet2!$T$3:$T$1000,Q$2)+SUMIFS(Sheet2!$P$3:$P$1000,Sheet2!$D$3:$D$1000,$C38,Sheet2!$S$3:$S$1000,Q$2)-SUMIFS(Sheet2!$J$3:$J$1000,Sheet2!$D$3:$D$1000,$C38,Sheet2!$T$3:$T$1000,Q$2) -> 0 | R38: =SUMIFS(Sheet2!$G$3:$G$1000,Sheet2!$D$3:$D$1000,$C38,Sheet2!$T$3:$T$1000,R$2)+SUMIFS(Sheet2!$P$3:$P$1000,Sheet2!$D$3:$D$1000,$C38,Sheet2!$S$3:$S$1000,R$2)-SUMIFS(Sheet2!$J$3:$J$1000,Sheet2!$D$3:$D$1000,$C38,Sheet2!$T$3:$T$1000,R$2) -> 0 | AG38: 2018-02-05
K39: 0 | L39: =G39+SUMIFS(Sheet2!$G$3:$G$1000,Sheet2!$D$3:$D$1000,$C39,Sheet2!$T$3:$T$1000,$L38)+SUMIFS(Sheet2!$P$3:$P$1000,Sheet2!$D$3:$D$1000,$C39,Sheet2!$S$3:$S$1000,$L38)-SUMIFS(Sheet2!$J$3:$J$1000,Sheet2!$D$3:$D$1000,$C39,Sheet2!$T$3:$T$1000,$L38) -> 0 | M39: =SUMIFS(Sheet2!$G$3:$G$1000,Sheet2!$D$3:$D$1000,$C39,Sheet2!$T$3:$T$1000,M$2)+SUMIFS(Sheet2!$P$3:$P$1000,Sheet2!$D$3:$D$1000,$C39,Sheet2!$S$3:$S$1000,M$2)-SUMIFS(Sheet2!$J$3:$J$1000,Sheet2!$D$3:$D$1000,$C39,Sheet2!$T$3:$T$1000,M$2)-SUMIFS(Sheet2!$P$3:$P$1000,Sheet2!$D$3:$D$1000,$C39,Sheet2!$T$3:$T$1000,M$2) -> 0 | N39: =SUMIFS(Sheet2!$G$3:$G$1000,Sheet2!$D$3:$D$1000,$C39,Sheet2!$T$3:$T$1000,N$2)+SUMIFS(Sheet2!$P$3:$P$1000,Sheet2!$D$3:$D$1000,$C39,Sheet2!$S$3:$S$1000,N$2)-SUMIFS(Sheet2!$J$3:$J$1000,Sheet2!$D$3:$D$1000,$C39,Sheet2!$T$3:$T$1000,N$2) -> 0 | O39: =SUMIFS(Sheet2!$G$3:$G$1000,Sheet2!$D$3:$D$1000,$C39,Sheet2!$T$3:$T$1000,O$2)+SUMIFS(Sheet2!$P$3:$P$1000,Sheet2!$D$3:$D$1000,$C39,Sheet2!$S$3:$S$1000,O$2)-SUMIFS(Sheet2!$J$3:$J$1000,Sheet2!$D$3:$D$1000,$C39,Sheet2!$T$3:$T$1000,O$2) -> 0 | P39: =SUMIFS(Sheet2!$G$3:$G$1000,Sheet2!$D$3:$D$1000,$C39,Sheet2!$T$3:$T$1000,P$2)+SUMIFS(Sheet2!$P$3:$P$1000,Sheet2!$D$3:$D$1000,$C39,Sheet2!$S$3:$S$1000,P$2)-SUMIFS(Sheet2!$J$3:$J$1000,Sheet2!$D$3:$D$1000,$C39,Sheet2!$T$3:$T$1000,P$2) -> 0 | Q39: =SUMIFS(Sheet2!$G$3:$G$1000,Sheet2!$D$3:$D$1000,$C39,Sheet2!$T$3:$T$1000,Q$2)+SUMIFS(Sheet2!$P$3:$P$1000,Sheet2!$D$3:$D$1000,$C39,Sheet2!$S$3:$S$1000,Q$2)-SUMIFS(Sheet2!$J$3:$J$1000,Sheet2!$D$3:$D$1000,$C39,Sheet2!$T$3:$T$1000,Q$2) -> 0 | R39: =SUMIFS(Sheet2!$G$3:$G$1000,Sheet2!$D$3:$D$1000,$C39,Sheet2!$T$3:$T$1000,R$2)+SUMIFS(Sheet2!$P$3:$P$1000,Sheet2!$D$3:$D$1000,$C39,Sheet2!$S$3:$S$1000,R$2)-SUMIFS(Sheet2!$J$3:$J$1000,Sheet2!$D$3:$D$1000,$C39,Sheet2!$T$3:$T$1000,R$2) -> 0 | AG39: 2018-02-06
K40: 0 | L40: =G40+SUMIFS(Sheet2!$G$3:$G$1000,Sheet2!$D$3:$D$1000,$C40,Sheet2!$T$3:$T$1000,$L39)+SUMIFS(Sheet2!$P$3:$P$1000,Sheet2!$D$3:$D$1000,$C40,Sheet2!$S$3:$S$1000,$L39)-SUMIFS(Sheet2!$J$3:$J$1000,Sheet2!$D$3:$D$1000,$C40,Sheet2!$T$3:$T$1000,$L39) -> 0 | M40: =SUMIFS(Sheet2!$G$3:$G$1000,Sheet2!$D$3:$D$1000,$C40,Sheet2!$T$3:$T$1000,M$2)+SUMIFS(Sheet2!$P$3:$P$1000,Sheet2!$D$3:$D$1000,$C40,Sheet2!$S$3:$S$1000,M$2)-SUMIFS(Sheet2!$J$3:$J$1000,Sheet2!$D$3:$D$1000,$C40,Sheet2!$T$3:$T$1000,M$2)-SUMIFS(Sheet2!$P$3:$P$1000,Sheet2!$D$3:$D$1000,$C40,Sheet2!$T$3:$T$1000,M$2) -> 0 | N40: =SUMIFS(Sheet2!$G$3:$G$1000,Sheet2!$D$3:$D$1000,$C40,Sheet2!$T$3:$T$1000,N$2)+SUMIFS(Sheet2!$P$3:$P$1000,Sheet2!$D$3:$D$1000,$C40,Sheet2!$S$3:$S$1000,N$2)-SUMIFS(Sheet2!$J$3:$J$1000,Sheet2!$D$3:$D$1000,$C40,Sheet2!$T$3:$T$1000,N$2) -> 0 | O40: =SUMIFS(Sheet2!$G$3:$G$1000,Sheet2!$D$3:$D$1000,$C40,Sheet2!$T$3:$T$1000,O$2)+SUMIFS(Sheet2!$P$3:$P$1000,Sheet2!$D$3:$D$1000,$C40,Sheet2!$S$3:$S$1000,O$2)-SUMIFS(Sheet2!$J$3:$J$1000,Sheet2!$D$3:$D$1000,$C40,Sheet2!$T$3:$T$1000,O$2) -> 0 | P40: =SUMIFS(Sheet2!$G$3:$G$1000,Sheet2!$D$3:$D$1000,$C40,Sheet2!$T$3:$T$1000,P$2)+SUMIFS(Sheet2!$P$3:$P$1000,Sheet2!$D$3:$D$1000,$C40,Sheet2!$S$3:$S$1000,P$2)-SUMIFS(Sheet2!$J$3:$J$1000,Sheet2!$D$3:$D$1000,$C40,Sheet2!$T$3:$T$1000,P$2) -> 0 | Q40: =SUMIFS(Sheet2!$G$3:$G$1000,Sheet2!$D$3:$D$1000,$C40,Sheet2!$T$3:$T$1000,Q$2)+SUMIFS(Sheet2!$P$3:$P$1000,Sheet2!$D$3:$D$1000,$C40,Sheet2!$S$3:$S$1000,Q$2)-SUMIFS(Sheet2!$J$3:$J$1000,Sheet2!$D$3:$D$1000,$C40,Sheet2!$T$3:$T$1000,Q$2) -> 0 | R40: =SUMIFS(Sheet2!$G$3:$G$1000,Sheet2!$D$3:$D$1000,$C40,Sheet2!$T$3:$T$1000,R$2)+SUMIFS(Sheet2!$P$3:$P$1000,Sheet2!$D$3:$D$1000,$C40,Sheet2!$S$3:$S$1000,R$2)-SUMIFS(Sheet2!$J$3:$J$1000,Sheet2!$D$3:$D$1000,$C40,Sheet2!$T$3:$T$1000,R$2) -> 0 | AG40: 2018-02-07
K41: 0 | L41: =G41+SUMIFS(Sheet2!$G$3:$G$1000,Sheet2!$D$3:$D$1000,$C41,Sheet2!$T$3:$T$1000,$L40)+SUMIFS(Sheet2!$P$3:$P$1000,Sheet2!$D$3:$D$1000,$C41,Sheet2!$S$3:$S$1000,$L40)-SUMIFS(Sheet2!$J$3:$J$1000,Sheet2!$D$3:$D$1000,$C41,Sheet2!$T$3:$T$1000,$L40) -> 0 | M41: =SUMIFS(Sheet2!$G$3:$G$1000,Sheet2!$D$3:$D$1000,$C41,Sheet2!$T$3:$T$1000,M$2)+SUMIFS(Sheet2!$P$3:$P$1000,Sheet2!$D$3:$D$1000,$C41,Sheet2!$S$3:$S$1000,M$2)-SUMIFS(Sheet2!$J$3:$J$1000,Sheet2!$D$3:$D$1000,$C41,Sheet2!$T$3:$T$1000,M$2)-SUMIFS(Sheet2!$P$3:$P$1000,Sheet2!$D$3:$D$1000,$C41,Sheet2!$T$3:$T$1000,M$2) -> 0 | N41: =SUMIFS(Sheet2!$G$3:$G$1000,Sheet2!$D$3:$D$1000,$C41,Sheet2!$T$3:$T$1000,N$2)+SUMIFS(Sheet2!$P$3:$P$1000,Sheet2!$D$3:$D$1000,$C41,Sheet2!$S$3:$S$1000,N$2)-SUMIFS(Sheet2!$J$3:$J$1000,Sheet2!$D$3:$D$1000,$C41,Sheet2!$T$3:$T$1000,N$2) -> 0 | O41: =SUMIFS(Sheet2!$G$3:$G$1000,Sheet2!$D$3:$D$1000,$C41,Sheet2!$T$3:$T$1000,O$2)+SUMIFS(Sheet2!$P$3:$P$1000,Sheet2!$D$3:$D$1000,$C41,Sheet2!$S$3:$S$1000,O$2)-SUMIFS(Sheet2!$J$3:$J$1000,Sheet2!$D$3:$D$1000,$C41,Sheet2!$T$3:$T$1000,O$2) -> 0 | P41: =SUMIFS(Sheet2!$G$3:$G$1000,Sheet2!$D$3:$D$1000,$C41,Sheet2!$T$3:$T$1000,P$2)+SUMIFS(Sheet2!$P$3:$P$1000,Sheet2!$D$3:$D$1000,$C41,Sheet2!$S$3:$S$1000,P$2)-SUMIFS(Sheet2!$J$3:$J$1000,Sheet2!$D$3:$D$1000,$C41,Sheet2!$T$3:$T$1000,P$2) -> 0 | Q41: =SUMIFS(Sheet2!$G$3:$G$1000,Sheet2!$D$3:$D$1000,$C41,Sheet2!$T$3:$T$1000,Q$2)+SUMIFS(Sheet2!$P$3:$P$1000,Sheet2!$D$3:$D$1000,$C41,Sheet2!$S$3:$S$1000,Q$2)-SUMIFS(Sheet2!$J$3:$J$1000,Sheet2!$D$3:$D$1000,$C41,Sheet2!$T$3:$T$1000,Q$2) -> 0 | R41: =SUMIFS(Sheet2!$G$3:$G$1000,Sheet2!$D$3:$D$1000,$C41,Sheet2!$T$3:$T$1000,R$2)+SUMIFS(Sheet2!$P$3:$P$1000,Sheet2!$D$3:$D$1000,$C41,Sheet2!$S$3:$S$1000,R$2)-SUMIFS(Sheet2!$J$3:$J$1000,Sheet2!$D$3:$D$1000,$C41,Sheet2!$T$3:$T$1000,R$2) -> 0 | AG41: 2018-02-08
K42: 0 | L42: =G42+SUMIFS(Sheet2!$G$3:$G$1000,Sheet2!$D$3:$D$1000,$C42,Sheet2!$T$3:$T$1000,$L41)+SUMIFS(Sheet2!$P$3:$P$1000,Sheet2!$D$3:$D$1000,$C42,Sheet2!$S$3:$S$1000,$L41)-SUMIFS(Sheet2!$J$3:$J$1000,Sheet2!$D$3:$D$1000,$C42,Sheet2!$T$3:$T$1000,$L41) -> 0 | M42: =SUMIFS(Sheet2!$G$3:$G$1000,Sheet2!$D$3:$D$1000,$C42,Sheet2!$T$3:$T$1000,M$2)+SUMIFS(Sheet2!$P$3:$P$1000,Sheet2!$D$3:$D$1000,$C42,Sheet2!$S$3:$S$1000,M$2)-SUMIFS(Sheet2!$J$3:$J$1000,Sheet2!$D$3:$D$1000,$C42,Sheet2!$T$3:$T$1000,M$2)-SUMIFS(Sheet2!$P$3:$P$1000,Sheet2!$D$3:$D$1000,$C42,Sheet2!$T$3:$T$1000,M$2) -> 0 | N42: =SUMIFS(Sheet2!$G$3:$G$1000,Sheet2!$D$3:$D$1000,$C42,Sheet2!$T$3:$T$1000,N$2)+SUMIFS(Sheet2!$P$3:$P$1000,Sheet2!$D$3:$D$1000,$C42,Sheet2!$S$3:$S$1000,N$2)-SUMIFS(Sheet2!$J$3:$J$1000,Sheet2!$D$3:$D$1000,$C42,Sheet2!$T$3:$T$1000,N$2) -> 0 | O42: =SUMIFS(Sheet2!$G$3:$G$1000,Sheet2!$D$3:$D$1000,$C42,Sheet2!$T$3:$T$1000,O$2)+SUMIFS(Sheet2!$P$3:$P$1000,Sheet2!$D$3:$D$1000,$C42,Sheet2!$S$3:$S$1000,O$2)-SUMIFS(Sheet2!$J$3:$J$1000,Sheet2!$D$3:$D$1000,$C42,Sheet2!$T$3:$T$1000,O$2) -> 0 | P42: =SUMIFS(Sheet2!$G$3:$G$1000,Sheet2!$D$3:$D$1000,$C42,Sheet2!$T$3:$T$1000,P$2)+SUMIFS(Sheet2!$P$3:$P$1000,Sheet2!$D$3:$D$1000,$C42,Sheet2!$S$3:$S$1000,P$2)-SUMIFS(Sheet2!$J$3:$J$1000,Sheet2!$D$3:$D$1000,$C42,Sheet2!$T$3:$T$1000,P$2) -> 0 | Q42: =SUMIFS(Sheet2!$G$3:$G$1000,Sheet2!$D$3:$D$1000,$C42,Sheet2!$T$3:$T$1000,Q$2)+SUMIFS(Sheet2!$P$3:$P$1000,Sheet2!$D$3:$D$1000,$C42,Sheet2!$S$3:$S$1000,Q$2)-SUMIFS(Sheet2!$J$3:$J$1000,Sheet2!$D$3:$D$1000,$C42,Sheet2!$T$3:$T$1000,Q$2) -> 0 | R42: =SUMIFS(Sheet2!$G$3:$G$1000,Sheet2!$D$3:$D$1000,$C42,Sheet2!$T$3:$T$1000,R$2)+SUMIFS(Sheet2!$P$3:$P$1000,Sheet2!$D$3:$D$1000,$C42,Sheet2!$S$3:$S$1000,R$2)-SUMIFS(Sheet2!$J$3:$J$1000,Sheet2!$D$3:$D$1000,$C42,Sheet2!$T$3:$T$1000,R$2) -> 0 | AG42: 2018-02-09
K43: 0 | L43: =G43+SUMIFS(Sheet2!$G$3:$G$1000,Sheet2!$D$3:$D$1000,$C43,Sheet2!$T$3:$T$1000,$L42)+SUMIFS(Sheet2!$P$3:$P$1000,Sheet2!$D$3:$D$1000,$C43,Sheet2!$S$3:$S$1000,$L42)-SUMIFS(Sheet2!$J$3:$J$1000,Sheet2!$D$3:$D$1000,$C43,Sheet2!$T$3:$T$1000,$L42) -> 0 | M43: =SUMIFS(Sheet2!$G$3:$G$1000,Sheet2!$D$3:$D$1000,$C43,Sheet2!$T$3:$T$1000,M$2)+SUMIFS(Sheet2!$P$3:$P$1000,Sheet2!$D$3:$D$1000,$C43,Sheet2!$S$3:$S$1000,M$2)-SUMIFS(Sheet2!$J$3:$J$1000,Sheet2!$D$3:$D$1000,$C43,Sheet2!$T$3:$T$1000,M$2)-SUMIFS(Sheet2!$P$3:$P$1000,Sheet2!$D$3:$D$1000,$C43,Sheet2!$T$3:$T$1000,M$2) -> 0 | N43: =SUMIFS(Sheet2!$G$3:$G$1000,Sheet2!$D$3:$D$1000,$C43,Sheet2!$T$3:$T$1000,N$2)+SUMIFS(Sheet2!$P$3:$P$1000,Sheet2!$D$3:$D$1000,$C43,Sheet2!$S$3:$S$1000,N$2)-SUMIFS(Sheet2!$J$3:$J$1000,Sheet2!$D$3:$D$1000,$C43,Sheet2!$T$3:$T$1000,N$2) -> 0 | O43: =SUMIFS(Sheet2!$G$3:$G$1000,Sheet2!$D$3:$D$1000,$C43,Sheet2!$T$3:$T$1000,O$2)+SUMIFS(Sheet2!$P$3:$P$1000,Sheet2!$D$3:$D$1000,$C43,Sheet2!$S$3:$S$1000,O$2)-SUMIFS(Sheet2!$J$3:$J$1000,Sheet2!$D$3:$D$1000,$C43,Sheet2!$T$3:$T$1000,O$2) -> 0 | P43: =SUMIFS(Sheet2!$G$3:$G$1000,Sheet2!$D$3:$D$1000,$C43,Sheet2!$T$3:$T$1000,P$2)+SUMIFS(Sheet2!$P$3:$P$1000,Sheet2!$D$3:$D$1000,$C43,Sheet2!$S$3:$S$1000,P$2)-SUMIFS(Sheet2!$J$3:$J$1000,Sheet2!$D$3:$D$1000,$C43,Sheet2!$T$3:$T$1000,P$2) -> 0 | Q43: =SUMIFS(Sheet2!$G$3:$G$1000,Sheet2!$D$3:$D$1000,$C43,Sheet2!$T$3:$T$1000,Q$2)+SUMIFS(Sheet2!$P$3:$P$1000,Sheet2!$D$3:$D$1000,$C43,Sheet2!$S$3:$S$1000,Q$2)-SUMIFS(Sheet2!$J$3:$J$1000,Sheet2!$D$3:$D$1000,$C43,Sheet2!$T$3:$T$1000,Q$2) -> 0 | R43: =SUMIFS(Sheet2!$G$3:$G$1000,Sheet2!$D$3:$D$1000,$C43,Sheet2!$T$3:$T$1000,R$2)+SUMIFS(Sheet2!$P$3:$P$1000,Sheet2!$D$3:$D$1000,$C43,Sheet2!$S$3:$S$1000,R$2)-SUMIFS(Sheet2!$J$3:$J$1000,Sheet2!$D$3:$D$1000,$C43,Sheet2!$T$3:$T$1000,R$2) -> 0 | AG43: 2018-02-10
K44: 0 | L44: =G44+SUMIFS(Sheet2!$G$3:$G$1000,Sheet2!$D$3:$D$1000,$C44,Sheet2!$T$3:$T$1000,$L43)+SUMIFS(Sheet2!$P$3:$P$1000,Sheet2!$D$3:$D$1000,$C44,Sheet2!$S$3:$S$1000,$L43)-SUMIFS(Sheet2!$J$3:$J$1000,Sheet2!$D$3:$D$1000,$C44,Sheet2!$T$3:$T$1000,$L43) -> 0 | M44: =SUMIFS(Sheet2!$G$3:$G$1000,Sheet2!$D$3:$D$1000,$C44,Sheet2!$T$3:$T$1000,M$2)+SUMIFS(Sheet2!$P$3:$P$1000,Sheet2!$D$3:$D$1000,$C44,Sheet2!$S$3:$S$1000,M$2)-SUMIFS(Sheet2!$J$3:$J$1000,Sheet2!$D$3:$D$1000,$C44,Sheet2!$T$3:$T$1000,M$2)-SUMIFS(Sheet2!$P$3:$P$1000,Sheet2!$D$3:$D$1000,$C44,Sheet2!$T$3:$T$1000,M$2) -> 0 | N44: =SUMIFS(Sheet2!$G$3:$G$1000,Sheet2!$D$3:$D$1000,$C44,Sheet2!$T$3:$T$1000,N$2)+SUMIFS(Sheet2!$P$3:$P$1000,Sheet2!$D$3:$D$1000,$C44,Sheet2!$S$3:$S$1000,N$2)-SUMIFS(Sheet2!$J$3:$J$1000,Sheet2!$D$3:$D$1000,$C44,Sheet2!$T$3:$T$1000,N$2) -> 0 | O44: =SUMIFS(Sheet2!$G$3:$G$1000,Sheet2!$D$3:$D$1000,$C44,Sheet2!$T$3:$T$1000,O$2)+SUMIFS(Sheet2!$P$3:$P$1000,Sheet2!$D$3:$D$1000,$C44,Sheet2!$S$3:$S$1000,O$2)-SUMIFS(Sheet2!$J$3:$J$1000,Sheet2!$D$3:$D$1000,$C44,Sheet2!$T$3:$T$1000,O$2) -> 0 | P44: =SUMIFS(Sheet2!$G$3:$G$1000,Sheet2!$D$3:$D$1000,$C44,Sheet2!$T$3:$T$1000,P$2)+SUMIFS(Sheet2!$P$3:$P$1000,Sheet2!$D$3:$D$1000,$C44,Sheet2!$S$3:$S$1000,P$2)-SUMIFS(Sheet2!$J$3:$J$1000,Sheet2!$D$3:$D$1000,$C44,Sheet2!$T$3:$T$1000,P$2) -> 0 | Q44: =SUMIFS(Sheet2!$G$3:$G$1000,Sheet2!$D$3:$D$1000,$C44,Sheet2!$T$3:$T$1000,Q$2)+SUMIFS(Sheet2!$P$3:$P$1000,Sheet2!$D$3:$D$1000,$C44,Sheet2!$S$3:$S$1000,Q$2)-SUMIFS(Sheet2!$J$3:$J$1000,Sheet2!$D$3:$D$1000,$C44,Sheet2!$T$3:$T$1000,Q$2) -> 0 | R44: =SUMIFS(Sheet2!$G$3:$G$1000,Sheet2!$D$3:$D$1000,$C44,Sheet2!$T$3:$T$1000,R$2)+SUMIFS(Sheet2!$P$3:$P$1000,Sheet2!$D$3:$D$1000,$C44,Sheet2!$S$3:$S$1000,R$2)-SUMIFS(Sheet2!$J$3:$J$1000,Sheet2!$D$3:$D$1000,$C44,Sheet2!$T$3:$T$1000,R$2) -> 0 | AG44: 2018-02-11
K45: 0 | L45: =G45+SUMIFS(Sheet2!$G$3:$G$1000,Sheet2!$D$3:$D$1000,$C45,Sheet2!$T$3:$T$1000,$L44)+SUMIFS(Sheet2!$P$3:$P$1000,Sheet2!$D$3:$D$1000,$C45,Sheet2!$S$3:$S$1000,$L44)-SUMIFS(Sheet2!$J$3:$J$1000,Sheet2!$D$3:$D$1000,$C45,Sheet2!$T$3:$T$1000,$L44) -> 0 | M45: =SUMIFS(Sheet2!$G$3:$G$1000,Sheet2!$D$3:$D$1000,$C45,Sheet2!$T$3:$T$1000,M$2)+SUMIFS(Sheet2!$P$3:$P$1000,Sheet2!$D$3:$D$1000,$C45,Sheet2!$S$3:$S$1000,M$2)-SUMIFS(Sheet2!$J$3:$J$1000,Sheet2!$D$3:$D$1000,$C45,Sheet2!$T$3:$T$1000,M$2)-SUMIFS(Sheet2!$P$3:$P$1000,Sheet2!$D$3:$D$1000,$C45,Sheet2!$T$3:$T$1000,M$2) -> 0 | N45: =SUMIFS(Sheet2!$G$3:$G$1000,Sheet2!$D$3:$D$1000,$C45,Sheet2!$T$3:$T$1000,N$2)+SUMIFS(Sheet2!$P$3:$P$1000,Sheet2!$D$3:$D$1000,$C45,Sheet2!$S$3:$S$1000,N$2)-SUMIFS(Sheet2!$J$3:$J$1000,Sheet2!$D$3:$D$1000,$C45,Sheet2!$T$3:$T$1000,N$2) -> 0 | O45: =SUMIFS(Sheet2!$G$3:$G$1000,Sheet2!$D$3:$D$1000,$C45,Sheet2!$T$3:$T$1000,O$2)+SUMIFS(Sheet2!$P$3:$P$1000,Sheet2!$D$3:$D$1000,$C45,Sheet2!$S$3:$S$1000,O$2)-SUMIFS(Sheet2!$J$3:$J$1000,Sheet2!$D$3:$D$1000,$C45,Sheet2!$T$3:$T$1000,O$2) -> 0 | P45: =SUMIFS(Sheet2!$G$3:$G$1000,Sheet2!$D$3:$D$1000,$C45,Sheet2!$T$3:$T$1000,P$2)+SUMIFS(Sheet2!$P$3:$P$1000,Sheet2!$D$3:$D$1000,$C45,Sheet2!$S$3:$S$1000,P$2)-SUMIFS(Sheet2!$J$3:$J$1000,Sheet2!$D$3:$D$1000,$C45,Sheet2!$T$3:$T$1000,P$2) -> 0 | Q45: =SUMIFS(Sheet2!$G$3:$G$1000,Sheet2!$D$3:$D$1000,$C45,Sheet2!$T$3:$T$1000,Q$2)+SUMIFS(Sheet2!$P$3:$P$1000,Sheet2!$D$3:$D$1000,$C45,Sheet2!$S$3:$S$1000,Q$2)-SUMIFS(Sheet2!$J$3:$J$1000,Sheet2!$D$3:$D$1000,$C45,Sheet2!$T$3:$T$1000,Q$2) -> 0 | R45: =SUMIFS(Sheet2!$G$3:$G$1000,Sheet2!$D$3:$D$1000,$C45,Sheet2!$T$3:$T$1000,R$2)+SUMIFS(Sheet2!$P$3:$P$1000,Sheet2!$D$3:$D$1000,$C45,Sheet2!$S$3:$S$1000,R$2)-SUMIFS(Sheet2!$J$3:$J$1000,Sheet2!$D$3:$D$1000,$C45,Sheet2!$T$3:$T$1000,R$2) -> 0 | AG45: 2018-02-12
K46: 0 | L46: =G46+SUMIFS(Sheet2!$G$3:$G$1000,Sheet2!$D$3:$D$1000,$C46,Sheet2!$T$3:$T$1000,$L45)+SUMIFS(Sheet2!$P$3:$P$1000,Sheet2!$D$3:$D$1000,$C46,Sheet2!$S$3:$S$1000,$L45)-SUMIFS(Sheet2!$J$3:$J$1000,Sheet2!$D$3:$D$1000,$C46,Sheet2!$T$3:$T$1000,$L45) -> 0 | M46: =SUMIFS(Sheet2!$G$3:$G$1000,Sheet2!$D$3:$D$1000,$C46,Sheet2!$T$3:$T$1000,M$2)+SUMIFS(Sheet2!$P$3:$P$1000,Sheet2!$D$3:$D$1000,$C46,Sheet2!$S$3:$S$1000,M$2)-SUMIFS(Sheet2!$J$3:$J$1000,Sheet2!$D$3:$D$1000,$C46,Sheet2!$T$3:$T$1000,M$2)-SUMIFS(Sheet2!$P$3:$P$1000,Sheet2!$D$3:$D$1000,$C46,Sheet2!$T$3:$T$1000,M$2) -> 0 | N46: =SUMIFS(Sheet2!$G$3:$G$1000,Sheet2!$D$3:$D$1000,$C46,Sheet2!$T$3:$T$1000,N$2)+SUMIFS(Sheet2!$P$3:$P$1000,Sheet2!$D$3:$D$1000,$C46,Sheet2!$S$3:$S$1000,N$2)-SUMIFS(Sheet2!$J$3:$J$1000,Sheet2!$D$3:$D$1000,$C46,Sheet2!$T$3:$T$1000,N$2) -> 0 | O46: =SUMIFS(Sheet2!$G$3:$G$1000,Sheet2!$D$3:$D$1000,$C46,Sheet2!$T$3:$T$1000,O$2)+SUMIFS(Sheet2!$P$3:$P$1000,Sheet2!$D$3:$D$1000,$C46,Sheet2!$S$3:$S$1000,O$2)-SUMIFS(Sheet2!$J$3:$J$1000,Sheet2!$D$3:$D$1000,$C46,Sheet2!$T$3:$T$1000,O$2) -> 0 | P46: =SUMIFS(Sheet2!$G$3:$G$1000,Sheet2!$D$3:$D$1000,$C46,Sheet2!$T$3:$T$1000,P$2)+SUMIFS(Sheet2!$P$3:$P$1000,Sheet2!$D$3:$D$1000,$C46,Sheet2!$S$3:$S$1000,P$2)-SUMIFS(Sheet2!$J$3:$J$1000,Sheet2!$D$3:$D$1000,$C46,Sheet2!$T$3:$T$1000,P$2) -> 0 | Q46: =SUMIFS(Sheet2!$G$3:$G$1000,Sheet2!$D$3:$D$1000,$C46,Sheet2!$T$3:$T$1000,Q$2)+SUMIFS(Sheet2!$P$3:$P$1000,Sheet2!$D$3:$D$1000,$C46,Sheet2!$S$3:$S$1000,Q$2)-SUMIFS(Sheet2!$J$3:$J$1000,Sheet2!$D$3:$D$1000,$C46,Sheet2!$T$3:$T$1000,Q$2) -> 0 | R46: =SUMIFS(Sheet2!$G$3:$G$1000,Sheet2!$D$3:$D$1000,$C46,Sheet2!$T$3:$T$1000,R$2)+SUMIFS(Sheet2!$P$3:$P$1000,Sheet2!$D$3:$D$1000,$C46,Sheet2!$S$3:$S$1000,R$2)-SUMIFS(Sheet2!$J$3:$J$1000,Sheet2!$D$3:$D$1000,$C46,Sheet2!$T$3:$T$1000,R$2) -> 0 | AG46: 2018-02-13
K47: 0 | L47: =G47+SUMIFS(Sheet2!$G$3:$G$1000,Sheet2!$D$3:$D$1000,$C47,Sheet2!$T$3:$T$1000,$L46)+SUMIFS(Sheet2!$P$3:$P$1000,Sheet2!$D$3:$D$1000,$C47,Sheet2!$S$3:$S$1000,$L46)-SUMIFS(Sheet2!$J$3:$J$1000,Sheet2!$D$3:$D$1000,$C47,Sheet2!$T$3:$T$1000,$L46) -> 0 | M47: =SUMIFS(Sheet2!$G$3:$G$1000,Sheet2!$D$3:$D$1000,$C47,Sheet2!$T$3:$T$1000,M$2)+SUMIFS(Sheet2!$P$3:$P$1000,Sheet2!$D$3:$D$1000,$C47,Sheet2!$S$3:$S$1000,M$2)-SUMIFS(Sheet2!$J$3:$J$1000,Sheet2!$D$3:$D$1000,$C47,Sheet2!$T$3:$T$1000,M$2)-SUMIFS(Sheet2!$P$3:$P$1000,Sheet2!$D$3:$D$1000,$C47,Sheet2!$T$3:$T$1000,M$2) -> 0 | N47: =SUMIFS(Sheet2!$G$3:$G$1000,Sheet2!$D$3:$D$1000,$C47,Sheet2!$T$3:$T$1000,N$2)+SUMIFS(Sheet2!$P$3:$P$1000,Sheet2!$D$3:$D$1000,$C47,Sheet2!$S$3:$S$1000,N$2)-SUMIFS(Sheet2!$J$3:$J$1000,Sheet2!$D$3:$D$1000,$C47,Sheet2!$T$3:$T$1000,N$2) -> 0 | O47: =SUMIFS(Sheet2!$G$3:$G$1000,Sheet2!$D$3:$D$1000,$C47,Sheet2!$T$3:$T$1000,O$2)+SUMIFS(Sheet2!$P$3:$P$1000,Sheet2!$D$3:$D$1000,$C47,Sheet2!$S$3:$S$1000,O$2)-SUMIFS(Sheet2!$J$3:$J$1000,Sheet2!$D$3:$D$1000,$C47,Sheet2!$T$3:$T$1000,O$2) -> 0 | P47: =SUMIFS(Sheet2!$G$3:$G$1000,Sheet2!$D$3:$D$1000,$C47,Sheet2!$T$3:$T$1000,P$2)+SUMIFS(Sheet2!$P$3:$P$1000,Sheet2!$D$3:$D$1000,$C47,Sheet2!$S$3:$S$1000,P$2)-SUMIFS(Sheet2!$J$3:$J$1000,Sheet2!$D$3:$D$1000,$C47,Sheet2!$T$3:$T$1000,P$2) -> 0 | Q47: =SUMIFS(Sheet2!$G$3:$G$1000,Sheet2!$D$3:$D$1000,$C47,Sheet2!$T$3:$T$1000,Q$2)+SUMIFS(Sheet2!$P$3:$P$1000,Sheet2!$D$3:$D$1000,$C47,Sheet2!$S$3:$S$1000,Q$2)-SUMIFS(Sheet2!$J$3:$J$1000,Sheet2!$D$3:$D$1000,$C47,Sheet2!$T$3:$T$1000,Q$2) -> 0 | R47: =SUMIFS(Sheet2!$G$3:$G$1000,Sheet2!$D$3:$D$1000,$C47,Sheet2!$T$3:$T$1000,R$2)+SUMIFS(Sheet2!$P$3:$P$1000,Sheet2!$D$3:$D$1000,$C47,Sheet2!$S$3:$S$1000,R$2)-SUMIFS(Sheet2!$J$3:$J$1000,Sheet2!$D$3:$D$1000,$C47,Sheet2!$T$3:$T$1000,R$2) -> 0 | AG47: 2018-02-14
K48: 0 | L48: =G48+SUMIFS(Sheet2!$G$3:$G$1000,Sheet2!$D$3:$D$1000,$C48,Sheet2!$T$3:$T$1000,$L47)+SUMIFS(Sheet2!$P$3:$P$1000,Sheet2!$D$3:$D$1000,$C48,Sheet2!$S$3:$S$1000,$L47)-SUMIFS(Sheet2!$J$3:$J$1000,Sheet2!$D$3:$D$1000,$C48,Sheet2!$T$3:$T$1000,$L47) -> 0 | M48: =SUMIFS(Sheet2!$G$3:$G$1000,Sheet2!$D$3:$D$1000,$C48,Sheet2!$T$3:$T$1000,M$2)+SUMIFS(Sheet2!$P$3:$P$1000,Sheet2!$D$3:$D$1000,$C48,Sheet2!$S$3:$S$1000,M$2)-SUMIFS(Sheet2!$J$3:$J$1000,Sheet2!$D$3:$D$1000,$C48,Sheet2!$T$3:$T$1000,M$2)-SUMIFS(Sheet2!$P$3:$P$1000,Sheet2!$D$3:$D$1000,$C48,Sheet2!$T$3:$T$1000,M$2) -> 0 | N48: =SUMIFS(Sheet2!$G$3:$G$1000,Sheet2!$D$3:$D$1000,$C48,Sheet2!$T$3:$T$1000,N$2)+SUMIFS(Sheet2!$P$3:$P$1000,Sheet2!$D$3:$D$1000,$C48,Sheet2!$S$3:$S$1000,N$2)-SUMIFS(Sheet2!$J$3:$J$1000,Sheet2!$D$3:$D$1000,$C48,Sheet2!$T$3:$T$1000,N$2) -> 0 | O48: =SUMIFS(Sheet2!$G$3:$G$1000,Sheet2!$D$3:$D$1000,$C48,Sheet2!$T$3:$T$1000,O$2)+SUMIFS(Sheet2!$P$3:$P$1000,Sheet2!$D$3:$D$1000,$C48,Sheet2!$S$3:$S$1000,O$2)-SUMIFS(Sheet2!$J$3:$J$1000,Sheet2!$D$3:$D$1000,$C48,Sheet2!$T$3:$T$1000,O$2) -> 0 | P48: =SUMIFS(Sheet2!$G$3:$G$1000,Sheet2!$D$3:$D$1000,$C48,Sheet2!$T$3:$T$1000,P$2)+SUMIFS(Sheet2!$P$3:$P$1000,Sheet2!$D$3:$D$1000,$C48,Sheet2!$S$3:$S$1000,P$2)-SUMIFS(Sheet2!$J$3:$J$1000,Sheet2!$D$3:$D$1000,$C48,Sheet2!$T$3:$T$1000,P$2) -> 0 | Q48: =SUMIFS(Sheet2!$G$3:$G$1000,Sheet2!$D$3:$D$1000,$C48,Sheet2!$T$3:$T$1000,Q$2)+SUMIFS(Sheet2!$P$3:$P$1000,Sheet2!$D$3:$D$1000,$C48,Sheet2!$S$3:$S$1000,Q$2)-SUMIFS(Sheet2!$J$3:$J$1000,Sheet2!$D$3:$D$1000,$C48,Sheet2!$T$3:$T$1000,Q$2) -> 0 | R48: =SUMIFS(Sheet2!$G$3:$G$1000,Sheet2!$D$3:$D$1000,$C48,Sheet2!$T$3:$T$1000,R$2)+SUMIFS(Sheet2!$P$3:$P$1000,Sheet2!$D$3:$D$1000,$C48,Sheet2!$S$3:$S$1000,R$2)-SUMIFS(Sheet2!$J$3:$J$1000,Sheet2!$D$3:$D$1000,$C48,Sheet2!$T$3:$T$1000,R$2) -> 0 | AG48: 2018-02-15
K49: 0 | L49: =G49+SUMIFS(Sheet2!$G$3:$G$1000,Sheet2!$D$3:$D$1000,$C49,Sheet2!$T$3:$T$1000,$L48)+SUMIFS(Sheet2!$P$3:$P$1000,Sheet2!$D$3:$D$1000,$C49,Sheet2!$S$3:$S$1000,$L48)-SUMIFS(Sheet2!$J$3:$J$1000,Sheet2!$D$3:$D$1000,$C49,Sheet2!$T$3:$T$1000,$L48) -> 0 | M49: =SUMIFS(Sheet2!$G$3:$G$1000,Sheet2!$D$3:$D$1000,$C49,Sheet2!$T$3:$T$1000,M$2)+SUMIFS(Sheet2!$P$3:$P$1000,Sheet2!$D$3:$D$1000,$C49,Sheet2!$S$3:$S$1000,M$2)-SUMIFS(Sheet2!$J$3:$J$1000,Sheet2!$D$3:$D$1000,$C49,Sheet2!$T$3:$T$1000,M$2)-SUMIFS(Sheet2!$P$3:$P$1000,Sheet2!$D$3:$D$1000,$C49,Sheet2!$T$3:$T$1000,M$2) -> 0 | N49: =SUMIFS(Sheet2!$G$3:$G$1000,Sheet2!$D$3:$D$1000,$C49,Sheet2!$T$3:$T$1000,N$2)+SUMIFS(Sheet2!$P$3:$P$1000,Sheet2!$D$3:$D$1000,$C49,Sheet2!$S$3:$S$1000,N$2)-SUMIFS(Sheet2!$J$3:$J$1000,Sheet2!$D$3:$D$1000,$C49,Sheet2!$T$3:$T$1000,N$2) -> 0 | O49: =SUMIFS(Sheet2!$G$3:$G$1000,Sheet2!$D$3:$D$1000,$C49,Sheet2!$T$3:$T$1000,O$2)+SUMIFS(Sheet2!$P$3:$P$1000,Sheet2!$D$3:$D$1000,$C49,Sheet2!$S$3:$S$1000,O$2)-SUMIFS(Sheet2!$J$3:$J$1000,Sheet2!$D$3:$D$1000,$C49,Sheet2!$T$3:$T$1000,O$2) -> 0 | P49: =SUMIFS(Sheet2!$G$3:$G$1000,Sheet2!$D$3:$D$1000,$C49,Sheet2!$T$3:$T$1000,P$2)+SUMIFS(Sheet2!$P$3:$P$1000,Sheet2!$D$3:$D$1000,$C49,Sheet2!$S$3:$S$1000,P$2)-SUMIFS(Sheet2!$J$3:$J$1000,Sheet2!$D$3:$D$1000,$C49,Sheet2!$T$3:$T$1000,P$2) -> 0 | Q49: =SUMIFS(Sheet2!$G$3:$G$1000,Sheet2!$D$3:$D$1000,$C49,Sheet2!$T$3:$T$1000,Q$2)+SUMIFS(Sheet2!$P$3:$P$1000,Sheet2!$D$3:$D$1000,$C49,Sheet2!$S$3:$S$1000,Q$2)-SUMIFS(Sheet2!$J$3:$J$1000,Sheet2!$D$3:$D$1000,$C49,Sheet2!$T$3:$T$1000,Q$2) -> 0 | R49: =SUMIFS(Sheet2!$G$3:$G$1000,Sheet2!$D$3:$D$1000,$C49,Sheet2!$T$3:$T$1000,R$2)+SUMIFS(Sheet2!$P$3:$P$1000,Sheet2!$D$3:$D$1000,$C49,Sheet2!$S$3:$S$1000,R$2)-SUMIFS(Sheet2!$J$3:$J$1000,Sheet2!$D$3:$D$1000,$C49,Sheet2!$T$3:$T$1000,R$2) -> 0 | AG49: 2018-02-16
K50: 0 | L50: =G50+SUMIFS(Sheet2!$G$3:$G$1000,Sheet2!$D$3:$D$1000,$C50,Sheet2!$T$3:$T$1000,$L49)+SUMIFS(Sheet2!$P$3:$P$1000,Sheet2!$D$3:$D$1000,$C50,Sheet2!$S$3:$S$1000,$L49)-SUMIFS(Sheet2!$J$3:$J$1000,Sheet2!$D$3:$D$1000,$C50,Sheet2!$T$3:$T$1000,$L49) -> 0 | M50: =SUMIFS(Sheet2!$G$3:$G$1000,Sheet2!$D$3:$D$1000,$C50,Sheet2!$T$3:$T$1000,M$2)+SUMIFS(Sheet2!$P$3:$P$1000,Sheet2!$D$3:$D$1000,$C50,Sheet2!$S$3:$S$1000,M$2)-SUMIFS(Sheet2!$J$3:$J$1000,Sheet2!$D$3:$D$1000,$C50,Sheet2!$T$3:$T$1000,M$2)-SUMIFS(Sheet2!$P$3:$P$1000,Sheet2!$D$3:$D$1000,$C50,Sheet2!$T$3:$T$1000,M$2) -> 0 | N50: =SUMIFS(Sheet2!$G$3:$G$1000,Sheet2!$D$3:$D$1000,$C50,Sheet2!$T$3:$T$1000,N$2)+SUMIFS(Sheet2!$P$3:$P$1000,Sheet2!$D$3:$D$1000,$C50,Sheet2!$S$3:$S$1000,N$2)-SUMIFS(Sheet2!$J$3:$J$1000,Sheet2!$D$3:$D$1000,$C50,Sheet2!$T$3:$T$1000,N$2) -> 0 | O50: =SUMIFS(Sheet2!$G$3:$G$1000,Sheet2!$D$3:$D$1000,$C50,Sheet2!$T$3:$T$1000,O$2)+SUMIFS(Sheet2!$P$3:$P$1000,Sheet2!$D$3:$D$1000,$C50,Sheet2!$S$3:$S$1000,O$2)-SUMIFS(Sheet2!$J$3:$J$1000,Sheet2!$D$3:$D$1000,$C50,Sheet2!$T$3:$T$1000,O$2) -> 0 | P50: =SUMIFS(Sheet2!$G$3:$G$1000,Sheet2!$D$3:$D$1000,$C50,Sheet2!$T$3:$T$1000,P$2)+SUMIFS(Sheet2!$P$3:$P$1000,Sheet2!$D$3:$D$1000,$C50,Sheet2!$S$3:$S$1000,P$2)-SUMIFS(Sheet2!$J$3:$J$1000,Sheet2!$D$3:$D$1000,$C50,Sheet2!$T$3:$T$1000,P$2) -> 0 | Q50: =SUMIFS(Sheet2!$G$3:$G$1000,Sheet2!$D$3:$D$1000,$C50,Sheet2!$T$3:$T$1000,Q$2)+SUMIFS(Sheet2!$P$3:$P$1000,Sheet2!$D$3:$D$1000,$C50,Sheet2!$S$3:$S$1000,Q$2)-SUMIFS(Sheet2!$J$3:$J$1000,Sheet2!$D$3:$D$1000,$C50,Sheet2!$T$3:$T$1000,Q$2) -> 0 | R50: =SUMIFS(Sheet2!$G$3:$G$1000,Sheet2!$D$3:$D$1000,$C50,Sheet2!$T$3:$T$1000,R$2)+SUMIFS(Sheet2!$P$3:$P$1000,Sheet2!$D$3:$D$1000,$C50,Sheet2!$S$3:$S$1000,R$2)-SUMIFS(Sheet2!$J$3:$J$1000,Sheet2!$D$3:$D$1000,$C50,Sheet2!$T$3:$T$1000,R$2) -> 0 | AG50: 2018-02-17
K51: 0 | L51: =G51+SUMIFS(Sheet2!$G$3:$G$1000,Sheet2!$D$3:$D$1000,$C51,Sheet2!$T$3:$T$1000,$L50)+SUMIFS(Sheet2!$P$3:$P$1000,Sheet2!$D$3:$D$1000,$C51,Sheet2!$S$3:$S$1000,$L50)-SUMIFS(Sheet2!$J$3:$J$1000,Sheet2!$D$3:$D$1000,$C51,Sheet2!$T$3:$T$1000,$L50) -> 0 | M51: =SUMIFS(Sheet2!$G$3:$G$1000,Sheet2!$D$3:$D$1000,$C51,Sheet2!$T$3:$T$1000,M$2)+SUMIFS(Sheet2!$P$3:$P$1000,Sheet2!$D$3:$D$1000,$C51,Sheet2!$S$3:$S$1000,M$2)-SUMIFS(Sheet2!$J$3:$J$1000,Sheet2!$D$3:$D$1000,$C51,Sheet2!$T$3:$T$1000,M$2)-SUMIFS(Sheet2!$P$3:$P$1000,Sheet2!$D$3:$D$1000,$C51,Sheet2!$T$3:$T$1000,M$2) -> 0 | N51: =SUMIFS(Sheet2!$G$3:$G$1000,Sheet2!$D$3:$D$1000,$C51,Sheet2!$T$3:$T$1000,N$2)+SUMIFS(Sheet2!$P$3:$P$1000,Sheet2!$D$3:$D$1000,$C51,Sheet2!$S$3:$S$1000,N$2)-SUMIFS(Sheet2!$J$3:$J$1000,Sheet2!$D$3:$D$1000,$C51,Sheet2!$T$3:$T$1000,N$2) -> 0 | O51: =SUMIFS(Sheet2!$G$3:$G$1000,Sheet2!$D$3:$D$1000,$C51,Sheet2!$T$3:$T$1000,O$2)+SUMIFS(Sheet2!$P$3:$P$1000,Sheet2!$D$3:$D$1000,$C51,Sheet2!$S$3:$S$1000,O$2)-SUMIFS(Sheet2!$J$3:$J$1000,Sheet2!$D$3:$D$1000,$C51,Sheet2!$T$3:$T$1000,O$2) -> 0 | P51: =SUMIFS(Sheet2!$G$3:$G$1000,Sheet2!$D$3:$D$1000,$C51,Sheet2!$T$3:$T$1000,P$2)+SUMIFS(Sheet2!$P$3:$P$1000,Sheet2!$D$3:$D$1000,$C51,Sheet2!$S$3:$S$1000,P$2)-SUMIFS(Sheet2!$J$3:$J$1000,Sheet2!$D$3:$D$1000,$C51,Sheet2!$T$3:$T$1000,P$2) -> 0 | Q51: =SUMIFS(Sheet2!$G$3:$G$1000,Sheet2!$D$3:$D$1000,$C51,Sheet2!$T$3:$T$1000,Q$2)+SUMIFS(Sheet2!$P$3:$P$1000,Sheet2!$D$3:$D$1000,$C51,Sheet2!$S$3:$S$1000,Q$2)-SUMIFS(Sheet2!$J$3:$J$1000,Sheet2!$D$3:$D$1000,$C51,Sheet2!$T$3:$T$1000,Q$2) -> 0 | R51: =SUMIFS(Sheet2!$G$3:$G$1000,Sheet2!$D$3:$D$1000,$C51,Sheet2!$T$3:$T$1000,R$2)+SUMIFS(Sheet2!$P$3:$P$1000,Sheet2!$D$3:$D$1000,$C51,Sheet2!$S$3:$S$1000,R$2)-SUMIFS(Sheet2!$J$3:$J$1000,Sheet2!$D$3:$D$1000,$C51,Sheet2!$T$3:$T$1000,R$2) -> 0 | AG51: 2018-02-18
K52: 0 | L52: =G52+SUMIFS(Sheet2!$G$3:$G$1000,Sheet2!$D$3:$D$1000,$C52,Sheet2!$T$3:$T$1000,$L51)+SUMIFS(Sheet2!$P$3:$P$1000,Sheet2!$D$3:$D$1000,$C52,Sheet2!$S$3:$S$1000,$L51)-SUMIFS(Sheet2!$J$3:$J$1000,Sheet2!$D$3:$D$1000,$C52,Sheet2!$T$3:$T$1000,$L51) -> 0 | M52: =SUMIFS(Sheet2!$G$3:$G$1000,Sheet2!$D$3:$D$1000,$C52,Sheet2!$T$3:$T$1000,M$2)+SUMIFS(Sheet2!$P$3:$P$1000,Sheet2!$D$3:$D$1000,$C52,Sheet2!$S$3:$S$1000,M$2)-SUMIFS(Sheet2!$J$3:$J$1000,Sheet2!$D$3:$D$1000,$C52,Sheet2!$T$3:$T$1000,M$2)-SUMIFS(Sheet2!$P$3:$P$1000,Sheet2!$D$3:$D$1000,$C52,Sheet2!$T$3:$T$1000,M$2) -> 0 | N52: =SUMIFS(Sheet2!$G$3:$G$1000,Sheet2!$D$3:$D$1000,$C52,Sheet2!$T$3:$T$1000,N$2)+SUMIFS(Sheet2!$P$3:$P$1000,Sheet2!$D$3:$D$1000,$C52,Sheet2!$S$3:$S$1000,N$2)-SUMIFS(Sheet2!$J$3:$J$1000,Sheet2!$D$3:$D$1000,$C52,Sheet2!$T$3:$T$1000,N$2) -> 0 | O52: =SUMIFS(Sheet2!$G$3:$G$1000,Sheet2!$D$3:$D$1000,$C52,Sheet2!$T$3:$T$1000,O$2)+SUMIFS(Sheet2!$P$3:$P$1000,Sheet2!$D$3:$D$1000,$C52,Sheet2!$S$3:$S$1000,O$2)-SUMIFS(Sheet2!$J$3:$J$1000,Sheet2!$D$3:$D$1000,$C52,Sheet2!$T$3:$T$1000,O$2) -> 0 | P52: =SUMIFS(Sheet2!$G$3:$G$1000,Sheet2!$D$3:$D$1000,$C52,Sheet2!$T$3:$T$1000,P$2)+SUMIFS(Sheet2!$P$3:$P$1000,Sheet2!$D$3:$D$1000,$C52,Sheet2!$S$3:$S$1000,P$2)-SUMIFS(Sheet2!$J$3:$J$1000,Sheet2!$D$3:$D$1000,$C52,Sheet2!$T$3:$T$1000,P$2) -> 0 | Q52: =SUMIFS(Sheet2!$G$3:$G$1000,Sheet2!$D$3:$D$1000,$C52,Sheet2!$T$3:$T$1000,Q$2)+SUMIFS(Sheet2!$P$3:$P$1000,Sheet2!$D$3:$D$1000,$C52,Sheet2!$S$3:$S$1000,Q$2)-SUMIFS(Sheet2!$J$3:$J$1000,Sheet2!$D$3:$D$1000,$C52,Sheet2!$T$3:$T$1000,Q$2) -> 0 | R52: =SUMIFS(Sheet2!$G$3:$G$1000,Sheet2!$D$3:$D$1000,$C52,Sheet2!$T$3:$T$1000,R$2)+SUMIFS(Sheet2!$P$3:$P$1000,Sheet2!$D$3:$D$1000,$C52,Sheet2!$S$3:$S$1000,R$2)-SUMIFS(Sheet2!$J$3:$J$1000,Sheet2!$D$3:$D$1000,$C52,Sheet2!$T$3:$T$1000,R$2) -> 0 | AG52: 2018-02-19
K53: 0 | L53: =G53+SUMIFS(Sheet2!$G$3:$G$1000,Sheet2!$D$3:$D$1000,$C53,Sheet2!$T$3:$T$1000,$L52)+SUMIFS(Sheet2!$P$3:$P$1000,Sheet2!$D$3:$D$1000,$C53,Sheet2!$S$3:$S$1000,$L52)-SUMIFS(Sheet2!$J$3:$J$1000,Sheet2!$D$3:$D$1000,$C53,Sheet2!$T$3:$T$1000,$L52) -> 0 | M53: =SUMIFS(Sheet2!$G$3:$G$1000,Sheet2!$D$3:$D$1000,$C53,Sheet2!$T$3:$T$1000,M$2)+SUMIFS(Sheet2!$P$3:$P$1000,Sheet2!$D$3:$D$1000,$C53,Sheet2!$S$3:$S$1000,M$2)-SUMIFS(Sheet2!$J$3:$J$1000,Sheet2!$D$3:$D$1000,$C53,Sheet2!$T$3:$T$1000,M$2)-SUMIFS(Sheet2!$P$3:$P$1000,Sheet2!$D$3:$D$1000,$C53,Sheet2!$T$3:$T$1000,M$2) -> 0 | N53: =SUMIFS(Sheet2!$G$3:$G$1000,Sheet2!$D$3:$D$1000,$C53,Sheet2!$T$3:$T$1000,N$2)+SUMIFS(Sheet2!$P$3:$P$1000,Sheet2!$D$3:$D$1000,$C53,Sheet2!$S$3:$S$1000,N$2)-SUMIFS(Sheet2!$J$3:$J$1000,Sheet2!$D$3:$D$1000,$C53,Sheet2!$T$3:$T$1000,N$2) -> 0 | O53: =SUMIFS(Sheet2!$G$3:$G$1000,Sheet2!$D$3:$D$1000,$C53,Sheet2!$T$3:$T$1000,O$2)+SUMIFS(Sheet2!$P$3:$P$1000,Sheet2!$D$3:$D$1000,$C53,Sheet2!$S$3:$S$1000,O$2)-SUMIFS(Sheet2!$J$3:$J$1000,Sheet2!$D$3:$D$1000,$C53,Sheet2!$T$3:$T$1000,O$2) -> 0 | P53: =SUMIFS(Sheet2!$G$3:$G$1000,Sheet2!$D$3:$D$1000,$C53,Sheet2!$T$3:$T$1000,P$2)+SUMIFS(Sheet2!$P$3:$P$1000,Sheet2!$D$3:$D$1000,$C53,Sheet2!$S$3:$S$1000,P$2)-SUMIFS(Sheet2!$J$3:$J$1000,Sheet2!$D$3:$D$1000,$C53,Sheet2!$T$3:$T$1000,P$2) -> 0 | Q53: =SUMIFS(Sheet2!$G$3:$G$1000,Sheet2!$D$3:$D$1000,$C53,Sheet2!$T$3:$T$1000,Q$2)+SUMIFS(Sheet2!$P$3:$P$1000,Sheet2!$D$3:$D$1000,$C53,Sheet2!$S$3:$S$1000,Q$2)-SUMIFS(Sheet2!$J$3:$J$1000,Sheet2!$D$3:$D$1000,$C53,Sheet2!$T$3:$T$1000,Q$2) -> 0 | R53: =SUMIFS(Sheet2!$G$3:$G$1000,Sheet2!$D$3:$D$1000,$C53,Sheet2!$T$3:$T$1000,R$2)+SUMIFS(Sheet2!$P$3:$P$1000,Sheet2!$D$3:$D$1000,$C53,Sheet2!$S$3:$S$1000,R$2)-SUMIFS(Sheet2!$J$3:$J$1000,Sheet2!$D$3:$D$1000,$C53,Sheet2!$T$3:$T$1000,R$2) -> 0 | AG53: 2018-02-20
K54: 0 | L54: =G54+SUMIFS(Sheet2!$G$3:$G$1000,Sheet2!$D$3:$D$1000,$C54,Sheet2!$T$3:$T$1000,$L53)+SUMIFS(Sheet2!$P$3:$P$1000,Sheet2!$D$3:$D$1000,$C54,Sheet2!$S$3:$S$1000,$L53)-SUMIFS(Sheet2!$J$3:$J$1000,Sheet2!$D$3:$D$1000,$C54,Sheet2!$T$3:$T$1000,$L53) -> 0 | M54: =SUMIFS(Sheet2!$G$3:$G$1000,Sheet2!$D$3:$D$1000,$C54,Sheet2!$T$3:$T$1000,M$2)+SUMIFS(Sheet2!$P$3:$P$1000,Sheet2!$D$3:$D$1000,$C54,Sheet2!$S$3:$S$1000,M$2)-SUMIFS(Sheet2!$J$3:$J$1000,Sheet2!$D$3:$D$1000,$C54,Sheet2!$T$3:$T$1000,M$2)-SUMIFS(Sheet2!$P$3:$P$1000,Sheet2!$D$3:$D$1000,$C54,Sheet2!$T$3:$T$1000,M$2) -> 0 | N54: =SUMIFS(Sheet2!$G$3:$G$1000,Sheet2!$D$3:$D$1000,$C54,Sheet2!$T$3:$T$1000,N$2)+SUMIFS(Sheet2!$P$3:$P$1000,Sheet2!$D$3:$D$1000,$C54,Sheet2!$S$3:$S$1000,N$2)-SUMIFS(Sheet2!$J$3:$J$1000,Sheet2!$D$3:$D$1000,$C54,Sheet2!$T$3:$T$1000,N$2) -> 0 | O54: =SUMIFS(Sheet2!$G$3:$G$1000,Sheet2!$D$3:$D$1000,$C54,Sheet2!$T$3:$T$1000,O$2)+SUMIFS(Sheet2!$P$3:$P$1000,Sheet2!$D$3:$D$1000,$C54,Sheet2!$S$3:$S$1000,O$2)-SUMIFS(Sheet2!$J$3:$J$1000,Sheet2!$D$3:$D$1000,$C54,Sheet2!$T$3:$T$1000,O$2) -> 0 | P54: =SUMIFS(Sheet2!$G$3:$G$1000,Sheet2!$D$3:$D$1000,$C54,Sheet2!$T$3:$T$1000,P$2)+SUMIFS(Sheet2!$P$3:$P$1000,Sheet2!$D$3:$D$1000,$C54,Sheet2!$S$3:$S$1000,P$2)-SUMIFS(Sheet2!$J$3:$J$1000,Sheet2!$D$3:$D$1000,$C54,Sheet2!$T$3:$T$1000,P$2) -> 0 | Q54: =SUMIFS(Sheet2!$G$3:$G$1000,Sheet2!$D$3:$D$1000,$C54,Sheet2!$T$3:$T$1000,Q$2)+SUMIFS(Sheet2!$P$3:$P$1000,Sheet2!$D$3:$D$1000,$C54,Sheet2!$S$3:$S$1000,Q$2)-SUMIFS(Sheet2!$J$3:$J$1000,Sheet2!$D$3:$D$1000,$C54,Sheet2!$T$3:$T$1000,Q$2) -> 0 | R54: =SUMIFS(Sheet2!$G$3:$G$1000,Sheet2!$D$3:$D$1000,$C54,Sheet2!$T$3:$T$1000,R$2)+SUMIFS(Sheet2!$P$3:$P$1000,Sheet2!$D$3:$D$1000,$C54,Sheet2!$S$3:$S$1000,R$2)-SUMIFS(Sheet2!$J$3:$J$1000,Sheet2!$D$3:$D$1000,$C54,Sheet2!$T$3:$T$1000,R$2) -> 0 | AG54: 2018-02-21
K55: 0 | L55: =G55+SUMIFS(Sheet2!$G$3:$G$1000,Sheet2!$D$3:$D$1000,$C55,Sheet2!$T$3:$T$1000,$L54)+SUMIFS(Sheet2!$P$3:$P$1000,Sheet2!$D$3:$D$1000,$C55,Sheet2!$S$3:$S$1000,$L54)-SUMIFS(Sheet2!$J$3:$J$1000,Sheet2!$D$3:$D$1000,$C55,Sheet2!$T$3:$T$1000,$L54) -> 0 | M55: =SUMIFS(Sheet2!$G$3:$G$1000,Sheet2!$D$3:$D$1000,$C55,Sheet2!$T$3:$T$1000,M$2)+SUMIFS(Sheet2!$P$3:$P$1000,Sheet2!$D$3:$D$1000,$C55,Sheet2!$S$3:$S$1000,M$2)-SUMIFS(Sheet2!$J$3:$J$1000,Sheet2!$D$3:$D$1000,$C55,Sheet2!$T$3:$T$1000,M$2)-SUMIFS(Sheet2!$P$3:$P$1000,Sheet2!$D$3:$D$1000,$C55,Sheet2!$T$3:$T$1000,M$2) -> 0 | N55: =SUMIFS(Sheet2!$G$3:$G$1000,Sheet2!$D$3:$D$1000,$C55,Sheet2!$T$3:$T$1000,N$2)+SUMIFS(Sheet2!$P$3:$P$1000,Sheet2!$D$3:$D$1000,$C55,Sheet2!$S$3:$S$1000,N$2)-SUMIFS(Sheet2!$J$3:$J$1000,Sheet2!$D$3:$D$1000,$C55,Sheet2!$T$3:$T$1000,N$2) -> 0 | O55: =SUMIFS(Sheet2!$G$3:$G$1000,Sheet2!$D$3:$D$1000,$C55,Sheet2!$T$3:$T$1000,O$2)+SUMIFS(Sheet2!$P$3:$P$1000,Sheet2!$D$3:$D$1000,$C55,Sheet2!$S$3:$S$1000,O$2)-SUMIFS(Sheet2!$J$3:$J$1000,Sheet2!$D$3:$D$1000,$C55,Sheet2!$T$3:$T$1000,O$2) -> 0 | P55: =SUMIFS(Sheet2!$G$3:$G$1000,Sheet2!$D$3:$D$1000,$C55,Sheet2!$T$3:$T$1000,P$2)+SUMIFS(Sheet2!$P$3:$P$1000,Sheet2!$D$3:$D$1000,$C55,Sheet2!$S$3:$S$1000,P$2)-SUMIFS(Sheet2!$J$3:$J$1000,Sheet2!$D$3:$D$1000,$C55,Sheet2!$T$3:$T$1000,P$2) -> 0 | Q55: =SUMIFS(Sheet2!$G$3:$G$1000,Sheet2!$D$3:$D$1000,$C55,Sheet2!$T$3:$T$1000,Q$2)+SUMIFS(Sheet2!$P$3:$P$1000,Sheet2!$D$3:$D$1000,$C55,Sheet2!$S$3:$S$1000,Q$2)-SUMIFS(Sheet2!$J$3:$J$1000,Sheet2!$D$3:$D$1000,$C55,Sheet2!$T$3:$T$1000,Q$2) -> 0 | R55: =SUMIFS(Sheet2!$G$3:$G$1000,Sheet2!$D$3:$D$1000,$C55,Sheet2!$T$3:$T$1000,R$2)+SUMIFS(Sheet2!$P$3:$P$1000,Sheet2!$D$3:$D$1000,$C55,Sheet2!$S$3:$S$1000,R$2)-SUMIFS(Sheet2!$J$3:$J$1000,Sheet2!$D$3:$D$1000,$C55,Sheet2!$T$3:$T$1000,R$2) -> 0 | AG55: 2018-02-22
K56: 0 | L56: =G56+SUMIFS(Sheet2!$G$3:$G$1000,Sheet2!$D$3:$D$1000,$C56,Sheet2!$T$3:$T$1000,$L55)+SUMIFS(Sheet2!$P$3:$P$1000,Sheet2!$D$3:$D$1000,$C56,Sheet2!$S$3:$S$1000,$L55)-SUMIFS(Sheet2!$J$3:$J$1000,Sheet2!$D$3:$D$1000,$C56,Sheet2!$T$3:$T$1000,$L55) -> 0 | M56: =SUMIFS(Sheet2!$G$3:$G$1000,Sheet2!$D$3:$D$1000,$C56,Sheet2!$T$3:$T$1000,M$2)+SUMIFS(Sheet2!$P$3:$P$1000,Sheet2!$D$3:$D$1000,$C56,Sheet2!$S$3:$S$1000,M$2)-SUMIFS(Sheet2!$J$3:$J$1000,Sheet2!$D$3:$D$1000,$C56,Sheet2!$T$3:$T$1000,M$2)-SUMIFS(Sheet2!$P$3:$P$1000,Sheet2!$D$3:$D$1000,$C56,Sheet2!$T$3:$T$1000,M$2) -> 0 | N56: =SUMIFS(Sheet2!$G$3:$G$1000,Sheet2!$D$3:$D$1000,$C56,Sheet2!$T$3:$T$1000,N$2)+SUMIFS(Sheet2!$P$3:$P$1000,Sheet2!$D$3:$D$1000,$C56,Sheet2!$S$3:$S$1000,N$2)-SUMIFS(Sheet2!$J$3:$J$1000,Sheet2!$D$3:$D$1000,$C56,Sheet2!$T$3:$T$1000,N$2) -> 0 | O56: =SUMIFS(Sheet2!$G$3:$G$1000,Sheet2!$D$3:$D$1000,$C56,Sheet2!$T$3:$T$1000,O$2)+SUMIFS(Sheet2!$P$3:$P$1000,Sheet2!$D$3:$D$1000,$C56,Sheet2!$S$3:$S$1000,O$2)-SUMIFS(Sheet2!$J$3:$J$1000,Sheet2!$D$3:$D$1000,$C56,Sheet2!$T$3:$T$1000,O$2) -> 0 | P56: =SUMIFS(Sheet2!$G$3:$G$1000,Sheet2!$D$3:$D$1000,$C56,Sheet2!$T$3:$T$1000,P$2)+SUMIFS(Sheet2!$P$3:$P$1000,Sheet2!$D$3:$D$1000,$C56,Sheet2!$S$3:$S$1000,P$2)-SUMIFS(Sheet2!$J$3:$J$1000,Sheet2!$D$3:$D$1000,$C56,Sheet2!$T$3:$T$1000,P$2) -> 0 | Q56: =SUMIFS(Sheet2!$G$3:$G$1000,Sheet2!$D$3:$D$1000,$C56,Sheet2!$T$3:$T$1000,Q$2)+SUMIFS(Sheet2!$P$3:$P$1000,Sheet2!$D$3:$D$1000,$C56,Sheet2!$S$3:$S$1000,Q$2)-SUMIFS(Sheet2!$J$3:$J$1000,Sheet2!$D$3:$D$1000,$C56,Sheet2!$T$3:$T$1000,Q$2) -> 0 | R56: =SUMIFS(Sheet2!$G$3:$G$1000,Sheet2!$D$3:$D$1000,$C56,Sheet2!$T$3:$T$1000,R$2)+SUMIFS(Sheet2!$P$3:$P$1000,Sheet2!$D$3:$D$1000,$C56,Sheet2!$S$3:$S$1000,R$2)-SUMIFS(Sheet2!$J$3:$J$1000,Sheet2!$D$3:$D$1000,$C56,Sheet2!$T$3:$T$1000,R$2) -> 0 | AG56: 2018-02-23
K57: 0 | L57: =G57+SUMIFS(Sheet2!$G$3:$G$1000,Sheet2!$D$3:$D$1000,$C57,Sheet2!$T$3:$T$1000,$L56)+SUMIFS(Sheet2!$P$3:$P$1000,Sheet2!$D$3:$D$1000,$C57,Sheet2!$S$3:$S$1000,$L56)-SUMIFS(Sheet2!$J$3:$J$1000,Sheet2!$D$3:$D$1000,$C57,Sheet2!$T$3:$T$1000,$L56) -> 0 | M57: =SUMIFS(Sheet2!$G$3:$G$1000,Sheet2!$D$3:$D$1000,$C57,Sheet2!$T$3:$T$1000,M$2)+SUMIFS(Sheet2!$P$3:$P$1000,Sheet2!$D$3:$D$1000,$C57,Sheet2!$S$3:$S$1000,M$2)-SUMIFS(Sheet2!$J$3:$J$1000,Sheet2!$D$3:$D$1000,$C57,Sheet2!$T$3:$T$1000,M$2)-SUMIFS(Sheet2!$P$3:$P$1000,Sheet2!$D$3:$D$1000,$C57,Sheet2!$T$3:$T$1000,M$2) -> 0 | N57: =SUMIFS(Sheet2!$G$3:$G$1000,Sheet2!$D$3:$D$1000,$C57,Sheet2!$T$3:$T$1000,N$2)+SUMIFS(Sheet2!$P$3:$P$1000,Sheet2!$D$3:$D$1000,$C57,Sheet2!$S$3:$S$1000,N$2)-SUMIFS(Sheet2!$J$3:$J$1000,Sheet2!$D$3:$D$1000,$C57,Sheet2!$T$3:$T$1000,N$2) -> 0 | O57: =SUMIFS(Sheet2!$G$3:$G$1000,Sheet2!$D$3:$D$1000,$C57,Sheet2!$T$3:$T$1000,O$2)+SUMIFS(Sheet2!$P$3:$P$1000,Sheet2!$D$3:$D$1000,$C57,Sheet2!$S$3:$S$1000,O$2)-SUMIFS(Sheet2!$J$3:$J$1000,Sheet2!$D$3:$D$1000,$C57,Sheet2!$T$3:$T$1000,O$2) -> 0 | P57: =SUMIFS(Sheet2!$G$3:$G$1000,Sheet2!$D$3:$D$1000,$C57,Sheet2!$T$3:$T$1000,P$2)+SUMIFS(Sheet2!$P$3:$P$1000,Sheet2!$D$3:$D$1000,$C57,Sheet2!$S$3:$S$1000,P$2)-SUMIFS(Sheet2!$J$3:$J$1000,Sheet2!$D$3:$D$1000,$C57,Sheet2!$T$3:$T$1000,P$2) -> 0 | Q57: =SUMIFS(Sheet2!$G$3:$G$1000,Sheet2!$D$3:$D$1000,$C57,Sheet2!$T$3:$T$1000,Q$2)+SUMIFS(Sheet2!$P$3:$P$1000,Sheet2!$D$3:$D$1000,$C57,Sheet2!$S$3:$S$1000,Q$2)-SUMIFS(Sheet2!$J$3:$J$1000,Sheet2!$D$3:$D$1000,$C57,Sheet2!$T$3:$T$1000,Q$2) -> 0 | R57: =SUMIFS(Sheet2!$G$3:$G$1000,Sheet2!$D$3:$D$1000,$C57,Sheet2!$T$3:$T$1000,R$2)+SUMIFS(Sheet2!$P$3:$P$1000,Sheet2!$D$3:$D$1000,$C57,Sheet2!$S$3:$S$1000,R$2)-SUMIFS(Sheet2!$J$3:$J$1000,Sheet2!$D$3:$D$1000,$C57,Sheet2!$T$3:$T$1000,R$2) -> 0 | AG57: 2018-02-24
K58: 0 | L58: =G58+SUMIFS(Sheet2!$G$3:$G$1000,Sheet2!$D$3:$D$1000,$C58,Sheet2!$T$3:$T$1000,$L57)+SUMIFS(Sheet2!$P$3:$P$1000,Sheet2!$D$3:$D$1000,$C58,Sheet2!$S$3:$S$1000,$L57)-SUMIFS(Sheet2!$J$3:$J$1000,Sheet2!$D$3:$D$1000,$C58,Sheet2!$T$3:$T$1000,$L57) -> 0 | M58: =SUMIFS(Sheet2!$G$3:$G$1000,Sheet2!$D$3:$D$1000,$C58,Sheet2!$T$3:$T$1000,M$2)+SUMIFS(Sheet2!$P$3:$P$1000,Sheet2!$D$3:$D$1000,$C58,Sheet2!$S$3:$S$1000,M$2)-SUMIFS(Sheet2!$J$3:$J$1000,Sheet2!$D$3:$D$1000,$C58,Sheet2!$T$3:$T$1000,M$2)-SUMIFS(Sheet2!$P$3:$P$1000,Sheet2!$D$3:$D$1000,$C58,Sheet2!$T$3:$T$1000,M$2) -> 0 | N58: =SUMIFS(Sheet2!$G$3:$G$1000,Sheet2!$D$3:$D$1000,$C58,Sheet2!$T$3:$T$1000,N$2)+SUMIFS(Sheet2!$P$3:$P$1000,Sheet2!$D$3:$D$1000,$C58,Sheet2!$S$3:$S$1000,N$2)-SUMIFS(Sheet2!$J$3:$J$1000,Sheet2!$D$3:$D$1000,$C58,Sheet2!$T$3:$T$1000,N$2) -> 0 | O58: =SUMIFS(Sheet2!$G$3:$G$1000,Sheet2!$D$3:$D$1000,$C58,Sheet2!$T$3:$T$1000,O$2)+SUMIFS(Sheet2!$P$3:$P$1000,Sheet2!$D$3:$D$1000,$C58,Sheet2!$S$3:$S$1000,O$2)-SUMIFS(Sheet2!$J$3:$J$1000,Sheet2!$D$3:$D$1000,$C58,Sheet2!$T$3:$T$1000,O$2) -> 0 | P58: =SUMIFS(Sheet2!$G$3:$G$1000,Sheet2!$D$3:$D$1000,$C58,Sheet2!$T$3:$T$1000,P$2)+SUMIFS(Sheet2!$P$3:$P$1000,Sheet2!$D$3:$D$1000,$C58,Sheet2!$S$3:$S$1000,P$2)-SUMIFS(Sheet2!$J$3:$J$1000,Sheet2!$D$3:$D$1000,$C58,Sheet2!$T$3:$T$1000,P$2) -> 0 | Q58: =SUMIFS(Sheet2!$G$3:$G$1000,Sheet2!$D$3:$D$1000,$C58,Sheet2!$T$3:$T$1000,Q$2)+SUMIFS(Sheet2!$P$3:$P$1000,Sheet2!$D$3:$D$1000,$C58,Sheet2!$S$3:$S$1000,Q$2)-SUMIFS(Sheet2!$J$3:$J$1000,Sheet2!$D$3:$D$1000,$C58,Sheet2!$T$3:$T$1000,Q$2) -> 0 | R58: =SUMIFS(Sheet2!$G$3:$G$1000,Sheet2!$D$3:$D$1000,$C58,Sheet2!$T$3:$T$1000,R$2)+SUMIFS(Sheet2!$P$3:$P$1000,Sheet2!$D$3:$D$1000,$C58,Sheet2!$S$3:$S$1000,R$2)-SUMIFS(Sheet2!$J$3:$J$1000,Sheet2!$D$3:$D$1000,$C58,Sheet2!$T$3:$T$1000,R$2) -> 0 | AG58: 2018-02-25
K59: 0 | L59: =G59+SUMIFS(Sheet2!$G$3:$G$1000,Sheet2!$D$3:$D$1000,$C59,Sheet2!$T$3:$T$1000,$L58)+SUMIFS(Sheet2!$P$3:$P$1000,Sheet2!$D$3:$D$1000,$C59,Sheet2!$S$3:$S$1000,$L58)-SUMIFS(Sheet2!$J$3:$J$1000,Sheet2!$D$3:$D$1000,$C59,Sheet2!$T$3:$T$1000,$L58) -> 0 | M59: =SUMIFS(Sheet2!$G$3:$G$1000,Sheet2!$D$3:$D$1000,$C59,Sheet2!$T$3:$T$1000,M$2)+SUMIFS(Sheet2!$P$3:$P$1000,Sheet2!$D$3:$D$1000,$C59,Sheet2!$S$3:$S$1000,M$2)-SUMIFS(Sheet2!$J$3:$J$1000,Sheet2!$D$3:$D$1000,$C59,Sheet2!$T$3:$T$1000,M$2)-SUMIFS(Sheet2!$P$3:$P$1000,Sheet2!$D$3:$D$1000,$C59,Sheet2!$T$3:$T$1000,M$2) -> 0 | N59: =SUMIFS(Sheet2!$G$3:$G$1000,Sheet2!$D$3:$D$1000,$C59,Sheet2!$T$3:$T$1000,N$2)+SUMIFS(Sheet2!$P$3:$P$1000,Sheet2!$D$3:$D$1000,$C59,Sheet2!$S$3:$S$1000,N$2)-SUMIFS(Sheet2!$J$3:$J$1000,Sheet2!$D$3:$D$1000,$C59,Sheet2!$T$3:$T$1000,N$2) -> 0 | O59: =SUMIFS(Sheet2!$G$3:$G$1000,Sheet2!$D$3:$D$1000,$C59,Sheet2!$T$3:$T$1000,O$2)+SUMIFS(Sheet2!$P$3:$P$1000,Sheet2!$D$3:$D$1000,$C59,Sheet2!$S$3:$S$1000,O$2)-SUMIFS(Sheet2!$J$3:$J$1000,Sheet2!$D$3:$D$1000,$C59,Sheet2!$T$3:$T$1000,O$2) -> 0 | P59: =SUMIFS(Sheet2!$G$3:$G$1000,Sheet2!$D$3:$D$1000,$C59,Sheet2!$T$3:$T$1000,P$2)+SUMIFS(Sheet2!$P$3:$P$1000,Sheet2!$D$3:$D$1000,$C59,Sheet2!$S$3:$S$1000,P$2)-SUMIFS(Sheet2!$J$3:$J$1000,Sheet2!$D$3:$D$1000,$C59,Sheet2!$T$3:$T$1000,P$2) -> 0 | Q59: =SUMIFS(Sheet2!$G$3:$G$1000,Sheet2!$D$3:$D$1000,$C59,Sheet2!$T$3:$T$1000,Q$2)+SUMIFS(Sheet2!$P$3:$P$1000,Sheet2!$D$3:$D$1000,$C59,Sheet2!$S$3:$S$1000,Q$2)-SUMIFS(Sheet2!$J$3:$J$1000,Sheet2!$D$3:$D$1000,$C59,Sheet2!$T$3:$T$1000,Q$2) -> 0 | R59: =SUMIFS(Sheet2!$G$3:$G$1000,Sheet2!$D$3:$D$1000,$C59,Sheet2!$T$3:$T$1000,R$2)+SUMIFS(Sheet2!$P$3:$P$1000,Sheet2!$D$3:$D$1000,$C59,Sheet2!$S$3:$S$1000,R$2)-SUMIFS(Sheet2!$J$3:$J$1000,Sheet2!$D$3:$D$1000,$C59,Sheet2!$T$3:$T$1000,R$2) -> 0 | AG59: 2018-02-26
K60: 0 | L60: =G60+SUMIFS(Sheet2!$G$3:$G$1000,Sheet2!$D$3:$D$1000,$C60,Sheet2!$T$3:$T$1000,$L59)+SUMIFS(Sheet2!$P$3:$P$1000,Sheet2!$D$3:$D$1000,$C60,Sheet2!$S$3:$S$1000,$L59)-SUMIFS(Sheet2!$J$3:$J$1000,Sheet2!$D$3:$D$1000,$C60,Sheet2!$T$3:$T$1000,$L59) -> 0 | M60: =SUMIFS(Sheet2!$G$3:$G$1000,Sheet2!$D$3:$D$1000,$C60,Sheet2!$T$3:$T$1000,M$2)+SUMIFS(Sheet2!$P$3:$P$1000,Sheet2!$D$3:$D$1000,$C60,Sheet2!$S$3:$S$1000,M$2)-SUMIFS(Sheet2!$J$3:$J$1000,Sheet2!$D$3:$D$1000,$C60,Sheet2!$T$3:$T$1000,M$2)-SUMIFS(Sheet2!$P$3:$P$1000,Sheet2!$D$3:$D$1000,$C60,Sheet2!$T$3:$T$1000,M$2) -> 0 | N60: =SUMIFS(Sheet2!$G$3:$G$1000,Sheet2!$D$3:$D$1000,$C60,Sheet2!$T$3:$T$1000,N$2)+SUMIFS(Sheet2!$P$3:$P$1000,Sheet2!$D$3:$D$1000,$C60,Sheet2!$S$3:$S$1000,N$2)-SUMIFS(Sheet2!$J$3:$J$1000,Sheet2!$D$3:$D$1000,$C60,Sheet2!$T$3:$T$1000,N$2) -> 0 | O60: =SUMIFS(Sheet2!$G$3:$G$1000,Sheet2!$D$3:$D$1000,$C60,Sheet2!$T$3:$T$1000,O$2)+SUMIFS(Sheet2!$P$3:$P$1000,Sheet2!$D$3:$D$1000,$C60,Sheet2!$S$3:$S$1000,O$2)-SUMIFS(Sheet2!$J$3:$J$1000,Sheet2!$D$3:$D$1000,$C60,Sheet2!$T$3:$T$1000,O$2) -> 0 | P60: =SUMIFS(Sheet2!$G$3:$G$1000,Sheet2!$D$3:$D$1000,$C60,Sheet2!$T$3:$T$1000,P$2)+SUMIFS(Sheet2!$P$3:$P$1000,Sheet2!$D$3:$D$1000,$C60,Sheet2!$S$3:$S$1000,P$2)-SUMIFS(Sheet2!$J$3:$J$1000,Sheet2!$D$3:$D$1000,$C60,Sheet2!$T$3:$T$1000,P$2) -> 0 | Q60: =SUMIFS(Sheet2!$G$3:$G$1000,Sheet2!$D$3:$D$1000,$C60,Sheet2!$T$3:$T$1000,Q$2)+SUMIFS(Sheet2!$P$3:$P$1000,Sheet2!$D$3:$D$1000,$C60,Sheet2!$S$3:$S$1000,Q$2)-SUMIFS(Sheet2!$J$3:$J$1000,Sheet2!$D$3:$D$1000,$C60,Sheet2!$T$3:$T$1000,Q$2) -> 0 | R60: =SUMIFS(Sheet2!$G$3:$G$1000,Sheet2!$D$3:$D$1000,$C60,Sheet2!$T$3:$T$1000,R$2)+SUMIFS(Sheet2!$P$3:$P$1000,Sheet2!$D$3:$D$1000,$C60,Sheet2!$S$3:$S$1000,R$2)-SUMIFS(Sheet2!$J$3:$J$1000,Sheet2!$D$3:$D$1000,$C60,Sheet2!$T$3:$T$1000,R$2) -> 0 | AG60: 2018-02-27
K61: 0 | L61: =G61+SUMIFS(Sheet2!$G$3:$G$1000,Sheet2!$D$3:$D$1000,$C61,Sheet2!$T$3:$T$1000,$L60)+SUMIFS(Sheet2!$P$3:$P$1000,Sheet2!$D$3:$D$1000,$C61,Sheet2!$S$3:$S$1000,$L60)-SUMIFS(Sheet2!$J$3:$J$1000,Sheet2!$D$3:$D$1000,$C61,Sheet2!$T$3:$T$1000,$L60) -> 0 | M61: =SUMIFS(Sheet2!$G$3:$G$1000,Sheet2!$D$3:$D$1000,$C61,Sheet2!$T$3:$T$1000,M$2)+SUMIFS(Sheet2!$P$3:$P$1000,Sheet2!$D$3:$D$1000,$C61,Sheet2!$S$3:$S$1000,M$2)-SUMIFS(Sheet2!$J$3:$J$1000,Sheet2!$D$3:$D$1000,$C61,Sheet2!$T$3:$T$1000,M$2)-SUMIFS(Sheet2!$P$3:$P$1000,Sheet2!$D$3:$D$1000,$C61,Sheet2!$T$3:$T$1000,M$2) -> 0 | N61: =SUMIFS(Sheet2!$G$3:$G$1000,Sheet2!$D$3:$D$1000,$C61,Sheet2!$T$3:$T$1000,N$2)+SUMIFS(Sheet2!$P$3:$P$1000,Sheet2!$D$3:$D$1000,$C61,Sheet2!$S$3:$S$1000,N$2)-SUMIFS(Sheet2!$J$3:$J$1000,Sheet2!$D$3:$D$1000,$C61,Sheet2!$T$3:$T$1000,N$2) -> 0 | O61: =SUMIFS(Sheet2!$G$3:$G$1000,Sheet2!$D$3:$D$1000,$C61,Sheet2!$T$3:$T$1000,O$2)+SUMIFS(Sheet2!$P$3:$P$1000,Sheet2!$D$3:$D$1000,$C61,Sheet2!$S$3:$S$1000,O$2)-SUMIFS(Sheet2!$J$3:$J$1000,Sheet2!$D$3:$D$1000,$C61,Sheet2!$T$3:$T$1000,O$2) -> 0 | P61: =SUMIFS(Sheet2!$G$3:$G$1000,Sheet2!$D$3:$D$1000,$C61,Sheet2!$T$3:$T$1000,P$2)+SUMIFS(Sheet2!$P$3:$P$1000,Sheet2!$D$3:$D$1000,$C61,Sheet2!$S$3:$S$1000,P$2)-SUMIFS(Sheet2!$J$3:$J$1000,Sheet2!$D$3:$D$1000,$C61,Sheet2!$T$3:$T$1000,P$2) -> 0 | Q61: =SUMIFS(Sheet2!$G$3:$G$1000,Sheet2!$D$3:$D$1000,$C61,Sheet2!$T$3:$T$1000,Q$2)+SUMIFS(Sheet2!$P$3:$P$1000,Sheet2!$D$3:$D$1000,$C61,Sheet2!$S$3:$S$1000,Q$2)-SUMIFS(Sheet2!$J$3:$J$1000,Sheet2!$D$3:$D$1000,$C61,Sheet2!$T$3:$T$1000,Q$2) -> 0 | R61: =SUMIFS(Sheet2!$G$3:$G$1000,Sheet2!$D$3:$D$1000,$C61,Sheet2!$T$3:$T$1000,R$2)+SUMIFS(Sheet2!$P$3:$P$1000,Sheet2!$D$3:$D$1000,$C61,Sheet2!$S$3:$S$1000,R$2)-SUMIFS(Sheet2!$J$3:$J$1000,Sheet2!$D$3:$D$1000,$C61,Sheet2!$T$3:$T$1000,R$2) -> 0 | AG61: 2018-02-28
K62: 0 | L62: =G62+SUMIFS(Sheet2!$G$3:$G$1000,Sheet2!$D$3:$D$1000,$C62,Sheet2!$T$3:$T$1000,$L61)+SUMIFS(Sheet2!$P$3:$P$1000,Sheet2!$D$3:$D$1000,$C62,Sheet2!$S$3:$S$1000,$L61)-SUMIFS(Sheet2!$J$3:$J$1000,Sheet2!$D$3:$D$1000,$C62,Sheet2!$T$3:$T$1000,$L61) -> 0 | M62: =SUMIFS(Sheet2!$G$3:$G$1000,Sheet2!$D$3:$D$1000,$C62,Sheet2!$T$3:$T$1000,M$2)+SUMIFS(Sheet2!$P$3:$P$1000,Sheet2!$D$3:$D$1000,$C62,Sheet2!$S$3:$S$1000,M$2)-SUMIFS(Sheet2!$J$3:$J$1000,Sheet2!$D$3:$D$1000,$C62,Sheet2!$T$3:$T$1000,M$2)-SUMIFS(Sheet2!$P$3:$P$1000,Sheet2!$D$3:$D$1000,$C62,Sheet2!$T$3:$T$1000,M$2) -> 0 | N62: =SUMIFS(Sheet2!$G$3:$G$1000,Sheet2!$D$3:$D$1000,$C62,Sheet2!$T$3:$T$1000,N$2)+SUMIFS(Sheet2!$P$3:$P$1000,Sheet2!$D$3:$D$1000,$C62,Sheet2!$S$3:$S$1000,N$2)-SUMIFS(Sheet2!$J$3:$J$1000,Sheet2!$D$3:$D$1000,$C62,Sheet2!$T$3:$T$1000,N$2) -> 0 | O62: =SUMIFS(Sheet2!$G$3:$G$1000,Sheet2!$D$3:$D$1000,$C62,Sheet2!$T$3:$T$1000,O$2)+SUMIFS(Sheet2!$P$3:$P$1000,Sheet2!$D$3:$D$1000,$C62,Sheet2!$S$3:$S$1000,O$2)-SUMIFS(Sheet2!$J$3:$J$1000,Sheet2!$D$3:$D$1000,$C62,Sheet2!$T$3:$T$1000,O$2) -> 0 | P62: =SUMIFS(Sheet2!$G$3:$G$1000,Sheet2!$D$3:$D$1000,$C62,Sheet2!$T$3:$T$1000,P$2)+SUMIFS(Sheet2!$P$3:$P$1000,Sheet2!$D$3:$D$1000,$C62,Sheet2!$S$3:$S$1000,P$2)-SUMIFS(Sheet2!$J$3:$J$1000,Sheet2!$D$3:$D$1000,$C62,Sheet2!$T$3:$T$1000,P$2) -> 0 | Q62: =SUMIFS(Sheet2!$G$3:$G$1000,Sheet2!$D$3:$D$1000,$C62,Sheet2!$T$3:$T$1000,Q$2)+SUMIFS(Sheet2!$P$3:$P$1000,Sheet2!$D$3:$D$1000,$C62,Sheet2!$S$3:$S$1000,Q$2)-SUMIFS(Sheet2!$J$3:$J$1000,Sheet2!$D$3:$D$1000,$C62,Sheet2!$T$3:$T$1000,Q$2) -> 0 | R62: =SUMIFS(Sheet2!$G$3:$G$1000,Sheet2!$D$3:$D$1000,$C62,Sheet2!$T$3:$T$1000,R$2)+SUMIFS(Sheet2!$P$3:$P$1000,Sheet2!$D$3:$D$1000,$C62,Sheet2!$S$3:$S$1000,R$2)-SUMIFS(Sheet2!$J$3:$J$1000,Sheet2!$D$3:$D$1000,$C62,Sheet2!$T$3:$T$1000,R$2) -> 0 | AG62: 2018-03-01
K63: 0 | L63: =G63+SUMIFS(Sheet2!$G$3:$G$1000,Sheet2!$D$3:$D$1000,$C63,Sheet2!$T$3:$T$1000,$L62)+SUMIFS(Sheet2!$P$3:$P$1000,Sheet2!$D$3:$D$1000,$C63,Sheet2!$S$3:$S$1000,$L62)-SUMIFS(Sheet2!$J$3:$J$1000,Sheet2!$D$3:$D$1000,$C63,Sheet2!$T$3:$T$1000,$L62) -> 0 | M63: =SUMIFS(Sheet2!$G$3:$G$1000,Sheet2!$D$3:$D$1000,$C63,Sheet2!$T$3:$T$1000,M$2)+SUMIFS(Sheet2!$P$3:$P$1000,Sheet2!$D$3:$D$1000,$C63,Sheet2!$S$3:$S$1000,M$2)-SUMIFS(Sheet2!$J$3:$J$1000,Sheet2!$D$3:$D$1000,$C63,Sheet2!$T$3:$T$1000,M$2)-SUMIFS(Sheet2!$P$3:$P$1000,Sheet2!$D$3:$D$1000,$C63,Sheet2!$T$3:$T$1000,M$2) -> 0 | N63: =SUMIFS(Sheet2!$G$3:$G$1000,Sheet2!$D$3:$D$1000,$C63,Sheet2!$T$3:$T$1000,N$2)+SUMIFS(Sheet2!$P$3:$P$1000,Sheet2!$D$3:$D$1000,$C63,Sheet2!$S$3:$S$1000,N$2)-SUMIFS(Sheet2!$J$3:$J$1000,Sheet2!$D$3:$D$1000,$C63,Sheet2!$T$3:$T$1000,N$2) -> 0 | O63: =SUMIFS(Sheet2!$G$3:$G$1000,Sheet2!$D$3:$D$1000,$C63,Sheet2!$T$3:$T$1000,O$2)+SUMIFS(Sheet2!$P$3:$P$1000,Sheet2!$D$3:$D$1000,$C63,Sheet2!$S$3:$S$1000,O$2)-SUMIFS(Sheet2!$J$3:$J$1000,Sheet2!$D$3:$D$1000,$C63,Sheet2!$T$3:$T$1000,O$2) -> 0 | P63: =SUMIFS(Sheet2!$G$3:$G$1000,Sheet2!$D$3:$D$1000,$C63,Sheet2!$T$3:$T$1000,P$2)+SUMIFS(Sheet2!$P$3:$P$1000,Sheet2!$D$3:$D$1000,$C63,Sheet2!$S$3:$S$1000,P$2)-SUMIFS(Sheet2!$J$3:$J$1000,Sheet2!$D$3:$D$1000,$C63,Sheet2!$T$3:$T$1000,P$2) -> 0 | Q63: =SUMIFS(Sheet2!$G$3:$G$1000,Sheet2!$D$3:$D$1000,$C63,Sheet2!$T$3:$T$1000,Q$2)+SUMIFS(Sheet2!$P$3:$P$1000,Sheet2!$D$3:$D$1000,$C63,Sheet2!$S$3:$S$1000,Q$2)-SUMIFS(Sheet2!$J$3:$J$1000,Sheet2!$D$3:$D$1000,$C63,Sheet2!$T$3:$T$1000,Q$2) -> 0 | R63: =SUMIFS(Sheet2!$G$3:$G$1000,Sheet2!$D$3:$D$1000,$C63,Sheet2!$T$3:$T$1000,R$2)+SUMIFS(Sheet2!$P$3:$P$1000,Sheet2!$D$3:$D$1000,$C63,Sheet2!$S$3:$S$1000,R$2)-SUMIFS(Sheet2!$J$3:$J$1000,Sheet2!$D$3:$D$1000,$C63,Sheet2!$T$3:$T$1000,R$2) -> 0 | AG63: 2018-03-02
K64: 0 | L64: =G64+SUMIFS(Sheet2!$G$3:$G$1000,Sheet2!$D$3:$D$1000,$C64,Sheet2!$T$3:$T$1000,$L63)+SUMIFS(Sheet2!$P$3:$P$1000,Sheet2!$D$3:$D$1000,$C64,Sheet2!$S$3:$S$1000,$L63)-SUMIFS(Sheet2!$J$3:$J$1000,Sheet2!$D$3:$D$1000,$C64,Sheet2!$T$3:$T$1000,$L63) -> 0 | M64: =SUMIFS(Sheet2!$G$3:$G$1000,Sheet2!$D$3:$D$1000,$C64,Sheet2!$T$3:$T$1000,M$2)+SUMIFS(Sheet2!$P$3:$P$1000,Sheet2!$D$3:$D$1000,$C64,Sheet2!$S$3:$S$1000,M$2)-SUMIFS(Sheet2!$J$3:$J$1000,Sheet2!$D$3:$D$1000,$C64,Sheet2!$T$3:$T$1000,M$2)-SUMIFS(Sheet2!$P$3:$P$1000,Sheet2!$D$3:$D$1000,$C64,Sheet2!$T$3:$T$1000,M$2) -> 0 | N64: =SUMIFS(Sheet2!$G$3:$G$1000,Sheet2!$D$3:$D$1000,$C64,Sheet2!$T$3:$T$1000,N$2)+SUMIFS(Sheet2!$P$3:$P$1000,Sheet2!$D$3:$D$1000,$C64,Sheet2!$S$3:$S$1000,N$2)-SUMIFS(Sheet2!$J$3:$J$1000,Sheet2!$D$3:$D$1000,$C64,Sheet2!$T$3:$T$1000,N$2) -> 0 | O64: =SUMIFS(Sheet2!$G$3:$G$1000,Sheet2!$D$3:$D$1000,$C64,Sheet2!$T$3:$T$1000,O$2)+SUMIFS(Sheet2!$P$3:$P$1000,Sheet2!$D$3:$D$1000,$C64,Sheet2!$S$3:$S$1000,O$2)-SUMIFS(Sheet2!$J$3:$J$1000,Sheet2!$D$3:$D$1000,$C64,Sheet2!$T$3:$T$1000,O$2) -> 0 | P64: =SUMIFS(Sheet2!$G$3:$G$1000,Sheet2!$D$3:$D$1000,$C64,Sheet2!$T$3:$T$1000,P$2)+SUMIFS(Sheet2!$P$3:$P$1000,Sheet2!$D$3:$D$1000,$C64,Sheet2!$S$3:$S$1000,P$2)-SUMIFS(Sheet2!$J$3:$J$1000,Sheet2!$D$3:$D$1000,$C64,Sheet2!$T$3:$T$1000,P$2) -> 0 | Q64: =SUMIFS(Sheet2!$G$3:$G$1000,Sheet2!$D$3:$D$1000,$C64,Sheet2!$T$3:$T$1000,Q$2)+SUMIFS(Sheet2!$P$3:$P$1000,Sheet2!$D$3:$D$1000,$C64,Sheet2!$S$3:$S$1000,Q$2)-SUMIFS(Sheet2!$J$3:$J$1000,Sheet2!$D$3:$D$1000,$C64,Sheet2!$T$3:$T$1000,Q$2) -> 0 | R64: =SUMIFS(Sheet2!$G$3:$G$1000,Sheet2!$D$3:$D$1000,$C64,Sheet2!$T$3:$T$1000,R$2)+SUMIFS(Sheet2!$P$3:$P$1000,Sheet2!$D$3:$D$1000,$C64,Sheet2!$S$3:$S$1000,R$2)-SUMIFS(Sheet2!$J$3:$J$1000,Sheet2!$D$3:$D$1000,$C64,Sheet2!$T$3:$T$1000,R$2) -> 0 | AG64: 2018-03-03
K65: 0 | L65: =G65+SUMIFS(Sheet2!$G$3:$G$1000,Sheet2!$D$3:$D$1000,$C65,Sheet2!$T$3:$T$1000,$L64)+SUMIFS(Sheet2!$P$3:$P$1000,Sheet2!$D$3:$D$1000,$C65,Sheet2!$S$3:$S$1000,$L64)-SUMIFS(Sheet2!$J$3:$J$1000,Sheet2!$D$3:$D$1000,$C65,Sheet2!$T$3:$T$1000,$L64) -> 0 | M65: =SUMIFS(Sheet2!$G$3:$G$1000,Sheet2!$D$3:$D$1000,$C65,Sheet2!$T$3:$T$1000,M$2)+SUMIFS(Sheet2!$P$3:$P$1000,Sheet2!$D$3:$D$1000,$C65,Sheet2!$S$3:$S$1000,M$2)-SUMIFS(Sheet2!$J$3:$J$1000,Sheet2!$D$3:$D$1000,$C65,Sheet2!$T$3:$T$1000,M$2)-SUMIFS(Sheet2!$P$3:$P$1000,Sheet2!$D$3:$D$1000,$C65,Sheet2!$T$3:$T$1000,M$2) -> 0 | N65: =SUMIFS(Sheet2!$G$3:$G$1000,Sheet2!$D$3:$D$1000,$C65,Sheet2!$T$3:$T$1000,N$2)+SUMIFS(Sheet2!$P$3:$P$1000,Sheet2!$D$3:$D$1000,$C65,Sheet2!$S$3:$S$1000,N$2)-SUMIFS(Sheet2!$J$3:$J$1000,Sheet2!$D$3:$D$1000,$C65,Sheet2!$T$3:$T$1000,N$2) -> 0 | O65: =SUMIFS(Sheet2!$G$3:$G$1000,Sheet2!$D$3:$D$1000,$C65,Sheet2!$T$3:$T$1000,O$2)+SUMIFS(Sheet2!$P$3:$P$1000,Sheet2!$D$3:$D$1000,$C65,Sheet2!$S$3:$S$1000,O$2)-SUMIFS(Sheet2!$J$3:$J$1000,Sheet2!$D$3:$D$1000,$C65,Sheet2!$T$3:$T$1000,O$2) -> 0 | P65: =SUMIFS(Sheet2!$G$3:$G$1000,Sheet2!$D$3:$D$1000,$C65,Sheet2!$T$3:$T$1000,P$2)+SUMIFS(Sheet2!$P$3:$P$1000,Sheet2!$D$3:$D$1000,$C65,Sheet2!$S$3:$S$1000,P$2)-SUMIFS(Sheet2!$J$3:$J$1000,Sheet2!$D$3:$D$1000,$C65,Sheet2!$T$3:$T$1000,P$2) -> 0 | Q65: =SUMIFS(Sheet2!$G$3:$G$1000,Sheet2!$D$3:$D$1000,$C65,Sheet2!$T$3:$T$1000,Q$2)+SUMIFS(Sheet2!$P$3:$P$1000,Sheet2!$D$3:$D$1000,$C65,Sheet2!$S$3:$S$1000,Q$2)-SUMIFS(Sheet2!$J$3:$J$1000,Sheet2!$D$3:$D$1000,$C65,Sheet2!$T$3:$T$1000,Q$2) -> 0 | R65: =SUMIFS(Sheet2!$G$3:$G$1000,Sheet2!$D$3:$D$1000,$C65,Sheet2!$T$3:$T$1000,R$2)+SUMIFS(Sheet2!$P$3:$P$1000,Sheet2!$D$3:$D$1000,$C65,Sheet2!$S$3:$S$1000,R$2)-SUMIFS(Sheet2!$J$3:$J$1000,Sheet2!$D$3:$D$1000,$C65,Sheet2!$T$3:$T$1000,R$2) -> 0 | AG65: 2018-03-04
K66: 0 | L66: =G66+SUMIFS(Sheet2!$G$3:$G$1000,Sheet2!$D$3:$D$1000,$C66,Sheet2!$T$3:$T$1000,$L65)+SUMIFS(Sheet2!$P$3:$P$1000,Sheet2!$D$3:$D$1000,$C66,Sheet2!$S$3:$S$1000,$L65)-SUMIFS(Sheet2!$J$3:$J$1000,Sheet2!$D$3:$D$1000,$C66,Sheet2!$T$3:$T$1000,$L65) -> 0 | M66: =SUMIFS(Sheet2!$G$3:$G$1000,Sheet2!$D$3:$D$1000,$C66,Sheet2!$T$3:$T$1000,M$2)+SUMIFS(Sheet2!$P$3:$P$1000,Sheet2!$D$3:$D$1000,$C66,Sheet2!$S$3:$S$1000,M$2)-SUMIFS(Sheet2!$J$3:$J$1000,Sheet2!$D$3:$D$1000,$C66,Sheet2!$T$3:$T$1000,M$2)-SUMIFS(Sheet2!$P$3:$P$1000,Sheet2!$D$3:$D$1000,$C66,Sheet2!$T$3:$T$1000,M$2) -> 0 | N66: =SUMIFS(Sheet2!$G$3:$G$1000,Sheet2!$D$3:$D$1000,$C66,Sheet2!$T$3:$T$1000,N$2)+SUMIFS(Sheet2!$P$3:$P$1000,Sheet2!$D$3:$D$1000,$C66,Sheet2!$S$3:$S$1000,N$2)-SUMIFS(Sheet2!$J$3:$J$1000,Sheet2!$D$3:$D$1000,$C66,Sheet2!$T$3:$T$1000,N$2) -> 0 | O66: =SUMIFS(Sheet2!$G$3:$G$1000,Sheet2!$D$3:$D$1000,$C66,Sheet2!$T$3:$T$1000,O$2)+SUMIFS(Sheet2!$P$3:$P$1000,Sheet2!$D$3:$D$1000,$C66,Sheet2!$S$3:$S$1000,O$2)-SUMIFS(Sheet2!$J$3:$J$1000,Sheet2!$D$3:$D$1000,$C66,Sheet2!$T$3:$T$1000,O$2) -> 0 | P66: =SUMIFS(Sheet2!$G$3:$G$1000,Sheet2!$D$3:$D$1000,$C66,Sheet2!$T$3:$T$1000,P$2)+SUMIFS(Sheet2!$P$3:$P$1000,Sheet2!$D$3:$D$1000,$C66,Sheet2!$S$3:$S$1000,P$2)-SUMIFS(Sheet2!$J$3:$J$1000,Sheet2!$D$3:$D$1000,$C66,Sheet2!$T$3:$T$1000,P$2) -> 0 | Q66: =SUMIFS(Sheet2!$G$3:$G$1000,Sheet2!$D$3:$D$1000,$C66,Sheet2!$T$3:$T$1000,Q$2)+SUMIFS(Sheet2!$P$3:$P$1000,Sheet2!$D$3:$D$1000,$C66,Sheet2!$S$3:$S$1000,Q$2)-SUMIFS(Sheet2!$J$3:$J$1000,Sheet2!$D$3:$D$1000,$C66,Sheet2!$T$3:$T$1000,Q$2) -> 0 | R66: =SUMIFS(Sheet2!$G$3:$G$1000,Sheet2!$D$3:$D$1000,$C66,Sheet2!$T$3:$T$1000,R$2)+SUMIFS(Sheet2!$P$3:$P$1000,Sheet2!$D$3:$D$1000,$C66,Sheet2!$S$3:$S$1000,R$2)-SUMIFS(Sheet2!$J$3:$J$1000,Sheet2!$D$3:$D$1000,$C66,Sheet2!$T$3:$T$1000,R$2) -> 0 | AG66: 2018-03-05
K67: 0 | L67: =G67+SUMIFS(Sheet2!$G$3:$G$1000,Sheet2!$D$3:$D$1000,$C67,Sheet2!$T$3:$T$1000,$L66)+SUMIFS(Sheet2!$P$3:$P$1000,Sheet2!$D$3:$D$1000,$C67,Sheet2!$S$3:$S$1000,$L66)-SUMIFS(Sheet2!$J$3:$J$1000,Sheet2!$D$3:$D$1000,$C67,Sheet2!$T$3:$T$1000,$L66) -> 0 | M67: =SUMIFS(Sheet2!$G$3:$G$1000,Sheet2!$D$3:$D$1000,$C67,Sheet2!$T$3:$T$1000,M$2)+SUMIFS(Sheet2!$P$3:$P$1000,Sheet2!$D$3:$D$1000,$C67,Sheet2!$S$3:$S$1000,M$2)-SUMIFS(Sheet2!$J$3:$J$1000,Sheet2!$D$3:$D$1000,$C67,Sheet2!$T$3:$T$1000,M$2)-SUMIFS(Sheet2!$P$3:$P$1000,Sheet2!$D$3:$D$1000,$C67,Sheet2!$T$3:$T$1000,M$2) -> 0 | N67: =SUMIFS(Sheet2!$G$3:$G$1000,Sheet2!$D$3:$D$1000,$C67,Sheet2!$T$3:$T$1000,N$2)+SUMIFS(Sheet2!$P$3:$P$1000,Sheet2!$D$3:$D$1000,$C67,Sheet2!$S$3:$S$1000,N$2)-SUMIFS(Sheet2!$J$3:$J$1000,Sheet2!$D$3:$D$1000,$C67,Sheet2!$T$3:$T$1000,N$2) -> 0 | O67: =SUMIFS(Sheet2!$G$3:$G$1000,Sheet2!$D$3:$D$1000,$C67,Sheet2!$T$3:$T$1000,O$2)+SUMIFS(Sheet2!$P$3:$P$1000,Sheet2!$D$3:$D$1000,$C67,Sheet2!$S$3:$S$1000,O$2)-SUMIFS(Sheet2!$J$3:$J$1000,Sheet2!$D$3:$D$1000,$C67,Sheet2!$T$3:$T$1000,O$2) -> 0 | P67: =SUMIFS(Sheet2!$G$3:$G$1000,Sheet2!$D$3:$D$1000,$C67,Sheet2!$T$3:$T$1000,P$2)+SUMIFS(Sheet2!$P$3:$P$1000,Sheet2!$D$3:$D$1000,$C67,Sheet2!$S$3:$S$1000,P$2)-SUMIFS(Sheet2!$J$3:$J$1000,Sheet2!$D$3:$D$1000,$C67,Sheet2!$T$3:$T$1000,P$2) -> 0 | Q67: =SUMIFS(Sheet2!$G$3:$G$1000,Sheet2!$D$3:$D$1000,$C67,Sheet2!$T$3:$T$1000,Q$2)+SUMIFS(Sheet2!$P$3:$P$1000,Sheet2!$D$3:$D$1000,$C67,Sheet2!$S$3:$S$1000,Q$2)-SUMIFS(Sheet2!$J$3:$J$1000,Sheet2!$D$3:$D$1000,$C67,Sheet2!$T$3:$T$1000,Q$2) -> 0 | R67: =SUMIFS(Sheet2!$G$3:$G$1000,Sheet2!$D$3:$D$1000,$C67,Sheet2!$T$3:$T$1000,R$2)+SUMIFS(Sheet2!$P$3:$P$1000,Sheet2!$D$3:$D$1000,$C67,Sheet2!$S$3:$S$1000,R$2)-SUMIFS(Sheet2!$J$3:$J$1000,Sheet2!$D$3:$D$1000,$C67,Sheet2!$T$3:$T$1000,R$2) -> 0 | AG67: 2018-03-06
K68: =IFERROR(G68*F68,"") -> 0 | L68: =G68+SUMIFS(Sheet2!$G$3:$G$1000,Sheet2!$D$3:$D$1000,$C68,Sheet2!$T$3:$T$1000,$L67)+SUMIFS(Sheet2!$P$3:$P$1000,Sheet2!$D$3:$D$1000,$C68,Sheet2!$S$3:$S$1000,$L67)-SUMIFS(Sheet2!$J$3:$J$1000,Sheet2!$D$3:$D$1000,$C68,Sheet2!$T$3:$T$1000,$L67) -> 0 | M68: =SUMIFS(Sheet2!$G$3:$G$1000,Sheet2!$D$3:$D$1000,$C68,Sheet2!$T$3:$T$1000,M$2)+SUMIFS(Sheet2!$P$3:$P$1000,Sheet2!$D$3:$D$1000,$C68,Sheet2!$S$3:$S$1000,M$2)-SUMIFS(Sheet2!$J$3:$J$1000,Sheet2!$D$3:$D$1000,$C68,Sheet2!$T$3:$T$1000,M$2)-SUMIFS(Sheet2!$P$3:$P$1000,Sheet2!$D$3:$D$1000,$C68,Sheet2!$T$3:$T$1000,M$2) -> 0 | N68: =SUMIFS(Sheet2!$G$3:$G$1000,Sheet2!$D$3:$D$1000,$C68,Sheet2!$T$3:$T$1000,N$2)+SUMIFS(Sheet2!$P$3:$P$1000,Sheet2!$D$3:$D$1000,$C68,Sheet2!$S$3:$S$1000,N$2)-SUMIFS(Sheet2!$J$3:$J$1000,Sheet2!$D$3:$D$1000,$C68,Sheet2!$T$3:$T$1000,N$2) -> 0 | O68: =SUMIFS(Sheet2!$G$3:$G$1000,Sheet2!$D$3:$D$1000,$C68,Sheet2!$T$3:$T$1000,O$2)+SUMIFS(Sheet2!$P$3:$P$1000,Sheet2!$D$3:$D$1000,$C68,Sheet2!$S$3:$S$1000,O$2)-SUMIFS(Sheet2!$J$3:$J$1000,Sheet2!$D$3:$D$1000,$C68,Sheet2!$T$3:$T$1000,O$2) -> 0 | P68: =SUMIFS(Sheet2!$G$3:$G$1000,Sheet2!$D$3:$D$1000,$C68,Sheet2!$T$3:$T$1000,P$2)+SUMIFS(Sheet2!$P$3:$P$1000,Sheet2!$D$3:$D$1000,$C68,Sheet2!$S$3:$S$1000,P$2)-SUMIFS(Sheet2!$J$3:$J$1000,Sheet2!$D$3:$D$1000,$C68,Sheet2!$T$3:$T$1000,P$2) -> 0 | Q68: =SUMIFS(Sheet2!$G$3:$G$1000,Sheet2!$D$3:$D$1000,$C68,Sheet2!$T$3:$T$1000,Q$2)+SUMIFS(Sheet2!$P$3:$P$1000,Sheet2!$D$3:$D$1000,$C68,Sheet2!$S$3:$S$1000,Q$2)-SUMIFS(Sheet2!$J$3:$J$1000,Sheet2!$D$3:$D$1000,$C68,Sheet2!$T$3:$T$1000,Q$2) -> 0 | R68: =SUMIFS(Sheet2!$G$3:$G$1000,Sheet2!$D$3:$D$1000,$C68,Sheet2!$T$3:$T$1000,R$2)+SUMIFS(Sheet2!$P$3:$P$1000,Sheet2!$D$3:$D$1000,$C68,Sheet2!$S$3:$S$1000,R$2)-SUMIFS(Sheet2!$J$3:$J$1000,Sheet2!$D$3:$D$1000,$C68,Sheet2!$T$3:$T$1000,R$2) -> 0 | AG68: 2018-03-07
K69: 0 | L69: =G69+SUMIFS(Sheet2!$G$3:$G$1000,Sheet2!$D$3:$D$1000,$C69,Sheet2!$T$3:$T$1000,$L68)+SUMIFS(Sheet2!$P$3:$P$1000,Sheet2!$D$3:$D$1000,$C69,Sheet2!$S$3:$S$1000,$L68)-SUMIFS(Sheet2!$J$3:$J$1000,Sheet2!$D$3:$D$1000,$C69,Sheet2!$T$3:$T$1000,$L68) -> 0 | M69: =SUMIFS(Sheet2!$G$3:$G$1000,Sheet2!$D$3:$D$1000,$C69,Sheet2!$T$3:$T$1000,M$2)+SUMIFS(Sheet2!$P$3:$P$1000,Sheet2!$D$3:$D$1000,$C69,Sheet2!$S$3:$S$1000,M$2)-SUMIFS(Sheet2!$J$3:$J$1000,Sheet2!$D$3:$D$1000,$C69,Sheet2!$T$3:$T$1000,M$2)-SUMIFS(Sheet2!$P$3:$P$1000,Sheet2!$D$3:$D$1000,$C69,Sheet2!$T$3:$T$1000,M$2) -> 0 | N69: =SUMIFS(Sheet2!$G$3:$G$1000,Sheet2!$D$3:$D$1000,$C69,Sheet2!$T$3:$T$1000,N$2)+SUMIFS(Sheet2!$P$3:$P$1000,Sheet2!$D$3:$D$1000,$C69,Sheet2!$S$3:$S$1000,N$2)-SUMIFS(Sheet2!$J$3:$J$1000,Sheet2!$D$3:$D$1000,$C69,Sheet2!$T$3:$T$1000,N$2) -> 0 | O69: =SUMIFS(Sheet2!$G$3:$G$1000,Sheet2!$D$3:$D$1000,$C69,Sheet2!$T$3:$T$1000,O$2)+SUMIFS(Sheet2!$P$3:$P$1000,Sheet2!$D$3:$D$1000,$C69,Sheet2!$S$3:$S$1000,O$2)-SUMIFS(Sheet2!$J$3:$J$1000,Sheet2!$D$3:$D$1000,$C69,Sheet2!$T$3:$T$1000,O$2) -> 0 | P69: =SUMIFS(Sheet2!$G$3:$G$1000,Sheet2!$D$3:$D$1000,$C69,Sheet2!$T$3:$T$1000,P$2)+SUMIFS(Sheet2!$P$3:$P$1000,Sheet2!$D$3:$D$1000,$C69,Sheet2!$S$3:$S$1000,P$2)-SUMIFS(Sheet2!$J$3:$J$1000,Sheet2!$D$3:$D$1000,$C69,Sheet2!$T$3:$T$1000,P$2) -> 0 | Q69: =SUMIFS(Sheet2!$G$3:$G$1000,Sheet2!$D$3:$D$1000,$C69,Sheet2!$T$3:$T$1000,Q$2)+SUMIFS(Sheet2!$P$3:$P$1000,Sheet2!$D$3:$D$1000,$C69,Sheet2!$S$3:$S$1000,Q$2)-SUMIFS(Sheet2!$J$3:$J$1000,Sheet2!$D$3:$D$1000,$C69,Sheet2!$T$3:$T$1000,Q$2) -> 0 | R69: =SUMIFS(Sheet2!$G$3:$G$1000,Sheet2!$D$3:$D$1000,$C69,Sheet2!$T$3:$T$1000,R$2)+SUMIFS(Sheet2!$P$3:$P$1000,Sheet2!$D$3:$D$1000,$C69,Sheet2!$S$3:$S$1000,R$2)-SUMIFS(Sheet2!$J$3:$J$1000,Sheet2!$D$3:$D$1000,$C69,Sheet2!$T$3:$T$1000,R$2) -> 0 | AG69: 2018-03-08
A70: =IF(C70="","",A69+1) ->  | K70: 0 | L70: =G70+SUMIFS(Sheet2!$G$3:$G$1000,Sheet2!$D$3:$D$1000,$C70,Sheet2!$T$3:$T$1000,$L69)+SUMIFS(Sheet2!$P$3:$P$1000,Sheet2!$D$3:$D$1000,$C70,Sheet2!$S$3:$S$1000,$L69)-SUMIFS(Sheet2!$J$3:$J$1000,Sheet2!$D$3:$D$1000,$C70,Sheet2!$T$3:$T$1000,$L69) -> 0 | M70: =SUMIFS(Sheet2!$G$3:$G$1000,Sheet2!$D$3:$D$1000,$C70,Sheet2!$T$3:$T$1000,M$2)+SUMIFS(Sheet2!$P$3:$P$1000,Sheet2!$D$3:$D$1000,$C70,Sheet2!$S$3:$S$1000,M$2)-SUMIFS(Sheet2!$J$3:$J$1000,Sheet2!$D$3:$D$1000,$C70,Sheet2!$T$3:$T$1000,M$2)-SUMIFS(Sheet2!$P$3:$P$1000,Sheet2!$D$3:$D$1000,$C70,Sheet2!$T$3:$T$1000,M$2) -> 0 | N70: =SUMIFS(Sheet2!$G$3:$G$1000,Sheet2!$D$3:$D$1000,$C70,Sheet2!$T$3:$T$1000,N$2)+SUMIFS(Sheet2!$P$3:$P$1000,Sheet2!$D$3:$D$1000,$C70,Sheet2!$S$3:$S$1000,N$2)-SUMIFS(Sheet2!$J$3:$J$1000,Sheet2!$D$3:$D$1000,$C70,Sheet2!$T$3:$T$1000,N$2) -> 0 | O70: =SUMIFS(Sheet2!$G$3:$G$1000,Sheet2!$D$3:$D$1000,$C70,Sheet2!$T$3:$T$1000,O$2)+SUMIFS(Sheet2!$P$3:$P$1000,Sheet2!$D$3:$D$1000,$C70,Sheet2!$S$3:$S$1000,O$2)-SUMIFS(Sheet2!$J$3:$J$1000,Sheet2!$D$3:$D$1000,$C70,Sheet2!$T$3:$T$1000,O$2) -> 0 | P70: =SUMIFS(Sheet2!$G$3:$G$1000,Sheet2!$D$3:$D$1000,$C70,Sheet2!$T$3:$T$1000,P$2)+SUMIFS(Sheet2!$P$3:$P$1000,Sheet2!$D$3:$D$1000,$C70,Sheet2!$S$3:$S$1000,P$2)-SUMIFS(Sheet2!$J$3:$J$1000,Sheet2!$D$3:$D$1000,$C70,Sheet2!$T$3:$T$1000,P$2) -> 0 | Q70: =SUMIFS(Sheet2!$G$3:$G$1000,Sheet2!$D$3:$D$1000,$C70,Sheet2!$T$3:$T$1000,Q$2)+SUMIFS(Sheet2!$P$3:$P$1000,Sheet2!$D$3:$D$1000,$C70,Sheet2!$S$3:$S$1000,Q$2)-SUMIFS(Sheet2!$J$3:$J$1000,Sheet2!$D$3:$D$1000,$C70,Sheet2!$T$3:$T$1000,Q$2) -> 0 | R70: =SUMIFS(Sheet2!$G$3:$G$1000,Sheet2!$D$3:$D$1000,$C70,Sheet2!$T$3:$T$1000,R$2)+SUMIFS(Sheet2!$P$3:$P$1000,Sheet2!$D$3:$D$1000,$C70,Sheet2!$S$3:$S$1000,R$2)-SUMIFS(Sheet2!$J$3:$J$1000,Sheet2!$D$3:$D$1000,$C70,Sheet2!$T$3:$T$1000,R$2) -> 0 | AG70: 2018-03-09
K71: 0 | L71: =G71+SUMIFS(Sheet2!$G$3:$G$1000,Sheet2!$D$3:$D$1000,$C71,Sheet2!$T$3:$T$1000,$L70)+SUMIFS(Sheet2!$P$3:$P$1000,Sheet2!$D$3:$D$1000,$C71,Sheet2!$S$3:$S$1000,$L70)-SUMIFS(Sheet2!$J$3:$J$1000,Sheet2!$D$3:$D$1000,$C71,Sheet2!$T$3:$T$1000,$L70) -> 0 | M71: =SUMIFS(Sheet2!$G$3:$G$1000,Sheet2!$D$3:$D$1000,$C71,Sheet2!$T$3:$T$1000,M$2)+SUMIFS(Sheet2!$P$3:$P$1000,Sheet2!$D$3:$D$1000,$C71,Sheet2!$S$3:$S$1000,M$2)-SUMIFS(Sheet2!$J$3:$J$1000,Sheet2!$D$3:$D$1000,$C71,Sheet2!$T$3:$T$1000,M$2)-SUMIFS(Sheet2!$P$3:$P$1000,Sheet2!$D$3:$D$1000,$C71,Sheet2!$T$3:$T$1000,M$2) -> 0 | N71: =SUMIFS(Sheet2!$G$3:$G$1000,Sheet2!$D$3:$D$1000,$C71,Sheet2!$T$3:$T$1000,N$2)+SUMIFS(Sheet2!$P$3:$P$1000,Sheet2!$D$3:$D$1000,$C71,Sheet2!$S$3:$S$1000,N$2)-SUMIFS(Sheet2!$J$3:$J$1000,Sheet2!$D$3:$D$1000,$C71,Sheet2!$T$3:$T$1000,N$2) -> 0 | O71: =SUMIFS(Sheet2!$G$3:$G$1000,Sheet2!$D$3:$D$1000,$C71,Sheet2!$T$3:$T$1000,O$2)+SUMIFS(Sheet2!$P$3:$P$1000,Sheet2!$D$3:$D$1000,$C71,Sheet2!$S$3:$S$1000,O$2)-SUMIFS(Sheet2!$J$3:$J$1000,Sheet2!$D$3:$D$1000,$C71,Sheet2!$T$3:$T$1000,O$2) -> 0 | P71: =SUMIFS(Sheet2!$G$3:$G$1000,Sheet2!$D$3:$D$1000,$C71,Sheet2!$T$3:$T$1000,P$2)+SUMIFS(Sheet2!$P$3:$P$1000,Sheet2!$D$3:$D$1000,$C71,Sheet2!$S$3:$S$1000,P$2)-SUMIFS(Sheet2!$J$3:$J$1000,Sheet2!$D$3:$D$1000,$C71,Sheet2!$T$3:$T$1000,P$2) -> 0 | Q71: =SUMIFS(Sheet2!$G$3:$G$1000,Sheet2!$D$3:$D$1000,$C71,Sheet2!$T$3:$T$1000,Q$2)+SUMIFS(Sheet2!$P$3:$P$1000,Sheet2!$D$3:$D$1000,$C71,Sheet2!$S$3:$S$1000,Q$2)-SUMIFS(Sheet2!$J$3:$J$1000,Sheet2!$D$3:$D$1000,$C71,Sheet2!$T$3:$T$1000,Q$2) -> 0 | R71: =SUMIFS(Sheet2!$G$3:$G$1000,Sheet2!$D$3:$D$1000,$C71,Sheet2!$T$3:$T$1000,R$2)+SUMIFS(Sheet2!$P$3:$P$1000,Sheet2!$D$3:$D$1000,$C71,Sheet2!$S$3:$S$1000,R$2)-SUMIFS(Sheet2!$J$3:$J$1000,Sheet2!$D$3:$D$1000,$C71,Sheet2!$T$3:$T$1000,R$2) -> 0 | AG71: 2018-03-10
K72: 0 | L72: =G72+SUMIFS(Sheet2!$G$3:$G$1000,Sheet2!$D$3:$D$1000,$C72,Sheet2!$T$3:$T$1000,$L71)+SUMIFS(Sheet2!$P$3:$P$1000,Sheet2!$D$3:$D$1000,$C72,Sheet2!$S$3:$S$1000,$L71)-SUMIFS(Sheet2!$J$3:$J$1000,Sheet2!$D$3:$D$1000,$C72,Sheet2!$T$3:$T$1000,$L71) -> 0 | M72: =SUMIFS(Sheet2!$G$3:$G$1000,Sheet2!$D$3:$D$1000,$C72,Sheet2!$T$3:$T$1000,M$2)+SUMIFS(Sheet2!$P$3:$P$1000,Sheet2!$D$3:$D$1000,$C72,Sheet2!$S$3:$S$1000,M$2)-SUMIFS(Sheet2!$J$3:$J$1000,Sheet2!$D$3:$D$1000,$C72,Sheet2!$T$3:$T$1000,M$2)-SUMIFS(Sheet2!$P$3:$P$1000,Sheet2!$D$3:$D$1000,$C72,Sheet2!$T$3:$T$1000,M$2) -> 0 | N72: =SUMIFS(Sheet2!$G$3:$G$1000,Sheet2!$D$3:$D$1000,$C72,Sheet2!$T$3:$T$1000,N$2)+SUMIFS(Sheet2!$P$3:$P$1000,Sheet2!$D$3:$D$1000,$C72,Sheet2!$S$3:$S$1000,N$2)-SUMIFS(Sheet2!$J$3:$J$1000,Sheet2!$D$3:$D$1000,$C72,Sheet2!$T$3:$T$1000,N$2) -> 0 | O72: =SUMIFS(Sheet2!$G$3:$G$1000,Sheet2!$D$3:$D$1000,$C72,Sheet2!$T$3:$T$1000,O$2)+SUMIFS(Sheet2!$P$3:$P$1000,Sheet2!$D$3:$D$1000,$C72,Sheet2!$S$3:$S$1000,O$2)-SUMIFS(Sheet2!$J$3:$J$1000,Sheet2!$D$3:$D$1000,$C72,Sheet2!$T$3:$T$1000,O$2) -> 0 | P72: =SUMIFS(Sheet2!$G$3:$G$1000,Sheet2!$D$3:$D$1000,$C72,Sheet2!$T$3:$T$1000,P$2)+SUMIFS(Sheet2!$P$3:$P$1000,Sheet2!$D$3:$D$1000,$C72,Sheet2!$S$3:$S$1000,P$2)-SUMIFS(Sheet2!$J$3:$J$1000,Sheet2!$D$3:$D$1000,$C72,Sheet2!$T$3:$T$1000,P$2) -> 0 | Q72: =SUMIFS(Sheet2!$G$3:$G$1000,Sheet2!$D$3:$D$1000,$C72,Sheet2!$T$3:$T$1000,Q$2)+SUMIFS(Sheet2!$P$3:$P$1000,Sheet2!$D$3:$D$1000,$C72,Sheet2!$S$3:$S$1000,Q$2)-SUMIFS(Sheet2!$J$3:$J$1000,Sheet2!$D$3:$D$1000,$C72,Sheet2!$T$3:$T$1000,Q$2) -> 0 | R72: =SUMIFS(Sheet2!$G$3:$G$1000,Sheet2!$D$3:$D$1000,$C72,Sheet2!$T$3:$T$1000,R$2)+SUMIFS(Sheet2!$P$3:$P$1000,Sheet2!$D$3:$D$1000,$C72,Sheet2!$S$3:$S$1000,R$2)-SUMIFS(Sheet2!$J$3:$J$1000,Sheet2!$D$3:$D$1000,$C72,Sheet2!$T$3:$T$1000,R$2) -> 0 | AG72: 2018-03-11
K73: 0 | L73: =G73+SUMIFS(Sheet2!$G$3:$G$1000,Sheet2!$D$3:$D$1000,$C73,Sheet2!$T$3:$T$1000,$L72)+SUMIFS(Sheet2!$P$3:$P$1000,Sheet2!$D$3:$D$1000,$C73,Sheet2!$S$3:$S$1000,$L72)-SUMIFS(Sheet2!$J$3:$J$1000,Sheet2!$D$3:$D$1000,$C73,Sheet2!$T$3:$T$1000,$L72) -> 0 | M73: =SUMIFS(Sheet2!$G$3:$G$1000,Sheet2!$D$3:$D$1000,$C73,Sheet2!$T$3:$T$1000,M$2)+SUMIFS(Sheet2!$P$3:$P$1000,Sheet2!$D$3:$D$1000,$C73,Sheet2!$S$3:$S$1000,M$2)-SUMIFS(Sheet2!$J$3:$J$1000,Sheet2!$D$3:$D$1000,$C73,Sheet2!$T$3:$T$1000,M$2)-SUMIFS(Sheet2!$P$3:$P$1000,Sheet2!$D$3:$D$1000,$C73,Sheet2!$T$3:$T$1000,M$2) -> 0 | N73: =SUMIFS(Sheet2!$G$3:$G$1000,Sheet2!$D$3:$D$1000,$C73,Sheet2!$T$3:$T$1000,N$2)+SUMIFS(Sheet2!$P$3:$P$1000,Sheet2!$D$3:$D$1000,$C73,Sheet2!$S$3:$S$1000,N$2)-SUMIFS(Sheet2!$J$3:$J$1000,Sheet2!$D$3:$D$1000,$C73,Sheet2!$T$3:$T$1000,N$2) -> 0 | O73: =SUMIFS(Sheet2!$G$3:$G$1000,Sheet2!$D$3:$D$1000,$C73,Sheet2!$T$3:$T$1000,O$2)+SUMIFS(Sheet2!$P$3:$P$1000,Sheet2!$D$3:$D$1000,$C73,Sheet2!$S$3:$S$1000,O$2)-SUMIFS(Sheet2!$J$3:$J$1000,Sheet2!$D$3:$D$1000,$C73,Sheet2!$T$3:$T$1000,O$2) -> 0 | P73: =SUMIFS(Sheet2!$G$3:$G$1000,Sheet2!$D$3:$D$1000,$C73,Sheet2!$T$3:$T$1000,P$2)+SUMIFS(Sheet2!$P$3:$P$1000,Sheet2!$D$3:$D$1000,$C73,Sheet2!$S$3:$S$1000,P$2)-SUMIFS(Sheet2!$J$3:$J$1000,Sheet2!$D$3:$D$1000,$C73,Sheet2!$T$3:$T$1000,P$2) -> 0 | Q73: =SUMIFS(Sheet2!$G$3:$G$1000,Sheet2!$D$3:$D$1000,$C73,Sheet2!$T$3:$T$1000,Q$2)+SUMIFS(Sheet2!$P$3:$P$1000,Sheet2!$D$3:$D$1000,$C73,Sheet2!$S$3:$S$1000,Q$2)-SUMIFS(Sheet2!$J$3:$J$1000,Sheet2!$D$3:$D$1000,$C73,Sheet2!$T$3:$T$1000,Q$2) -> 0 | R73: =SUMIFS(Sheet2!$G$3:$G$1000,Sheet2!$D$3:$D$1000,$C73,Sheet2!$T$3:$T$1000,R$2)+SUMIFS(Sheet2!$P$3:$P$1000,Sheet2!$D$3:$D$1000,$C73,Sheet2!$S$3:$S$1000,R$2)-SUMIFS(Sheet2!$J$3:$J$1000,Sheet2!$D$3:$D$1000,$C73,Sheet2!$T$3:$T$1000,R$2) -> 0 | AG73: 2018-03-12
K74: 0 | L74: =G74+SUMIFS(Sheet2!$G$3:$G$1000,Sheet2!$D$3:$D$1000,$C74,Sheet2!$T$3:$T$1000,$L73)+SUMIFS(Sheet2!$P$3:$P$1000,Sheet2!$D$3:$D$1000,$C74,Sheet2!$S$3:$S$1000,$L73)-SUMIFS(Sheet2!$J$3:$J$1000,Sheet2!$D$3:$D$1000,$C74,Sheet2!$T$3:$T$1000,$L73) -> 0 | M74: =SUMIFS(Sheet2!$G$3:$G$1000,Sheet2!$D$3:$D$1000,$C74,Sheet2!$T$3:$T$1000,M$2)+SUMIFS(Sheet2!$P$3:$P$1000,Sheet2!$D$3:$D$1000,$C74,Sheet2!$S$3:$S$1000,M$2)-SUMIFS(Sheet2!$J$3:$J$1000,Sheet2!$D$3:$D$1000,$C74,Sheet2!$T$3:$T$1000,M$2)-SUMIFS(Sheet2!$P$3:$P$1000,Sheet2!$D$3:$D$1000,$C74,Sheet2!$T$3:$T$1000,M$2) -> 0 | N74: =SUMIFS(Sheet2!$G$3:$G$1000,Sheet2!$D$3:$D$1000,$C74,Sheet2!$T$3:$T$1000,N$2)+SUMIFS(Sheet2!$P$3:$P$1000,Sheet2!$D$3:$D$1000,$C74,Sheet2!$S$3:$S$1000,N$2)-SUMIFS(Sheet2!$J$3:$J$1000,Sheet2!$D$3:$D$1000,$C74,Sheet2!$T$3:$T$1000,N$2) -> 0 | O74: =SUMIFS(Sheet2!$G$3:$G$1000,Sheet2!$D$3:$D$1000,$C74,Sheet2!$T$3:$T$1000,O$2)+SUMIFS(Sheet2!$P$3:$P$1000,Sheet2!$D$3:$D$1000,$C74,Sheet2!$S$3:$S$1000,O$2)-SUMIFS(Sheet2!$J$3:$J$1000,Sheet2!$D$3:$D$1000,$C74,Sheet2!$T$3:$T$1000,O$2) -> 0 | P74: =SUMIFS(Sheet2!$G$3:$G$1000,Sheet2!$D$3:$D$1000,$C74,Sheet2!$T$3:$T$1000,P$2)+SUMIFS(Sheet2!$P$3:$P$1000,Sheet2!$D$3:$D$1000,$C74,Sheet2!$S$3:$S$1000,P$2)-SUMIFS(Sheet2!$J$3:$J$1000,Sheet2!$D$3:$D$1000,$C74,Sheet2!$T$3:$T$1000,P$2) -> 0 | Q74: =SUMIFS(Sheet2!$G$3:$G$1000,Sheet2!$D$3:$D$1000,$C74,Sheet2!$T$3:$T$1000,Q$2)+SUMIFS(Sheet2!$P$3:$P$1000,Sheet2!$D$3:$D$1000,$C74,Sheet2!$S$3:$S$1000,Q$2)-SUMIFS(Sheet2!$J$3:$J$1000,Sheet2!$D$3:$D$1000,$C74,Sheet2!$T$3:$T$1000,Q$2) -> 0 | R74: =SUMIFS(Sheet2!$G$3:$G$1000,Sheet2!$D$3:$D$1000,$C74,Sheet2!$T$3:$T$1000,R$2)+SUMIFS(Sheet2!$P$3:$P$1000,Sheet2!$D$3:$D$1000,$C74,Sheet2!$S$3:$S$1000,R$2)-SUMIFS(Sheet2!$J$3:$J$1000,Sheet2!$D$3:$D$1000,$C74,Sheet2!$T$3:$T$1000,R$2) -> 0 | AG74: 2018-03-13
K75: 0 | L75: =G75+SUMIFS(Sheet2!$G$3:$G$1000,Sheet2!$D$3:$D$1000,$C75,Sheet2!$T$3:$T$1000,$L74)+SUMIFS(Sheet2!$P$3:$P$1000,Sheet2!$D$3:$D$1000,$C75,Sheet2!$S$3:$S$1000,$L74)-SUMIFS(Sheet2!$J$3:$J$1000,Sheet2!$D$3:$D$1000,$C75,Sheet2!$T$3:$T$1000,$L74) -> 0 | M75: =SUMIFS(Sheet2!$G$3:$G$1000,Sheet2!$D$3:$D$1000,$C75,Sheet2!$T$3:$T$1000,M$2)+SUMIFS(Sheet2!$P$3:$P$1000,Sheet2!$D$3:$D$1000,$C75,Sheet2!$S$3:$S$1000,M$2)-SUMIFS(Sheet2!$J$3:$J$1000,Sheet2!$D$3:$D$1000,$C75,Sheet2!$T$3:$T$1000,M$2)-SUMIFS(Sheet2!$P$3:$P$1000,Sheet2!$D$3:$D$1000,$C75,Sheet2!$T$3:$T$1000,M$2) -> 0 | N75: =SUMIFS(Sheet2!$G$3:$G$1000,Sheet2!$D$3:$D$1000,$C75,Sheet2!$T$3:$T$1000,N$2)+SUMIFS(Sheet2!$P$3:$P$1000,Sheet2!$D$3:$D$1000,$C75,Sheet2!$S$3:$S$1000,N$2)-SUMIFS(Sheet2!$J$3:$J$1000,Sheet2!$D$3:$D$1000,$C75,Sheet2!$T$3:$T$1000,N$2) -> 0 | O75: =SUMIFS(Sheet2!$G$3:$G$1000,Sheet2!$D$3:$D$1000,$C75,Sheet2!$T$3:$T$1000,O$2)+SUMIFS(Sheet2!$P$3:$P$1000,Sheet2!$D$3:$D$1000,$C75,Sheet2!$S$3:$S$1000,O$2)-SUMIFS(Sheet2!$J$3:$J$1000,Sheet2!$D$3:$D$1000,$C75,Sheet2!$T$3:$T$1000,O$2) -> 0 | P75: =SUMIFS(Sheet2!$G$3:$G$1000,Sheet2!$D$3:$D$1000,$C75,Sheet2!$T$3:$T$1000,P$2)+SUMIFS(Sheet2!$P$3:$P$1000,Sheet2!$D$3:$D$1000,$C75,Sheet2!$S$3:$S$1000,P$2)-SUMIFS(Sheet2!$J$3:$J$1000,Sheet2!$D$3:$D$1000,$C75,Sheet2!$T$3:$T$1000,P$2) -> 0 | Q75: =SUMIFS(Sheet2!$G$3:$G$1000,Sheet2!$D$3:$D$1000,$C75,Sheet2!$T$3:$T$1000,Q$2)+SUMIFS(Sheet2!$P$3:$P$1000,Sheet2!$D$3:$D$1000,$C75,Sheet2!$S$3:$S$1000,Q$2)-SUMIFS(Sheet2!$J$3:$J$1000,Sheet2!$D$3:$D$1000,$C75,Sheet2!$T$3:$T$1000,Q$2) -> 0 | R75: =SUMIFS(Sheet2!$G$3:$G$1000,Sheet2!$D$3:$D$1000,$C75,Sheet2!$T$3:$T$1000,R$2)+SUMIFS(Sheet2!$P$3:$P$1000,Sheet2!$D$3:$D$1000,$C75,Sheet2!$S$3:$S$1000,R$2)-SUMIFS(Sheet2!$J$3:$J$1000,Sheet2!$D$3:$D$1000,$C75,Sheet2!$T$3:$T$1000,R$2) -> 0 | AG75: 2018-03-14
K76: 0 | L76: =G76+SUMIFS(Sheet2!$G$3:$G$1000,Sheet2!$D$3:$D$1000,$C76,Sheet2!$T$3:$T$1000,$L75)+SUMIFS(Sheet2!$P$3:$P$1000,Sheet2!$D$3:$D$1000,$C76,Sheet2!$S$3:$S$1000,$L75)-SUMIFS(Sheet2!$J$3:$J$1000,Sheet2!$D$3:$D$1000,$C76,Sheet2!$T$3:$T$1000,$L75) -> 0 | M76: =SUMIFS(Sheet2!$G$3:$G$1000,Sheet2!$D$3:$D$1000,$C76,Sheet2!$T$3:$T$1000,M$2)+SUMIFS(Sheet2!$P$3:$P$1000,Sheet2!$D$3:$D$1000,$C76,Sheet2!$S$3:$S$1000,M$2)-SUMIFS(Sheet2!$J$3:$J$1000,Sheet2!$D$3:$D$1000,$C76,Sheet2!$T$3:$T$1000,M$2)-SUMIFS(Sheet2!$P$3:$P$1000,Sheet2!$D$3:$D$1000,$C76,Sheet2!$T$3:$T$1000,M$2) -> 0 | N76: =SUMIFS(Sheet2!$G$3:$G$1000,Sheet2!$D$3:$D$1000,$C76,Sheet2!$T$3:$T$1000,N$2)+SUMIFS(Sheet2!$P$3:$P$1000,Sheet2!$D$3:$D$1000,$C76,Sheet2!$S$3:$S$1000,N$2)-SUMIFS(Sheet2!$J$3:$J$1000,Sheet2!$D$3:$D$1000,$C76,Sheet2!$T$3:$T$1000,N$2) -> 0 | O76: =SUMIFS(Sheet2!$G$3:$G$1000,Sheet2!$D$3:$D$1000,$C76,Sheet2!$T$3:$T$1000,O$2)+SUMIFS(Sheet2!$P$3:$P$1000,Sheet2!$D$3:$D$1000,$C76,Sheet2!$S$3:$S$1000,O$2)-SUMIFS(Sheet2!$J$3:$J$1000,Sheet2!$D$3:$D$1000,$C76,Sheet2!$T$3:$T$1000,O$2) -> 0 | P76: =SUMIFS(Sheet2!$G$3:$G$1000,Sheet2!$D$3:$D$1000,$C76,Sheet2!$T$3:$T$1000,P$2)+SUMIFS(Sheet2!$P$3:$P$1000,Sheet2!$D$3:$D$1000,$C76,Sheet2!$S$3:$S$1000,P$2)-SUMIFS(Sheet2!$J$3:$J$1000,Sheet2!$D$3:$D$1000,$C76,Sheet2!$T$3:$T$1000,P$2) -> 0 | Q76: =SUMIFS(Sheet2!$G$3:$G$1000,Sheet2!$D$3:$D$1000,$C76,Sheet2!$T$3:$T$1000,Q$2)+SUMIFS(Sheet2!$P$3:$P$1000,Sheet2!$D$3:$D$1000,$C76,Sheet2!$S$3:$S$1000,Q$2)-SUMIFS(Sheet2!$J$3:$J$1000,Sheet2!$D$3:$D$1000,$C76,Sheet2!$T$3:$T$1000,Q$2) -> 0 | R76: =SUMIFS(Sheet2!$G$3:$G$1000,Sheet2!$D$3:$D$1000,$C76,Sheet2!$T$3:$T$1000,R$2)+SUMIFS(Sheet2!$P$3:$P$1000,Sheet2!$D$3:$D$1000,$C76,Sheet2!$S$3:$S$1000,R$2)-SUMIFS(Sheet2!$J$3:$J$1000,Sheet2!$D$3:$D$1000,$C76,Sheet2!$T$3:$T$1000,R$2) -> 0 | AG76: 2018-03-15
K77: 0 | L77: =G77+SUMIFS(Sheet2!$G$3:$G$1000,Sheet2!$D$3:$D$1000,$C77,Sheet2!$T$3:$T$1000,$L76)+SUMIFS(Sheet2!$P$3:$P$1000,Sheet2!$D$3:$D$1000,$C77,Sheet2!$S$3:$S$1000,$L76)-SUMIFS(Sheet2!$J$3:$J$1000,Sheet2!$D$3:$D$1000,$C77,Sheet2!$T$3:$T$1000,$L76) -> 0 | M77: =SUMIFS(Sheet2!$G$3:$G$1000,Sheet2!$D$3:$D$1000,$C77,Sheet2!$T$3:$T$1000,M$2)+SUMIFS(Sheet2!$P$3:$P$1000,Sheet2!$D$3:$D$1000,$C77,Sheet2!$S$3:$S$1000,M$2)-SUMIFS(Sheet2!$J$3:$J$1000,Sheet2!$D$3:$D$1000,$C77,Sheet2!$T$3:$T$1000,M$2)-SUMIFS(Sheet2!$P$3:$P$1000,Sheet2!$D$3:$D$1000,$C77,Sheet2!$T$3:$T$1000,M$2) -> 0 | N77: =SUMIFS(Sheet2!$G$3:$G$1000,Sheet2!$D$3:$D$1000,$C77,Sheet2!$T$3:$T$1000,N$2)+SUMIFS(Sheet2!$P$3:$P$1000,Sheet2!$D$3:$D$1000,$C77,Sheet2!$S$3:$S$1000,N$2)-SUMIFS(Sheet2!$J$3:$J$1000,Sheet2!$D$3:$D$1000,$C77,Sheet2!$T$3:$T$1000,N$2) -> 0 | O77: =SUMIFS(Sheet2!$G$3:$G$1000,Sheet2!$D$3:$D$1000,$C77,Sheet2!$T$3:$T$1000,O$2)+SUMIFS(Sheet2!$P$3:$P$1000,Sheet2!$D$3:$D$1000,$C77,Sheet2!$S$3:$S$1000,O$2)-SUMIFS(Sheet2!$J$3:$J$1000,Sheet2!$D$3:$D$1000,$C77,Sheet2!$T$3:$T$1000,O$2) -> 0 | P77: =SUMIFS(Sheet2!$G$3:$G$1000,Sheet2!$D$3:$D$1000,$C77,Sheet2!$T$3:$T$1000,P$2)+SUMIFS(Sheet2!$P$3:$P$1000,Sheet2!$D$3:$D$1000,$C77,Sheet2!$S$3:$S$1000,P$2)-SUMIFS(Sheet2!$J$3:$J$1000,Sheet2!$D$3:$D$1000,$C77,Sheet2!$T$3:$T$1000,P$2) -> 0 | Q77: =SUMIFS(Sheet2!$G$3:$G$1000,Sheet2!$D$3:$D$1000,$C77,Sheet2!$T$3:$T$1000,Q$2)+SUMIFS(Sheet2!$P$3:$P$1000,Sheet2!$D$3:$D$1000,$C77,Sheet2!$S$3:$S$1000,Q$2)-SUMIFS(Sheet2!$J$3:$J$1000,Sheet2!$D$3:$D$1000,$C77,Sheet2!$T$3:$T$1000,Q$2) -> 0 | R77: =SUMIFS(Sheet2!$G$3:$G$1000,Sheet2!$D$3:$D$1000,$C77,Sheet2!$T$3:$T$1000,R$2)+SUMIFS(Sheet2!$P$3:$P$1000,Sheet2!$D$3:$D$1000,$C77,Sheet2!$S$3:$S$1000,R$2)-SUMIFS(Sheet2!$J$3:$J$1000,Sheet2!$D$3:$D$1000,$C77,Sheet2!$T$3:$T$1000,R$2) -> 0 | AG77: 2018-03-16
K78: 0 | L78: =G78+SUMIFS(Sheet2!$G$3:$G$1000,Sheet2!$D$3:$D$1000,$C78,Sheet2!$T$3:$T$1000,$L77)+SUMIFS(Sheet2!$P$3:$P$1000,Sheet2!$D$3:$D$1000,$C78,Sheet2!$S$3:$S$1000,$L77)-SUMIFS(Sheet2!$J$3:$J$1000,Sheet2!$D$3:$D$1000,$C78,Sheet2!$T$3:$T$1000,$L77) -> 0 | M78: =SUMIFS(Sheet2!$G$3:$G$1000,Sheet2!$D$3:$D$1000,$C78,Sheet2!$T$3:$T$1000,M$2)+SUMIFS(Sheet2!$P$3:$P$1000,Sheet2!$D$3:$D$1000,$C78,Sheet2!$S$3:$S$1000,M$2)-SUMIFS(Sheet2!$J$3:$J$1000,Sheet2!$D$3:$D$1000,$C78,Sheet2!$T$3:$T$1000,M$2)-SUMIFS(Sheet2!$P$3:$P$1000,Sheet2!$D$3:$D$1000,$C78,Sheet2!$T$3:$T$1000,M$2) -> 0 | N78: =SUMIFS(Sheet2!$G$3:$G$1000,Sheet2!$D$3:$D$1000,$C78,Sheet2!$T$3:$T$1000,N$2)+SUMIFS(Sheet2!$P$3:$P$1000,Sheet2!$D$3:$D$1000,$C78,Sheet2!$S$3:$S$1000,N$2)-SUMIFS(Sheet2!$J$3:$J$1000,Sheet2!$D$3:$D$1000,$C78,Sheet2!$T$3:$T$1000,N$2) -> 0 | O78: =SUMIFS(Sheet2!$G$3:$G$1000,Sheet2!$D$3:$D$1000,$C78,Sheet2!$T$3:$T$1000,O$2)+SUMIFS(Sheet2!$P$3:$P$1000,Sheet2!$D$3:$D$1000,$C78,Sheet2!$S$3:$S$1000,O$2)-SUMIFS(Sheet2!$J$3:$J$1000,Sheet2!$D$3:$D$1000,$C78,Sheet2!$T$3:$T$1000,O$2) -> 0 | P78: =SUMIFS(Sheet2!$G$3:$G$1000,Sheet2!$D$3:$D$1000,$C78,Sheet2!$T$3:$T$1000,P$2)+SUMIFS(Sheet2!$P$3:$P$1000,Sheet2!$D$3:$D$1000,$C78,Sheet2!$S$3:$S$1000,P$2)-SUMIFS(Sheet2!$J$3:$J$1000,Sheet2!$D$3:$D$1000,$C78,Sheet2!$T$3:$T$1000,P$2) -> 0 | Q78: =SUMIFS(Sheet2!$G$3:$G$1000,Sheet2!$D$3:$D$1000,$C78,Sheet2!$T$3:$T$1000,Q$2)+SUMIFS(Sheet2!$P$3:$P$1000,Sheet2!$D$3:$D$1000,$C78,Sheet2!$S$3:$S$1000,Q$2)-SUMIFS(Sheet2!$J$3:$J$1000,Sheet2!$D$3:$D$1000,$C78,Sheet2!$T$3:$T$1000,Q$2) -> 0 | R78: =SUMIFS(Sheet2!$G$3:$G$1000,Sheet2!$D$3:$D$1000,$C78,Sheet2!$T$3:$T$1000,R$2)+SUMIFS(Sheet2!$P$3:$P$1000,Sheet2!$D$3:$D$1000,$C78,Sheet2!$S$3:$S$1000,R$2)-SUMIFS(Sheet2!$J$3:$J$1000,Sheet2!$D$3:$D$1000,$C78,Sheet2!$T$3:$T$1000,R$2) -> 0 | AG78: 2018-03-17
K79: 0 | L79: =G79+SUMIFS(Sheet2!$G$3:$G$1000,Sheet2!$D$3:$D$1000,$C79,Sheet2!$T$3:$T$1000,$L78)+SUMIFS(Sheet2!$P$3:$P$1000,Sheet2!$D$3:$D$1000,$C79,Sheet2!$S$3:$S$1000,$L78)-SUMIFS(Sheet2!$J$3:$J$1000,Sheet2!$D$3:$D$1000,$C79,Sheet2!$T$3:$T$1000,$L78) -> 0 | M79: =SUMIFS(Sheet2!$G$3:$G$1000,Sheet2!$D$3:$D$1000,$C79,Sheet2!$T$3:$T$1000,M$2)+SUMIFS(Sheet2!$P$3:$P$1000,Sheet2!$D$3:$D$1000,$C79,Sheet2!$S$3:$S$1000,M$2)-SUMIFS(Sheet2!$J$3:$J$1000,Sheet2!$D$3:$D$1000,$C79,Sheet2!$T$3:$T$1000,M$2)-SUMIFS(Sheet2!$P$3:$P$1000,Sheet2!$D$3:$D$1000,$C79,Sheet2!$T$3:$T$1000,M$2) -> 0 | N79: =SUMIFS(Sheet2!$G$3:$G$1000,Sheet2!$D$3:$D$1000,$C79,Sheet2!$T$3:$T$1000,N$2)+SUMIFS(Sheet2!$P$3:$P$1000,Sheet2!$D$3:$D$1000,$C79,Sheet2!$S$3:$S$1000,N$2)-SUMIFS(Sheet2!$J$3:$J$1000,Sheet2!$D$3:$D$1000,$C79,Sheet2!$T$3:$T$1000,N$2) -> 0 | O79: =SUMIFS(Sheet2!$G$3:$G$1000,Sheet2!$D$3:$D$1000,$C79,Sheet2!$T$3:$T$1000,O$2)+SUMIFS(Sheet2!$P$3:$P$1000,Sheet2!$D$3:$D$1000,$C79,Sheet2!$S$3:$S$1000,O$2)-SUMIFS(Sheet2!$J$3:$J$1000,Sheet2!$D$3:$D$1000,$C79,Sheet2!$T$3:$T$1000,O$2) -> 0 | P79: =SUMIFS(Sheet2!$G$3:$G$1000,Sheet2!$D$3:$D$1000,$C79,Sheet2!$T$3:$T$1000,P$2)+SUMIFS(Sheet2!$P$3:$P$1000,Sheet2!$D$3:$D$1000,$C79,Sheet2!$S$3:$S$1000,P$2)-SUMIFS(Sheet2!$J$3:$J$1000,Sheet2!$D$3:$D$1000,$C79,Sheet2!$T$3:$T$1000,P$2) -> 0 | Q79: =SUMIFS(Sheet2!$G$3:$G$1000,Sheet2!$D$3:$D$1000,$C79,Sheet2!$T$3:$T$1000,Q$2)+SUMIFS(Sheet2!$P$3:$P$1000,Sheet2!$D$3:$D$1000,$C79,Sheet2!$S$3:$S$1000,Q$2)-SUMIFS(Sheet2!$J$3:$J$1000,Sheet2!$D$3:$D$1000,$C79,Sheet2!$T$3:$T$1000,Q$2) -> 0 | R79: =SUMIFS(Sheet2!$G$3:$G$1000,Sheet2!$D$3:$D$1000,$C79,Sheet2!$T$3:$T$1000,R$2)+SUMIFS(Sheet2!$P$3:$P$1000,Sheet2!$D$3:$D$1000,$C79,Sheet2!$S$3:$S$1000,R$2)-SUMIFS(Sheet2!$J$3:$J$1000,Sheet2!$D$3:$D$1000,$C79,Sheet2!$T$3:$T$1000,R$2) -> 0 | AG79: 2018-03-18
K80: 0 | L80: =G80+SUMIFS(Sheet2!$G$3:$G$1000,Sheet2!$D$3:$D$1000,$C80,Sheet2!$T$3:$T$1000,$L79)+SUMIFS(Sheet2!$P$3:$P$1000,Sheet2!$D$3:$D$1000,$C80,Sheet2!$S$3:$S$1000,$L79)-SUMIFS(Sheet2!$J$3:$J$1000,Sheet2!$D$3:$D$1000,$C80,Sheet2!$T$3:$T$1000,$L79) -> 0 | M80: =SUMIFS(Sheet2!$G$3:$G$1000,Sheet2!$D$3:$D$1000,$C80,Sheet2!$T$3:$T$1000,M$2)+SUMIFS(Sheet2!$P$3:$P$1000,Sheet2!$D$3:$D$1000,$C80,Sheet2!$S$3:$S$1000,M$2)-SUMIFS(Sheet2!$J$3:$J$1000,Sheet2!$D$3:$D$1000,$C80,Sheet2!$T$3:$T$1000,M$2)-SUMIFS(Sheet2!$P$3:$P$1000,Sheet2!$D$3:$D$1000,$C80,Sheet2!$T$3:$T$1000,M$2) -> 0 | N80: =SUMIFS(Sheet2!$G$3:$G$1000,Sheet2!$D$3:$D$1000,$C80,Sheet2!$T$3:$T$1000,N$2)+SUMIFS(Sheet2!$P$3:$P$1000,Sheet2!$D$3:$D$1000,$C80,Sheet2!$S$3:$S$1000,N$2)-SUMIFS(Sheet2!$J$3:$J$1000,Sheet2!$D$3:$D$1000,$C80,Sheet2!$T$3:$T$1000,N$2) -> 0 | O80: =SUMIFS(Sheet2!$G$3:$G$1000,Sheet2!$D$3:$D$1000,$C80,Sheet2!$T$3:$T$1000,O$2)+SUMIFS(Sheet2!$P$3:$P$1000,Sheet2!$D$3:$D$1000,$C80,Sheet2!$S$3:$S$1000,O$2)-SUMIFS(Sheet2!$J$3:$J$1000,Sheet2!$D$3:$D$1000,$C80,Sheet2!$T$3:$T$1000,O$2) -> 0 | P80: =SUMIFS(Sheet2!$G$3:$G$1000,Sheet2!$D$3:$D$1000,$C80,Sheet2!$T$3:$T$1000,P$2)+SUMIFS(Sheet2!$P$3:$P$1000,Sheet2!$D$3:$D$1000,$C80,Sheet2!$S$3:$S$1000,P$2)-SUMIFS(Sheet2!$J$3:$J$1000,Sheet2!$D$3:$D$1000,$C80,Sheet2!$T$3:$T$1000,P$2) -> 0 | Q80: =SUMIFS(Sheet2!$G$3:$G$1000,Sheet2!$D$3:$D$1000,$C80,Sheet2!$T$3:$T$1000,Q$2)+SUMIFS(Sheet2!$P$3:$P$1000,Sheet2!$D$3:$D$1000,$C80,Sheet2!$S$3:$S$1000,Q$2)-SUMIFS(Sheet2!$J$3:$J$1000,Sheet2!$D$3:$D$1000,$C80,Sheet2!$T$3:$T$1000,Q$2) -> 0 | R80: =SUMIFS(Sheet2!$G$3:$G$1000,Sheet2!$D$3:$D$1000,$C80,Sheet2!$T$3:$T$1000,R$2)+SUMIFS(Sheet2!$P$3:$P$1000,Sheet2!$D$3:$D$1000,$C80,Sheet2!$S$3:$S$1000,R$2)-SUMIFS(Sheet2!$J$3:$J$1000,Sheet2!$D$3:$D$1000,$C80,Sheet2!$T$3:$T$1000,R$2) -> 0 | AG80: 2018-03-19
K81: 0 | L81: =G81+SUMIFS(Sheet2!$G$3:$G$1000,Sheet2!$D$3:$D$1000,$C81,Sheet2!$T$3:$T$1000,$L80)+SUMIFS(Sheet2!$P$3:$P$1000,Sheet2!$D$3:$D$1000,$C81,Sheet2!$S$3:$S$1000,$L80)-SUMIFS(Sheet2!$J$3:$J$1000,Sheet2!$D$3:$D$1000,$C81,Sheet2!$T$3:$T$1000,$L80) -> 0 | M81: =SUMIFS(Sheet2!$G$3:$G$1000,Sheet2!$D$3:$D$1000,$C81,Sheet2!$T$3:$T$1000,M$2)+SUMIFS(Sheet2!$P$3:$P$1000,Sheet2!$D$3:$D$1000,$C81,Sheet2!$S$3:$S$1000,M$2)-SUMIFS(Sheet2!$J$3:$J$1000,Sheet2!$D$3:$D$1000,$C81,Sheet2!$T$3:$T$1000,M$2)-SUMIFS(Sheet2!$P$3:$P$1000,Sheet2!$D$3:$D$1000,$C81,Sheet2!$T$3:$T$1000,M$2) -> 0 | N81: =SUMIFS(Sheet2!$G$3:$G$1000,Sheet2!$D$3:$D$1000,$C81,Sheet2!$T$3:$T$1000,N$2)+SUMIFS(Sheet2!$P$3:$P$1000,Sheet2!$D$3:$D$1000,$C81,Sheet2!$S$3:$S$1000,N$2)-SUMIFS(Sheet2!$J$3:$J$1000,Sheet2!$D$3:$D$1000,$C81,Sheet2!$T$3:$T$1000,N$2) -> 0 | O81: =SUMIFS(Sheet2!$G$3:$G$1000,Sheet2!$D$3:$D$1000,$C81,Sheet2!$T$3:$T$1000,O$2)+SUMIFS(Sheet2!$P$3:$P$1000,Sheet2!$D$3:$D$1000,$C81,Sheet2!$S$3:$S$1000,O$2)-SUMIFS(Sheet2!$J$3:$J$1000,Sheet2!$D$3:$D$1000,$C81,Sheet2!$T$3:$T$1000,O$2) -> 0 | P81: =SUMIFS(Sheet2!$G$3:$G$1000,Sheet2!$D$3:$D$1000,$C81,Sheet2!$T$3:$T$1000,P$2)+SUMIFS(Sheet2!$P$3:$P$1000,Sheet2!$D$3:$D$1000,$C81,Sheet2!$S$3:$S$1000,P$2)-SUMIFS(Sheet2!$J$3:$J$1000,Sheet2!$D$3:$D$1000,$C81,Sheet2!$T$3:$T$1000,P$2) -> 0 | Q81: =SUMIFS(Sheet2!$G$3:$G$1000,Sheet2!$D$3:$D$1000,$C81,Sheet2!$T$3:$T$1000,Q$2)+SUMIFS(Sheet2!$P$3:$P$1000,Sheet2!$D$3:$D$1000,$C81,Sheet2!$S$3:$S$1000,Q$2)-SUMIFS(Sheet2!$J$3:$J$1000,Sheet2!$D$3:$D$1000,$C81,Sheet2!$T$3:$T$1000,Q$2) -> 0 | R81: =SUMIFS(Sheet2!$G$3:$G$1000,Sheet2!$D$3:$D$1000,$C81,Sheet2!$T$3:$T$1000,R$2)+SUMIFS(Sheet2!$P$3:$P$1000,Sheet2!$D$3:$D$1000,$C81,Sheet2!$S$3:$S$1000,R$2)-SUMIFS(Sheet2!$J$3:$J$1000,Sheet2!$D$3:$D$1000,$C81,Sheet2!$T$3:$T$1000,R$2) -> 0 | AG81: 2018-03-20
K82: 0 | L82: =G82+SUMIFS(Sheet2!$G$3:$G$1000,Sheet2!$D$3:$D$1000,$C82,Sheet2!$T$3:$T$1000,$L81)+SUMIFS(Sheet2!$P$3:$P$1000,Sheet2!$D$3:$D$1000,$C82,Sheet2!$S$3:$S$1000,$L81)-SUMIFS(Sheet2!$J$3:$J$1000,Sheet2!$D$3:$D$1000,$C82,Sheet2!$T$3:$T$1000,$L81) -> 0 | M82: =SUMIFS(Sheet2!$G$3:$G$1000,Sheet2!$D$3:$D$1000,$C82,Sheet2!$T$3:$T$1000,M$2)+SUMIFS(Sheet2!$P$3:$P$1000,Sheet2!$D$3:$D$1000,$C82,Sheet2!$S$3:$S$1000,M$2)-SUMIFS(Sheet2!$J$3:$J$1000,Sheet2!$D$3:$D$1000,$C82,Sheet2!$T$3:$T$1000,M$2)-SUMIFS(Sheet2!$P$3:$P$1000,Sheet2!$D$3:$D$1000,$C82,Sheet2!$T$3:$T$1000,M$2) -> 0 | N82: =SUMIFS(Sheet2!$G$3:$G$1000,Sheet2!$D$3:$D$1000,$C82,Sheet2!$T$3:$T$1000,N$2)+SUMIFS(Sheet2!$P$3:$P$1000,Sheet2!$D$3:$D$1000,$C82,Sheet2!$S$3:$S$1000,N$2)-SUMIFS(Sheet2!$J$3:$J$1000,Sheet2!$D$3:$D$1000,$C82,Sheet2!$T$3:$T$1000,N$2) -> 0 | O82: =SUMIFS(Sheet2!$G$3:$G$1000,Sheet2!$D$3:$D$1000,$C82,Sheet2!$T$3:$T$1000,O$2)+SUMIFS(Sheet2!$P$3:$P$1000,Sheet2!$D$3:$D$1000,$C82,Sheet2!$S$3:$S$1000,O$2)-SUMIFS(Sheet2!$J$3:$J$1000,Sheet2!$D$3:$D$1000,$C82,Sheet2!$T$3:$T$1000,O$2) -> 0 | P82: =SUMIFS(Sheet2!$G$3:$G$1000,Sheet2!$D$3:$D$1000,$C82,Sheet2!$T$3:$T$1000,P$2)+SUMIFS(Sheet2!$P$3:$P$1000,Sheet2!$D$3:$D$1000,$C82,Sheet2!$S$3:$S$1000,P$2)-SUMIFS(Sheet2!$J$3:$J$1000,Sheet2!$D$3:$D$1000,$C82,Sheet2!$T$3:$T$1000,P$2) -> 0 | Q82: =SUMIFS(Sheet2!$G$3:$G$1000,Sheet2!$D$3:$D$1000,$C82,Sheet2!$T$3:$T$1000,Q$2)+SUMIFS(Sheet2!$P$3:$P$1000,Sheet2!$D$3:$D$1000,$C82,Sheet2!$S$3:$S$1000,Q$2)-SUMIFS(Sheet2!$J$3:$J$1000,Sheet2!$D$3:$D$1000,$C82,Sheet2!$T$3:$T$1000,Q$2) -> 0 | R82: =SUMIFS(Sheet2!$G$3:$G$1000,Sheet2!$D$3:$D$1000,$C82,Sheet2!$T$3:$T$1000,R$2)+SUMIFS(Sheet2!$P$3:$P$1000,Sheet2!$D$3:$D$1000,$C82,Sheet2!$S$3:$S$1000,R$2)-SUMIFS(Sheet2!$J$3:$J$1000,Sheet2!$D$3:$D$1000,$C82,Sheet2!$T$3:$T$1000,R$2) -> 0 | AG82: 2018-03-21
K83: 0 | L83: =G83+SUMIFS(Sheet2!$G$3:$G$1000,Sheet2!$D$3:$D$1000,$C83,Sheet2!$T$3:$T$1000,$L82)+SUMIFS(Sheet2!$P$3:$P$1000,Sheet2!$D$3:$D$1000,$C83,Sheet2!$S$3:$S$1000,$L82)-SUMIFS(Sheet2!$J$3:$J$1000,Sheet2!$D$3:$D$1000,$C83,Sheet2!$T$3:$T$1000,$L82) -> 0 | M83: =SUMIFS(Sheet2!$G$3:$G$1000,Sheet2!$D$3:$D$1000,$C83,Sheet2!$T$3:$T$1000,M$2)+SUMIFS(Sheet2!$P$3:$P$1000,Sheet2!$D$3:$D$1000,$C83,Sheet2!$S$3:$S$1000,M$2)-SUMIFS(Sheet2!$J$3:$J$1000,Sheet2!$D$3:$D$1000,$C83,Sheet2!$T$3:$T$1000,M$2)-SUMIFS(Sheet2!$P$3:$P$1000,Sheet2!$D$3:$D$1000,$C83,Sheet2!$T$3:$T$1000,M$2) -> 0 | N83: =SUMIFS(Sheet2!$G$3:$G$1000,Sheet2!$D$3:$D$1000,$C83,Sheet2!$T$3:$T$1000,N$2)+SUMIFS(Sheet2!$P$3:$P$1000,Sheet2!$D$3:$D$1000,$C83,Sheet2!$S$3:$S$1000,N$2)-SUMIFS(Sheet2!$J$3:$J$1000,Sheet2!$D$3:$D$1000,$C83,Sheet2!$T$3:$T$1000,N$2) -> 0 | O83: =SUMIFS(Sheet2!$G$3:$G$1000,Sheet2!$D$3:$D$1000,$C83,Sheet2!$T$3:$T$1000,O$2)+SUMIFS(Sheet2!$P$3:$P$1000,Sheet2!$D$3:$D$1000,$C83,Sheet2!$S$3:$S$1000,O$2)-SUMIFS(Sheet2!$J$3:$J$1000,Sheet2!$D$3:$D$1000,$C83,Sheet2!$T$3:$T$1000,O$2) -> 0 | P83: =SUMIFS(Sheet2!$G$3:$G$1000,Sheet2!$D$3:$D$1000,$C83,Sheet2!$T$3:$T$1000,P$2)+SUMIFS(Sheet2!$P$3:$P$1000,Sheet2!$D$3:$D$1000,$C83,Sheet2!$S$3:$S$1000,P$2)-SUMIFS(Sheet2!$J$3:$J$1000,Sheet2!$D$3:$D$1000,$C83,Sheet2!$T$3:$T$1000,P$2) -> 0 | Q83: =SUMIFS(Sheet2!$G$3:$G$1000,Sheet2!$D$3:$D$1000,$C83,Sheet2!$T$3:$T$1000,Q$2)+SUMIFS(Sheet2!$P$3:$P$1000,Sheet2!$D$3:$D$1000,$C83,Sheet2!$S$3:$S$1000,Q$2)-SUMIFS(Sheet2!$J$3:$J$1000,Sheet2!$D$3:$D$1000,$C83,Sheet2!$T$3:$T$1000,Q$2) -> 0 | R83: =SUMIFS(Sheet2!$G$3:$G$1000,Sheet2!$D$3:$D$1000,$C83,Sheet2!$T$3:$T$1000,R$2)+SUMIFS(Sheet2!$P$3:$P$1000,Sheet2!$D$3:$D$1000,$C83,Sheet2!$S$3:$S$1000,R$2)-SUMIFS(Sheet2!$J$3:$J$1000,Sheet2!$D$3:$D$1000,$C83,Sheet2!$T$3:$T$1000,R$2) -> 0 | AG83: 2018-03-22
K84: 0 | L84: =G84+SUMIFS(Sheet2!$G$3:$G$1000,Sheet2!$D$3:$D$1000,$C84,Sheet2!$T$3:$T$1000,$L83)+SUMIFS(Sheet2!$P$3:$P$1000,Sheet2!$D$3:$D$1000,$C84,Sheet2!$S$3:$S$1000,$L83)-SUMIFS(Sheet2!$J$3:$J$1000,Sheet2!$D$3:$D$1000,$C84,Sheet2!$T$3:$T$1000,$L83) -> 0 | M84: =SUMIFS(Sheet2!$G$3:$G$1000,Sheet2!$D$3:$D$1000,$C84,Sheet2!$T$3:$T$1000,M$2)+SUMIFS(Sheet2!$P$3:$P$1000,Sheet2!$D$3:$D$1000,$C84,Sheet2!$S$3:$S$1000,M$2)-SUMIFS(Sheet2!$J$3:$J$1000,Sheet2!$D$3:$D$1000,$C84,Sheet2!$T$3:$T$1000,M$2)-SUMIFS(Sheet2!$P$3:$P$1000,Sheet2!$D$3:$D$1000,$C84,Sheet2!$T$3:$T$1000,M$2) -> 0 | N84: =SUMIFS(Sheet2!$G$3:$G$1000,Sheet2!$D$3:$D$1000,$C84,Sheet2!$T$3:$T$1000,N$2)+SUMIFS(Sheet2!$P$3:$P$1000,Sheet2!$D$3:$D$1000,$C84,Sheet2!$S$3:$S$1000,N$2)-SUMIFS(Sheet2!$J$3:$J$1000,Sheet2!$D$3:$D$1000,$C84,Sheet2!$T$3:$T$1000,N$2) -> 0 | O84: =SUMIFS(Sheet2!$G$3:$G$1000,Sheet2!$D$3:$D$1000,$C84,Sheet2!$T$3:$T$1000,O$2)+SUMIFS(Sheet2!$P$3:$P$1000,Sheet2!$D$3:$D$1000,$C84,Sheet2!$S$3:$S$1000,O$2)-SUMIFS(Sheet2!$J$3:$J$1000,Sheet2!$D$3:$D$1000,$C84,Sheet2!$T$3:$T$1000,O$2) -> 0 | P84: =SUMIFS(Sheet2!$G$3:$G$1000,Sheet2!$D$3:$D$1000,$C84,Sheet2!$T$3:$T$1000,P$2)+SUMIFS(Sheet2!$P$3:$P$1000,Sheet2!$D$3:$D$1000,$C84,Sheet2!$S$3:$S$1000,P$2)-SUMIFS(Sheet2!$J$3:$J$1000,Sheet2!$D$3:$D$1000,$C84,Sheet2!$T$3:$T$1000,P$2) -> 0 | Q84: =SUMIFS(Sheet2!$G$3:$G$1000,Sheet2!$D$3:$D$1000,$C84,Sheet2!$T$3:$T$1000,Q$2)+SUMIFS(Sheet2!$P$3:$P$1000,Sheet2!$D$3:$D$1000,$C84,Sheet2!$S$3:$S$1000,Q$2)-SUMIFS(Sheet2!$J$3:$J$1000,Sheet2!$D$3:$D$1000,$C84,Sheet2!$T$3:$T$1000,Q$2) -> 0 | R84: =SUMIFS(Sheet2!$G$3:$G$1000,Sheet2!$D$3:$D$1000,$C84,Sheet2!$T$3:$T$1000,R$2)+SUMIFS(Sheet2!$P$3:$P$1000,Sheet2!$D$3:$D$1000,$C84,Sheet2!$S$3:$S$1000,R$2)-SUMIFS(Sheet2!$J$3:$J$1000,Sheet2!$D$3:$D$1000,$C84,Sheet2!$T$3:$T$1000,R$2) -> 0 | AG84: 2018-03-23
K85: 0 | L85: =G85+SUMIFS(Sheet2!$G$3:$G$1000,Sheet2!$D$3:$D$1000,$C85,Sheet2!$T$3:$T$1000,$L84)+SUMIFS(Sheet2!$P$3:$P$1000,Sheet2!$D$3:$D$1000,$C85,Sheet2!$S$3:$S$1000,$L84)-SUMIFS(Sheet2!$J$3:$J$1000,Sheet2!$D$3:$D$1000,$C85,Sheet2!$T$3:$T$1000,$L84) -> 0 | M85: =SUMIFS(Sheet2!$G$3:$G$1000,Sheet2!$D$3:$D$1000,$C85,Sheet2!$T$3:$T$1000,M$2)+SUMIFS(Sheet2!$P$3:$P$1000,Sheet2!$D$3:$D$1000,$C85,Sheet2!$S$3:$S$1000,M$2)-SUMIFS(Sheet2!$J$3:$J$1000,Sheet2!$D$3:$D$1000,$C85,Sheet2!$T$3:$T$1000,M$2)-SUMIFS(Sheet2!$P$3:$P$1000,Sheet2!$D$3:$D$1000,$C85,Sheet2!$T$3:$T$1000,M$2) -> 0 | N85: =SUMIFS(Sheet2!$G$3:$G$1000,Sheet2!$D$3:$D$1000,$C85,Sheet2!$T$3:$T$1000,N$2)+SUMIFS(Sheet2!$P$3:$P$1000,Sheet2!$D$3:$D$1000,$C85,Sheet2!$S$3:$S$1000,N$2)-SUMIFS(Sheet2!$J$3:$J$1000,Sheet2!$D$3:$D$1000,$C85,Sheet2!$T$3:$T$1000,N$2) -> 0 | O85: =SUMIFS(Sheet2!$G$3:$G$1000,Sheet2!$D$3:$D$1000,$C85,Sheet2!$T$3:$T$1000,O$2)+SUMIFS(Sheet2!$P$3:$P$1000,Sheet2!$D$3:$D$1000,$C85,Sheet2!$S$3:$S$1000,O$2)-SUMIFS(Sheet2!$J$3:$J$1000,Sheet2!$D$3:$D$1000,$C85,Sheet2!$T$3:$T$1000,O$2) -> 0 | P85: =SUMIFS(Sheet2!$G$3:$G$1000,Sheet2!$D$3:$D$1000,$C85,Sheet2!$T$3:$T$1000,P$2)+SUMIFS(Sheet2!$P$3:$P$1000,Sheet2!$D$3:$D$1000,$C85,Sheet2!$S$3:$S$1000,P$2)-SUMIFS(Sheet2!$J$3:$J$1000,Sheet2!$D$3:$D$1000,$C85,Sheet2!$T$3:$T$1000,P$2) -> 0 | Q85: =SUMIFS(Sheet2!$G$3:$G$1000,Sheet2!$D$3:$D$1000,$C85,Sheet2!$T$3:$T$1000,Q$2)+SUMIFS(Sheet2!$P$3:$P$1000,Sheet2!$D$3:$D$1000,$C85,Sheet2!$S$3:$S$1000,Q$2)-SUMIFS(Sheet2!$J$3:$J$1000,Sheet2!$D$3:$D$1000,$C85,Sheet2!$T$3:$T$1000,Q$2) -> 0 | R85: =SUMIFS(Sheet2!$G$3:$G$1000,Sheet2!$D$3:$D$1000,$C85,Sheet2!$T$3:$T$1000,R$2)+SUMIFS(Sheet2!$P$3:$P$1000,Sheet2!$D$3:$D$1000,$C85,Sheet2!$S$3:$S$1000,R$2)-SUMIFS(Sheet2!$J$3:$J$1000,Sheet2!$D$3:$D$1000,$C85,Sheet2!$T$3:$T$1000,R$2) -> 0 | AG85: 2018-03-24
K86: 0 | L86: =G86+SUMIFS(Sheet2!$G$3:$G$1000,Sheet2!$D$3:$D$1000,$C86,Sheet2!$T$3:$T$1000,$L85)+SUMIFS(Sheet2!$P$3:$P$1000,Sheet2!$D$3:$D$1000,$C86,Sheet2!$S$3:$S$1000,$L85)-SUMIFS(Sheet2!$J$3:$J$1000,Sheet2!$D$3:$D$1000,$C86,Sheet2!$T$3:$T$1000,$L85) -> 0 | M86: =SUMIFS(Sheet2!$G$3:$G$1000,Sheet2!$D$3:$D$1000,$C86,Sheet2!$T$3:$T$1000,M$2)+SUMIFS(Sheet2!$P$3:$P$1000,Sheet2!$D$3:$D$1000,$C86,Sheet2!$S$3:$S$1000,M$2)-SUMIFS(Sheet2!$J$3:$J$1000,Sheet2!$D$3:$D$1000,$C86,Sheet2!$T$3:$T$1000,M$2)-SUMIFS(Sheet2!$P$3:$P$1000,Sheet2!$D$3:$D$1000,$C86,Sheet2!$T$3:$T$1000,M$2) -> 0 | N86: =SUMIFS(Sheet2!$G$3:$G$1000,Sheet2!$D$3:$D$1000,$C86,Sheet2!$T$3:$T$1000,N$2)+SUMIFS(Sheet2!$P$3:$P$1000,Sheet2!$D$3:$D$1000,$C86,Sheet2!$S$3:$S$1000,N$2)-SUMIFS(Sheet2!$J$3:$J$1000,Sheet2!$D$3:$D$1000,$C86,Sheet2!$T$3:$T$1000,N$2) -> 0 | O86: =SUMIFS(Sheet2!$G$3:$G$1000,Sheet2!$D$3:$D$1000,$C86,Sheet2!$T$3:$T$1000,O$2)+SUMIFS(Sheet2!$P$3:$P$1000,Sheet2!$D$3:$D$1000,$C86,Sheet2!$S$3:$S$1000,O$2)-SUMIFS(Sheet2!$J$3:$J$1000,Sheet2!$D$3:$D$1000,$C86,Sheet2!$T$3:$T$1000,O$2) -> 0 | P86: =SUMIFS(Sheet2!$G$3:$G$1000,Sheet2!$D$3:$D$1000,$C86,Sheet2!$T$3:$T$1000,P$2)+SUMIFS(Sheet2!$P$3:$P$1000,Sheet2!$D$3:$D$1000,$C86,Sheet2!$S$3:$S$1000,P$2)-SUMIFS(Sheet2!$J$3:$J$1000,Sheet2!$D$3:$D$1000,$C86,Sheet2!$T$3:$T$1000,P$2) -> 0 | Q86: =SUMIFS(Sheet2!$G$3:$G$1000,Sheet2!$D$3:$D$1000,$C86,Sheet2!$T$3:$T$1000,Q$2)+SUMIFS(Sheet2!$P$3:$P$1000,Sheet2!$D$3:$D$1000,$C86,Sheet2!$S$3:$S$1000,Q$2)-SUMIFS(Sheet2!$J$3:$J$1000,Sheet2!$D$3:$D$1000,$C86,Sheet2!$T$3:$T$1000,Q$2) -> 0 | R86: =SUMIFS(Sheet2!$G$3:$G$1000,Sheet2!$D$3:$D$1000,$C86,Sheet2!$T$3:$T$1000,R$2)+SUMIFS(Sheet2!$P$3:$P$1000,Sheet2!$D$3:$D$1000,$C86,Sheet2!$S$3:$S$1000,R$2)-SUMIFS(Sheet2!$J$3:$J$1000,Sheet2!$D$3:$D$1000,$C86,Sheet2!$T$3:$T$1000,R$2) -> 0 | AG86: 2018-03-25
K87: 0 | L87: =G87+SUMIFS(Sheet2!$G$3:$G$1000,Sheet2!$D$3:$D$1000,$C87,Sheet2!$T$3:$T$1000,$L86)+SUMIFS(Sheet2!$P$3:$P$1000,Sheet2!$D$3:$D$1000,$C87,Sheet2!$S$3:$S$1000,$L86)-SUMIFS(Sheet2!$J$3:$J$1000,Sheet2!$D$3:$D$1000,$C87,Sheet2!$T$3:$T$1000,$L86) -> 0 | M87: =SUMIFS(Sheet2!$G$3:$G$1000,Sheet2!$D$3:$D$1000,$C87,Sheet2!$T$3:$T$1000,M$2)+SUMIFS(Sheet2!$P$3:$P$1000,Sheet2!$D$3:$D$1000,$C87,Sheet2!$S$3:$S$1000,M$2)-SUMIFS(Sheet2!$J$3:$J$1000,Sheet2!$D$3:$D$1000,$C87,Sheet2!$T$3:$T$1000,M$2)-SUMIFS(Sheet2!$P$3:$P$1000,Sheet2!$D$3:$D$1000,$C87,Sheet2!$T$3:$T$1000,M$2) -> 0 | N87: =SUMIFS(Sheet2!$G$3:$G$1000,Sheet2!$D$3:$D$1000,$C87,Sheet2!$T$3:$T$1000,N$2)+SUMIFS(Sheet2!$P$3:$P$1000,Sheet2!$D$3:$D$1000,$C87,Sheet2!$S$3:$S$1000,N$2)-SUMIFS(Sheet2!$J$3:$J$1000,Sheet2!$D$3:$D$1000,$C87,Sheet2!$T$3:$T$1000,N$2) -> 0 | O87: =SUMIFS(Sheet2!$G$3:$G$1000,Sheet2!$D$3:$D$1000,$C87,Sheet2!$T$3:$T$1000,O$2)+SUMIFS(Sheet2!$P$3:$P$1000,Sheet2!$D$3:$D$1000,$C87,Sheet2!$S$3:$S$1000,O$2)-SUMIFS(Sheet2!$J$3:$J$1000,Sheet2!$D$3:$D$1000,$C87,Sheet2!$T$3:$T$1000,O$2) -> 0 | P87: =SUMIFS(Sheet2!$G$3:$G$1000,Sheet2!$D$3:$D$1000,$C87,Sheet2!$T$3:$T$1000,P$2)+SUMIFS(Sheet2!$P$3:$P$1000,Sheet2!$D$3:$D$1000,$C87,Sheet2!$S$3:$S$1000,P$2)-SUMIFS(Sheet2!$J$3:$J$1000,Sheet2!$D$3:$D$1000,$C87,Sheet2!$T$3:$T$1000,P$2) -> 0 | Q87: =SUMIFS(Sheet2!$G$3:$G$1000,Sheet2!$D$3:$D$1000,$C87,Sheet2!$T$3:$T$1000,Q$2)+SUMIFS(Sheet2!$P$3:$P$1000,Sheet2!$D$3:$D$1000,$C87,Sheet2!$S$3:$S$1000,Q$2)-SUMIFS(Sheet2!$J$3:$J$1000,Sheet2!$D$3:$D$1000,$C87,Sheet2!$T$3:$T$1000,Q$2) -> 0 | R87: =SUMIFS(Sheet2!$G$3:$G$1000,Sheet2!$D$3:$D$1000,$C87,Sheet2!$T$3:$T$1000,R$2)+SUMIFS(Sheet2!$P$3:$P$1000,Sheet2!$D$3:$D$1000,$C87,Sheet2!$S$3:$S$1000,R$2)-SUMIFS(Sheet2!$J$3:$J$1000,Sheet2!$D$3:$D$1000,$C87,Sheet2!$T$3:$T$1000,R$2) -> 0 | AG87: 2018-03-26
K88: 0 | L88: =G88+SUMIFS(Sheet2!$G$3:$G$1000,Sheet2!$D$3:$D$1000,$C88,Sheet2!$T$3:$T$1000,$L87)+SUMIFS(Sheet2!$P$3:$P$1000,Sheet2!$D$3:$D$1000,$C88,Sheet2!$S$3:$S$1000,$L87)-SUMIFS(Sheet2!$J$3:$J$1000,Sheet2!$D$3:$D$1000,$C88,Sheet2!$T$3:$T$1000,$L87) -> 0 | M88: =SUMIFS(Sheet2!$G$3:$G$1000,Sheet2!$D$3:$D$1000,$C88,Sheet2!$T$3:$T$1000,M$2)+SUMIFS(Sheet2!$P$3:$P$1000,Sheet2!$D$3:$D$1000,$C88,Sheet2!$S$3:$S$1000,M$2)-SUMIFS(Sheet2!$J$3:$J$1000,Sheet2!$D$3:$D$1000,$C88,Sheet2!$T$3:$T$1000,M$2)-SUMIFS(Sheet2!$P$3:$P$1000,Sheet2!$D$3:$D$1000,$C88,Sheet2!$T$3:$T$1000,M$2) -> 0 | N88: =SUMIFS(Sheet2!$G$3:$G$1000,Sheet2!$D$3:$D$1000,$C88,Sheet2!$T$3:$T$1000,N$2)+SUMIFS(Sheet2!$P$3:$P$1000,Sheet2!$D$3:$D$1000,$C88,Sheet2!$S$3:$S$1000,N$2)-SUMIFS(Sheet2!$J$3:$J$1000,Sheet2!$D$3:$D$1000,$C88,Sheet2!$T$3:$T$1000,N$2) -> 0 | O88: =SUMIFS(Sheet2!$G$3:$G$1000,Sheet2!$D$3:$D$1000,$C88,Sheet2!$T$3:$T$1000,O$2)+SUMIFS(Sheet2!$P$3:$P$1000,Sheet2!$D$3:$D$1000,$C88,Sheet2!$S$3:$S$1000,O$2)-SUMIFS(Sheet2!$J$3:$J$1000,Sheet2!$D$3:$D$1000,$C88,Sheet2!$T$3:$T$1000,O$2) -> 0 | P88: =SUMIFS(Sheet2!$G$3:$G$1000,Sheet2!$D$3:$D$1000,$C88,Sheet2!$T$3:$T$1000,P$2)+SUMIFS(Sheet2!$P$3:$P$1000,Sheet2!$D$3:$D$1000,$C88,Sheet2!$S$3:$S$1000,P$2)-SUMIFS(Sheet2!$J$3:$J$1000,Sheet2!$D$3:$D$1000,$C88,Sheet2!$T$3:$T$1000,P$2) -> 0 | Q88: =SUMIFS(Sheet2!$G$3:$G$1000,Sheet2!$D$3:$D$1000,$C88,Sheet2!$T$3:$T$1000,Q$2)+SUMIFS(Sheet2!$P$3:$P$1000,Sheet2!$D$3:$D$1000,$C88,Sheet2!$S$3:$S$1000,Q$2)-SUMIFS(Sheet2!$J$3:$J$1000,Sheet2!$D$3:$D$1000,$C88,Sheet2!$T$3:$T$1000,Q$2) -> 0 | R88: =SUMIFS(Sheet2!$G$3:$G$1000,Sheet2!$D$3:$D$1000,$C88,Sheet2!$T$3:$T$1000,R$2)+SUMIFS(Sheet2!$P$3:$P$1000,Sheet2!$D$3:$D$1000,$C88,Sheet2!$S$3:$S$1000,R$2)-SUMIFS(Sheet2!$J$3:$J$1000,Sheet2!$D$3:$D$1000,$C88,Sheet2!$T$3:$T$1000,R$2) -> 0 | AG88: 2018-03-27
K89: 0 | L89: =G89+SUMIFS(Sheet2!$G$3:$G$1000,Sheet2!$D$3:$D$1000,$C89,Sheet2!$T$3:$T$1000,$L88)+SUMIFS(Sheet2!$P$3:$P$1000,Sheet2!$D$3:$D$1000,$C89,Sheet2!$S$3:$S$1000,$L88)-SUMIFS(Sheet2!$J$3:$J$1000,Sheet2!$D$3:$D$1000,$C89,Sheet2!$T$3:$T$1000,$L88) -> 0 | M89: =SUMIFS(Sheet2!$G$3:$G$1000,Sheet2!$D$3:$D$1000,$C89,Sheet2!$T$3:$T$1000,M$2)+SUMIFS(Sheet2!$P$3:$P$1000,Sheet2!$D$3:$D$1000,$C89,Sheet2!$S$3:$S$1000,M$2)-SUMIFS(Sheet2!$J$3:$J$1000,Sheet2!$D$3:$D$1000,$C89,Sheet2!$T$3:$T$1000,M$2)-SUMIFS(Sheet2!$P$3:$P$1000,Sheet2!$D$3:$D$1000,$C89,Sheet2!$T$3:$T$1000,M$2) -> 0 | N89: =SUMIFS(Sheet2!$G$3:$G$1000,Sheet2!$D$3:$D$1000,$C89,Sheet2!$T$3:$T$1000,N$2)+SUMIFS(Sheet2!$P$3:$P$1000,Sheet2!$D$3:$D$1000,$C89,Sheet2!$S$3:$S$1000,N$2)-SUMIFS(Sheet2!$J$3:$J$1000,Sheet2!$D$3:$D$1000,$C89,Sheet2!$T$3:$T$1000,N$2) -> 0 | O89: =SUMIFS(Sheet2!$G$3:$G$1000,Sheet2!$D$3:$D$1000,$C89,Sheet2!$T$3:$T$1000,O$2)+SUMIFS(Sheet2!$P$3:$P$1000,Sheet2!$D$3:$D$1000,$C89,Sheet2!$S$3:$S$1000,O$2)-SUMIFS(Sheet2!$J$3:$J$1000,Sheet2!$D$3:$D$1000,$C89,Sheet2!$T$3:$T$1000,O$2) -> 0 | P89: =SUMIFS(Sheet2!$G$3:$G$1000,Sheet2!$D$3:$D$1000,$C89,Sheet2!$T$3:$T$1000,P$2)+SUMIFS(Sheet2!$P$3:$P$1000,Sheet2!$D$3:$D$1000,$C89,Sheet2!$S$3:$S$1000,P$2)-SUMIFS(Sheet2!$J$3:$J$1000,Sheet2!$D$3:$D$1000,$C89,Sheet2!$T$3:$T$1000,P$2) -> 0 | Q89: =SUMIFS(Sheet2!$G$3:$G$1000,Sheet2!$D$3:$D$1000,$C89,Sheet2!$T$3:$T$1000,Q$2)+SUMIFS(Sheet2!$P$3:$P$1000,Sheet2!$D$3:$D$1000,$C89,Sheet2!$S$3:$S$1000,Q$2)-SUMIFS(Sheet2!$J$3:$J$1000,Sheet2!$D$3:$D$1000,$C89,Sheet2!$T$3:$T$1000,Q$2) -> 0 | R89: =SUMIFS(Sheet2!$G$3:$G$1000,Sheet2!$D$3:$D$1000,$C89,Sheet2!$T$3:$T$1000,R$2)+SUMIFS(Sheet2!$P$3:$P$1000,Sheet2!$D$3:$D$1000,$C89,Sheet2!$S$3:$S$1000,R$2)-SUMIFS(Sheet2!$J$3:$J$1000,Sheet2!$D$3:$D$1000,$C89,Sheet2!$T$3:$T$1000,R$2) -> 0 | AG89: 2018-03-28
K90: 0 | L90: =G90+SUMIFS(Sheet2!$G$3:$G$1000,Sheet2!$D$3:$D$1000,$C90,Sheet2!$T$3:$T$1000,$L89)+SUMIFS(Sheet2!$P$3:$P$1000,Sheet2!$D$3:$D$1000,$C90,Sheet2!$S$3:$S$1000,$L89)-SUMIFS(Sheet2!$J$3:$J$1000,Sheet2!$D$3:$D$1000,$C90,Sheet2!$T$3:$T$1000,$L89) -> 0 | M90: =SUMIFS(Sheet2!$G$3:$G$1000,Sheet2!$D$3:$D$1000,$C90,Sheet2!$T$3:$T$1000,M$2)+SUMIFS(Sheet2!$P$3:$P$1000,Sheet2!$D$3:$D$1000,$C90,Sheet2!$S$3:$S$1000,M$2)-SUMIFS(Sheet2!$J$3:$J$1000,Sheet2!$D$3:$D$1000,$C90,Sheet2!$T$3:$T$1000,M$2)-SUMIFS(Sheet2!$P$3:$P$1000,Sheet2!$D$3:$D$1000,$C90,Sheet2!$T$3:$T$1000,M$2) -> 0 | N90: =SUMIFS(Sheet2!$G$3:$G$1000,Sheet2!$D$3:$D$1000,$C90,Sheet2!$T$3:$T$1000,N$2)+SUMIFS(Sheet2!$P$3:$P$1000,Sheet2!$D$3:$D$1000,$C90,Sheet2!$S$3:$S$1000,N$2)-SUMIFS(Sheet2!$J$3:$J$1000,Sheet2!$D$3:$D$1000,$C90,Sheet2!$T$3:$T$1000,N$2) -> 0 | O90: =SUMIFS(Sheet2!$G$3:$G$1000,Sheet2!$D$3:$D$1000,$C90,Sheet2!$T$3:$T$1000,O$2)+SUMIFS(Sheet2!$P$3:$P$1000,Sheet2!$D$3:$D$1000,$C90,Sheet2!$S$3:$S$1000,O$2)-SUMIFS(Sheet2!$J$3:$J$1000,Sheet2!$D$3:$D$1000,$C90,Sheet2!$T$3:$T$1000,O$2) -> 0 | P90: =SUMIFS(Sheet2!$G$3:$G$1000,Sheet2!$D$3:$D$1000,$C90,Sheet2!$T$3:$T$1000,P$2)+SUMIFS(Sheet2!$P$3:$P$1000,Sheet2!$D$3:$D$1000,$C90,Sheet2!$S$3:$S$1000,P$2)-SUMIFS(Sheet2!$J$3:$J$1000,Sheet2!$D$3:$D$1000,$C90,Sheet2!$T$3:$T$1000,P$2) -> 0 | Q90: =SUMIFS(Sheet2!$G$3:$G$1000,Sheet2!$D$3:$D$1000,$C90,Sheet2!$T$3:$T$1000,Q$2)+SUMIFS(Sheet2!$P$3:$P$1000,Sheet2!$D$3:$D$1000,$C90,Sheet2!$S$3:$S$1000,Q$2)-SUMIFS(Sheet2!$J$3:$J$1000,Sheet2!$D$3:$D$1000,$C90,Sheet2!$T$3:$T$1000,Q$2) -> 0 | R90: =SUMIFS(Sheet2!$G$3:$G$1000,Sheet2!$D$3:$D$1000,$C90,Sheet2!$T$3:$T$1000,R$2)+SUMIFS(Sheet2!$P$3:$P$1000,Sheet2!$D$3:$D$1000,$C90,Sheet2!$S$3:$S$1000,R$2)-SUMIFS(Sheet2!$J$3:$J$1000,Sheet2!$D$3:$D$1000,$C90,Sheet2!$T$3:$T$1000,R$2) -> 0 | AG90: 2018-03-29
K91: 0 | L91: =G91+SUMIFS(Sheet2!$G$3:$G$1000,Sheet2!$D$3:$D$1000,$C91,Sheet2!$T$3:$T$1000,$L90)+SUMIFS(Sheet2!$P$3:$P$1000,Sheet2!$D$3:$D$1000,$C91,Sheet2!$S$3:$S$1000,$L90)-SUMIFS(Sheet2!$J$3:$J$1000,Sheet2!$D$3:$D$1000,$C91,Sheet2!$T$3:$T$1000,$L90) -> 0 | M91: =SUMIFS(Sheet2!$G$3:$G$1000,Sheet2!$D$3:$D$1000,$C91,Sheet2!$T$3:$T$1000,M$2)+SUMIFS(Sheet2!$P$3:$P$1000,Sheet2!$D$3:$D$1000,$C91,Sheet2!$S$3:$S$1000,M$2)-SUMIFS(Sheet2!$J$3:$J$1000,Sheet2!$D$3:$D$1000,$C91,Sheet2!$T$3:$T$1000,M$2)-SUMIFS(Sheet2!$P$3:$P$1000,Sheet2!$D$3:$D$1000,$C91,Sheet2!$T$3:$T$1000,M$2) -> 0 | N91: =SUMIFS(Sheet2!$G$3:$G$1000,Sheet2!$D$3:$D$1000,$C91,Sheet2!$T$3:$T$1000,N$2)+SUMIFS(Sheet2!$P$3:$P$1000,Sheet2!$D$3:$D$1000,$C91,Sheet2!$S$3:$S$1000,N$2)-SUMIFS(Sheet2!$J$3:$J$1000,Sheet2!$D$3:$D$1000,$C91,Sheet2!$T$3:$T$1000,N$2) -> 0 | O91: =SUMIFS(Sheet2!$G$3:$G$1000,Sheet2!$D$3:$D$1000,$C91,Sheet2!$T$3:$T$1000,O$2)+SUMIFS(Sheet2!$P$3:$P$1000,Sheet2!$D$3:$D$1000,$C91,Sheet2!$S$3:$S$1000,O$2)-SUMIFS(Sheet2!$J$3:$J$1000,Sheet2!$D$3:$D$1000,$C91,Sheet2!$T$3:$T$1000,O$2) -> 0 | P91: =SUMIFS(Sheet2!$G$3:$G$1000,Sheet2!$D$3:$D$1000,$C91,Sheet2!$T$3:$T$1000,P$2)+SUMIFS(Sheet2!$P$3:$P$1000,Sheet2!$D$3:$D$1000,$C91,Sheet2!$S$3:$S$1000,P$2)-SUMIFS(Sheet2!$J$3:$J$1000,Sheet2!$D$3:$D$1000,$C91,Sheet2!$T$3:$T$1000,P$2) -> 0 | Q91: =SUMIFS(Sheet2!$G$3:$G$1000,Sheet2!$D$3:$D$1000,$C91,Sheet2!$T$3:$T$1000,Q$2)+SUMIFS(Sheet2!$P$3:$P$1000,Sheet2!$D$3:$D$1000,$C91,Sheet2!$S$3:$S$1000,Q$2)-SUMIFS(Sheet2!$J$3:$J$1000,Sheet2!$D$3:$D$1000,$C91,Sheet2!$T$3:$T$1000,Q$2) -> 0 | R91: =SUMIFS(Sheet2!$G$3:$G$1000,Sheet2!$D$3:$D$1000,$C91,Sheet2!$T$3:$T$1000,R$2)+SUMIFS(Sheet2!$P$3:$P$1000,Sheet2!$D$3:$D$1000,$C91,Sheet2!$S$3:$S$1000,R$2)-SUMIFS(Sheet2!$J$3:$J$1000,Sheet2!$D$3:$D$1000,$C91,Sheet2!$T$3:$T$1000,R$2) -> 0 | AG91: 2018-03-30
K92: 0 | L92: =G92+SUMIFS(Sheet2!$G$3:$G$1000,Sheet2!$D$3:$D$1000,$C92,Sheet2!$T$3:$T$1000,$L91)+SUMIFS(Sheet2!$P$3:$P$1000,Sheet2!$D$3:$D$1000,$C92,Sheet2!$S$3:$S$1000,$L91)-SUMIFS(Sheet2!$J$3:$J$1000,Sheet2!$D$3:$D$1000,$C92,Sheet2!$T$3:$T$1000,$L91) -> 0 | M92: =SUMIFS(Sheet2!$G$3:$G$1000,Sheet2!$D$3:$D$1000,$C92,Sheet2!$T$3:$T$1000,M$2)+SUMIFS(Sheet2!$P$3:$P$1000,Sheet2!$D$3:$D$1000,$C92,Sheet2!$S$3:$S$1000,M$2)-SUMIFS(Sheet2!$J$3:$J$1000,Sheet2!$D$3:$D$1000,$C92,Sheet2!$T$3:$T$1000,M$2)-SUMIFS(Sheet2!$P$3:$P$1000,Sheet2!$D$3:$D$1000,$C92,Sheet2!$T$3:$T$1000,M$2) -> 0 | N92: =SUMIFS(Sheet2!$G$3:$G$1000,Sheet2!$D$3:$D$1000,$C92,Sheet2!$T$3:$T$1000,N$2)+SUMIFS(Sheet2!$P$3:$P$1000,Sheet2!$D$3:$D$1000,$C92,Sheet2!$S$3:$S$1000,N$2)-SUMIFS(Sheet2!$J$3:$J$1000,Sheet2!$D$3:$D$1000,$C92,Sheet2!$T$3:$T$1000,N$2) -> 0 | O92: =SUMIFS(Sheet2!$G$3:$G$1000,Sheet2!$D$3:$D$1000,$C92,Sheet2!$T$3:$T$1000,O$2)+SUMIFS(Sheet2!$P$3:$P$1000,Sheet2!$D$3:$D$1000,$C92,Sheet2!$S$3:$S$1000,O$2)-SUMIFS(Sheet2!$J$3:$J$1000,Sheet2!$D$3:$D$1000,$C92,Sheet2!$T$3:$T$1000,O$2) -> 0 | P92: =SUMIFS(Sheet2!$G$3:$G$1000,Sheet2!$D$3:$D$1000,$C92,Sheet2!$T$3:$T$1000,P$2)+SUMIFS(Sheet2!$P$3:$P$1000,Sheet2!$D$3:$D$1000,$C92,Sheet2!$S$3:$S$1000,P$2)-SUMIFS(Sheet2!$J$3:$J$1000,Sheet2!$D$3:$D$1000,$C92,Sheet2!$T$3:$T$1000,P$2) -> 0 | Q92: =SUMIFS(Sheet2!$G$3:$G$1000,Sheet2!$D$3:$D$1000,$C92,Sheet2!$T$3:$T$1000,Q$2)+SUMIFS(Sheet2!$P$3:$P$1000,Sheet2!$D$3:$D$1000,$C92,Sheet2!$S$3:$S$1000,Q$2)-SUMIFS(Sheet2!$J$3:$J$1000,Sheet2!$D$3:$D$1000,$C92,Sheet2!$T$3:$T$1000,Q$2) -> 0 | R92: =SUMIFS(Sheet2!$G$3:$G$1000,Sheet2!$D$3:$D$1000,$C92,Sheet2!$T$3:$T$1000,R$2)+SUMIFS(Sheet2!$P$3:$P$1000,Sheet2!$D$3:$D$1000,$C92,Sheet2!$S$3:$S$1000,R$2)-SUMIFS(Sheet2!$J$3:$J$1000,Sheet2!$D$3:$D$1000,$C92,Sheet2!$T$3:$T$1000,R$2) -> 0 | AG92: 2018-03-31
K93: 0 | L93: =G93+SUMIFS(Sheet2!$G$3:$G$1000,Sheet2!$D$3:$D$1000,$C93,Sheet2!$T$3:$T$1000,$L92)+SUMIFS(Sheet2!$P$3:$P$1000,Sheet2!$D$3:$D$1000,$C93,Sheet2!$S$3:$S$1000,$L92)-SUMIFS(Sheet2!$J$3:$J$1000,Sheet2!$D$3:$D$1000,$C93,Sheet2!$T$3:$T$1000,$L92) -> 0 | M93: =SUMIFS(Sheet2!$G$3:$G$1000,Sheet2!$D$3:$D$1000,$C93,Sheet2!$T$3:$T$1000,M$2)+SUMIFS(Sheet2!$P$3:$P$1000,Sheet2!$D$3:$D$1000,$C93,Sheet2!$S$3:$S$1000,M$2)-SUMIFS(Sheet2!$J$3:$J$1000,Sheet2!$D$3:$D$1000,$C93,Sheet2!$T$3:$T$1000,M$2)-SUMIFS(Sheet2!$P$3:$P$1000,Sheet2!$D$3:$D$1000,$C93,Sheet2!$T$3:$T$1000,M$2) -> 0 | N93: =SUMIFS(Sheet2!$G$3:$G$1000,Sheet2!$D$3:$D$1000,$C93,Sheet2!$T$3:$T$1000,N$2)+SUMIFS(Sheet2!$P$3:$P$1000,Sheet2!$D$3:$D$1000,$C93,Sheet2!$S$3:$S$1000,N$2)-SUMIFS(Sheet2!$J$3:$J$1000,Sheet2!$D$3:$D$1000,$C93,Sheet2!$T$3:$T$1000,N$2) -> 0 | O93: =SUMIFS(Sheet2!$G$3:$G$1000,Sheet2!$D$3:$D$1000,$C93,Sheet2!$T$3:$T$1000,O$2)+SUMIFS(Sheet2!$P$3:$P$1000,Sheet2!$D$3:$D$1000,$C93,Sheet2!$S$3:$S$1000,O$2)-SUMIFS(Sheet2!$J$3:$J$1000,Sheet2!$D$3:$D$1000,$C93,Sheet2!$T$3:$T$1000,O$2) -> 0 | P93: =SUMIFS(Sheet2!$G$3:$G$1000,Sheet2!$D$3:$D$1000,$C93,Sheet2!$T$3:$T$1000,P$2)+SUMIFS(Sheet2!$P$3:$P$1000,Sheet2!$D$3:$D$1000,$C93,Sheet2!$S$3:$S$1000,P$2)-SUMIFS(Sheet2!$J$3:$J$1000,Sheet2!$D$3:$D$1000,$C93,Sheet2!$T$3:$T$1000,P$2) -> 0 | Q93: =SUMIFS(Sheet2!$G$3:$G$1000,Sheet2!$D$3:$D$1000,$C93,Sheet2!$T$3:$T$1000,Q$2)+SUMIFS(Sheet2!$P$3:$P$1000,Sheet2!$D$3:$D$1000,$C93,Sheet2!$S$3:$S$1000,Q$2)-SUMIFS(Sheet2!$J$3:$J$1000,Sheet2!$D$3:$D$1000,$C93,Sheet2!$T$3:$T$1000,Q$2) -> 0 | R93: =SUMIFS(Sheet2!$G$3:$G$1000,Sheet2!$D$3:$D$1000,$C93,Sheet2!$T$3:$T$1000,R$2)+SUMIFS(Sheet2!$P$3:$P$1000,Sheet2!$D$3:$D$1000,$C93,Sheet2!$S$3:$S$1000,R$2)-SUMIFS(Sheet2!$J$3:$J$1000,Sheet2!$D$3:$D$1000,$C93,Sheet2!$T$3:$T$1000,R$2) -> 0 | AG93: 2018-04-01
K94: 0 | L94: =G94+SUMIFS(Sheet2!$G$3:$G$1000,Sheet2!$D$3:$D$1000,$C94,Sheet2!$T$3:$T$1000,$L93)+SUMIFS(Sheet2!$P$3:$P$1000,Sheet2!$D$3:$D$1000,$C94,Sheet2!$S$3:$S$1000,$L93)-SUMIFS(Sheet2!$J$3:$J$1000,Sheet2!$D$3:$D$1000,$C94,Sheet2!$T$3:$T$1000,$L93) -> 0 | M94: =SUMIFS(Sheet2!$G$3:$G$1000,Sheet2!$D$3:$D$1000,$C94,Sheet2!$T$3:$T$1000,M$2)+SUMIFS(Sheet2!$P$3:$P$1000,Sheet2!$D$3:$D$1000,$C94,Sheet2!$S$3:$S$1000,M$2)-SUMIFS(Sheet2!$J$3:$J$1000,Sheet2!$D$3:$D$1000,$C94,Sheet2!$T$3:$T$1000,M$2)-SUMIFS(Sheet2!$P$3:$P$1000,Sheet2!$D$3:$D$1000,$C94,Sheet2!$T$3:$T$1000,M$2) -> 0 | N94: =SUMIFS(Sheet2!$G$3:$G$1000,Sheet2!$D$3:$D$1000,$C94,Sheet2!$T$3:$T$1000,N$2)+SUMIFS(Sheet2!$P$3:$P$1000,Sheet2!$D$3:$D$1000,$C94,Sheet2!$S$3:$S$1000,N$2)-SUMIFS(Sheet2!$J$3:$J$1000,Sheet2!$D$3:$D$1000,$C94,Sheet2!$T$3:$T$1000,N$2) -> 0 | O94: =SUMIFS(Sheet2!$G$3:$G$1000,Sheet2!$D$3:$D$1000,$C94,Sheet2!$T$3:$T$1000,O$2)+SUMIFS(Sheet2!$P$3:$P$1000,Sheet2!$D$3:$D$1000,$C94,Sheet2!$S$3:$S$1000,O$2)-SUMIFS(Sheet2!$J$3:$J$1000,Sheet2!$D$3:$D$1000,$C94,Sheet2!$T$3:$T$1000,O$2) -> 0 | P94: =SUMIFS(Sheet2!$G$3:$G$1000,Sheet2!$D$3:$D$1000,$C94,Sheet2!$T$3:$T$1000,P$2)+SUMIFS(Sheet2!$P$3:$P$1000,Sheet2!$D$3:$D$1000,$C94,Sheet2!$S$3:$S$1000,P$2)-SUMIFS(Sheet2!$J$3:$J$1000,Sheet2!$D$3:$D$1000,$C94,Sheet2!$T$3:$T$1000,P$2) -> 0 | Q94: =SUMIFS(Sheet2!$G$3:$G$1000,Sheet2!$D$3:$D$1000,$C94,Sheet2!$T$3:$T$1000,Q$2)+SUMIFS(Sheet2!$P$3:$P$1000,Sheet2!$D$3:$D$1000,$C94,Sheet2!$S$3:$S$1000,Q$2)-SUMIFS(Sheet2!$J$3:$J$1000,Sheet2!$D$3:$D$1000,$C94,Sheet2!$T$3:$T$1000,Q$2) -> 0 | R94: =SUMIFS(Sheet2!$G$3:$G$1000,Sheet2!$D$3:$D$1000,$C94,Sheet2!$T$3:$T$1000,R$2)+SUMIFS(Sheet2!$P$3:$P$1000,Sheet2!$D$3:$D$1000,$C94,Sheet2!$S$3:$S$1000,R$2)-SUMIFS(Sheet2!$J$3:$J$1000,Sheet2!$D$3:$D$1000,$C94,Sheet2!$T$3:$T$1000,R$2) -> 0 | AG94: 2018-04-02
K95: 0 | L95: =G95+SUMIFS(Sheet2!$G$3:$G$1000,Sheet2!$D$3:$D$1000,$C95,Sheet2!$T$3:$T$1000,$L94)+SUMIFS(Sheet2!$P$3:$P$1000,Sheet2!$D$3:$D$1000,$C95,Sheet2!$S$3:$S$1000,$L94)-SUMIFS(Sheet2!$J$3:$J$1000,Sheet2!$D$3:$D$1000,$C95,Sheet2!$T$3:$T$1000,$L94) -> 0 | M95: =SUMIFS(Sheet2!$G$3:$G$1000,Sheet2!$D$3:$D$1000,$C95,Sheet2!$T$3:$T$1000,M$2)+SUMIFS(Sheet2!$P$3:$P$1000,Sheet2!$D$3:$D$1000,$C95,Sheet2!$S$3:$S$1000,M$2)-SUMIFS(Sheet2!$J$3:$J$1000,Sheet2!$D$3:$D$1000,$C95,Sheet2!$T$3:$T$1000,M$2)-SUMIFS(Sheet2!$P$3:$P$1000,Sheet2!$D$3:$D$1000,$C95,Sheet2!$T$3:$T$1000,M$2) -> 0 | N95: =SUMIFS(Sheet2!$G$3:$G$1000,Sheet2!$D$3:$D$1000,$C95,Sheet2!$T$3:$T$1000,N$2)+SUMIFS(Sheet2!$P$3:$P$1000,Sheet2!$D$3:$D$1000,$C95,Sheet2!$S$3:$S$1000,N$2)-SUMIFS(Sheet2!$J$3:$J$1000,Sheet2!$D$3:$D$1000,$C95,Sheet2!$T$3:$T$1000,N$2) -> 0 | O95: =SUMIFS(Sheet2!$G$3:$G$1000,Sheet2!$D$3:$D$1000,$C95,Sheet2!$T$3:$T$1000,O$2)+SUMIFS(Sheet2!$P$3:$P$1000,Sheet2!$D$3:$D$1000,$C95,Sheet2!$S$3:$S$1000,O$2)-SUMIFS(Sheet2!$J$3:$J$1000,Sheet2!$D$3:$D$1000,$C95,Sheet2!$T$3:$T$1000,O$2) -> 0 | P95: =SUMIFS(Sheet2!$G$3:$G$1000,Sheet2!$D$3:$D$1000,$C95,Sheet2!$T$3:$T$1000,P$2)+SUMIFS(Sheet2!$P$3:$P$1000,Sheet2!$D$3:$D$1000,$C95,Sheet2!$S$3:$S$1000,P$2)-SUMIFS(Sheet2!$J$3:$J$1000,Sheet2!$D$3:$D$1000,$C95,Sheet2!$T$3:$T$1000,P$2) -> 0 | Q95: =SUMIFS(Sheet2!$G$3:$G$1000,Sheet2!$D$3:$D$1000,$C95,Sheet2!$T$3:$T$1000,Q$2)+SUMIFS(Sheet2!$P$3:$P$1000,Sheet2!$D$3:$D$1000,$C95,Sheet2!$S$3:$S$1000,Q$2)-SUMIFS(Sheet2!$J$3:$J$1000,Sheet2!$D$3:$D$1000,$C95,Sheet2!$T$3:$T$1000,Q$2) -> 0 | R95: =SUMIFS(Sheet2!$G$3:$G$1000,Sheet2!$D$3:$D$1000,$C95,Sheet2!$T$3:$T$1000,R$2)+SUMIFS(Sheet2!$P$3:$P$1000,Sheet2!$D$3:$D$1000,$C95,Sheet2!$S$3:$S$1000,R$2)-SUMIFS(Sheet2!$J$3:$J$1000,Sheet2!$D$3:$D$1000,$C95,Sheet2!$T$3:$T$1000,R$2) -> 0 | AG95: 2018-04-03
K96: 0 | L96: =G96+SUMIFS(Sheet2!$G$3:$G$1000,Sheet2!$D$3:$D$1000,$C96,Sheet2!$T$3:$T$1000,$L95)+SUMIFS(Sheet2!$P$3:$P$1000,Sheet2!$D$3:$D$1000,$C96,Sheet2!$S$3:$S$1000,$L95)-SUMIFS(Sheet2!$J$3:$J$1000,Sheet2!$D$3:$D$1000,$C96,Sheet2!$T$3:$T$1000,$L95) -> 0 | M96: =SUMIFS(Sheet2!$G$3:$G$1000,Sheet2!$D$3:$D$1000,$C96,Sheet2!$T$3:$T$1000,M$2)+SUMIFS(Sheet2!$P$3:$P$1000,Sheet2!$D$3:$D$1000,$C96,Sheet2!$S$3:$S$1000,M$2)-SUMIFS(Sheet2!$J$3:$J$1000,Sheet2!$D$3:$D$1000,$C96,Sheet2!$T$3:$T$1000,M$2)-SUMIFS(Sheet2!$P$3:$P$1000,Sheet2!$D$3:$D$1000,$C96,Sheet2!$T$3:$T$1000,M$2) -> 0 | N96: =SUMIFS(Sheet2!$G$3:$G$1000,Sheet2!$D$3:$D$1000,$C96,Sheet2!$T$3:$T$1000,N$2)+SUMIFS(Sheet2!$P$3:$P$1000,Sheet2!$D$3:$D$1000,$C96,Sheet2!$S$3:$S$1000,N$2)-SUMIFS(Sheet2!$J$3:$J$1000,Sheet2!$D$3:$D$1000,$C96,Sheet2!$T$3:$T$1000,N$2) -> 0 | O96: =SUMIFS(Sheet2!$G$3:$G$1000,Sheet2!$D$3:$D$1000,$C96,Sheet2!$T$3:$T$1000,O$2)+SUMIFS(Sheet2!$P$3:$P$1000,Sheet2!$D$3:$D$1000,$C96,Sheet2!$S$3:$S$1000,O$2)-SUMIFS(Sheet2!$J$3:$J$1000,Sheet2!$D$3:$D$1000,$C96,Sheet2!$T$3:$T$1000,O$2) -> 0 | P96: =SUMIFS(Sheet2!$G$3:$G$1000,Sheet2!$D$3:$D$1000,$C96,Sheet2!$T$3:$T$1000,P$2)+SUMIFS(Sheet2!$P$3:$P$1000,Sheet2!$D$3:$D$1000,$C96,Sheet2!$S$3:$S$1000,P$2)-SUMIFS(Sheet2!$J$3:$J$1000,Sheet2!$D$3:$D$1000,$C96,Sheet2!$T$3:$T$1000,P$2) -> 0 | Q96: =SUMIFS(Sheet2!$G$3:$G$1000,Sheet2!$D$3:$D$1000,$C96,Sheet2!$T$3:$T$1000,Q$2)+SUMIFS(Sheet2!$P$3:$P$1000,Sheet2!$D$3:$D$1000,$C96,Sheet2!$S$3:$S$1000,Q$2)-SUMIFS(Sheet2!$J$3:$J$1000,Sheet2!$D$3:$D$1000,$C96,Sheet2!$T$3:$T$1000,Q$2) -> 0 | R96: =SUMIFS(Sheet2!$G$3:$G$1000,Sheet2!$D$3:$D$1000,$C96,Sheet2!$T$3:$T$1000,R$2)+SUMIFS(Sheet2!$P$3:$P$1000,Sheet2!$D$3:$D$1000,$C96,Sheet2!$S$3:$S$1000,R$2)-SUMIFS(Sheet2!$J$3:$J$1000,Sheet2!$D$3:$D$1000,$C96,Sheet2!$T$3:$T$1000,R$2) -> 0 | AG96: 2018-04-04
K97: 0 | L97: =G97+SUMIFS(Sheet2!$G$3:$G$1000,Sheet2!$D$3:$D$1000,$C97,Sheet2!$T$3:$T$1000,$L96)+SUMIFS(Sheet2!$P$3:$P$1000,Sheet2!$D$3:$D$1000,$C97,Sheet2!$S$3:$S$1000,$L96)-SUMIFS(Sheet2!$J$3:$J$1000,Sheet2!$D$3:$D$1000,$C97,Sheet2!$T$3:$T$1000,$L96) -> 0 | M97: =SUMIFS(Sheet2!$G$3:$G$1000,Sheet2!$D$3:$D$1000,$C97,Sheet2!$T$3:$T$1000,M$2)+SUMIFS(Sheet2!$P$3:$P$1000,Sheet2!$D$3:$D$1000,$C97,Sheet2!$S$3:$S$1000,M$2)-SUMIFS(Sheet2!$J$3:$J$1000,Sheet2!$D$3:$D$1000,$C97,Sheet2!$T$3:$T$1000,M$2)-SUMIFS(Sheet2!$P$3:$P$1000,Sheet2!$D$3:$D$1000,$C97,Sheet2!$T$3:$T$1000,M$2) -> 0 | N97: =SUMIFS(Sheet2!$G$3:$G$1000,Sheet2!$D$3:$D$1000,$C97,Sheet2!$T$3:$T$1000,N$2)+SUMIFS(Sheet2!$P$3:$P$1000,Sheet2!$D$3:$D$1000,$C97,Sheet2!$S$3:$S$1000,N$2)-SUMIFS(Sheet2!$J$3:$J$1000,Sheet2!$D$3:$D$1000,$C97,Sheet2!$T$3:$T$1000,N$2) -> 0 | O97: =SUMIFS(Sheet2!$G$3:$G$1000,Sheet2!$D$3:$D$1000,$C97,Sheet2!$T$3:$T$1000,O$2)+SUMIFS(Sheet2!$P$3:$P$1000,Sheet2!$D$3:$D$1000,$C97,Sheet2!$S$3:$S$1000,O$2)-SUMIFS(Sheet2!$J$3:$J$1000,Sheet2!$D$3:$D$1000,$C97,Sheet2!$T$3:$T$1000,O$2) -> 0 | P97: =SUMIFS(Sheet2!$G$3:$G$1000,Sheet2!$D$3:$D$1000,$C97,Sheet2!$T$3:$T$1000,P$2)+SUMIFS(Sheet2!$P$3:$P$1000,Sheet2!$D$3:$D$1000,$C97,Sheet2!$S$3:$S$1000,P$2)-SUMIFS(Sheet2!$J$3:$J$1000,Sheet2!$D$3:$D$1000,$C97,Sheet2!$T$3:$T$1000,P$2) -> 0 | Q97: =SUMIFS(Sheet2!$G$3:$G$1000,Sheet2!$D$3:$D$1000,$C97,Sheet2!$T$3:$T$1000,Q$2)+SUMIFS(Sheet2!$P$3:$P$1000,Sheet2!$D$3:$D$1000,$C97,Sheet2!$S$3:$S$1000,Q$2)-SUMIFS(Sheet2!$J$3:$J$1000,Sheet2!$D$3:$D$1000,$C97,Sheet2!$T$3:$T$1000,Q$2) -> 0 | R97: =SUMIFS(Sheet2!$G$3:$G$1000,Sheet2!$D$3:$D$1000,$C97,Sheet2!$T$3:$T$1000,R$2)+SUMIFS(Sheet2!$P$3:$P$1000,Sheet2!$D$3:$D$1000,$C97,Sheet2!$S$3:$S$1000,R$2)-SUMIFS(Sheet2!$J$3:$J$1000,Sheet2!$D$3:$D$1000,$C97,Sheet2!$T$3:$T$1000,R$2) -> 0 | AG97: 2018-04-05
K98: 0 | L98: =G98+SUMIFS(Sheet2!$G$3:$G$1000,Sheet2!$D$3:$D$1000,$C98,Sheet2!$T$3:$T$1000,$L97)+SUMIFS(Sheet2!$P$3:$P$1000,Sheet2!$D$3:$D$1000,$C98,Sheet2!$S$3:$S$1000,$L97)-SUMIFS(Sheet2!$J$3:$J$1000,Sheet2!$D$3:$D$1000,$C98,Sheet2!$T$3:$T$1000,$L97) -> 0 | M98: =SUMIFS(Sheet2!$G$3:$G$1000,Sheet2!$D$3:$D$1000,$C98,Sheet2!$T$3:$T$1000,M$2)+SUMIFS(Sheet2!$P$3:$P$1000,Sheet2!$D$3:$D$1000,$C98,Sheet2!$S$3:$S$1000,M$2)-SUMIFS(Sheet2!$J$3:$J$1000,Sheet2!$D$3:$D$1000,$C98,Sheet2!$T$3:$T$1000,M$2)-SUMIFS(Sheet2!$P$3:$P$1000,Sheet2!$D$3:$D$1000,$C98,Sheet2!$T$3:$T$1000,M$2) -> 0 | N98: =SUMIFS(Sheet2!$G$3:$G$1000,Sheet2!$D$3:$D$1000,$C98,Sheet2!$T$3:$T$1000,N$2)+SUMIFS(Sheet2!$P$3:$P$1000,Sheet2!$D$3:$D$1000,$C98,Sheet2!$S$3:$S$1000,N$2)-SUMIFS(Sheet2!$J$3:$J$1000,Sheet2!$D$3:$D$1000,$C98,Sheet2!$T$3:$T$1000,N$2) -> 0 | O98: =SUMIFS(Sheet2!$G$3:$G$1000,Sheet2!$D$3:$D$1000,$C98,Sheet2!$T$3:$T$1000,O$2)+SUMIFS(Sheet2!$P$3:$P$1000,Sheet2!$D$3:$D$1000,$C98,Sheet2!$S$3:$S$1000,O$2)-SUMIFS(Sheet2!$J$3:$J$1000,Sheet2!$D$3:$D$1000,$C98,Sheet2!$T$3:$T$1000,O$2) -> 0 | P98: =SUMIFS(Sheet2!$G$3:$G$1000,Sheet2!$D$3:$D$1000,$C98,Sheet2!$T$3:$T$1000,P$2)+SUMIFS(Sheet2!$P$3:$P$1000,Sheet2!$D$3:$D$1000,$C98,Sheet2!$S$3:$S$1000,P$2)-SUMIFS(Sheet2!$J$3:$J$1000,Sheet2!$D$3:$D$1000,$C98,Sheet2!$T$3:$T$1000,P$2) -> 0 | Q98: =SUMIFS(Sheet2!$G$3:$G$1000,Sheet2!$D$3:$D$1000,$C98,Sheet2!$T$3:$T$1000,Q$2)+SUMIFS(Sheet2!$P$3:$P$1000,Sheet2!$D$3:$D$1000,$C98,Sheet2!$S$3:$S$1000,Q$2)-SUMIFS(Sheet2!$J$3:$J$1000,Sheet2!$D$3:$D$1000,$C98,Sheet2!$T$3:$T$1000,Q$2) -> 0 | R98: =SUMIFS(Sheet2!$G$3:$G$1000,Sheet2!$D$3:$D$1000,$C98,Sheet2!$T$3:$T$1000,R$2)+SUMIFS(Sheet2!$P$3:$P$1000,Sheet2!$D$3:$D$1000,$C98,Sheet2!$S$3:$S$1000,R$2)-SUMIFS(Sheet2!$J$3:$J$1000,Sheet2!$D$3:$D$1000,$C98,Sheet2!$T$3:$T$1000,R$2) -> 0 | AG98: 2018-04-06
K99: 0 | L99: =G99+SUMIFS(Sheet2!$G$3:$G$1000,Sheet2!$D$3:$D$1000,$C99,Sheet2!$T$3:$T$1000,$L98)+SUMIFS(Sheet2!$P$3:$P$1000,Sheet2!$D$3:$D$1000,$C99,Sheet2!$S$3:$S$1000,$L98)-SUMIFS(Sheet2!$J$3:$J$1000,Sheet2!$D$3:$D$1000,$C99,Sheet2!$T$3:$T$1000,$L98) -> 0 | M99: =SUMIFS(Sheet2!$G$3:$G$1000,Sheet2!$D$3:$D$1000,$C99,Sheet2!$T$3:$T$1000,M$2)+SUMIFS(Sheet2!$P$3:$P$1000,Sheet2!$D$3:$D$1000,$C99,Sheet2!$S$3:$S$1000,M$2)-SUMIFS(Sheet2!$J$3:$J$1000,Sheet2!$D$3:$D$1000,$C99,Sheet2!$T$3:$T$1000,M$2)-SUMIFS(Sheet2!$P$3:$P$1000,Sheet2!$D$3:$D$1000,$C99,Sheet2!$T$3:$T$1000,M$2) -> 0 | N99: =SUMIFS(Sheet2!$G$3:$G$1000,Sheet2!$D$3:$D$1000,$C99,Sheet2!$T$3:$T$1000,N$2)+SUMIFS(Sheet2!$P$3:$P$1000,Sheet2!$D$3:$D$1000,$C99,Sheet2!$S$3:$S$1000,N$2)-SUMIFS(Sheet2!$J$3:$J$1000,Sheet2!$D$3:$D$1000,$C99,Sheet2!$T$3:$T$1000,N$2) -> 0 | O99: =SUMIFS(Sheet2!$G$3:$G$1000,Sheet2!$D$3:$D$1000,$C99,Sheet2!$T$3:$T$1000,O$2)+SUMIFS(Sheet2!$P$3:$P$1000,Sheet2!$D$3:$D$1000,$C99,Sheet2!$S$3:$S$1000,O$2)-SUMIFS(Sheet2!$J$3:$J$1000,Sheet2!$D$3:$D$1000,$C99,Sheet2!$T$3:$T$1000,O$2) -> 0 | P99: =SUMIFS(Sheet2!$G$3:$G$1000,Sheet2!$D$3:$D$1000,$C99,Sheet2!$T$3:$T$1000,P$2)+SUMIFS(Sheet2!$P$3:$P$1000,Sheet2!$D$3:$D$1000,$C99,Sheet2!$S$3:$S$1000,P$2)-SUMIFS(Sheet2!$J$3:$J$1000,Sheet2!$D$3:$D$1000,$C99,Sheet2!$T$3:$T$1000,P$2) -> 0 | Q99: =SUMIFS(Sheet2!$G$3:$G$1000,Sheet2!$D$3:$D$1000,$C99,Sheet2!$T$3:$T$1000,Q$2)+SUMIFS(Sheet2!$P$3:$P$1000,Sheet2!$D$3:$D$1000,$C99,Sheet2!$S$3:$S$1000,Q$2)-SUMIFS(Sheet2!$J$3:$J$1000,Sheet2!$D$3:$D$1000,$C99,Sheet2!$T$3:$T$1000,Q$2) -> 0 | R99: =SUMIFS(Sheet2!$G$3:$G$1000,Sheet2!$D$3:$D$1000,$C99,Sheet2!$T$3:$T$1000,R$2)+SUMIFS(Sheet2!$P$3:$P$1000,Sheet2!$D$3:$D$1000,$C99,Sheet2!$S$3:$S$1000,R$2)-SUMIFS(Sheet2!$J$3:$J$1000,Sheet2!$D$3:$D$1000,$C99,Sheet2!$T$3:$T$1000,R$2) -> 0 | AG99: 2018-04-07
K100: 0 | L100: =G100+SUMIFS(Sheet2!$G$3:$G$1000,Sheet2!$D$3:$D$1000,$C100,Sheet2!$T$3:$T$1000,$L99)+SUMIFS(Sheet2!$P$3:$P$1000,Sheet2!$D$3:$D$1000,$C100,Sheet2!$S$3:$S$1000,$L99)-SUMIFS(Sheet2!$J$3:$J$1000,Sheet2!$D$3:$D$1000,$C100,Sheet2!$T$3:$T$1000,$L99) -> 0 | M100: =SUMIFS(Sheet2!$G$3:$G$1000,Sheet2!$D$3:$D$1000,$C100,Sheet2!$T$3:$T$1000,M$2)+SUMIFS(Sheet2!$P$3:$P$1000,Sheet2!$D$3:$D$1000,$C100,Sheet2!$S$3:$S$1000,M$2)-SUMIFS(Sheet2!$J$3:$J$1000,Sheet2!$D$3:$D$1000,$C100,Sheet2!$T$3:$T$1000,M$2)-SUMIFS(Sheet2!$P$3:$P$1000,Sheet2!$D$3:$D$1000,$C100,Sheet2!$T$3:$T$1000,M$2) -> 0 | N100: =SUMIFS(Sheet2!$G$3:$G$1000,Sheet2!$D$3:$D$1000,$C100,Sheet2!$T$3:$T$1000,N$2)+SUMIFS(Sheet2!$P$3:$P$1000,Sheet2!$D$3:$D$1000,$C100,Sheet2!$S$3:$S$1000,N$2)-SUMIFS(Sheet2!$J$3:$J$1000,Sheet2!$D$3:$D$1000,$C100,Sheet2!$T$3:$T$1000,N$2) -> 0 | O100: =SUMIFS(Sheet2!$G$3:$G$1000,Sheet2!$D$3:$D$1000,$C100,Sheet2!$T$3:$T$1000,O$2)+SUMIFS(Sheet2!$P$3:$P$1000,Sheet2!$D$3:$D$1000,$C100,Sheet2!$S$3:$S$1000,O$2)-SUMIFS(Sheet2!$J$3:$J$1000,Sheet2!$D$3:$D$1000,$C100,Sheet2!$T$3:$T$1000,O$2) -> 0 | P100: =SUMIFS(Sheet2!$G$3:$G$1000,Sheet2!$D$3:$D$1000,$C100,Sheet2!$T$3:$T$1000,P$2)+SUMIFS(Sheet2!$P$3:$P$1000,Sheet2!$D$3:$D$1000,$C100,Sheet2!$S$3:$S$1000,P$2)-SUMIFS(Sheet2!$J$3:$J$1000,Sheet2!$D$3:$D$1000,$C100,Sheet2!$T$3:$T$1000,P$2) -> 0 | Q100: =SUMIFS(Sheet2!$G$3:$G$1000,Sheet2!$D$3:$D$1000,$C100,Sheet2!$T$3:$T$1000,Q$2)+SUMIFS(Sheet2!$P$3:$P$1000,Sheet2!$D$3:$D$1000,$C100,Sheet2!$S$3:$S$1000,Q$2)-SUMIFS(Sheet2!$J$3:$J$1000,Sheet2!$D$3:$D$1000,$C100,Sheet2!$T$3:$T$1000,Q$2) -> 0 | R100: =SUMIFS(Sheet2!$G$3:$G$1000,Sheet2!$D$3:$D$1000,$C100,Sheet2!$T$3:$T$1000,R$2)+SUMIFS(Sheet2!$P$3:$P$1000,Sheet2!$D$3:$D$1000,$C100,Sheet2!$S$3:$S$1000,R$2)-SUMIFS(Sheet2!$J$3:$J$1000,Sheet2!$D$3:$D$1000,$C100,Sheet2!$T$3:$T$1000,R$2) -> 0 | AG100: 2018-04-08
K101: 0 | L101: =G101+SUMIFS(Sheet2!$G$3:$G$1000,Sheet2!$D$3:$D$1000,$C101,Sheet2!$T$3:$T$1000,$L100)+SUMIFS(Sheet2!$P$3:$P$1000,Sheet2!$D$3:$D$1000,$C101,Sheet2!$S$3:$S$1000,$L100)-SUMIFS(Sheet2!$J$3:$J$1000,Sheet2!$D$3:$D$1000,$C101,Sheet2!$T$3:$T$1000,$L100) -> 0 | M101: =SUMIFS(Sheet2!$G$3:$G$1000,Sheet2!$D$3:$D$1000,$C101,Sheet2!$T$3:$T$1000,M$2)+SUMIFS(Sheet2!$P$3:$P$1000,Sheet2!$D$3:$D$1000,$C101,Sheet2!$S$3:$S$1000,M$2)-SUMIFS(Sheet2!$J$3:$J$1000,Sheet2!$D$3:$D$1000,$C101,Sheet2!$T$3:$T$1000,M$2)-SUMIFS(Sheet2!$P$3:$P$1000,Sheet2!$D$3:$D$1000,$C101,Sheet2!$T$3:$T$1000,M$2) -> 0 | N101: =SUMIFS(Sheet2!$G$3:$G$1000,Sheet2!$D$3:$D$1000,$C101,Sheet2!$T$3:$T$1000,N$2)+SUMIFS(Sheet2!$P$3:$P$1000,Sheet2!$D$3:$D$1000,$C101,Sheet2!$S$3:$S$1000,N$2)-SUMIFS(Sheet2!$J$3:$J$1000,Sheet2!$D$3:$D$1000,$C101,Sheet2!$T$3:$T$1000,N$2) -> 0 | O101: =SUMIFS(Sheet2!$G$3:$G$1000,Sheet2!$D$3:$D$1000,$C101,Sheet2!$T$3:$T$1000,O$2)+SUMIFS(Sheet2!$P$3:$P$1000,Sheet2!$D$3:$D$1000,$C101,Sheet2!$S$3:$S$1000,O$2)-SUMIFS(Sheet2!$J$3:$J$1000,Sheet2!$D$3:$D$1000,$C101,Sheet2!$T$3:$T$1000,O$2) -> 0 | P101: =SUMIFS(Sheet2!$G$3:$G$1000,Sheet2!$D$3:$D$1000,$C101,Sheet2!$T$3:$T$1000,P$2)+SUMIFS(Sheet2!$P$3:$P$1000,Sheet2!$D$3:$D$1000,$C101,Sheet2!$S$3:$S$1000,P$2)-SUMIFS(Sheet2!$J$3:$J$1000,Sheet2!$D$3:$D$1000,$C101,Sheet2!$T$3:$T$1000,P$2) -> 0 | Q101: =SUMIFS(Sheet2!$G$3:$G$1000,Sheet2!$D$3:$D$1000,$C101,Sheet2!$T$3:$T$1000,Q$2)+SUMIFS(Sheet2!$P$3:$P$1000,Sheet2!$D$3:$D$1000,$C101,Sheet2!$S$3:$S$1000,Q$2)-SUMIFS(Sheet2!$J$3:$J$1000,Sheet2!$D$3:$D$1000,$C101,Sheet2!$T$3:$T$1000,Q$2) -> 0 | R101: =SUMIFS(Sheet2!$G$3:$G$1000,Sheet2!$D$3:$D$1000,$C101,Sheet2!$T$3:$T$1000,R$2)+SUMIFS(Sheet2!$P$3:$P$1000,Sheet2!$D$3:$D$1000,$C101,Sheet2!$S$3:$S$1000,R$2)-SUMIFS(Sheet2!$J$3:$J$1000,Sheet2!$D$3:$D$1000,$C101,Sheet2!$T$3:$T$1000,R$2) -> 0 | AG101: 2018-04-09
K102: 0 | L102: =G102+SUMIFS(Sheet2!$G$3:$G$1000,Sheet2!$D$3:$D$1000,$C102,Sheet2!$T$3:$T$1000,$L101)+SUMIFS(Sheet2!$P$3:$P$1000,Sheet2!$D$3:$D$1000,$C102,Sheet2!$S$3:$S$1000,$L101)-SUMIFS(Sheet2!$J$3:$J$1000,Sheet2!$D$3:$D$1000,$C102,Sheet2!$T$3:$T$1000,$L101) -> 0 | M102: =SUMIFS(Sheet2!$G$3:$G$1000,Sheet2!$D$3:$D$1000,$C102,Sheet2!$T$3:$T$1000,M$2)+SUMIFS(Sheet2!$P$3:$P$1000,Sheet2!$D$3:$D$1000,$C102,Sheet2!$S$3:$S$1000,M$2)-SUMIFS(Sheet2!$J$3:$J$1000,Sheet2!$D$3:$D$1000,$C102,Sheet2!$T$3:$T$1000,M$2)-SUMIFS(Sheet2!$P$3:$P$1000,Sheet2!$D$3:$D$1000,$C102,Sheet2!$T$3:$T$1000,M$2) -> 0 | N102: =SUMIFS(Sheet2!$G$3:$G$1000,Sheet2!$D$3:$D$1000,$C102,Sheet2!$T$3:$T$1000,N$2)+SUMIFS(Sheet2!$P$3:$P$1000,Sheet2!$D$3:$D$1000,$C102,Sheet2!$S$3:$S$1000,N$2)-SUMIFS(Sheet2!$J$3:$J$1000,Sheet2!$D$3:$D$1000,$C102,Sheet2!$T$3:$T$1000,N$2) -> 0 | O102: =SUMIFS(Sheet2!$G$3:$G$1000,Sheet2!$D$3:$D$1000,$C102,Sheet2!$T$3:$T$1000,O$2)+SUMIFS(Sheet2!$P$3:$P$1000,Sheet2!$D$3:$D$1000,$C102,Sheet2!$S$3:$S$1000,O$2)-SUMIFS(Sheet2!$J$3:$J$1000,Sheet2!$D$3:$D$1000,$C102,Sheet2!$T$3:$T$1000,O$2) -> 0 | P102: =SUMIFS(Sheet2!$G$3:$G$1000,Sheet2!$D$3:$D$1000,$C102,Sheet2!$T$3:$T$1000,P$2)+SUMIFS(Sheet2!$P$3:$P$1000,Sheet2!$D$3:$D$1000,$C102,Sheet2!$S$3:$S$1000,P$2)-SUMIFS(Sheet2!$J$3:$J$1000,Sheet2!$D$3:$D$1000,$C102,Sheet2!$T$3:$T$1000,P$2) -> 0 | Q102: =SUMIFS(Sheet2!$G$3:$G$1000,Sheet2!$D$3:$D$1000,$C102,Sheet2!$T$3:$T$1000,Q$2)+SUMIFS(Sheet2!$P$3:$P$1000,Sheet2!$D$3:$D$1000,$C102,Sheet2!$S$3:$S$1000,Q$2)-SUMIFS(Sheet2!$J$3:$J$1000,Sheet2!$D$3:$D$1000,$C102,Sheet2!$T$3:$T$1000,Q$2) -> 0 | R102: =SUMIFS(Sheet2!$G$3:$G$1000,Sheet2!$D$3:$D$1000,$C102,Sheet2!$T$3:$T$1000,R$2)+SUMIFS(Sheet2!$P$3:$P$1000,Sheet2!$D$3:$D$1000,$C102,Sheet2!$S$3:$S$1000,R$2)-SUMIFS(Sheet2!$J$3:$J$1000,Sheet2!$D$3:$D$1000,$C102,Sheet2!$T$3:$T$1000,R$2) -> 0 | AG102: 2018-04-10
K103: 0 | L103: =G103+SUMIFS(Sheet2!$G$3:$G$1000,Sheet2!$D$3:$D$1000,$C103,Sheet2!$T$3:$T$1000,$L102)+SUMIFS(Sheet2!$P$3:$P$1000,Sheet2!$D$3:$D$1000,$C103,Sheet2!$S$3:$S$1000,$L102)-SUMIFS(Sheet2!$J$3:$J$1000,Sheet2!$D$3:$D$1000,$C103,Sheet2!$T$3:$T$1000,$L102) -> 0 | M103: =SUMIFS(Sheet2!$G$3:$G$1000,Sheet2!$D$3:$D$1000,$C103,Sheet2!$T$3:$T$1000,M$2)+SUMIFS(Sheet2!$P$3:$P$1000,Sheet2!$D$3:$D$1000,$C103,Sheet2!$S$3:$S$1000,M$2)-SUMIFS(Sheet2!$J$3:$J$1000,Sheet2!$D$3:$D$1000,$C103,Sheet2!$T$3:$T$1000,M$2)-SUMIFS(Sheet2!$P$3:$P$1000,Sheet2!$D$3:$D$1000,$C103,Sheet2!$T$3:$T$1000,M$2) -> 0 | N103: =SUMIFS(Sheet2!$G$3:$G$1000,Sheet2!$D$3:$D$1000,$C103,Sheet2!$T$3:$T$1000,N$2)+SUMIFS(Sheet2!$P$3:$P$1000,Sheet2!$D$3:$D$1000,$C103,Sheet2!$S$3:$S$1000,N$2)-SUMIFS(Sheet2!$J$3:$J$1000,Sheet2!$D$3:$D$1000,$C103,Sheet2!$T$3:$T$1000,N$2) -> 0 | O103: =SUMIFS(Sheet2!$G$3:$G$1000,Sheet2!$D$3:$D$1000,$C103,Sheet2!$T$3:$T$1000,O$2)+SUMIFS(Sheet2!$P$3:$P$1000,Sheet2!$D$3:$D$1000,$C103,Sheet2!$S$3:$S$1000,O$2)-SUMIFS(Sheet2!$J$3:$J$1000,Sheet2!$D$3:$D$1000,$C103,Sheet2!$T$3:$T$1000,O$2) -> 0 | P103: =SUMIFS(Sheet2!$G$3:$G$1000,Sheet2!$D$3:$D$1000,$C103,Sheet2!$T$3:$T$1000,P$2)+SUMIFS(Sheet2!$P$3:$P$1000,Sheet2!$D$3:$D$1000,$C103,Sheet2!$S$3:$S$1000,P$2)-SUMIFS(Sheet2!$J$3:$J$1000,Sheet2!$D$3:$D$1000,$C103,Sheet2!$T$3:$T$1000,P$2) -> 0 | Q103: =SUMIFS(Sheet2!$G$3:$G$1000,Sheet2!$D$3:$D$1000,$C103,Sheet2!$T$3:$T$1000,Q$2)+SUMIFS(Sheet2!$P$3:$P$1000,Sheet2!$D$3:$D$1000,$C103,Sheet2!$S$3:$S$1000,Q$2)-SUMIFS(Sheet2!$J$3:$J$1000,Sheet2!$D$3:$D$1000,$C103,Sheet2!$T$3:$T$1000,Q$2) -> 0 | R103: =SUMIFS(Sheet2!$G$3:$G$1000,Sheet2!$D$3:$D$1000,$C103,Sheet2!$T$3:$T$1000,R$2)+SUMIFS(Sheet2!$P$3:$P$1000,Sheet2!$D$3:$D$1000,$C103,Sheet2!$S$3:$S$1000,R$2)-SUMIFS(Sheet2!$J$3:$J$1000,Sheet2!$D$3:$D$1000,$C103,Sheet2!$T$3:$T$1000,R$2) -> 0 | AG103: 2018-04-11
K104: 0 | L104: =G104+SUMIFS(Sheet2!$G$3:$G$1000,Sheet2!$D$3:$D$1000,$C104,Sheet2!$T$3:$T$1000,$L103)+SUMIFS(Sheet2!$P$3:$P$1000,Sheet2!$D$3:$D$1000,$C104,Sheet2!$S$3:$S$1000,$L103)-SUMIFS(Sheet2!$J$3:$J$1000,Sheet2!$D$3:$D$1000,$C104,Sheet2!$T$3:$T$1000,$L103) -> 0 | M104: =SUMIFS(Sheet2!$G$3:$G$1000,Sheet2!$D$3:$D$1000,$C104,Sheet2!$T$3:$T$1000,M$2)+SUMIFS(Sheet2!$P$3:$P$1000,Sheet2!$D$3:$D$1000,$C104,Sheet2!$S$3:$S$1000,M$2)-SUMIFS(Sheet2!$J$3:$J$1000,Sheet2!$D$3:$D$1000,$C104,Sheet2!$T$3:$T$1000,M$2)-SUMIFS(Sheet2!$P$3:$P$1000,Sheet2!$D$3:$D$1000,$C104,Sheet2!$T$3:$T$1000,M$2) -> 0 | N104: =SUMIFS(Sheet2!$G$3:$G$1000,Sheet2!$D$3:$D$1000,$C104,Sheet2!$T$3:$T$1000,N$2)+SUMIFS(Sheet2!$P$3:$P$1000,Sheet2!$D$3:$D$1000,$C104,Sheet2!$S$3:$S$1000,N$2)-SUMIFS(Sheet2!$J$3:$J$1000,Sheet2!$D$3:$D$1000,$C104,Sheet2!$T$3:$T$1000,N$2) -> 0 | O104: =SUMIFS(Sheet2!$G$3:$G$1000,Sheet2!$D$3:$D$1000,$C104,Sheet2!$T$3:$T$1000,O$2)+SUMIFS(Sheet2!$P$3:$P$1000,Sheet2!$D$3:$D$1000,$C104,Sheet2!$S$3:$S$1000,O$2)-SUMIFS(Sheet2!$J$3:$J$1000,Sheet2!$D$3:$D$1000,$C104,Sheet2!$T$3:$T$1000,O$2) -> 0 | P104: =SUMIFS(Sheet2!$G$3:$G$1000,Sheet2!$D$3:$D$1000,$C104,Sheet2!$T$3:$T$1000,P$2)+SUMIFS(Sheet2!$P$3:$P$1000,Sheet2!$D$3:$D$1000,$C104,Sheet2!$S$3:$S$1000,P$2)-SUMIFS(Sheet2!$J$3:$J$1000,Sheet2!$D$3:$D$1000,$C104,Sheet2!$T$3:$T$1000,P$2) -> 0 | Q104: =SUMIFS(Sheet2!$G$3:$G$1000,Sheet2!$D$3:$D$1000,$C104,Sheet2!$T$3:$T$1000,Q$2)+SUMIFS(Sheet2!$P$3:$P$1000,Sheet2!$D$3:$D$1000,$C104,Sheet2!$S$3:$S$1000,Q$2)-SUMIFS(Sheet2!$J$3:$J$1000,Sheet2!$D$3:$D$1000,$C104,Sheet2!$T$3:$T$1000,Q$2) -> 0 | R104: =SUMIFS(Sheet2!$G$3:$G$1000,Sheet2!$D$3:$D$1000,$C104,Sheet2!$T$3:$T$1000,R$2)+SUMIFS(Sheet2!$P$3:$P$1000,Sheet2!$D$3:$D$1000,$C104,Sheet2!$S$3:$S$1000,R$2)-SUMIFS(Sheet2!$J$3:$J$1000,Sheet2!$D$3:$D$1000,$C104,Sheet2!$T$3:$T$1000,R$2) -> 0 | AG104: 2018-04-12
K105: 0 | L105: =G105+SUMIFS(Sheet2!$G$3:$G$1000,Sheet2!$D$3:$D$1000,$C105,Sheet2!$T$3:$T$1000,$L104)+SUMIFS(Sheet2!$P$3:$P$1000,Sheet2!$D$3:$D$1000,$C105,Sheet2!$S$3:$S$1000,$L104)-SUMIFS(Sheet2!$J$3:$J$1000,Sheet2!$D$3:$D$1000,$C105,Sheet2!$T$3:$T$1000,$L104) -> 0 | M105: =SUMIFS(Sheet2!$G$3:$G$1000,Sheet2!$D$3:$D$1000,$C105,Sheet2!$T$3:$T$1000,M$2)+SUMIFS(Sheet2!$P$3:$P$1000,Sheet2!$D$3:$D$1000,$C105,Sheet2!$S$3:$S$1000,M$2)-SUMIFS(Sheet2!$J$3:$J$1000,Sheet2!$D$3:$D$1000,$C105,Sheet2!$T$3:$T$1000,M$2)-SUMIFS(Sheet2!$P$3:$P$1000,Sheet2!$D$3:$D$1000,$C105,Sheet2!$T$3:$T$1000,M$2) -> 0 | N105: =SUMIFS(Sheet2!$G$3:$G$1000,Sheet2!$D$3:$D$1000,$C105,Sheet2!$T$3:$T$1000,N$2)+SUMIFS(Sheet2!$P$3:$P$1000,Sheet2!$D$3:$D$1000,$C105,Sheet2!$S$3:$S$1000,N$2)-SUMIFS(Sheet2!$J$3:$J$1000,Sheet2!$D$3:$D$1000,$C105,Sheet2!$T$3:$T$1000,N$2) -> 0 | O105: =SUMIFS(Sheet2!$G$3:$G$1000,Sheet2!$D$3:$D$1000,$C105,Sheet2!$T$3:$T$1000,O$2)+SUMIFS(Sheet2!$P$3:$P$1000,Sheet2!$D$3:$D$1000,$C105,Sheet2!$S$3:$S$1000,O$2)-SUMIFS(Sheet2!$J$3:$J$1000,Sheet2!$D$3:$D$1000,$C105,Sheet2!$T$3:$T$1000,O$2) -> 0 | P105: =SUMIFS(Sheet2!$G$3:$G$1000,Sheet2!$D$3:$D$1000,$C105,Sheet2!$T$3:$T$1000,P$2)+SUMIFS(Sheet2!$P$3:$P$1000,Sheet2!$D$3:$D$1000,$C105,Sheet2!$S$3:$S$1000,P$2)-SUMIFS(Sheet2!$J$3:$J$1000,Sheet2!$D$3:$D$1000,$C105,Sheet2!$T$3:$T$1000,P$2) -> 0 | Q105: =SUMIFS(Sheet2!$G$3:$G$1000,Sheet2!$D$3:$D$1000,$C105,Sheet2!$T$3:$T$1000,Q$2)+SUMIFS(Sheet2!$P$3:$P$1000,Sheet2!$D$3:$D$1000,$C105,Sheet2!$S$3:$S$1000,Q$2)-SUMIFS(Sheet2!$J$3:$J$1000,Sheet2!$D$3:$D$1000,$C105,Sheet2!$T$3:$T$1000,Q$2) -> 0 | R105: =SUMIFS(Sheet2!$G$3:$G$1000,Sheet2!$D$3:$D$1000,$C105,Sheet2!$T$3:$T$1000,R$2)+SUMIFS(Sheet2!$P$3:$P$1000,Sheet2!$D$3:$D$1000,$C105,Sheet2!$S$3:$S$1000,R$2)-SUMIFS(Sheet2!$J$3:$J$1000,Sheet2!$D$3:$D$1000,$C105,Sheet2!$T$3:$T$1000,R$2) -> 0 | AG105: 2018-04-13
K106: 0 | L106: =G106+SUMIFS(Sheet2!$G$3:$G$1000,Sheet2!$D$3:$D$1000,$C106,Sheet2!$T$3:$T$1000,$L105)+SUMIFS(Sheet2!$P$3:$P$1000,Sheet2!$D$3:$D$1000,$C106,Sheet2!$S$3:$S$1000,$L105)-SUMIFS(Sheet2!$J$3:$J$1000,Sheet2!$D$3:$D$1000,$C106,Sheet2!$T$3:$T$1000,$L105) -> 0 | M106: =SUMIFS(Sheet2!$G$3:$G$1000,Sheet2!$D$3:$D$1000,$C106,Sheet2!$T$3:$T$1000,M$2)+SUMIFS(Sheet2!$P$3:$P$1000,Sheet2!$D$3:$D$1000,$C106,Sheet2!$S$3:$S$1000,M$2)-SUMIFS(Sheet2!$J$3:$J$1000,Sheet2!$D$3:$D$1000,$C106,Sheet2!$T$3:$T$1000,M$2)-SUMIFS(Sheet2!$P$3:$P$1000,Sheet2!$D$3:$D$1000,$C106,Sheet2!$T$3:$T$1000,M$2) -> 0 | N106: =SUMIFS(Sheet2!$G$3:$G$1000,Sheet2!$D$3:$D$1000,$C106,Sheet2!$T$3:$T$1000,N$2)+SUMIFS(Sheet2!$P$3:$P$1000,Sheet2!$D$3:$D$1000,$C106,Sheet2!$S$3:$S$1000,N$2)-SUMIFS(Sheet2!$J$3:$J$1000,Sheet2!$D$3:$D$1000,$C106,Sheet2!$T$3:$T$1000,N$2) -> 0 | O106: =SUMIFS(Sheet2!$G$3:$G$1000,Sheet2!$D$3:$D$1000,$C106,Sheet2!$T$3:$T$1000,O$2)+SUMIFS(Sheet2!$P$3:$P$1000,Sheet2!$D$3:$D$1000,$C106,Sheet2!$S$3:$S$1000,O$2)-SUMIFS(Sheet2!$J$3:$J$1000,Sheet2!$D$3:$D$1000,$C106,Sheet2!$T$3:$T$1000,O$2) -> 0 | P106: =SUMIFS(Sheet2!$G$3:$G$1000,Sheet2!$D$3:$D$1000,$C106,Sheet2!$T$3:$T$1000,P$2)+SUMIFS(Sheet2!$P$3:$P$1000,Sheet2!$D$3:$D$1000,$C106,Sheet2!$S$3:$S$1000,P$2)-SUMIFS(Sheet2!$J$3:$J$1000,Sheet2!$D$3:$D$1000,$C106,Sheet2!$T$3:$T$1000,P$2) -> 0 | Q106: =SUMIFS(Sheet2!$G$3:$G$1000,Sheet2!$D$3:$D$1000,$C106,Sheet2!$T$3:$T$1000,Q$2)+SUMIFS(Sheet2!$P$3:$P$1000,Sheet2!$D$3:$D$1000,$C106,Sheet2!$S$3:$S$1000,Q$2)-SUMIFS(Sheet2!$J$3:$J$1000,Sheet2!$D$3:$D$1000,$C106,Sheet2!$T$3:$T$1000,Q$2) -> 0 | R106: =SUMIFS(Sheet2!$G$3:$G$1000,Sheet2!$D$3:$D$1000,$C106,Sheet2!$T$3:$T$1000,R$2)+SUMIFS(Sheet2!$P$3:$P$1000,Sheet2!$D$3:$D$1000,$C106,Sheet2!$S$3:$S$1000,R$2)-SUMIFS(Sheet2!$J$3:$J$1000,Sheet2!$D$3:$D$1000,$C106,Sheet2!$T$3:$T$1000,R$2) -> 0 | AG106: 2018-04-14
K107: 0 | L107: =G107+SUMIFS(Sheet2!$G$3:$G$1000,Sheet2!$D$3:$D$1000,$C107,Sheet2!$T$3:$T$1000,$L106)+SUMIFS(Sheet2!$P$3:$P$1000,Sheet2!$D$3:$D$1000,$C107,Sheet2!$S$3:$S$1000,$L106)-SUMIFS(Sheet2!$J$3:$J$1000,Sheet2!$D$3:$D$1000,$C107,Sheet2!$T$3:$T$1000,$L106) -> 0 | M107: =SUMIFS(Sheet2!$G$3:$G$1000,Sheet2!$D$3:$D$1000,$C107,Sheet2!$T$3:$T$1000,M$2)+SUMIFS(Sheet2!$P$3:$P$1000,Sheet2!$D$3:$D$1000,$C107,Sheet2!$S$3:$S$1000,M$2)-SUMIFS(Sheet2!$J$3:$J$1000,Sheet2!$D$3:$D$1000,$C107,Sheet2!$T$3:$T$1000,M$2)-SUMIFS(Sheet2!$P$3:$P$1000,Sheet2!$D$3:$D$1000,$C107,Sheet2!$T$3:$T$1000,M$2) -> 0 | N107: =SUMIFS(Sheet2!$G$3:$G$1000,Sheet2!$D$3:$D$1000,$C107,Sheet2!$T$3:$T$1000,N$2)+SUMIFS(Sheet2!$P$3:$P$1000,Sheet2!$D$3:$D$1000,$C107,Sheet2!$S$3:$S$1000,N$2)-SUMIFS(Sheet2!$J$3:$J$1000,Sheet2!$D$3:$D$1000,$C107,Sheet2!$T$3:$T$1000,N$2) -> 0 | O107: =SUMIFS(Sheet2!$G$3:$G$1000,Sheet2!$D$3:$D$1000,$C107,Sheet2!$T$3:$T$1000,O$2)+SUMIFS(Sheet2!$P$3:$P$1000,Sheet2!$D$3:$D$1000,$C107,Sheet2!$S$3:$S$1000,O$2)-SUMIFS(Sheet2!$J$3:$J$1000,Sheet2!$D$3:$D$1000,$C107,Sheet2!$T$3:$T$1000,O$2) -> 0 | P107: =SUMIFS(Sheet2!$G$3:$G$1000,Sheet2!$D$3:$D$1000,$C107,Sheet2!$T$3:$T$1000,P$2)+SUMIFS(Sheet2!$P$3:$P$1000,Sheet2!$D$3:$D$1000,$C107,Sheet2!$S$3:$S$1000,P$2)-SUMIFS(Sheet2!$J$3:$J$1000,Sheet2!$D$3:$D$1000,$C107,Sheet2!$T$3:$T$1000,P$2) -> 0 | Q107: =SUMIFS(Sheet2!$G$3:$G$1000,Sheet2!$D$3:$D$1000,$C107,Sheet2!$T$3:$T$1000,Q$2)+SUMIFS(Sheet2!$P$3:$P$1000,Sheet2!$D$3:$D$1000,$C107,Sheet2!$S$3:$S$1000,Q$2)-SUMIFS(Sheet2!$J$3:$J$1000,Sheet2!$D$3:$D$1000,$C107,Sheet2!$T$3:$T$1000,Q$2) -> 0 | R107: =SUMIFS(Sheet2!$G$3:$G$1000,Sheet2!$D$3:$D$1000,$C107,Sheet2!$T$3:$T$1000,R$2)+SUMIFS(Sheet2!$P$3:$P$1000,Sheet2!$D$3:$D$1000,$C107,Sheet2!$S$3:$S$1000,R$2)-SUMIFS(Sheet2!$J$3:$J$1000,Sheet2!$D$3:$D$1000,$C107,Sheet2!$T$3:$T$1000,R$2) -> 0 | AG107: 2018-04-15
K108: 0 | L108: =G108+SUMIFS(Sheet2!$G$3:$G$1000,Sheet2!$D$3:$D$1000,$C108,Sheet2!$T$3:$T$1000,$L107)+SUMIFS(Sheet2!$P$3:$P$1000,Sheet2!$D$3:$D$1000,$C108,Sheet2!$S$3:$S$1000,$L107)-SUMIFS(Sheet2!$J$3:$J$1000,Sheet2!$D$3:$D$1000,$C108,Sheet2!$T$3:$T$1000,$L107) -> 0 | M108: =SUMIFS(Sheet2!$G$3:$G$1000,Sheet2!$D$3:$D$1000,$C108,Sheet2!$T$3:$T$1000,M$2)+SUMIFS(Sheet2!$P$3:$P$1000,Sheet2!$D$3:$D$1000,$C108,Sheet2!$S$3:$S$1000,M$2)-SUMIFS(Sheet2!$J$3:$J$1000,Sheet2!$D$3:$D$1000,$C108,Sheet2!$T$3:$T$1000,M$2)-SUMIFS(Sheet2!$P$3:$P$1000,Sheet2!$D$3:$D$1000,$C108,Sheet2!$T$3:$T$1000,M$2) -> 0 | N108: =SUMIFS(Sheet2!$G$3:$G$1000,Sheet2!$D$3:$D$1000,$C108,Sheet2!$T$3:$T$1000,N$2)+SUMIFS(Sheet2!$P$3:$P$1000,Sheet2!$D$3:$D$1000,$C108,Sheet2!$S$3:$S$1000,N$2)-SUMIFS(Sheet2!$J$3:$J$1000,Sheet2!$D$3:$D$1000,$C108,Sheet2!$T$3:$T$1000,N$2) -> 0 | O108: =SUMIFS(Sheet2!$G$3:$G$1000,Sheet2!$D$3:$D$1000,$C108,Sheet2!$T$3:$T$1000,O$2)+SUMIFS(Sheet2!$P$3:$P$1000,Sheet2!$D$3:$D$1000,$C108,Sheet2!$S$3:$S$1000,O$2)-SUMIFS(Sheet2!$J$3:$J$1000,Sheet2!$D$3:$D$1000,$C108,Sheet2!$T$3:$T$1000,O$2) -> 0 | P108: =SUMIFS(Sheet2!$G$3:$G$1000,Sheet2!$D$3:$D$1000,$C108,Sheet2!$T$3:$T$1000,P$2)+SUMIFS(Sheet2!$P$3:$P$1000,Sheet2!$D$3:$D$1000,$C108,Sheet2!$S$3:$S$1000,P$2)-SUMIFS(Sheet2!$J$3:$J$1000,Sheet2!$D$3:$D$1000,$C108,Sheet2!$T$3:$T$1000,P$2) -> 0 | Q108: =SUMIFS(Sheet2!$G$3:$G$1000,Sheet2!$D$3:$D$1000,$C108,Sheet2!$T$3:$T$1000,Q$2)+SUMIFS(Sheet2!$P$3:$P$1000,Sheet2!$D$3:$D$1000,$C108,Sheet2!$S$3:$S$1000,Q$2)-SUMIFS(Sheet2!$J$3:$J$1000,Sheet2!$D$3:$D$1000,$C108,Sheet2!$T$3:$T$1000,Q$2) -> 0 | R108: =SUMIFS(Sheet2!$G$3:$G$1000,Sheet2!$D$3:$D$1000,$C108,Sheet2!$T$3:$T$1000,R$2)+SUMIFS(Sheet2!$P$3:$P$1000,Sheet2!$D$3:$D$1000,$C108,Sheet2!$S$3:$S$1000,R$2)-SUMIFS(Sheet2!$J$3:$J$1000,Sheet2!$D$3:$D$1000,$C108,Sheet2!$T$3:$T$1000,R$2) -> 0 | AG108: 2018-04-16
K109: 0 | L109: =G109+SUMIFS(Sheet2!$G$3:$G$1000,Sheet2!$D$3:$D$1000,$C109,Sheet2!$T$3:$T$1000,$L108)+SUMIFS(Sheet2!$P$3:$P$1000,Sheet2!$D$3:$D$1000,$C109,Sheet2!$S$3:$S$1000,$L108)-SUMIFS(Sheet2!$J$3:$J$1000,Sheet2!$D$3:$D$1000,$C109,Sheet2!$T$3:$T$1000,$L108) -> 0 | M109: =SUMIFS(Sheet2!$G$3:$G$1000,Sheet2!$D$3:$D$1000,$C109,Sheet2!$T$3:$T$1000,M$2)+SUMIFS(Sheet2!$P$3:$P$1000,Sheet2!$D$3:$D$1000,$C109,Sheet2!$S$3:$S$1000,M$2)-SUMIFS(Sheet2!$J$3:$J$1000,Sheet2!$D$3:$D$1000,$C109,Sheet2!$T$3:$T$1000,M$2)-SUMIFS(Sheet2!$P$3:$P$1000,Sheet2!$D$3:$D$1000,$C109,Sheet2!$T$3:$T$1000,M$2) -> 0 | N109: =SUMIFS(Sheet2!$G$3:$G$1000,Sheet2!$D$3:$D$1000,$C109,Sheet2!$T$3:$T$1000,N$2)+SUMIFS(Sheet2!$P$3:$P$1000,Sheet2!$D$3:$D$1000,$C109,Sheet2!$S$3:$S$1000,N$2)-SUMIFS(Sheet2!$J$3:$J$1000,Sheet2!$D$3:$D$1000,$C109,Sheet2!$T$3:$T$1000,N$2) -> 0 | O109: =SUMIFS(Sheet2!$G$3:$G$1000,Sheet2!$D$3:$D$1000,$C109,Sheet2!$T$3:$T$1000,O$2)+SUMIFS(Sheet2!$P$3:$P$1000,Sheet2!$D$3:$D$1000,$C109,Sheet2!$S$3:$S$1000,O$2)-SUMIFS(Sheet2!$J$3:$J$1000,Sheet2!$D$3:$D$1000,$C109,Sheet2!$T$3:$T$1000,O$2) -> 0 | P109: =SUMIFS(Sheet2!$G$3:$G$1000,Sheet2!$D$3:$D$1000,$C109,Sheet2!$T$3:$T$1000,P$2)+SUMIFS(Sheet2!$P$3:$P$1000,Sheet2!$D$3:$D$1000,$C109,Sheet2!$S$3:$S$1000,P$2)-SUMIFS(Sheet2!$J$3:$J$1000,Sheet2!$D$3:$D$1000,$C109,Sheet2!$T$3:$T$1000,P$2) -> 0 | Q109: =SUMIFS(Sheet2!$G$3:$G$1000,Sheet2!$D$3:$D$1000,$C109,Sheet2!$T$3:$T$1000,Q$2)+SUMIFS(Sheet2!$P$3:$P$1000,Sheet2!$D$3:$D$1000,$C109,Sheet2!$S$3:$S$1000,Q$2)-SUMIFS(Sheet2!$J$3:$J$1000,Sheet2!$D$3:$D$1000,$C109,Sheet2!$T$3:$T$1000,Q$2) -> 0 | R109: =SUMIFS(Sheet2!$G$3:$G$1000,Sheet2!$D$3:$D$1000,$C109,Sheet2!$T$3:$T$1000,R$2)+SUMIFS(Sheet2!$P$3:$P$1000,Sheet2!$D$3:$D$1000,$C109,Sheet2!$S$3:$S$1000,R$2)-SUMIFS(Sheet2!$J$3:$J$1000,Sheet2!$D$3:$D$1000,$C109,Sheet2!$T$3:$T$1000,R$2) -> 0 | AG109: 2018-04-17
K110: 0 | L110: =G110+SUMIFS(Sheet2!$G$3:$G$1000,Sheet2!$D$3:$D$1000,$C110,Sheet2!$T$3:$T$1000,$L109)+SUMIFS(Sheet2!$P$3:$P$1000,Sheet2!$D$3:$D$1000,$C110,Sheet2!$S$3:$S$1000,$L109)-SUMIFS(Sheet2!$J$3:$J$1000,Sheet2!$D$3:$D$1000,$C110,Sheet2!$T$3:$T$1000,$L109) -> 0 | M110: =SUMIFS(Sheet2!$G$3:$G$1000,Sheet2!$D$3:$D$1000,$C110,Sheet2!$T$3:$T$1000,M$2)+SUMIFS(Sheet2!$P$3:$P$1000,Sheet2!$D$3:$D$1000,$C110,Sheet2!$S$3:$S$1000,M$2)-SUMIFS(Sheet2!$J$3:$J$1000,Sheet2!$D$3:$D$1000,$C110,Sheet2!$T$3:$T$1000,M$2)-SUMIFS(Sheet2!$P$3:$P$1000,Sheet2!$D$3:$D$1000,$C110,Sheet2!$T$3:$T$1000,M$2) -> 0 | N110: =SUMIFS(Sheet2!$G$3:$G$1000,Sheet2!$D$3:$D$1000,$C110,Sheet2!$T$3:$T$1000,N$2)+SUMIFS(Sheet2!$P$3:$P$1000,Sheet2!$D$3:$D$1000,$C110,Sheet2!$S$3:$S$1000,N$2)-SUMIFS(Sheet2!$J$3:$J$1000,Sheet2!$D$3:$D$1000,$C110,Sheet2!$T$3:$T$1000,N$2) -> 0 | O110: =SUMIFS(Sheet2!$G$3:$G$1000,Sheet2!$D$3:$D$1000,$C110,Sheet2!$T$3:$T$1000,O$2)+SUMIFS(Sheet2!$P$3:$P$1000,Sheet2!$D$3:$D$1000,$C110,Sheet2!$S$3:$S$1000,O$2)-SUMIFS(Sheet2!$J$3:$J$1000,Sheet2!$D$3:$D$1000,$C110,Sheet2!$T$3:$T$1000,O$2) -> 0 | P110: =SUMIFS(Sheet2!$G$3:$G$1000,Sheet2!$D$3:$D$1000,$C110,Sheet2!$T$3:$T$1000,P$2)+SUMIFS(Sheet2!$P$3:$P$1000,Sheet2!$D$3:$D$1000,$C110,Sheet2!$S$3:$S$1000,P$2)-SUMIFS(Sheet2!$J$3:$J$1000,Sheet2!$D$3:$D$1000,$C110,Sheet2!$T$3:$T$1000,P$2) -> 0 | Q110: =SUMIFS(Sheet2!$G$3:$G$1000,Sheet2!$D$3:$D$1000,$C110,Sheet2!$T$3:$T$1000,Q$2)+SUMIFS(Sheet2!$P$3:$P$1000,Sheet2!$D$3:$D$1000,$C110,Sheet2!$S$3:$S$1000,Q$2)-SUMIFS(Sheet2!$J$3:$J$1000,Sheet2!$D$3:$D$1000,$C110,Sheet2!$T$3:$T$1000,Q$2) -> 0 | R110: =SUMIFS(Sheet2!$G$3:$G$1000,Sheet2!$D$3:$D$1000,$C110,Sheet2!$T$3:$T$1000,R$2)+SUMIFS(Sheet2!$P$3:$P$1000,Sheet2!$D$3:$D$1000,$C110,Sheet2!$S$3:$S$1000,R$2)-SUMIFS(Sheet2!$J$3:$J$1000,Sheet2!$D$3:$D$1000,$C110,Sheet2!$T$3:$T$1000,R$2) -> 0 | AG110: 2018-04-18
K111: 0 | L111: =G111+SUMIFS(Sheet2!$G$3:$G$1000,Sheet2!$D$3:$D$1000,$C111,Sheet2!$T$3:$T$1000,$L110)+SUMIFS(Sheet2!$P$3:$P$1000,Sheet2!$D$3:$D$1000,$C111,Sheet2!$S$3:$S$1000,$L110)-SUMIFS(Sheet2!$J$3:$J$1000,Sheet2!$D$3:$D$1000,$C111,Sheet2!$T$3:$T$1000,$L110) -> 0 | M111: =SUMIFS(Sheet2!$G$3:$G$1000,Sheet2!$D$3:$D$1000,$C111,Sheet2!$T$3:$T$1000,M$2)+SUMIFS(Sheet2!$P$3:$P$1000,Sheet2!$D$3:$D$1000,$C111,Sheet2!$S$3:$S$1000,M$2)-SUMIFS(Sheet2!$J$3:$J$1000,Sheet2!$D$3:$D$1000,$C111,Sheet2!$T$3:$T$1000,M$2)-SUMIFS(Sheet2!$P$3:$P$1000,Sheet2!$D$3:$D$1000,$C111,Sheet2!$T$3:$T$1000,M$2) -> 0 | N111: =SUMIFS(Sheet2!$G$3:$G$1000,Sheet2!$D$3:$D$1000,$C111,Sheet2!$T$3:$T$1000,N$2)+SUMIFS(Sheet2!$P$3:$P$1000,Sheet2!$D$3:$D$1000,$C111,Sheet2!$S$3:$S$1000,N$2)-SUMIFS(Sheet2!$J$3:$J$1000,Sheet2!$D$3:$D$1000,$C111,Sheet2!$T$3:$T$1000,N$2) -> 0 | O111: =SUMIFS(Sheet2!$G$3:$G$1000,Sheet2!$D$3:$D$1000,$C111,Sheet2!$T$3:$T$1000,O$2)+SUMIFS(Sheet2!$P$3:$P$1000,Sheet2!$D$3:$D$1000,$C111,Sheet2!$S$3:$S$1000,O$2)-SUMIFS(Sheet2!$J$3:$J$1000,Sheet2!$D$3:$D$1000,$C111,Sheet2!$T$3:$T$1000,O$2) -> 0 | P111: =SUMIFS(Sheet2!$G$3:$G$1000,Sheet2!$D$3:$D$1000,$C111,Sheet2!$T$3:$T$1000,P$2)+SUMIFS(Sheet2!$P$3:$P$1000,Sheet2!$D$3:$D$1000,$C111,Sheet2!$S$3:$S$1000,P$2)-SUMIFS(Sheet2!$J$3:$J$1000,Sheet2!$D$3:$D$1000,$C111,Sheet2!$T$3:$T$1000,P$2) -> 0 | Q111: =SUMIFS(Sheet2!$G$3:$G$1000,Sheet2!$D$3:$D$1000,$C111,Sheet2!$T$3:$T$1000,Q$2)+SUMIFS(Sheet2!$P$3:$P$1000,Sheet2!$D$3:$D$1000,$C111,Sheet2!$S$3:$S$1000,Q$2)-SUMIFS(Sheet2!$J$3:$J$1000,Sheet2!$D$3:$D$1000,$C111,Sheet2!$T$3:$T$1000,Q$2) -> 0 | R111: =SUMIFS(Sheet2!$G$3:$G$1000,Sheet2!$D$3:$D$1000,$C111,Sheet2!$T$3:$T$1000,R$2)+SUMIFS(Sheet2!$P$3:$P$1000,Sheet2!$D$3:$D$1000,$C111,Sheet2!$S$3:$S$1000,R$2)-SUMIFS(Sheet2!$J$3:$J$1000,Sheet2!$D$3:$D$1000,$C111,Sheet2!$T$3:$T$1000,R$2) -> 0 | AG111: 2018-04-19
K112: 0 | L112: =G112+SUMIFS(Sheet2!$G$3:$G$1000,Sheet2!$D$3:$D$1000,$C112,Sheet2!$T$3:$T$1000,$L111)+SUMIFS(Sheet2!$P$3:$P$1000,Sheet2!$D$3:$D$1000,$C112,Sheet2!$S$3:$S$1000,$L111)-SUMIFS(Sheet2!$J$3:$J$1000,Sheet2!$D$3:$D$1000,$C112,Sheet2!$T$3:$T$1000,$L111) -> 0 | M112: =SUMIFS(Sheet2!$G$3:$G$1000,Sheet2!$D$3:$D$1000,$C112,Sheet2!$T$3:$T$1000,M$2)+SUMIFS(Sheet2!$P$3:$P$1000,Sheet2!$D$3:$D$1000,$C112,Sheet2!$S$3:$S$1000,M$2)-SUMIFS(Sheet2!$J$3:$J$1000,Sheet2!$D$3:$D$1000,$C112,Sheet2!$T$3:$T$1000,M$2)-SUMIFS(Sheet2!$P$3:$P$1000,Sheet2!$D$3:$D$1000,$C112,Sheet2!$T$3:$T$1000,M$2) -> 0 | N112: =SUMIFS(Sheet2!$G$3:$G$1000,Sheet2!$D$3:$D$1000,$C112,Sheet2!$T$3:$T$1000,N$2)+SUMIFS(Sheet2!$P$3:$P$1000,Sheet2!$D$3:$D$1000,$C112,Sheet2!$S$3:$S$1000,N$2)-SUMIFS(Sheet2!$J$3:$J$1000,Sheet2!$D$3:$D$1000,$C112,Sheet2!$T$3:$T$1000,N$2) -> 0 | O112: =SUMIFS(Sheet2!$G$3:$G$1000,Sheet2!$D$3:$D$1000,$C112,Sheet2!$T$3:$T$1000,O$2)+SUMIFS(Sheet2!$P$3:$P$1000,Sheet2!$D$3:$D$1000,$C112,Sheet2!$S$3:$S$1000,O$2)-SUMIFS(Sheet2!$J$3:$J$1000,Sheet2!$D$3:$D$1000,$C112,Sheet2!$T$3:$T$1000,O$2) -> 0 | P112: =SUMIFS(Sheet2!$G$3:$G$1000,Sheet2!$D$3:$D$1000,$C112,Sheet2!$T$3:$T$1000,P$2)+SUMIFS(Sheet2!$P$3:$P$1000,Sheet2!$D$3:$D$1000,$C112,Sheet2!$S$3:$S$1000,P$2)-SUMIFS(Sheet2!$J$3:$J$1000,Sheet2!$D$3:$D$1000,$C112,Sheet2!$T$3:$T$1000,P$2) -> 0 | Q112: =SUMIFS(Sheet2!$G$3:$G$1000,Sheet2!$D$3:$D$1000,$C112,Sheet2!$T$3:$T$1000,Q$2)+SUMIFS(Sheet2!$P$3:$P$1000,Sheet2!$D$3:$D$1000,$C112,Sheet2!$S$3:$S$1000,Q$2)-SUMIFS(Sheet2!$J$3:$J$1000,Sheet2!$D$3:$D$1000,$C112,Sheet2!$T$3:$T$1000,Q$2) -> 0 | R112: =SUMIFS(Sheet2!$G$3:$G$1000,Sheet2!$D$3:$D$1000,$C112,Sheet2!$T$3:$T$1000,R$2)+SUMIFS(Sheet2!$P$3:$P$1000,Sheet2!$D$3:$D$1000,$C112,Sheet2!$S$3:$S$1000,R$2)-SUMIFS(Sheet2!$J$3:$J$1000,Sheet2!$D$3:$D$1000,$C112,Sheet2!$T$3:$T$1000,R$2) -> 0 | AG112: 2018-04-20
K113: 0 | L113: =G113+SUMIFS(Sheet2!$G$3:$G$1000,Sheet2!$D$3:$D$1000,$C113,Sheet2!$T$3:$T$1000,$L112)+SUMIFS(Sheet2!$P$3:$P$1000,Sheet2!$D$3:$D$1000,$C113,Sheet2!$S$3:$S$1000,$L112)-SUMIFS(Sheet2!$J$3:$J$1000,Sheet2!$D$3:$D$1000,$C113,Sheet2!$T$3:$T$1000,$L112) -> 0 | M113: =SUMIFS(Sheet2!$G$3:$G$1000,Sheet2!$D$3:$D$1000,$C113,Sheet2!$T$3:$T$1000,M$2)+SUMIFS(Sheet2!$P$3:$P$1000,Sheet2!$D$3:$D$1000,$C113,Sheet2!$S$3:$S$1000,M$2)-SUMIFS(Sheet2!$J$3:$J$1000,Sheet2!$D$3:$D$1000,$C113,Sheet2!$T$3:$T$1000,M$2)-SUMIFS(Sheet2!$P$3:$P$1000,Sheet2!$D$3:$D$1000,$C113,Sheet2!$T$3:$T$1000,M$2) -> 0 | N113: =SUMIFS(Sheet2!$G$3:$G$1000,Sheet2!$D$3:$D$1000,$C113,Sheet2!$T$3:$T$1000,N$2)+SUMIFS(Sheet2!$P$3:$P$1000,Sheet2!$D$3:$D$1000,$C113,Sheet2!$S$3:$S$1000,N$2)-SUMIFS(Sheet2!$J$3:$J$1000,Sheet2!$D$3:$D$1000,$C113,Sheet2!$T$3:$T$1000,N$2) -> 0 | O113: =SUMIFS(Sheet2!$G$3:$G$1000,Sheet2!$D$3:$D$1000,$C113,Sheet2!$T$3:$T$1000,O$2)+SUMIFS(Sheet2!$P$3:$P$1000,Sheet2!$D$3:$D$1000,$C113,Sheet2!$S$3:$S$1000,O$2)-SUMIFS(Sheet2!$J$3:$J$1000,Sheet2!$D$3:$D$1000,$C113,Sheet2!$T$3:$T$1000,O$2) -> 0 | P113: =SUMIFS(Sheet2!$G$3:$G$1000,Sheet2!$D$3:$D$1000,$C113,Sheet2!$T$3:$T$1000,P$2)+SUMIFS(Sheet2!$P$3:$P$1000,Sheet2!$D$3:$D$1000,$C113,Sheet2!$S$3:$S$1000,P$2)-SUMIFS(Sheet2!$J$3:$J$1000,Sheet2!$D$3:$D$1000,$C113,Sheet2!$T$3:$T$1000,P$2) -> 0 | Q113: =SUMIFS(Sheet2!$G$3:$G$1000,Sheet2!$D$3:$D$1000,$C113,Sheet2!$T$3:$T$1000,Q$2)+SUMIFS(Sheet2!$P$3:$P$1000,Sheet2!$D$3:$D$1000,$C113,Sheet2!$S$3:$S$1000,Q$2)-SUMIFS(Sheet2!$J$3:$J$1000,Sheet2!$D$3:$D$1000,$C113,Sheet2!$T$3:$T$1000,Q$2) -> 0 | R113: =SUMIFS(Sheet2!$G$3:$G$1000,Sheet2!$D$3:$D$1000,$C113,Sheet2!$T$3:$T$1000,R$2)+SUMIFS(Sheet2!$P$3:$P$1000,Sheet2!$D$3:$D$1000,$C113,Sheet2!$S$3:$S$1000,R$2)-SUMIFS(Sheet2!$J$3:$J$1000,Sheet2!$D$3:$D$1000,$C113,Sheet2!$T$3:$T$1000,R$2) -> 0 | AG113: 2018-04-21
K114: 0 | L114: =G114+SUMIFS(Sheet2!$G$3:$G$1000,Sheet2!$D$3:$D$1000,$C114,Sheet2!$T$3:$T$1000,$L113)+SUMIFS(Sheet2!$P$3:$P$1000,Sheet2!$D$3:$D$1000,$C114,Sheet2!$S$3:$S$1000,$L113)-SUMIFS(Sheet2!$J$3:$J$1000,Sheet2!$D$3:$D$1000,$C114,Sheet2!$T$3:$T$1000,$L113) -> 0 | M114: =SUMIFS(Sheet2!$G$3:$G$1000,Sheet2!$D$3:$D$1000,$C114,Sheet2!$T$3:$T$1000,M$2)+SUMIFS(Sheet2!$P$3:$P$1000,Sheet2!$D$3:$D$1000,$C114,Sheet2!$S$3:$S$1000,M$2)-SUMIFS(Sheet2!$J$3:$J$1000,Sheet2!$D$3:$D$1000,$C114,Sheet2!$T$3:$T$1000,M$2)-SUMIFS(Sheet2!$P$3:$P$1000,Sheet2!$D$3:$D$1000,$C114,Sheet2!$T$3:$T$1000,M$2) -> 0 | N114: =SUMIFS(Sheet2!$G$3:$G$1000,Sheet2!$D$3:$D$1000,$C114,Sheet2!$T$3:$T$1000,N$2)+SUMIFS(Sheet2!$P$3:$P$1000,Sheet2!$D$3:$D$1000,$C114,Sheet2!$S$3:$S$1000,N$2)-SUMIFS(Sheet2!$J$3:$J$1000,Sheet2!$D$3:$D$1000,$C114,Sheet2!$T$3:$T$1000,N$2) -> 0 | O114: =SUMIFS(Sheet2!$G$3:$G$1000,Sheet2!$D$3:$D$1000,$C114,Sheet2!$T$3:$T$1000,O$2)+SUMIFS(Sheet2!$P$3:$P$1000,Sheet2!$D$3:$D$1000,$C114,Sheet2!$S$3:$S$1000,O$2)-SUMIFS(Sheet2!$J$3:$J$1000,Sheet2!$D$3:$D$1000,$C114,Sheet2!$T$3:$T$1000,O$2) -> 0 | P114: =SUMIFS(Sheet2!$G$3:$G$1000,Sheet2!$D$3:$D$1000,$C114,Sheet2!$T$3:$T$1000,P$2)+SUMIFS(Sheet2!$P$3:$P$1000,Sheet2!$D$3:$D$1000,$C114,Sheet2!$S$3:$S$1000,P$2)-SUMIFS(Sheet2!$J$3:$J$1000,Sheet2!$D$3:$D$1000,$C114,Sheet2!$T$3:$T$1000,P$2) -> 0 | Q114: =SUMIFS(Sheet2!$G$3:$G$1000,Sheet2!$D$3:$D$1000,$C114,Sheet2!$T$3:$T$1000,Q$2)+SUMIFS(Sheet2!$P$3:$P$1000,Sheet2!$D$3:$D$1000,$C114,Sheet2!$S$3:$S$1000,Q$2)-SUMIFS(Sheet2!$J$3:$J$1000,Sheet2!$D$3:$D$1000,$C114,Sheet2!$T$3:$T$1000,Q$2) -> 0 | R114: =SUMIFS(Sheet2!$G$3:$G$1000,Sheet2!$D$3:$D$1000,$C114,Sheet2!$T$3:$T$1000,R$2)+SUMIFS(Sheet2!$P$3:$P$1000,Sheet2!$D$3:$D$1000,$C114,Sheet2!$S$3:$S$1000,R$2)-SUMIFS(Sheet2!$J$3:$J$1000,Sheet2!$D$3:$D$1000,$C114,Sheet2!$T$3:$T$1000,R$2) -> 0 | AG114: 2018-04-22
K115: 0 | L115: =G115+SUMIFS(Sheet2!$G$3:$G$1000,Sheet2!$D$3:$D$1000,$C115,Sheet2!$T$3:$T$1000,$L114)+SUMIFS(Sheet2!$P$3:$P$1000,Sheet2!$D$3:$D$1000,$C115,Sheet2!$S$3:$S$1000,$L114)-SUMIFS(Sheet2!$J$3:$J$1000,Sheet2!$D$3:$D$1000,$C115,Sheet2!$T$3:$T$1000,$L114) -> 0 | M115: =SUMIFS(Sheet2!$G$3:$G$1000,Sheet2!$D$3:$D$1000,$C115,Sheet2!$T$3:$T$1000,M$2)+SUMIFS(Sheet2!$P$3:$P$1000,Sheet2!$D$3:$D$1000,$C115,Sheet2!$S$3:$S$1000,M$2)-SUMIFS(Sheet2!$J$3:$J$1000,Sheet2!$D$3:$D$1000,$C115,Sheet2!$T$3:$T$1000,M$2)-SUMIFS(Sheet2!$P$3:$P$1000,Sheet2!$D$3:$D$1000,$C115,Sheet2!$T$3:$T$1000,M$2) -> 0 | N115: =SUMIFS(Sheet2!$G$3:$G$1000,Sheet2!$D$3:$D$1000,$C115,Sheet2!$T$3:$T$1000,N$2)+SUMIFS(Sheet2!$P$3:$P$1000,Sheet2!$D$3:$D$1000,$C115,Sheet2!$S$3:$S$1000,N$2)-SUMIFS(Sheet2!$J$3:$J$1000,Sheet2!$D$3:$D$1000,$C115,Sheet2!$T$3:$T$1000,N$2) -> 0 | O115: =SUMIFS(Sheet2!$G$3:$G$1000,Sheet2!$D$3:$D$1000,$C115,Sheet2!$T$3:$T$1000,O$2)+SUMIFS(Sheet2!$P$3:$P$1000,Sheet2!$D$3:$D$1000,$C115,Sheet2!$S$3:$S$1000,O$2)-SUMIFS(Sheet2!$J$3:$J$1000,Sheet2!$D$3:$D$1000,$C115,Sheet2!$T$3:$T$1000,O$2) -> 0 | P115: =SUMIFS(Sheet2!$G$3:$G$1000,Sheet2!$D$3:$D$1000,$C115,Sheet2!$T$3:$T$1000,P$2)+SUMIFS(Sheet2!$P$3:$P$1000,Sheet2!$D$3:$D$1000,$C115,Sheet2!$S$3:$S$1000,P$2)-SUMIFS(Sheet2!$J$3:$J$1000,Sheet2!$D$3:$D$1000,$C115,Sheet2!$T$3:$T$1000,P$2) -> 0 | Q115: =SUMIFS(Sheet2!$G$3:$G$1000,Sheet2!$D$3:$D$1000,$C115,Sheet2!$T$3:$T$1000,Q$2)+SUMIFS(Sheet2!$P$3:$P$1000,Sheet2!$D$3:$D$1000,$C115,Sheet2!$S$3:$S$1000,Q$2)-SUMIFS(Sheet2!$J$3:$J$1000,Sheet2!$D$3:$D$1000,$C115,Sheet2!$T$3:$T$1000,Q$2) -> 0 | R115: =SUMIFS(Sheet2!$G$3:$G$1000,Sheet2!$D$3:$D$1000,$C115,Sheet2!$T$3:$T$1000,R$2)+SUMIFS(Sheet2!$P$3:$P$1000,Sheet2!$D$3:$D$1000,$C115,Sheet2!$S$3:$S$1000,R$2)-SUMIFS(Sheet2!$J$3:$J$1000,Sheet2!$D$3:$D$1000,$C115,Sheet2!$T$3:$T$1000,R$2) -> 0 | AG115: 2018-04-23
K116: 0 | L116: =G116+SUMIFS(Sheet2!$G$3:$G$1000,Sheet2!$D$3:$D$1000,$C116,Sheet2!$T$3:$T$1000,$L115)+SUMIFS(Sheet2!$P$3:$P$1000,Sheet2!$D$3:$D$1000,$C116,Sheet2!$S$3:$S$1000,$L115)-SUMIFS(Sheet2!$J$3:$J$1000,Sheet2!$D$3:$D$1000,$C116,Sheet2!$T$3:$T$1000,$L115) -> 0 | M116: =SUMIFS(Sheet2!$G$3:$G$1000,Sheet2!$D$3:$D$1000,$C116,Sheet2!$T$3:$T$1000,M$2)+SUMIFS(Sheet2!$P$3:$P$1000,Sheet2!$D$3:$D$1000,$C116,Sheet2!$S$3:$S$1000,M$2)-SUMIFS(Sheet2!$J$3:$J$1000,Sheet2!$D$3:$D$1000,$C116,Sheet2!$T$3:$T$1000,M$2)-SUMIFS(Sheet2!$P$3:$P$1000,Sheet2!$D$3:$D$1000,$C116,Sheet2!$T$3:$T$1000,M$2) -> 0 | N116: =SUMIFS(Sheet2!$G$3:$G$1000,Sheet2!$D$3:$D$1000,$C116,Sheet2!$T$3:$T$1000,N$2)+SUMIFS(Sheet2!$P$3:$P$1000,Sheet2!$D$3:$D$1000,$C116,Sheet2!$S$3:$S$1000,N$2)-SUMIFS(Sheet2!$J$3:$J$1000,Sheet2!$D$3:$D$1000,$C116,Sheet2!$T$3:$T$1000,N$2) -> 0 | O116: =SUMIFS(Sheet2!$G$3:$G$1000,Sheet2!$D$3:$D$1000,$C116,Sheet2!$T$3:$T$1000,O$2)+SUMIFS(Sheet2!$P$3:$P$1000,Sheet2!$D$3:$D$1000,$C116,Sheet2!$S$3:$S$1000,O$2)-SUMIFS(Sheet2!$J$3:$J$1000,Sheet2!$D$3:$D$1000,$C116,Sheet2!$T$3:$T$1000,O$2) -> 0 | P116: =SUMIFS(Sheet2!$G$3:$G$1000,Sheet2!$D$3:$D$1000,$C116,Sheet2!$T$3:$T$1000,P$2)+SUMIFS(Sheet2!$P$3:$P$1000,Sheet2!$D$3:$D$1000,$C116,Sheet2!$S$3:$S$1000,P$2)-SUMIFS(Sheet2!$J$3:$J$1000,Sheet2!$D$3:$D$1000,$C116,Sheet2!$T$3:$T$1000,P$2) -> 0 | Q116: =SUMIFS(Sheet2!$G$3:$G$1000,Sheet2!$D$3:$D$1000,$C116,Sheet2!$T$3:$T$1000,Q$2)+SUMIFS(Sheet2!$P$3:$P$1000,Sheet2!$D$3:$D$1000,$C116,Sheet2!$S$3:$S$1000,Q$2)-SUMIFS(Sheet2!$J$3:$J$1000,Sheet2!$D$3:$D$1000,$C116,Sheet2!$T$3:$T$1000,Q$2) -> 0 | R116: =SUMIFS(Sheet2!$G$3:$G$1000,Sheet2!$D$3:$D$1000,$C116,Sheet2!$T$3:$T$1000,R$2)+SUMIFS(Sheet2!$P$3:$P$1000,Sheet2!$D$3:$D$1000,$C116,Sheet2!$S$3:$S$1000,R$2)-SUMIFS(Sheet2!$J$3:$J$1000,Sheet2!$D$3:$D$1000,$C116,Sheet2!$T$3:$T$1000,R$2) -> 0 | AG116: 2018-04-24
K117: 0 | L117: =G117+SUMIFS(Sheet2!$G$3:$G$1000,Sheet2!$D$3:$D$1000,$C117,Sheet2!$T$3:$T$1000,$L116)+SUMIFS(Sheet2!$P$3:$P$1000,Sheet2!$D$3:$D$1000,$C117,Sheet2!$S$3:$S$1000,$L116)-SUMIFS(Sheet2!$J$3:$J$1000,Sheet2!$D$3:$D$1000,$C117,Sheet2!$T$3:$T$1000,$L116) -> 0 | M117: =SUMIFS(Sheet2!$G$3:$G$1000,Sheet2!$D$3:$D$1000,$C117,Sheet2!$T$3:$T$1000,M$2)+SUMIFS(Sheet2!$P$3:$P$1000,Sheet2!$D$3:$D$1000,$C117,Sheet2!$S$3:$S$1000,M$2)-SUMIFS(Sheet2!$J$3:$J$1000,Sheet2!$D$3:$D$1000,$C117,Sheet2!$T$3:$T$1000,M$2)-SUMIFS(Sheet2!$P$3:$P$1000,Sheet2!$D$3:$D$1000,$C117,Sheet2!$T$3:$T$1000,M$2) -> 0 | N117: =SUMIFS(Sheet2!$G$3:$G$1000,Sheet2!$D$3:$D$1000,$C117,Sheet2!$T$3:$T$1000,N$2)+SUMIFS(Sheet2!$P$3:$P$1000,Sheet2!$D$3:$D$1000,$C117,Sheet2!$S$3:$S$1000,N$2)-SUMIFS(Sheet2!$J$3:$J$1000,Sheet2!$D$3:$D$1000,$C117,Sheet2!$T$3:$T$1000,N$2) -> 0 | O117: =SUMIFS(Sheet2!$G$3:$G$1000,Sheet2!$D$3:$D$1000,$C117,Sheet2!$T$3:$T$1000,O$2)+SUMIFS(Sheet2!$P$3:$P$1000,Sheet2!$D$3:$D$1000,$C117,Sheet2!$S$3:$S$1000,O$2)-SUMIFS(Sheet2!$J$3:$J$1000,Sheet2!$D$3:$D$1000,$C117,Sheet2!$T$3:$T$1000,O$2) -> 0 | P117: =SUMIFS(Sheet2!$G$3:$G$1000,Sheet2!$D$3:$D$1000,$C117,Sheet2!$T$3:$T$1000,P$2)+SUMIFS(Sheet2!$P$3:$P$1000,Sheet2!$D$3:$D$1000,$C117,Sheet2!$S$3:$S$1000,P$2)-SUMIFS(Sheet2!$J$3:$J$1000,Sheet2!$D$3:$D$1000,$C117,Sheet2!$T$3:$T$1000,P$2) -> 0 | Q117: =SUMIFS(Sheet2!$G$3:$G$1000,Sheet2!$D$3:$D$1000,$C117,Sheet2!$T$3:$T$1000,Q$2)+SUMIFS(Sheet2!$P$3:$P$1000,Sheet2!$D$3:$D$1000,$C117,Sheet2!$S$3:$S$1000,Q$2)-SUMIFS(Sheet2!$J$3:$J$1000,Sheet2!$D$3:$D$1000,$C117,Sheet2!$T$3:$T$1000,Q$2) -> 0 | R117: =SUMIFS(Sheet2!$G$3:$G$1000,Sheet2!$D$3:$D$1000,$C117,Sheet2!$T$3:$T$1000,R$2)+SUMIFS(Sheet2!$P$3:$P$1000,Sheet2!$D$3:$D$1000,$C117,Sheet2!$S$3:$S$1000,R$2)-SUMIFS(Sheet2!$J$3:$J$1000,Sheet2!$D$3:$D$1000,$C117,Sheet2!$T$3:$T$1000,R$2) -> 0 | AG117: 2018-04-25
K118: 0 | L118: =G118+SUMIFS(Sheet2!$G$3:$G$1000,Sheet2!$D$3:$D$1000,$C118,Sheet2!$T$3:$T$1000,$L117)+SUMIFS(Sheet2!$P$3:$P$1000,Sheet2!$D$3:$D$1000,$C118,Sheet2!$S$3:$S$1000,$L117)-SUMIFS(Sheet2!$J$3:$J$1000,Sheet2!$D$3:$D$1000,$C118,Sheet2!$T$3:$T$1000,$L117) -> 0 | M118: =SUMIFS(Sheet2!$G$3:$G$1000,Sheet2!$D$3:$D$1000,$C118,Sheet2!$T$3:$T$1000,M$2)+SUMIFS(Sheet2!$P$3:$P$1000,Sheet2!$D$3:$D$1000,$C118,Sheet2!$S$3:$S$1000,M$2)-SUMIFS(Sheet2!$J$3:$J$1000,Sheet2!$D$3:$D$1000,$C118,Sheet2!$T$3:$T$1000,M$2)-SUMIFS(Sheet2!$P$3:$P$1000,Sheet2!$D$3:$D$1000,$C118,Sheet2!$T$3:$T$1000,M$2) -> 0 | N118: =SUMIFS(Sheet2!$G$3:$G$1000,Sheet2!$D$3:$D$1000,$C118,Sheet2!$T$3:$T$1000,N$2)+SUMIFS(Sheet2!$P$3:$P$1000,Sheet2!$D$3:$D$1000,$C118,Sheet2!$S$3:$S$1000,N$2)-SUMIFS(Sheet2!$J$3:$J$1000,Sheet2!$D$3:$D$1000,$C118,Sheet2!$T$3:$T$1000,N$2) -> 0 | O118: =SUMIFS(Sheet2!$G$3:$G$1000,Sheet2!$D$3:$D$1000,$C118,Sheet2!$T$3:$T$1000,O$2)+SUMIFS(Sheet2!$P$3:$P$1000,Sheet2!$D$3:$D$1000,$C118,Sheet2!$S$3:$S$1000,O$2)-SUMIFS(Sheet2!$J$3:$J$1000,Sheet2!$D$3:$D$1000,$C118,Sheet2!$T$3:$T$1000,O$2) -> 0 | P118: =SUMIFS(Sheet2!$G$3:$G$1000,Sheet2!$D$3:$D$1000,$C118,Sheet2!$T$3:$T$1000,P$2)+SUMIFS(Sheet2!$P$3:$P$1000,Sheet2!$D$3:$D$1000,$C118,Sheet2!$S$3:$S$1000,P$2)-SUMIFS(Sheet2!$J$3:$J$1000,Sheet2!$D$3:$D$1000,$C118,Sheet2!$T$3:$T$1000,P$2) -> 0 | Q118: =SUMIFS(Sheet2!$G$3:$G$1000,Sheet2!$D$3:$D$1000,$C118,Sheet2!$T$3:$T$1000,Q$2)+SUMIFS(Sheet2!$P$3:$P$1000,Sheet2!$D$3:$D$1000,$C118,Sheet2!$S$3:$S$1000,Q$2)-SUMIFS(Sheet2!$J$3:$J$1000,Sheet2!$D$3:$D$1000,$C118,Sheet2!$T$3:$T$1000,Q$2) -> 0 | R118: =SUMIFS(Sheet2!$G$3:$G$1000,Sheet2!$D$3:$D$1000,$C118,Sheet2!$T$3:$T$1000,R$2)+SUMIFS(Sheet2!$P$3:$P$1000,Sheet2!$D$3:$D$1000,$C118,Sheet2!$S$3:$S$1000,R$2)-SUMIFS(Sheet2!$J$3:$J$1000,Sheet2!$D$3:$D$1000,$C118,Sheet2!$T$3:$T$1000,R$2) -> 0 | AG118: 2018-04-26
K119: 0 | L119: =G119+SUMIFS(Sheet2!$G$3:$G$1000,Sheet2!$D$3:$D$1000,$C119,Sheet2!$T$3:$T$1000,$L118)+SUMIFS(Sheet2!$P$3:$P$1000,Sheet2!$D$3:$D$1000,$C119,Sheet2!$S$3:$S$1000,$L118)-SUMIFS(Sheet2!$J$3:$J$1000,Sheet2!$D$3:$D$1000,$C119,Sheet2!$T$3:$T$1000,$L118) -> 0 | M119: =SUMIFS(Sheet2!$G$3:$G$1000,Sheet2!$D$3:$D$1000,$C119,Sheet2!$T$3:$T$1000,M$2)+SUMIFS(Sheet2!$P$3:$P$1000,Sheet2!$D$3:$D$1000,$C119,Sheet2!$S$3:$S$1000,M$2)-SUMIFS(Sheet2!$J$3:$J$1000,Sheet2!$D$3:$D$1000,$C119,Sheet2!$T$3:$T$1000,M$2)-SUMIFS(Sheet2!$P$3:$P$1000,Sheet2!$D$3:$D$1000,$C119,Sheet2!$T$3:$T$1000,M$2) -> 0 | N119: =SUMIFS(Sheet2!$G$3:$G$1000,Sheet2!$D$3:$D$1000,$C119,Sheet2!$T$3:$T$1000,N$2)+SUMIFS(Sheet2!$P$3:$P$1000,Sheet2!$D$3:$D$1000,$C119,Sheet2!$S$3:$S$1000,N$2)-SUMIFS(Sheet2!$J$3:$J$1000,Sheet2!$D$3:$D$1000,$C119,Sheet2!$T$3:$T$1000,N$2) -> 0 | O119: =SUMIFS(Sheet2!$G$3:$G$1000,Sheet2!$D$3:$D$1000,$C119,Sheet2!$T$3:$T$1000,O$2)+SUMIFS(Sheet2!$P$3:$P$1000,Sheet2!$D$3:$D$1000,$C119,Sheet2!$S$3:$S$1000,O$2)-SUMIFS(Sheet2!$J$3:$J$1000,Sheet2!$D$3:$D$1000,$C119,Sheet2!$T$3:$T$1000,O$2) -> 0 | P119: =SUMIFS(Sheet2!$G$3:$G$1000,Sheet2!$D$3:$D$1000,$C119,Sheet2!$T$3:$T$1000,P$2)+SUMIFS(Sheet2!$P$3:$P$1000,Sheet2!$D$3:$D$1000,$C119,Sheet2!$S$3:$S$1000,P$2)-SUMIFS(Sheet2!$J$3:$J$1000,Sheet2!$D$3:$D$1000,$C119,Sheet2!$T$3:$T$1000,P$2) -> 0 | Q119: =SUMIFS(Sheet2!$G$3:$G$1000,Sheet2!$D$3:$D$1000,$C119,Sheet2!$T$3:$T$1000,Q$2)+SUMIFS(Sheet2!$P$3:$P$1000,Sheet2!$D$3:$D$1000,$C119,Sheet2!$S$3:$S$1000,Q$2)-SUMIFS(Sheet2!$J$3:$J$1000,Sheet2!$D$3:$D$1000,$C119,Sheet2!$T$3:$T$1000,Q$2) -> 0 | R119: =SUMIFS(Sheet2!$G$3:$G$1000,Sheet2!$D$3:$D$1000,$C119,Sheet2!$T$3:$T$1000,R$2)+SUMIFS(Sheet2!$P$3:$P$1000,Sheet2!$D$3:$D$1000,$C119,Sheet2!$S$3:$S$1000,R$2)-SUMIFS(Sheet2!$J$3:$J$1000,Sheet2!$D$3:$D$1000,$C119,Sheet2!$T$3:$T$1000,R$2) -> 0 | AG119: 2018-04-27
K120: 0 | L120: =G120+SUMIFS(Sheet2!$G$3:$G$1000,Sheet2!$D$3:$D$1000,$C120,Sheet2!$T$3:$T$1000,$L119)+SUMIFS(Sheet2!$P$3:$P$1000,Sheet2!$D$3:$D$1000,$C120,Sheet2!$S$3:$S$1000,$L119)-SUMIFS(Sheet2!$J$3:$J$1000,Sheet2!$D$3:$D$1000,$C120,Sheet2!$T$3:$T$1000,$L119) -> 0 | M120: =SUMIFS(Sheet2!$G$3:$G$1000,Sheet2!$D$3:$D$1000,$C120,Sheet2!$T$3:$T$1000,M$2)+SUMIFS(Sheet2!$P$3:$P$1000,Sheet2!$D$3:$D$1000,$C120,Sheet2!$S$3:$S$1000,M$2)-SUMIFS(Sheet2!$J$3:$J$1000,Sheet2!$D$3:$D$1000,$C120,Sheet2!$T$3:$T$1000,M$2)-SUMIFS(Sheet2!$P$3:$P$1000,Sheet2!$D$3:$D$1000,$C120,Sheet2!$T$3:$T$1000,M$2) -> 0 | N120: =SUMIFS(Sheet2!$G$3:$G$1000,Sheet2!$D$3:$D$1000,$C120,Sheet2!$T$3:$T$1000,N$2)+SUMIFS(Sheet2!$P$3:$P$1000,Sheet2!$D$3:$D$1000,$C120,Sheet2!$S$3:$S$1000,N$2)-SUMIFS(Sheet2!$J$3:$J$1000,Sheet2!$D$3:$D$1000,$C120,Sheet2!$T$3:$T$1000,N$2) -> 0 | O120: =SUMIFS(Sheet2!$G$3:$G$1000,Sheet2!$D$3:$D$1000,$C120,Sheet2!$T$3:$T$1000,O$2)+SUMIFS(Sheet2!$P$3:$P$1000,Sheet2!$D$3:$D$1000,$C120,Sheet2!$S$3:$S$1000,O$2)-SUMIFS(Sheet2!$J$3:$J$1000,Sheet2!$D$3:$D$1000,$C120,Sheet2!$T$3:$T$1000,O$2) -> 0 | P120: =SUMIFS(Sheet2!$G$3:$G$1000,Sheet2!$D$3:$D$1000,$C120,Sheet2!$T$3:$T$1000,P$2)+SUMIFS(Sheet2!$P$3:$P$1000,Sheet2!$D$3:$D$1000,$C120,Sheet2!$S$3:$S$1000,P$2)-SUMIFS(Sheet2!$J$3:$J$1000,Sheet2!$D$3:$D$1000,$C120,Sheet2!$T$3:$T$1000,P$2) -> 0 | Q120: =SUMIFS(Sheet2!$G$3:$G$1000,Sheet2!$D$3:$D$1000,$C120,Sheet2!$T$3:$T$1000,Q$2)+SUMIFS(Sheet2!$P$3:$P$1000,Sheet2!$D$3:$D$1000,$C120,Sheet2!$S$3:$S$1000,Q$2)-SUMIFS(Sheet2!$J$3:$J$1000,Sheet2!$D$3:$D$1000,$C120,Sheet2!$T$3:$T$1000,Q$2) -> 0 | R120: =SUMIFS(Sheet2!$G$3:$G$1000,Sheet2!$D$3:$D$1000,$C120,Sheet2!$T$3:$T$1000,R$2)+SUMIFS(Sheet2!$P$3:$P$1000,Sheet2!$D$3:$D$1000,$C120,Sheet2!$S$3:$S$1000,R$2)-SUMIFS(Sheet2!$J$3:$J$1000,Sheet2!$D$3:$D$1000,$C120,Sheet2!$T$3:$T$1000,R$2) -> 0 | AG120: 2018-04-28
K121: 0 | L121: =G121+SUMIFS(Sheet2!$G$3:$G$1000,Sheet2!$D$3:$D$1000,$C121,Sheet2!$T$3:$T$1000,$L120)+SUMIFS(Sheet2!$P$3:$P$1000,Sheet2!$D$3:$D$1000,$C121,Sheet2!$S$3:$S$1000,$L120)-SUMIFS(Sheet2!$J$3:$J$1000,Sheet2!$D$3:$D$1000,$C121,Sheet2!$T$3:$T$1000,$L120) -> 0 | M121: =SUMIFS(Sheet2!$G$3:$G$1000,Sheet2!$D$3:$D$1000,$C121,Sheet2!$T$3:$T$1000,M$2)+SUMIFS(Sheet2!$P$3:$P$1000,Sheet2!$D$3:$D$1000,$C121,Sheet2!$S$3:$S$1000,M$2)-SUMIFS(Sheet2!$J$3:$J$1000,Sheet2!$D$3:$D$1000,$C121,Sheet2!$T$3:$T$1000,M$2)-SUMIFS(Sheet2!$P$3:$P$1000,Sheet2!$D$3:$D$1000,$C121,Sheet2!$T$3:$T$1000,M$2) -> 0 | N121: =SUMIFS(Sheet2!$G$3:$G$1000,Sheet2!$D$3:$D$1000,$C121,Sheet2!$T$3:$T$1000,N$2)+SUMIFS(Sheet2!$P$3:$P$1000,Sheet2!$D$3:$D$1000,$C121,Sheet2!$S$3:$S$1000,N$2)-SUMIFS(Sheet2!$J$3:$J$1000,Sheet2!$D$3:$D$1000,$C121,Sheet2!$T$3:$T$1000,N$2) -> 0 | O121: =SUMIFS(Sheet2!$G$3:$G$1000,Sheet2!$D$3:$D$1000,$C121,Sheet2!$T$3:$T$1000,O$2)+SUMIFS(Sheet2!$P$3:$P$1000,Sheet2!$D$3:$D$1000,$C121,Sheet2!$S$3:$S$1000,O$2)-SUMIFS(Sheet2!$J$3:$J$1000,Sheet2!$D$3:$D$1000,$C121,Sheet2!$T$3:$T$1000,O$2) -> 0 | P121: =SUMIFS(Sheet2!$G$3:$G$1000,Sheet2!$D$3:$D$1000,$C121,Sheet2!$T$3:$T$1000,P$2)+SUMIFS(Sheet2!$P$3:$P$1000,Sheet2!$D$3:$D$1000,$C121,Sheet2!$S$3:$S$1000,P$2)-SUMIFS(Sheet2!$J$3:$J$1000,Sheet2!$D$3:$D$1000,$C121,Sheet2!$T$3:$T$1000,P$2) -> 0 | Q121: =SUMIFS(Sheet2!$G$3:$G$1000,Sheet2!$D$3:$D$1000,$C121,Sheet2!$T$3:$T$1000,Q$2)+SUMIFS(Sheet2!$P$3:$P$1000,Sheet2!$D$3:$D$1000,$C121,Sheet2!$S$3:$S$1000,Q$2)-SUMIFS(Sheet2!$J$3:$J$1000,Sheet2!$D$3:$D$1000,$C121,Sheet2!$T$3:$T$1000,Q$2) -> 0 | R121: =SUMIFS(Sheet2!$G$3:$G$1000,Sheet2!$D$3:$D$1000,$C121,Sheet2!$T$3:$T$1000,R$2)+SUMIFS(Sheet2!$P$3:$P$1000,Sheet2!$D$3:$D$1000,$C121,Sheet2!$S$3:$S$1000,R$2)-SUMIFS(Sheet2!$J$3:$J$1000,Sheet2!$D$3:$D$1000,$C121,Sheet2!$T$3:$T$1000,R$2) -> 0 | AG121: 2018-04-29
K122: 0 | L122: =G122+SUMIFS(Sheet2!$G$3:$G$1000,Sheet2!$D$3:$D$1000,$C122,Sheet2!$T$3:$T$1000,$L121)+SUMIFS(Sheet2!$P$3:$P$1000,Sheet2!$D$3:$D$1000,$C122,Sheet2!$S$3:$S$1000,$L121)-SUMIFS(Sheet2!$J$3:$J$1000,Sheet2!$D$3:$D$1000,$C122,Sheet2!$T$3:$T$1000,$L121) -> 0 | M122: =SUMIFS(Sheet2!$G$3:$G$1000,Sheet2!$D$3:$D$1000,$C122,Sheet2!$T$3:$T$1000,M$2)+SUMIFS(Sheet2!$P$3:$P$1000,Sheet2!$D$3:$D$1000,$C122,Sheet2!$S$3:$S$1000,M$2)-SUMIFS(Sheet2!$J$3:$J$1000,Sheet2!$D$3:$D$1000,$C122,Sheet2!$T$3:$T$1000,M$2)-SUMIFS(Sheet2!$P$3:$P$1000,Sheet2!$D$3:$D$1000,$C122,Sheet2!$T$3:$T$1000,M$2) -> 0 | N122: =SUMIFS(Sheet2!$G$3:$G$1000,Sheet2!$D$3:$D$1000,$C122,Sheet2!$T$3:$T$1000,N$2)+SUMIFS(Sheet2!$P$3:$P$1000,Sheet2!$D$3:$D$1000,$C122,Sheet2!$S$3:$S$1000,N$2)-SUMIFS(Sheet2!$J$3:$J$1000,Sheet2!$D$3:$D$1000,$C122,Sheet2!$T$3:$T$1000,N$2) -> 0 | O122: =SUMIFS(Sheet2!$G$3:$G$1000,Sheet2!$D$3:$D$1000,$C122,Sheet2!$T$3:$T$1000,O$2)+SUMIFS(Sheet2!$P$3:$P$1000,Sheet2!$D$3:$D$1000,$C122,Sheet2!$S$3:$S$1000,O$2)-SUMIFS(Sheet2!$J$3:$J$1000,Sheet2!$D$3:$D$1000,$C122,Sheet2!$T$3:$T$1000,O$2) -> 0 | P122: =SUMIFS(Sheet2!$G$3:$G$1000,Sheet2!$D$3:$D$1000,$C122,Sheet2!$T$3:$T$1000,P$2)+SUMIFS(Sheet2!$P$3:$P$1000,Sheet2!$D$3:$D$1000,$C122,Sheet2!$S$3:$S$1000,P$2)-SUMIFS(Sheet2!$J$3:$J$1000,Sheet2!$D$3:$D$1000,$C122,Sheet2!$T$3:$T$1000,P$2) -> 0 | Q122: =SUMIFS(Sheet2!$G$3:$G$1000,Sheet2!$D$3:$D$1000,$C122,Sheet2!$T$3:$T$1000,Q$2)+SUMIFS(Sheet2!$P$3:$P$1000,Sheet2!$D$3:$D$1000,$C122,Sheet2!$S$3:$S$1000,Q$2)-SUMIFS(Sheet2!$J$3:$J$1000,Sheet2!$D$3:$D$1000,$C122,Sheet2!$T$3:$T$1000,Q$2) -> 0 | R122: =SUMIFS(Sheet2!$G$3:$G$1000,Sheet2!$D$3:$D$1000,$C122,Sheet2!$T$3:$T$1000,R$2)+SUMIFS(Sheet2!$P$3:$P$1000,Sheet2!$D$3:$D$1000,$C122,Sheet2!$S$3:$S$1000,R$2)-SUMIFS(Sheet2!$J$3:$J$1000,Sheet2!$D$3:$D$1000,$C122,Sheet2!$T$3:$T$1000,R$2) -> 0 | AG122: 2018-04-30
K123: 0 | L123: =G123+SUMIFS(Sheet2!$G$3:$G$1000,Sheet2!$D$3:$D$1000,$C123,Sheet2!$T$3:$T$1000,$L122)+SUMIFS(Sheet2!$P$3:$P$1000,Sheet2!$D$3:$D$1000,$C123,Sheet2!$S$3:$S$1000,$L122)-SUMIFS(Sheet2!$J$3:$J$1000,Sheet2!$D$3:$D$1000,$C123,Sheet2!$T$3:$T$1000,$L122) -> 0 | M123: =SUMIFS(Sheet2!$G$3:$G$1000,Sheet2!$D$3:$D$1000,$C123,Sheet2!$T$3:$T$1000,M$2)+SUMIFS(Sheet2!$P$3:$P$1000,Sheet2!$D$3:$D$1000,$C123,Sheet2!$S$3:$S$1000,M$2)-SUMIFS(Sheet2!$J$3:$J$1000,Sheet2!$D$3:$D$1000,$C123,Sheet2!$T$3:$T$1000,M$2)-SUMIFS(Sheet2!$P$3:$P$1000,Sheet2!$D$3:$D$1000,$C123,Sheet2!$T$3:$T$1000,M$2) -> 0 | N123: =SUMIFS(Sheet2!$G$3:$G$1000,Sheet2!$D$3:$D$1000,$C123,Sheet2!$T$3:$T$1000,N$2)+SUMIFS(Sheet2!$P$3:$P$1000,Sheet2!$D$3:$D$1000,$C123,Sheet2!$S$3:$S$1000,N$2)-SUMIFS(Sheet2!$J$3:$J$1000,Sheet2!$D$3:$D$1000,$C123,Sheet2!$T$3:$T$1000,N$2) -> 0 | O123: =SUMIFS(Sheet2!$G$3:$G$1000,Sheet2!$D$3:$D$1000,$C123,Sheet2!$T$3:$T$1000,O$2)+SUMIFS(Sheet2!$P$3:$P$1000,Sheet2!$D$3:$D$1000,$C123,Sheet2!$S$3:$S$1000,O$2)-SUMIFS(Sheet2!$J$3:$J$1000,Sheet2!$D$3:$D$1000,$C123,Sheet2!$T$3:$T$1000,O$2) -> 0 | P123: =SUMIFS(Sheet2!$G$3:$G$1000,Sheet2!$D$3:$D$1000,$C123,Sheet2!$T$3:$T$1000,P$2)+SUMIFS(Sheet2!$P$3:$P$1000,Sheet2!$D$3:$D$1000,$C123,Sheet2!$S$3:$S$1000,P$2)-SUMIFS(Sheet2!$J$3:$J$1000,Sheet2!$D$3:$D$1000,$C123,Sheet2!$T$3:$T$1000,P$2) -> 0 | Q123: =SUMIFS(Sheet2!$G$3:$G$1000,Sheet2!$D$3:$D$1000,$C123,Sheet2!$T$3:$T$1000,Q$2)+SUMIFS(Sheet2!$P$3:$P$1000,Sheet2!$D$3:$D$1000,$C123,Sheet2!$S$3:$S$1000,Q$2)-SUMIFS(Sheet2!$J$3:$J$1000,Sheet2!$D$3:$D$1000,$C123,Sheet2!$T$3:$T$1000,Q$2) -> 0 | R123: =SUMIFS(Sheet2!$G$3:$G$1000,Sheet2!$D$3:$D$1000,$C123,Sheet2!$T$3:$T$1000,R$2)+SUMIFS(Sheet2!$P$3:$P$1000,Sheet2!$D$3:$D$1000,$C123,Sheet2!$S$3:$S$1000,R$2)-SUMIFS(Sheet2!$J$3:$J$1000,Sheet2!$D$3:$D$1000,$C123,Sheet2!$T$3:$T$1000,R$2) -> 0 | AG123: 2018-05-01
K124: 0 | L124: =G124+SUMIFS(Sheet2!$G$3:$G$1000,Sheet2!$D$3:$D$1000,$C124,Sheet2!$T$3:$T$1000,$L123)+SUMIFS(Sheet2!$P$3:$P$1000,Sheet2!$D$3:$D$1000,$C124,Sheet2!$S$3:$S$1000,$L123)-SUMIFS(Sheet2!$J$3:$J$1000,Sheet2!$D$3:$D$1000,$C124,Sheet2!$T$3:$T$1000,$L123) -> 0 | M124: =SUMIFS(Sheet2!$G$3:$G$1000,Sheet2!$D$3:$D$1000,$C124,Sheet2!$T$3:$T$1000,M$2)+SUMIFS(Sheet2!$P$3:$P$1000,Sheet2!$D$3:$D$1000,$C124,Sheet2!$S$3:$S$1000,M$2)-SUMIFS(Sheet2!$J$3:$J$1000,Sheet2!$D$3:$D$1000,$C124,Sheet2!$T$3:$T$1000,M$2)-SUMIFS(Sheet2!$P$3:$P$1000,Sheet2!$D$3:$D$1000,$C124,Sheet2!$T$3:$T$1000,M$2) -> 0 | N124: =SUMIFS(Sheet2!$G$3:$G$1000,Sheet2!$D$3:$D$1000,$C124,Sheet2!$T$3:$T$1000,N$2)+SUMIFS(Sheet2!$P$3:$P$1000,Sheet2!$D$3:$D$1000,$C124,Sheet2!$S$3:$S$1000,N$2)-SUMIFS(Sheet2!$J$3:$J$1000,Sheet2!$D$3:$D$1000,$C124,Sheet2!$T$3:$T$1000,N$2) -> 0 | O124: =SUMIFS(Sheet2!$G$3:$G$1000,Sheet2!$D$3:$D$1000,$C124,Sheet2!$T$3:$T$1000,O$2)+SUMIFS(Sheet2!$P$3:$P$1000,Sheet2!$D$3:$D$1000,$C124,Sheet2!$S$3:$S$1000,O$2)-SUMIFS(Sheet2!$J$3:$J$1000,Sheet2!$D$3:$D$1000,$C124,Sheet2!$T$3:$T$1000,O$2) -> 0 | P124: =SUMIFS(Sheet2!$G$3:$G$1000,Sheet2!$D$3:$D$1000,$C124,Sheet2!$T$3:$T$1000,P$2)+SUMIFS(Sheet2!$P$3:$P$1000,Sheet2!$D$3:$D$1000,$C124,Sheet2!$S$3:$S$1000,P$2)-SUMIFS(Sheet2!$J$3:$J$1000,Sheet2!$D$3:$D$1000,$C124,Sheet2!$T$3:$T$1000,P$2) -> 0 | Q124: =SUMIFS(Sheet2!$G$3:$G$1000,Sheet2!$D$3:$D$1000,$C124,Sheet2!$T$3:$T$1000,Q$2)+SUMIFS(Sheet2!$P$3:$P$1000,Sheet2!$D$3:$D$1000,$C124,Sheet2!$S$3:$S$1000,Q$2)-SUMIFS(Sheet2!$J$3:$J$1000,Sheet2!$D$3:$D$1000,$C124,Sheet2!$T$3:$T$1000,Q$2) -> 0 | R124: =SUMIFS(Sheet2!$G$3:$G$1000,Sheet2!$D$3:$D$1000,$C124,Sheet2!$T$3:$T$1000,R$2)+SUMIFS(Sheet2!$P$3:$P$1000,Sheet2!$D$3:$D$1000,$C124,Sheet2!$S$3:$S$1000,R$2)-SUMIFS(Sheet2!$J$3:$J$1000,Sheet2!$D$3:$D$1000,$C124,Sheet2!$T$3:$T$1000,R$2) -> 0 | AG124: 2018-05-02
K125: 0 | L125: =G125+SUMIFS(Sheet2!$G$3:$G$1000,Sheet2!$D$3:$D$1000,$C125,Sheet2!$T$3:$T$1000,$L124)+SUMIFS(Sheet2!$P$3:$P$1000,Sheet2!$D$3:$D$1000,$C125,Sheet2!$S$3:$S$1000,$L124)-SUMIFS(Sheet2!$J$3:$J$1000,Sheet2!$D$3:$D$1000,$C125,Sheet2!$T$3:$T$1000,$L124) -> 0 | M125: =SUMIFS(Sheet2!$G$3:$G$1000,Sheet2!$D$3:$D$1000,$C125,Sheet2!$T$3:$T$1000,M$2)+SUMIFS(Sheet2!$P$3:$P$1000,Sheet2!$D$3:$D$1000,$C125,Sheet2!$S$3:$S$1000,M$2)-SUMIFS(Sheet2!$J$3:$J$1000,Sheet2!$D$3:$D$1000,$C125,Sheet2!$T$3:$T$1000,M$2)-SUMIFS(Sheet2!$P$3:$P$1000,Sheet2!$D$3:$D$1000,$C125,Sheet2!$T$3:$T$1000,M$2) -> 0 | N125: =SUMIFS(Sheet2!$G$3:$G$1000,Sheet2!$D$3:$D$1000,$C125,Sheet2!$T$3:$T$1000,N$2)+SUMIFS(Sheet2!$P$3:$P$1000,Sheet2!$D$3:$D$1000,$C125,Sheet2!$S$3:$S$1000,N$2)-SUMIFS(Sheet2!$J$3:$J$1000,Sheet2!$D$3:$D$1000,$C125,Sheet2!$T$3:$T$1000,N$2) -> 0 | O125: =SUMIFS(Sheet2!$G$3:$G$1000,Sheet2!$D$3:$D$1000,$C125,Sheet2!$T$3:$T$1000,O$2)+SUMIFS(Sheet2!$P$3:$P$1000,Sheet2!$D$3:$D$1000,$C125,Sheet2!$S$3:$S$1000,O$2)-SUMIFS(Sheet2!$J$3:$J$1000,Sheet2!$D$3:$D$1000,$C125,Sheet2!$T$3:$T$1000,O$2) -> 0 | P125: =SUMIFS(Sheet2!$G$3:$G$1000,Sheet2!$D$3:$D$1000,$C125,Sheet2!$T$3:$T$1000,P$2)+SUMIFS(Sheet2!$P$3:$P$1000,Sheet2!$D$3:$D$1000,$C125,Sheet2!$S$3:$S$1000,P$2)-SUMIFS(Sheet2!$J$3:$J$1000,Sheet2!$D$3:$D$1000,$C125,Sheet2!$T$3:$T$1000,P$2) -> 0 | Q125: =SUMIFS(Sheet2!$G$3:$G$1000,Sheet2!$D$3:$D$1000,$C125,Sheet2!$T$3:$T$1000,Q$2)+SUMIFS(Sheet2!$P$3:$P$1000,Sheet2!$D$3:$D$1000,$C125,Sheet2!$S$3:$S$1000,Q$2)-SUMIFS(Sheet2!$J$3:$J$1000,Sheet2!$D$3:$D$1000,$C125,Sheet2!$T$3:$T$1000,Q$2) -> 0 | R125: =SUMIFS(Sheet2!$G$3:$G$1000,Sheet2!$D$3:$D$1000,$C125,Sheet2!$T$3:$T$1000,R$2)+SUMIFS(Sheet2!$P$3:$P$1000,Sheet2!$D$3:$D$1000,$C125,Sheet2!$S$3:$S$1000,R$2)-SUMIFS(Sheet2!$J$3:$J$1000,Sheet2!$D$3:$D$1000,$C125,Sheet2!$T$3:$T$1000,R$2) -> 0 | AG125: 2018-05-03
K126: 0 | L126: =G126+SUMIFS(Sheet2!$G$3:$G$1000,Sheet2!$D$3:$D$1000,$C126,Sheet2!$T$3:$T$1000,$L125)+SUMIFS(Sheet2!$P$3:$P$1000,Sheet2!$D$3:$D$1000,$C126,Sheet2!$S$3:$S$1000,$L125)-SUMIFS(Sheet2!$J$3:$J$1000,Sheet2!$D$3:$D$1000,$C126,Sheet2!$T$3:$T$1000,$L125) -> 0 | M126: =SUMIFS(Sheet2!$G$3:$G$1000,Sheet2!$D$3:$D$1000,$C126,Sheet2!$T$3:$T$1000,M$2)+SUMIFS(Sheet2!$P$3:$P$1000,Sheet2!$D$3:$D$1000,$C126,Sheet2!$S$3:$S$1000,M$2)-SUMIFS(Sheet2!$J$3:$J$1000,Sheet2!$D$3:$D$1000,$C126,Sheet2!$T$3:$T$1000,M$2)-SUMIFS(Sheet2!$P$3:$P$1000,Sheet2!$D$3:$D$1000,$C126,Sheet2!$T$3:$T$1000,M$2) -> 0 | N126: =SUMIFS(Sheet2!$G$3:$G$1000,Sheet2!$D$3:$D$1000,$C126,Sheet2!$T$3:$T$1000,N$2)+SUMIFS(Sheet2!$P$3:$P$1000,Sheet2!$D$3:$D$1000,$C126,Sheet2!$S$3:$S$1000,N$2)-SUMIFS(Sheet2!$J$3:$J$1000,Sheet2!$D$3:$D$1000,$C126,Sheet2!$T$3:$T$1000,N$2) -> 0 | O126: =SUMIFS(Sheet2!$G$3:$G$1000,Sheet2!$D$3:$D$1000,$C126,Sheet2!$T$3:$T$1000,O$2)+SUMIFS(Sheet2!$P$3:$P$1000,Sheet2!$D$3:$D$1000,$C126,Sheet2!$S$3:$S$1000,O$2)-SUMIFS(Sheet2!$J$3:$J$1000,Sheet2!$D$3:$D$1000,$C126,Sheet2!$T$3:$T$1000,O$2) -> 0 | P126: =SUMIFS(Sheet2!$G$3:$G$1000,Sheet2!$D$3:$D$1000,$C126,Sheet2!$T$3:$T$1000,P$2)+SUMIFS(Sheet2!$P$3:$P$1000,Sheet2!$D$3:$D$1000,$C126,Sheet2!$S$3:$S$1000,P$2)-SUMIFS(Sheet2!$J$3:$J$1000,Sheet2!$D$3:$D$1000,$C126,Sheet2!$T$3:$T$1000,P$2) -> 0 | Q126: =SUMIFS(Sheet2!$G$3:$G$1000,Sheet2!$D$3:$D$1000,$C126,Sheet2!$T$3:$T$1000,Q$2)+SUMIFS(Sheet2!$P$3:$P$1000,Sheet2!$D$3:$D$1000,$C126,Sheet2!$S$3:$S$1000,Q$2)-SUMIFS(Sheet2!$J$3:$J$1000,Sheet2!$D$3:$D$1000,$C126,Sheet2!$T$3:$T$1000,Q$2) -> 0 | R126: =SUMIFS(Sheet2!$G$3:$G$1000,Sheet2!$D$3:$D$1000,$C126,Sheet2!$T$3:$T$1000,R$2)+SUMIFS(Sheet2!$P$3:$P$1000,Sheet2!$D$3:$D$1000,$C126,Sheet2!$S$3:$S$1000,R$2)-SUMIFS(Sheet2!$J$3:$J$1000,Sheet2!$D$3:$D$1000,$C126,Sheet2!$T$3:$T$1000,R$2) -> 0 | AG126: 2018-05-04
K127: 0 | L127: =G127+SUMIFS(Sheet2!$G$3:$G$1000,Sheet2!$D$3:$D$1000,$C127,Sheet2!$T$3:$T$1000,$L126)+SUMIFS(Sheet2!$P$3:$P$1000,Sheet2!$D$3:$D$1000,$C127,Sheet2!$S$3:$S$1000,$L126)-SUMIFS(Sheet2!$J$3:$J$1000,Sheet2!$D$3:$D$1000,$C127,Sheet2!$T$3:$T$1000,$L126) -> 0 | M127: =SUMIFS(Sheet2!$G$3:$G$1000,Sheet2!$D$3:$D$1000,$C127,Sheet2!$T$3:$T$1000,M$2)+SUMIFS(Sheet2!$P$3:$P$1000,Sheet2!$D$3:$D$1000,$C127,Sheet2!$S$3:$S$1000,M$2)-SUMIFS(Sheet2!$J$3:$J$1000,Sheet2!$D$3:$D$1000,$C127,Sheet2!$T$3:$T$1000,M$2)-SUMIFS(Sheet2!$P$3:$P$1000,Sheet2!$D$3:$D$1000,$C127,Sheet2!$T$3:$T$1000,M$2) -> 0 | N127: =SUMIFS(Sheet2!$G$3:$G$1000,Sheet2!$D$3:$D$1000,$C127,Sheet2!$T$3:$T$1000,N$2)+SUMIFS(Sheet2!$P$3:$P$1000,Sheet2!$D$3:$D$1000,$C127,Sheet2!$S$3:$S$1000,N$2)-SUMIFS(Sheet2!$J$3:$J$1000,Sheet2!$D$3:$D$1000,$C127,Sheet2!$T$3:$T$1000,N$2) -> 0 | O127: =SUMIFS(Sheet2!$G$3:$G$1000,Sheet2!$D$3:$D$1000,$C127,Sheet2!$T$3:$T$1000,O$2)+SUMIFS(Sheet2!$P$3:$P$1000,Sheet2!$D$3:$D$1000,$C127,Sheet2!$S$3:$S$1000,O$2)-SUMIFS(Sheet2!$J$3:$J$1000,Sheet2!$D$3:$D$1000,$C127,Sheet2!$T$3:$T$1000,O$2) -> 0 | P127: =SUMIFS(Sheet2!$G$3:$G$1000,Sheet2!$D$3:$D$1000,$C127,Sheet2!$T$3:$T$1000,P$2)+SUMIFS(Sheet2!$P$3:$P$1000,Sheet2!$D$3:$D$1000,$C127,Sheet2!$S$3:$S$1000,P$2)-SUMIFS(Sheet2!$J$3:$J$1000,Sheet2!$D$3:$D$1000,$C127,Sheet2!$T$3:$T$1000,P$2) -> 0 | Q127: =SUMIFS(Sheet2!$G$3:$G$1000,Sheet2!$D$3:$D$1000,$C127,Sheet2!$T$3:$T$1000,Q$2)+SUMIFS(Sheet2!$P$3:$P$1000,Sheet2!$D$3:$D$1000,$C127,Sheet2!$S$3:$S$1000,Q$2)-SUMIFS(Sheet2!$J$3:$J$1000,Sheet2!$D$3:$D$1000,$C127,Sheet2!$T$3:$T$1000,Q$2) -> 0 | R127: =SUMIFS(Sheet2!$G$3:$G$1000,Sheet2!$D$3:$D$1000,$C127,Sheet2!$T$3:$T$1000,R$2)+SUMIFS(Sheet2!$P$3:$P$1000,Sheet2!$D$3:$D$1000,$C127,Sheet2!$S$3:$S$1000,R$2)-SUMIFS(Sheet2!$J$3:$J$1000,Sheet2!$D$3:$D$1000,$C127,Sheet2!$T$3:$T$1000,R$2) -> 0 | AG127: 2018-05-05
K128: 0 | L128: =G128+SUMIFS(Sheet2!$G$3:$G$1000,Sheet2!$D$3:$D$1000,$C128,Sheet2!$T$3:$T$1000,$L127)+SUMIFS(Sheet2!$P$3:$P$1000,Sheet2!$D$3:$D$1000,$C128,Sheet2!$S$3:$S$1000,$L127)-SUMIFS(Sheet2!$J$3:$J$1000,Sheet2!$D$3:$D$1000,$C128,Sheet2!$T$3:$T$1000,$L127) -> 0 | M128: =SUMIFS(Sheet2!$G$3:$G$1000,Sheet2!$D$3:$D$1000,$C128,Sheet2!$T$3:$T$1000,M$2)+SUMIFS(Sheet2!$P$3:$P$1000,Sheet2!$D$3:$D$1000,$C128,Sheet2!$S$3:$S$1000,M$2)-SUMIFS(Sheet2!$J$3:$J$1000,Sheet2!$D$3:$D$1000,$C128,Sheet2!$T$3:$T$1000,M$2)-SUMIFS(Sheet2!$P$3:$P$1000,Sheet2!$D$3:$D$1000,$C128,Sheet2!$T$3:$T$1000,M$2) -> 0 | N128: =SUMIFS(Sheet2!$G$3:$G$1000,Sheet2!$D$3:$D$1000,$C128,Sheet2!$T$3:$T$1000,N$2)+SUMIFS(Sheet2!$P$3:$P$1000,Sheet2!$D$3:$D$1000,$C128,Sheet2!$S$3:$S$1000,N$2)-SUMIFS(Sheet2!$J$3:$J$1000,Sheet2!$D$3:$D$1000,$C128,Sheet2!$T$3:$T$1000,N$2) -> 0 | O128: =SUMIFS(Sheet2!$G$3:$G$1000,Sheet2!$D$3:$D$1000,$C128,Sheet2!$T$3:$T$1000,O$2)+SUMIFS(Sheet2!$P$3:$P$1000,Sheet2!$D$3:$D$1000,$C128,Sheet2!$S$3:$S$1000,O$2)-SUMIFS(Sheet2!$J$3:$J$1000,Sheet2!$D$3:$D$1000,$C128,Sheet2!$T$3:$T$1000,O$2) -> 0 | P128: =SUMIFS(Sheet2!$G$3:$G$1000,Sheet2!$D$3:$D$1000,$C128,Sheet2!$T$3:$T$1000,P$2)+SUMIFS(Sheet2!$P$3:$P$1000,Sheet2!$D$3:$D$1000,$C128,Sheet2!$S$3:$S$1000,P$2)-SUMIFS(Sheet2!$J$3:$J$1000,Sheet2!$D$3:$D$1000,$C128,Sheet2!$T$3:$T$1000,P$2) -> 0 | Q128: =SUMIFS(Sheet2!$G$3:$G$1000,Sheet2!$D$3:$D$1000,$C128,Sheet2!$T$3:$T$1000,Q$2)+SUMIFS(Sheet2!$P$3:$P$1000,Sheet2!$D$3:$D$1000,$C128,Sheet2!$S$3:$S$1000,Q$2)-SUMIFS(Sheet2!$J$3:$J$1000,Sheet2!$D$3:$D$1000,$C128,Sheet2!$T$3:$T$1000,Q$2) -> 0 | R128: =SUMIFS(Sheet2!$G$3:$G$1000,Sheet2!$D$3:$D$1000,$C128,Sheet2!$T$3:$T$1000,R$2)+SUMIFS(Sheet2!$P$3:$P$1000,Sheet2!$D$3:$D$1000,$C128,Sheet2!$S$3:$S$1000,R$2)-SUMIFS(Sheet2!$J$3:$J$1000,Sheet2!$D$3:$D$1000,$C128,Sheet2!$T$3:$T$1000,R$2) -> 0 | AG128: 2018-05-06
K129: 0 | L129: =G129+SUMIFS(Sheet2!$G$3:$G$1000,Sheet2!$D$3:$D$1000,$C129,Sheet2!$T$3:$T$1000,$L128)+SUMIFS(Sheet2!$P$3:$P$1000,Sheet2!$D$3:$D$1000,$C129,Sheet2!$S$3:$S$1000,$L128)-SUMIFS(Sheet2!$J$3:$J$1000,Sheet2!$D$3:$D$1000,$C129,Sheet2!$T$3:$T$1000,$L128) -> 0 | M129: =SUMIFS(Sheet2!$G$3:$G$1000,Sheet2!$D$3:$D$1000,$C129,Sheet2!$T$3:$T$1000,M$2)+SUMIFS(Sheet2!$P$3:$P$1000,Sheet2!$D$3:$D$1000,$C129,Sheet2!$S$3:$S$1000,M$2)-SUMIFS(Sheet2!$J$3:$J$1000,Sheet2!$D$3:$D$1000,$C129,Sheet2!$T$3:$T$1000,M$2)-SUMIFS(Sheet2!$P$3:$P$1000,Sheet2!$D$3:$D$1000,$C129,Sheet2!$T$3:$T$1000,M$2) -> 0 | N129: =SUMIFS(Sheet2!$G$3:$G$1000,Sheet2!$D$3:$D$1000,$C129,Sheet2!$T$3:$T$1000,N$2)+SUMIFS(Sheet2!$P$3:$P$1000,Sheet2!$D$3:$D$1000,$C129,Sheet2!$S$3:$S$1000,N$2)-SUMIFS(Sheet2!$J$3:$J$1000,Sheet2!$D$3:$D$1000,$C129,Sheet2!$T$3:$T$1000,N$2) -> 0 | O129: =SUMIFS(Sheet2!$G$3:$G$1000,Sheet2!$D$3:$D$1000,$C129,Sheet2!$T$3:$T$1000,O$2)+SUMIFS(Sheet2!$P$3:$P$1000,Sheet2!$D$3:$D$1000,$C129,Sheet2!$S$3:$S$1000,O$2)-SUMIFS(Sheet2!$J$3:$J$1000,Sheet2!$D$3:$D$1000,$C129,Sheet2!$T$3:$T$1000,O$2) -> 0 | P129: =SUMIFS(Sheet2!$G$3:$G$1000,Sheet2!$D$3:$D$1000,$C129,Sheet2!$T$3:$T$1000,P$2)+SUMIFS(Sheet2!$P$3:$P$1000,Sheet2!$D$3:$D$1000,$C129,Sheet2!$S$3:$S$1000,P$2)-SUMIFS(Sheet2!$J$3:$J$1000,Sheet2!$D$3:$D$1000,$C129,Sheet2!$T$3:$T$1000,P$2) -> 0 | Q129: =SUMIFS(Sheet2!$G$3:$G$1000,Sheet2!$D$3:$D$1000,$C129,Sheet2!$T$3:$T$1000,Q$2)+SUMIFS(Sheet2!$P$3:$P$1000,Sheet2!$D$3:$D$1000,$C129,Sheet2!$S$3:$S$1000,Q$2)-SUMIFS(Sheet2!$J$3:$J$1000,Sheet2!$D$3:$D$1000,$C129,Sheet2!$T$3:$T$1000,Q$2) -> 0 | R129: =SUMIFS(Sheet2!$G$3:$G$1000,Sheet2!$D$3:$D$1000,$C129,Sheet2!$T$3:$T$1000,R$2)+SUMIFS(Sheet2!$P$3:$P$1000,Sheet2!$D$3:$D$1000,$C129,Sheet2!$S$3:$S$1000,R$2)-SUMIFS(Sheet2!$J$3:$J$1000,Sheet2!$D$3:$D$1000,$C129,Sheet2!$T$3:$T$1000,R$2) -> 0 | AG129: 2018-05-07
K130: 0 | L130: =G130+SUMIFS(Sheet2!$G$3:$G$1000,Sheet2!$D$3:$D$1000,$C130,Sheet2!$T$3:$T$1000,$L129)+SUMIFS(Sheet2!$P$3:$P$1000,Sheet2!$D$3:$D$1000,$C130,Sheet2!$S$3:$S$1000,$L129)-SUMIFS(Sheet2!$J$3:$J$1000,Sheet2!$D$3:$D$1000,$C130,Sheet2!$T$3:$T$1000,$L129) -> 0 | M130: =SUMIFS(Sheet2!$G$3:$G$1000,Sheet2!$D$3:$D$1000,$C130,Sheet2!$T$3:$T$1000,M$2)+SUMIFS(Sheet2!$P$3:$P$1000,Sheet2!$D$3:$D$1000,$C130,Sheet2!$S$3:$S$1000,M$2)-SUMIFS(Sheet2!$J$3:$J$1000,Sheet2!$D$3:$D$1000,$C130,Sheet2!$T$3:$T$1000,M$2)-SUMIFS(Sheet2!$P$3:$P$1000,Sheet2!$D$3:$D$1000,$C130,Sheet2!$T$3:$T$1000,M$2) -> 0 | N130: =SUMIFS(Sheet2!$G$3:$G$1000,Sheet2!$D$3:$D$1000,$C130,Sheet2!$T$3:$T$1000,N$2)+SUMIFS(Sheet2!$P$3:$P$1000,Sheet2!$D$3:$D$1000,$C130,Sheet2!$S$3:$S$1000,N$2)-SUMIFS(Sheet2!$J$3:$J$1000,Sheet2!$D$3:$D$1000,$C130,Sheet2!$T$3:$T$1000,N$2) -> 0 | O130: =SUMIFS(Sheet2!$G$3:$G$1000,Sheet2!$D$3:$D$1000,$C130,Sheet2!$T$3:$T$1000,O$2)+SUMIFS(Sheet2!$P$3:$P$1000,Sheet2!$D$3:$D$1000,$C130,Sheet2!$S$3:$S$1000,O$2)-SUMIFS(Sheet2!$J$3:$J$1000,Sheet2!$D$3:$D$1000,$C130,Sheet2!$T$3:$T$1000,O$2) -> 0 | P130: =SUMIFS(Sheet2!$G$3:$G$1000,Sheet2!$D$3:$D$1000,$C130,Sheet2!$T$3:$T$1000,P$2)+SUMIFS(Sheet2!$P$3:$P$1000,Sheet2!$D$3:$D$1000,$C130,Sheet2!$S$3:$S$1000,P$2)-SUMIFS(Sheet2!$J$3:$J$1000,Sheet2!$D$3:$D$1000,$C130,Sheet2!$T$3:$T$1000,P$2) -> 0 | Q130: =SUMIFS(Sheet2!$G$3:$G$1000,Sheet2!$D$3:$D$1000,$C130,Sheet2!$T$3:$T$1000,Q$2)+SUMIFS(Sheet2!$P$3:$P$1000,Sheet2!$D$3:$D$1000,$C130,Sheet2!$S$3:$S$1000,Q$2)-SUMIFS(Sheet2!$J$3:$J$1000,Sheet2!$D$3:$D$1000,$C130,Sheet2!$T$3:$T$1000,Q$2) -> 0 | R130: =SUMIFS(Sheet2!$G$3:$G$1000,Sheet2!$D$3:$D$1000,$C130,Sheet2!$T$3:$T$1000,R$2)+SUMIFS(Sheet2!$P$3:$P$1000,Sheet2!$D$3:$D$1000,$C130,Sheet2!$S$3:$S$1000,R$2)-SUMIFS(Sheet2!$J$3:$J$1000,Sheet2!$D$3:$D$1000,$C130,Sheet2!$T$3:$T$1000,R$2) -> 0 | AG130: 2018-05-08
K131: 0 | L131: =G131+SUMIFS(Sheet2!$G$3:$G$1000,Sheet2!$D$3:$D$1000,$C131,Sheet2!$T$3:$T$1000,$L130)+SUMIFS(Sheet2!$P$3:$P$1000,Sheet2!$D$3:$D$1000,$C131,Sheet2!$S$3:$S$1000,$L130)-SUMIFS(Sheet2!$J$3:$J$1000,Sheet2!$D$3:$D$1000,$C131,Sheet2!$T$3:$T$1000,$L130) -> 0 | M131: =SUMIFS(Sheet2!$G$3:$G$1000,Sheet2!$D$3:$D$1000,$C131,Sheet2!$T$3:$T$1000,M$2)+SUMIFS(Sheet2!$P$3:$P$1000,Sheet2!$D$3:$D$1000,$C131,Sheet2!$S$3:$S$1000,M$2)-SUMIFS(Sheet2!$J$3:$J$1000,Sheet2!$D$3:$D$1000,$C131,Sheet2!$T$3:$T$1000,M$2)-SUMIFS(Sheet2!$P$3:$P$1000,Sheet2!$D$3:$D$1000,$C131,Sheet2!$T$3:$T$1000,M$2) -> 0 | N131: =SUMIFS(Sheet2!$G$3:$G$1000,Sheet2!$D$3:$D$1000,$C131,Sheet2!$T$3:$T$1000,N$2)+SUMIFS(Sheet2!$P$3:$P$1000,Sheet2!$D$3:$D$1000,$C131,Sheet2!$S$3:$S$1000,N$2)-SUMIFS(Sheet2!$J$3:$J$1000,Sheet2!$D$3:$D$1000,$C131,Sheet2!$T$3:$T$1000,N$2) -> 0 | O131: =SUMIFS(Sheet2!$G$3:$G$1000,Sheet2!$D$3:$D$1000,$C131,Sheet2!$T$3:$T$1000,O$2)+SUMIFS(Sheet2!$P$3:$P$1000,Sheet2!$D$3:$D$1000,$C131,Sheet2!$S$3:$S$1000,O$2)-SUMIFS(Sheet2!$J$3:$J$1000,Sheet2!$D$3:$D$1000,$C131,Sheet2!$T$3:$T$1000,O$2) -> 0 | P131: =SUMIFS(Sheet2!$G$3:$G$1000,Sheet2!$D$3:$D$1000,$C131,Sheet2!$T$3:$T$1000,P$2)+SUMIFS(Sheet2!$P$3:$P$1000,Sheet2!$D$3:$D$1000,$C131,Sheet2!$S$3:$S$1000,P$2)-SUMIFS(Sheet2!$J$3:$J$1000,Sheet2!$D$3:$D$1000,$C131,Sheet2!$T$3:$T$1000,P$2) -> 0 | Q131: =SUMIFS(Sheet2!$G$3:$G$1000,Sheet2!$D$3:$D$1000,$C131,Sheet2!$T$3:$T$1000,Q$2)+SUMIFS(Sheet2!$P$3:$P$1000,Sheet2!$D$3:$D$1000,$C131,Sheet2!$S$3:$S$1000,Q$2)-SUMIFS(Sheet2!$J$3:$J$1000,Sheet2!$D$3:$D$1000,$C131,Sheet2!$T$3:$T$1000,Q$2) -> 0 | R131: =SUMIFS(Sheet2!$G$3:$G$1000,Sheet2!$D$3:$D$1000,$C131,Sheet2!$T$3:$T$1000,R$2)+SUMIFS(Sheet2!$P$3:$P$1000,Sheet2!$D$3:$D$1000,$C131,Sheet2!$S$3:$S$1000,R$2)-SUMIFS(Sheet2!$J$3:$J$1000,Sheet2!$D$3:$D$1000,$C131,Sheet2!$T$3:$T$1000,R$2) -> 0 | AG131: 2018-05-09
J132: مخزن الرئيسي | K132: =IFERROR(G132*F132,"") -> 0 | L132: =G132+SUMIFS(Sheet2!$G$3:$G$1000,Sheet2!$D$3:$D$1000,$C132,Sheet2!$T$3:$T$1000,$L131)+SUMIFS(Sheet2!$P$3:$P$1000,Sheet2!$D$3:$D$1000,$C132,Sheet2!$S$3:$S$1000,$L131)-SUMIFS(Sheet2!$J$3:$J$1000,Sheet2!$D$3:$D$1000,$C132,Sheet2!$T$3:$T$1000,$L131) -> 0 | M132: =SUMIFS(Sheet2!$G$3:$G$1000,Sheet2!$D$3:$D$1000,$C132,Sheet2!$T$3:$T$1000,M$2)+SUMIFS(Sheet2!$P$3:$P$1000,Sheet2!$D$3:$D$1000,$C132,Sheet2!$S$3:$S$1000,M$2)-SUMIFS(Sheet2!$J$3:$J$1000,Sheet2!$D$3:$D$1000,$C132,Sheet2!$T$3:$T$1000,M$2)-SUMIFS(Sheet2!$P$3:$P$1000,Sheet2!$D$3:$D$1000,$C132,Sheet2!$T$3:$T$1000,M$2) -> 0 | N132: =SUMIFS(Sheet2!$G$3:$G$1000,Sheet2!$D$3:$D$1000,$C132,Sheet2!$T$3:$T$1000,N$2)+SUMIFS(Sheet2!$P$3:$P$1000,Sheet2!$D$3:$D$1000,$C132,Sheet2!$S$3:$S$1000,N$2)-SUMIFS(Sheet2!$J$3:$J$1000,Sheet2!$D$3:$D$1000,$C132,Sheet2!$T$3:$T$1000,N$2) -> 0 | O132: =SUMIFS(Sheet2!$G$3:$G$1000,Sheet2!$D$3:$D$1000,$C132,Sheet2!$T$3:$T$1000,O$2)+SUMIFS(Sheet2!$P$3:$P$1000,Sheet2!$D$3:$D$1000,$C132,Sheet2!$S$3:$S$1000,O$2)-SUMIFS(Sheet2!$J$3:$J$1000,Sheet2!$D$3:$D$1000,$C132,Sheet2!$T$3:$T$1000,O$2) -> 0 | P132: =SUMIFS(Sheet2!$G$3:$G$1000,Sheet2!$D$3:$D$1000,$C132,Sheet2!$T$3:$T$1000,P$2)+SUMIFS(Sheet2!$P$3:$P$1000,Sheet2!$D$3:$D$1000,$C132,Sheet2!$S$3:$S$1000,P$2)-SUMIFS(Sheet2!$J$3:$J$1000,Sheet2!$D$3:$D$1000,$C132,Sheet2!$T$3:$T$1000,P$2) -> 0 | Q132: =SUMIFS(Sheet2!$G$3:$G$1000,Sheet2!$D$3:$D$1000,$C132,Sheet2!$T$3:$T$1000,Q$2)+SUMIFS(Sheet2!$P$3:$P$1000,Sheet2!$D$3:$D$1000,$C132,Sheet2!$S$3:$S$1000,Q$2)-SUMIFS(Sheet2!$J$3:$J$1000,Sheet2!$D$3:$D$1000,$C132,Sheet2!$T$3:$T$1000,Q$2) -> 0 | R132: =SUMIFS(Sheet2!$G$3:$G$1000,Sheet2!$D$3:$D$1000,$C132,Sheet2!$T$3:$T$1000,R$2)+SUMIFS(Sheet2!$P$3:$P$1000,Sheet2!$D$3:$D$1000,$C132,Sheet2!$S$3:$S$1000,R$2)-SUMIFS(Sheet2!$J$3:$J$1000,Sheet2!$D$3:$D$1000,$C132,Sheet2!$T$3:$T$1000,R$2) -> 0 | AG132: 2018-05-10
J133: مخزن الرئيسي | K133: 0 | L133: =G133+SUMIFS(Sheet2!$G$3:$G$1000,Sheet2!$D$3:$D$1000,$C133,Sheet2!$T$3:$T$1000,$L132)+SUMIFS(Sheet2!$P$3:$P$1000,Sheet2!$D$3:$D$1000,$C133,Sheet2!$S$3:$S$1000,$L132)-SUMIFS(Sheet2!$J$3:$J$1000,Sheet2!$D$3:$D$1000,$C133,Sheet2!$T$3:$T$1000,$L132) -> 0 | M133: =SUMIFS(Sheet2!$G$3:$G$1000,Sheet2!$D$3:$D$1000,$C133,Sheet2!$T$3:$T$1000,M$2)+SUMIFS(Sheet2!$P$3:$P$1000,Sheet2!$D$3:$D$1000,$C133,Sheet2!$S$3:$S$1000,M$2)-SUMIFS(Sheet2!$J$3:$J$1000,Sheet2!$D$3:$D$1000,$C133,Sheet2!$T$3:$T$1000,M$2)-SUMIFS(Sheet2!$P$3:$P$1000,Sheet2!$D$3:$D$1000,$C133,Sheet2!$T$3:$T$1000,M$2) -> 0 | N133: =SUMIFS(Sheet2!$G$3:$G$1000,Sheet2!$D$3:$D$1000,$C133,Sheet2!$T$3:$T$1000,N$2)+SUMIFS(Sheet2!$P$3:$P$1000,Sheet2!$D$3:$D$1000,$C133,Sheet2!$S$3:$S$1000,N$2)-SUMIFS(Sheet2!$J$3:$J$1000,Sheet2!$D$3:$D$1000,$C133,Sheet2!$T$3:$T$1000,N$2) -> 0 | O133: =SUMIFS(Sheet2!$G$3:$G$1000,Sheet2!$D$3:$D$1000,$C133,Sheet2!$T$3:$T$1000,O$2)+SUMIFS(Sheet2!$P$3:$P$1000,Sheet2!$D$3:$D$1000,$C133,Sheet2!$S$3:$S$1000,O$2)-SUMIFS(Sheet2!$J$3:$J$1000,Sheet2!$D$3:$D$1000,$C133,Sheet2!$T$3:$T$1000,O$2) -> 0 | P133: =SUMIFS(Sheet2!$G$3:$G$1000,Sheet2!$D$3:$D$1000,$C133,Sheet2!$T$3:$T$1000,P$2)+SUMIFS(Sheet2!$P$3:$P$1000,Sheet2!$D$3:$D$1000,$C133,Sheet2!$S$3:$S$1000,P$2)-SUMIFS(Sheet2!$J$3:$J$1000,Sheet2!$D$3:$D$1000,$C133,Sheet2!$T$3:$T$1000,P$2) -> 0 | Q133: =SUMIFS(Sheet2!$G$3:$G$1000,Sheet2!$D$3:$D$1000,$C133,Sheet2!$T$3:$T$1000,Q$2)+SUMIFS(Sheet2!$P$3:$P$1000,Sheet2!$D$3:$D$1000,$C133,Sheet2!$S$3:$S$1000,Q$2)-SUMIFS(Sheet2!$J$3:$J$1000,Sheet2!$D$3:$D$1000,$C133,Sheet2!$T$3:$T$1000,Q$2) -> 0 | R133: =SUMIFS(Sheet2!$G$3:$G$1000,Sheet2!$D$3:$D$1000,$C133,Sheet2!$T$3:$T$1000,R$2)+SUMIFS(Sheet2!$P$3:$P$1000,Sheet2!$D$3:$D$1000,$C133,Sheet2!$S$3:$S$1000,R$2)-SUMIFS(Sheet2!$J$3:$J$1000,Sheet2!$D$3:$D$1000,$C133,Sheet2!$T$3:$T$1000,R$2) -> 0 | AG133: 2018-05-11
K134: 0 | L134: =G134+SUMIFS(Sheet2!$G$3:$G$1000,Sheet2!$D$3:$D$1000,$C134,Sheet2!$T$3:$T$1000,$L133)+SUMIFS(Sheet2!$P$3:$P$1000,Sheet2!$D$3:$D$1000,$C134,Sheet2!$S$3:$S$1000,$L133)-SUMIFS(Sheet2!$J$3:$J$1000,Sheet2!$D$3:$D$1000,$C134,Sheet2!$T$3:$T$1000,$L133) -> 0 | M134: =SUMIFS(Sheet2!$G$3:$G$1000,Sheet2!$D$3:$D$1000,$C134,Sheet2!$T$3:$T$1000,M$2)+SUMIFS(Sheet2!$P$3:$P$1000,Sheet2!$D$3:$D$1000,$C134,Sheet2!$S$3:$S$1000,M$2)-SUMIFS(Sheet2!$J$3:$J$1000,Sheet2!$D$3:$D$1000,$C134,Sheet2!$T$3:$T$1000,M$2)-SUMIFS(Sheet2!$P$3:$P$1000,Sheet2!$D$3:$D$1000,$C134,Sheet2!$T$3:$T$1000,M$2) -> 0 | N134: =SUMIFS(Sheet2!$G$3:$G$1000,Sheet2!$D$3:$D$1000,$C134,Sheet2!$T$3:$T$1000,N$2)+SUMIFS(Sheet2!$P$3:$P$1000,Sheet2!$D$3:$D$1000,$C134,Sheet2!$S$3:$S$1000,N$2)-SUMIFS(Sheet2!$J$3:$J$1000,Sheet2!$D$3:$D$1000,$C134,Sheet2!$T$3:$T$1000,N$2) -> 0 | O134: =SUMIFS(Sheet2!$G$3:$G$1000,Sheet2!$D$3:$D$1000,$C134,Sheet2!$T$3:$T$1000,O$2)+SUMIFS(Sheet2!$P$3:$P$1000,Sheet2!$D$3:$D$1000,$C134,Sheet2!$S$3:$S$1000,O$2)-SUMIFS(Sheet2!$J$3:$J$1000,Sheet2!$D$3:$D$1000,$C134,Sheet2!$T$3:$T$1000,O$2) -> 0 | P134: =SUMIFS(Sheet2!$G$3:$G$1000,Sheet2!$D$3:$D$1000,$C134,Sheet2!$T$3:$T$1000,P$2)+SUMIFS(Sheet2!$P$3:$P$1000,Sheet2!$D$3:$D$1000,$C134,Sheet2!$S$3:$S$1000,P$2)-SUMIFS(Sheet2!$J$3:$J$1000,Sheet2!$D$3:$D$1000,$C134,Sheet2!$T$3:$T$1000,P$2) -> 0 | Q134: =SUMIFS(Sheet2!$G$3:$G$1000,Sheet2!$D$3:$D$1000,$C134,Sheet2!$T$3:$T$1000,Q$2)+SUMIFS(Sheet2!$P$3:$P$1000,Sheet2!$D$3:$D$1000,$C134,Sheet2!$S$3:$S$1000,Q$2)-SUMIFS(Sheet2!$J$3:$J$1000,Sheet2!$D$3:$D$1000,$C134,Sheet2!$T$3:$T$1000,Q$2) -> 0 | R134: =SUMIFS(Sheet2!$G$3:$G$1000,Sheet2!$D$3:$D$1000,$C134,Sheet2!$T$3:$T$1000,R$2)+SUMIFS(Sheet2!$P$3:$P$1000,Sheet2!$D$3:$D$1000,$C134,Sheet2!$S$3:$S$1000,R$2)-SUMIFS(Sheet2!$J$3:$J$1000,Sheet2!$D$3:$D$1000,$C134,Sheet2!$T$3:$T$1000,R$2) -> 0 | AG134: 2018-05-12
K135: 0 | L135: =G135+SUMIFS(Sheet2!$G$3:$G$1000,Sheet2!$D$3:$D$1000,$C135,Sheet2!$T$3:$T$1000,$L134)+SUMIFS(Sheet2!$P$3:$P$1000,Sheet2!$D$3:$D$1000,$C135,Sheet2!$S$3:$S$1000,$L134)-SUMIFS(Sheet2!$J$3:$J$1000,Sheet2!$D$3:$D$1000,$C135,Sheet2!$T$3:$T$1000,$L134) -> 0 | M135: =SUMIFS(Sheet2!$G$3:$G$1000,Sheet2!$D$3:$D$1000,$C135,Sheet2!$T$3:$T$1000,M$2)+SUMIFS(Sheet2!$P$3:$P$1000,Sheet2!$D$3:$D$1000,$C135,Sheet2!$S$3:$S$1000,M$2)-SUMIFS(Sheet2!$J$3:$J$1000,Sheet2!$D$3:$D$1000,$C135,Sheet2!$T$3:$T$1000,M$2)-SUMIFS(Sheet2!$P$3:$P$1000,Sheet2!$D$3:$D$1000,$C135,Sheet2!$T$3:$T$1000,M$2) -> 0 | N135: =SUMIFS(Sheet2!$G$3:$G$1000,Sheet2!$D$3:$D$1000,$C135,Sheet2!$T$3:$T$1000,N$2)+SUMIFS(Sheet2!$P$3:$P$1000,Sheet2!$D$3:$D$1000,$C135,Sheet2!$S$3:$S$1000,N$2)-SUMIFS(Sheet2!$J$3:$J$1000,Sheet2!$D$3:$D$1000,$C135,Sheet2!$T$3:$T$1000,N$2) -> 0 | O135: =SUMIFS(Sheet2!$G$3:$G$1000,Sheet2!$D$3:$D$1000,$C135,Sheet2!$T$3:$T$1000,O$2)+SUMIFS(Sheet2!$P$3:$P$1000,Sheet2!$D$3:$D$1000,$C135,Sheet2!$S$3:$S$1000,O$2)-SUMIFS(Sheet2!$J$3:$J$1000,Sheet2!$D$3:$D$1000,$C135,Sheet2!$T$3:$T$1000,O$2) -> 0 | P135: =SUMIFS(Sheet2!$G$3:$G$1000,Sheet2!$D$3:$D$1000,$C135,Sheet2!$T$3:$T$1000,P$2)+SUMIFS(Sheet2!$P$3:$P$1000,Sheet2!$D$3:$D$1000,$C135,Sheet2!$S$3:$S$1000,P$2)-SUMIFS(Sheet2!$J$3:$J$1000,Sheet2!$D$3:$D$1000,$C135,Sheet2!$T$3:$T$1000,P$2) -> 0 | Q135: =SUMIFS(Sheet2!$G$3:$G$1000,Sheet2!$D$3:$D$1000,$C135,Sheet2!$T$3:$T$1000,Q$2)+SUMIFS(Sheet2!$P$3:$P$1000,Sheet2!$D$3:$D$1000,$C135,Sheet2!$S$3:$S$1000,Q$2)-SUMIFS(Sheet2!$J$3:$J$1000,Sheet2!$D$3:$D$1000,$C135,Sheet2!$T$3:$T$1000,Q$2) -> 0 | R135: =SUMIFS(Sheet2!$G$3:$G$1000,Sheet2!$D$3:$D$1000,$C135,Sheet2!$T$3:$T$1000,R$2)+SUMIFS(Sheet2!$P$3:$P$1000,Sheet2!$D$3:$D$1000,$C135,Sheet2!$S$3:$S$1000,R$2)-SUMIFS(Sheet2!$J$3:$J$1000,Sheet2!$D$3:$D$1000,$C135,Sheet2!$T$3:$T$1000,R$2) -> 0 | AG135: 2018-05-13
K136: 0 | L136: =G136+SUMIFS(Sheet2!$G$3:$G$1000,Sheet2!$D$3:$D$1000,$C136,Sheet2!$T$3:$T$1000,$L135)+SUMIFS(Sheet2!$P$3:$P$1000,Sheet2!$D$3:$D$1000,$C136,Sheet2!$S$3:$S$1000,$L135)-SUMIFS(Sheet2!$J$3:$J$1000,Sheet2!$D$3:$D$1000,$C136,Sheet2!$T$3:$T$1000,$L135) -> 0 | M136: =SUMIFS(Sheet2!$G$3:$G$1000,Sheet2!$D$3:$D$1000,$C136,Sheet2!$T$3:$T$1000,M$2)+SUMIFS(Sheet2!$P$3:$P$1000,Sheet2!$D$3:$D$1000,$C136,Sheet2!$S$3:$S$1000,M$2)-SUMIFS(Sheet2!$J$3:$J$1000,Sheet2!$D$3:$D$1000,$C136,Sheet2!$T$3:$T$1000,M$2)-SUMIFS(Sheet2!$P$3:$P$1000,Sheet2!$D$3:$D$1000,$C136,Sheet2!$T$3:$T$1000,M$2) -> 0 | N136: =SUMIFS(Sheet2!$G$3:$G$1000,Sheet2!$D$3:$D$1000,$C136,Sheet2!$T$3:$T$1000,N$2)+SUMIFS(Sheet2!$P$3:$P$1000,Sheet2!$D$3:$D$1000,$C136,Sheet2!$S$3:$S$1000,N$2)-SUMIFS(Sheet2!$J$3:$J$1000,Sheet2!$D$3:$D$1000,$C136,Sheet2!$T$3:$T$1000,N$2) -> 0 | O136: =SUMIFS(Sheet2!$G$3:$G$1000,Sheet2!$D$3:$D$1000,$C136,Sheet2!$T$3:$T$1000,O$2)+SUMIFS(Sheet2!$P$3:$P$1000,Sheet2!$D$3:$D$1000,$C136,Sheet2!$S$3:$S$1000,O$2)-SUMIFS(Sheet2!$J$3:$J$1000,Sheet2!$D$3:$D$1000,$C136,Sheet2!$T$3:$T$1000,O$2) -> 0 | P136: =SUMIFS(Sheet2!$G$3:$G$1000,Sheet2!$D$3:$D$1000,$C136,Sheet2!$T$3:$T$1000,P$2)+SUMIFS(Sheet2!$P$3:$P$1000,Sheet2!$D$3:$D$1000,$C136,Sheet2!$S$3:$S$1000,P$2)-SUMIFS(Sheet2!$J$3:$J$1000,Sheet2!$D$3:$D$1000,$C136,Sheet2!$T$3:$T$1000,P$2) -> 0 | Q136: =SUMIFS(Sheet2!$G$3:$G$1000,Sheet2!$D$3:$D$1000,$C136,Sheet2!$T$3:$T$1000,Q$2)+SUMIFS(Sheet2!$P$3:$P$1000,Sheet2!$D$3:$D$1000,$C136,Sheet2!$S$3:$S$1000,Q$2)-SUMIFS(Sheet2!$J$3:$J$1000,Sheet2!$D$3:$D$1000,$C136,Sheet2!$T$3:$T$1000,Q$2) -> 0 | R136: =SUMIFS(Sheet2!$G$3:$G$1000,Sheet2!$D$3:$D$1000,$C136,Sheet2!$T$3:$T$1000,R$2)+SUMIFS(Sheet2!$P$3:$P$1000,Sheet2!$D$3:$D$1000,$C136,Sheet2!$S$3:$S$1000,R$2)-SUMIFS(Sheet2!$J$3:$J$1000,Sheet2!$D$3:$D$1000,$C136,Sheet2!$T$3:$T$1000,R$2) -> 0 | AG136: 2018-05-14
K137: 0 | L137: =G137+SUMIFS(Sheet2!$G$3:$G$1000,Sheet2!$D$3:$D$1000,$C137,Sheet2!$T$3:$T$1000,$L136)+SUMIFS(Sheet2!$P$3:$P$1000,Sheet2!$D$3:$D$1000,$C137,Sheet2!$S$3:$S$1000,$L136)-SUMIFS(Sheet2!$J$3:$J$1000,Sheet2!$D$3:$D$1000,$C137,Sheet2!$T$3:$T$1000,$L136) -> 0 | M137: =SUMIFS(Sheet2!$G$3:$G$1000,Sheet2!$D$3:$D$1000,$C137,Sheet2!$T$3:$T$1000,M$2)+SUMIFS(Sheet2!$P$3:$P$1000,Sheet2!$D$3:$D$1000,$C137,Sheet2!$S$3:$S$1000,M$2)-SUMIFS(Sheet2!$J$3:$J$1000,Sheet2!$D$3:$D$1000,$C137,Sheet2!$T$3:$T$1000,M$2)-SUMIFS(Sheet2!$P$3:$P$1000,Sheet2!$D$3:$D$1000,$C137,Sheet2!$T$3:$T$1000,M$2) -> 0 | N137: =SUMIFS(Sheet2!$G$3:$G$1000,Sheet2!$D$3:$D$1000,$C137,Sheet2!$T$3:$T$1000,N$2)+SUMIFS(Sheet2!$P$3:$P$1000,Sheet2!$D$3:$D$1000,$C137,Sheet2!$S$3:$S$1000,N$2)-SUMIFS(Sheet2!$J$3:$J$1000,Sheet2!$D$3:$D$1000,$C137,Sheet2!$T$3:$T$1000,N$2) -> 0 | O137: =SUMIFS(Sheet2!$G$3:$G$1000,Sheet2!$D$3:$D$1000,$C137,Sheet2!$T$3:$T$1000,O$2)+SUMIFS(Sheet2!$P$3:$P$1000,Sheet2!$D$3:$D$1000,$C137,Sheet2!$S$3:$S$1000,O$2)-SUMIFS(Sheet2!$J$3:$J$1000,Sheet2!$D$3:$D$1000,$C137,Sheet2!$T$3:$T$1000,O$2) -> 0 | P137: =SUMIFS(Sheet2!$G$3:$G$1000,Sheet2!$D$3:$D$1000,$C137,Sheet2!$T$3:$T$1000,P$2)+SUMIFS(Sheet2!$P$3:$P$1000,Sheet2!$D$3:$D$1000,$C137,Sheet2!$S$3:$S$1000,P$2)-SUMIFS(Sheet2!$J$3:$J$1000,Sheet2!$D$3:$D$1000,$C137,Sheet2!$T$3:$T$1000,P$2) -> 0 | Q137: =SUMIFS(Sheet2!$G$3:$G$1000,Sheet2!$D$3:$D$1000,$C137,Sheet2!$T$3:$T$1000,Q$2)+SUMIFS(Sheet2!$P$3:$P$1000,Sheet2!$D$3:$D$1000,$C137,Sheet2!$S$3:$S$1000,Q$2)-SUMIFS(Sheet2!$J$3:$J$1000,Sheet2!$D$3:$D$1000,$C137,Sheet2!$T$3:$T$1000,Q$2) -> 0 | R137: =SUMIFS(Sheet2!$G$3:$G$1000,Sheet2!$D$3:$D$1000,$C137,Sheet2!$T$3:$T$1000,R$2)+SUMIFS(Sheet2!$P$3:$P$1000,Sheet2!$D$3:$D$1000,$C137,Sheet2!$S$3:$S$1000,R$2)-SUMIFS(Sheet2!$J$3:$J$1000,Sheet2!$D$3:$D$1000,$C137,Sheet2!$T$3:$T$1000,R$2) -> 0 | AG137: 2018-05-15
K138: 0 | L138: =G138+SUMIFS(Sheet2!$G$3:$G$1000,Sheet2!$D$3:$D$1000,$C138,Sheet2!$T$3:$T$1000,$L137)+SUMIFS(Sheet2!$P$3:$P$1000,Sheet2!$D$3:$D$1000,$C138,Sheet2!$S$3:$S$1000,$L137)-SUMIFS(Sheet2!$J$3:$J$1000,Sheet2!$D$3:$D$1000,$C138,Sheet2!$T$3:$T$1000,$L137) -> 0 | M138: =SUMIFS(Sheet2!$G$3:$G$1000,Sheet2!$D$3:$D$1000,$C138,Sheet2!$T$3:$T$1000,M$2)+SUMIFS(Sheet2!$P$3:$P$1000,Sheet2!$D$3:$D$1000,$C138,Sheet2!$S$3:$S$1000,M$2)-SUMIFS(Sheet2!$J$3:$J$1000,Sheet2!$D$3:$D$1000,$C138,Sheet2!$T$3:$T$1000,M$2)-SUMIFS(Sheet2!$P$3:$P$1000,Sheet2!$D$3:$D$1000,$C138,Sheet2!$T$3:$T$1000,M$2) -> 0 | N138: =SUMIFS(Sheet2!$G$3:$G$1000,Sheet2!$D$3:$D$1000,$C138,Sheet2!$T$3:$T$1000,N$2)+SUMIFS(Sheet2!$P$3:$P$1000,Sheet2!$D$3:$D$1000,$C138,Sheet2!$S$3:$S$1000,N$2)-SUMIFS(Sheet2!$J$3:$J$1000,Sheet2!$D$3:$D$1000,$C138,Sheet2!$T$3:$T$1000,N$2) -> 0 | O138: =SUMIFS(Sheet2!$G$3:$G$1000,Sheet2!$D$3:$D$1000,$C138,Sheet2!$T$3:$T$1000,O$2)+SUMIFS(Sheet2!$P$3:$P$1000,Sheet2!$D$3:$D$1000,$C138,Sheet2!$S$3:$S$1000,O$2)-SUMIFS(Sheet2!$J$3:$J$1000,Sheet2!$D$3:$D$1000,$C138,Sheet2!$T$3:$T$1000,O$2) -> 0 | P138: =SUMIFS(Sheet2!$G$3:$G$1000,Sheet2!$D$3:$D$1000,$C138,Sheet2!$T$3:$T$1000,P$2)+SUMIFS(Sheet2!$P$3:$P$1000,Sheet2!$D$3:$D$1000,$C138,Sheet2!$S$3:$S$1000,P$2)-SUMIFS(Sheet2!$J$3:$J$1000,Sheet2!$D$3:$D$1000,$C138,Sheet2!$T$3:$T$1000,P$2) -> 0 | Q138: =SUMIFS(Sheet2!$G$3:$G$1000,Sheet2!$D$3:$D$1000,$C138,Sheet2!$T$3:$T$1000,Q$2)+SUMIFS(Sheet2!$P$3:$P$1000,Sheet2!$D$3:$D$1000,$C138,Sheet2!$S$3:$S$1000,Q$2)-SUMIFS(Sheet2!$J$3:$J$1000,Sheet2!$D$3:$D$1000,$C138,Sheet2!$T$3:$T$1000,Q$2) -> 0 | R138: =SUMIFS(Sheet2!$G$3:$G$1000,Sheet2!$D$3:$D$1000,$C138,Sheet2!$T$3:$T$1000,R$2)+SUMIFS(Sheet2!$P$3:$P$1000,Sheet2!$D$3:$D$1000,$C138,Sheet2!$S$3:$S$1000,R$2)-SUMIFS(Sheet2!$J$3:$J$1000,Sheet2!$D$3:$D$1000,$C138,Sheet2!$T$3:$T$1000,R$2) -> 0 | AG138: 2018-05-16
K139: 0 | L139: =G139+SUMIFS(Sheet2!$G$3:$G$1000,Sheet2!$D$3:$D$1000,$C139,Sheet2!$T$3:$T$1000,$L138)+SUMIFS(Sheet2!$P$3:$P$1000,Sheet2!$D$3:$D$1000,$C139,Sheet2!$S$3:$S$1000,$L138)-SUMIFS(Sheet2!$J$3:$J$1000,Sheet2!$D$3:$D$1000,$C139,Sheet2!$T$3:$T$1000,$L138) -> 0 | M139: =SUMIFS(Sheet2!$G$3:$G$1000,Sheet2!$D$3:$D$1000,$C139,Sheet2!$T$3:$T$1000,M$2)+SUMIFS(Sheet2!$P$3:$P$1000,Sheet2!$D$3:$D$1000,$C139,Sheet2!$S$3:$S$1000,M$2)-SUMIFS(Sheet2!$J$3:$J$1000,Sheet2!$D$3:$D$1000,$C139,Sheet2!$T$3:$T$1000,M$2)-SUMIFS(Sheet2!$P$3:$P$1000,Sheet2!$D$3:$D$1000,$C139,Sheet2!$T$3:$T$1000,M$2) -> 0 | N139: =SUMIFS(Sheet2!$G$3:$G$1000,Sheet2!$D$3:$D$1000,$C139,Sheet2!$T$3:$T$1000,N$2)+SUMIFS(Sheet2!$P$3:$P$1000,Sheet2!$D$3:$D$1000,$C139,Sheet2!$S$3:$S$1000,N$2)-SUMIFS(Sheet2!$J$3:$J$1000,Sheet2!$D$3:$D$1000,$C139,Sheet2!$T$3:$T$1000,N$2) -> 0 | O139: =SUMIFS(Sheet2!$G$3:$G$1000,Sheet2!$D$3:$D$1000,$C139,Sheet2!$T$3:$T$1000,O$2)+SUMIFS(Sheet2!$P$3:$P$1000,Sheet2!$D$3:$D$1000,$C139,Sheet2!$S$3:$S$1000,O$2)-SUMIFS(Sheet2!$J$3:$J$1000,Sheet2!$D$3:$D$1000,$C139,Sheet2!$T$3:$T$1000,O$2) -> 0 | P139: =SUMIFS(Sheet2!$G$3:$G$1000,Sheet2!$D$3:$D$1000,$C139,Sheet2!$T$3:$T$1000,P$2)+SUMIFS(Sheet2!$P$3:$P$1000,Sheet2!$D$3:$D$1000,$C139,Sheet2!$S$3:$S$1000,P$2)-SUMIFS(Sheet2!$J$3:$J$1000,Sheet2!$D$3:$D$1000,$C139,Sheet2!$T$3:$T$1000,P$2) -> 0 | Q139: =SUMIFS(Sheet2!$G$3:$G$1000,Sheet2!$D$3:$D$1000,$C139,Sheet2!$T$3:$T$1000,Q$2)+SUMIFS(Sheet2!$P$3:$P$1000,Sheet2!$D$3:$D$1000,$C139,Sheet2!$S$3:$S$1000,Q$2)-SUMIFS(Sheet2!$J$3:$J$1000,Sheet2!$D$3:$D$1000,$C139,Sheet2!$T$3:$T$1000,Q$2) -> 0 | R139: =SUMIFS(Sheet2!$G$3:$G$1000,Sheet2!$D$3:$D$1000,$C139,Sheet2!$T$3:$T$1000,R$2)+SUMIFS(Sheet2!$P$3:$P$1000,Sheet2!$D$3:$D$1000,$C139,Sheet2!$S$3:$S$1000,R$2)-SUMIFS(Sheet2!$J$3:$J$1000,Sheet2!$D$3:$D$1000,$C139,Sheet2!$T$3:$T$1000,R$2) -> 0 | AG139: 2018-05-17
K140: 0 | L140: =G140+SUMIFS(Sheet2!$G$3:$G$1000,Sheet2!$D$3:$D$1000,$C140,Sheet2!$T$3:$T$1000,$L139)+SUMIFS(Sheet2!$P$3:$P$1000,Sheet2!$D$3:$D$1000,$C140,Sheet2!$S$3:$S$1000,$L139)-SUMIFS(Sheet2!$J$3:$J$1000,Sheet2!$D$3:$D$1000,$C140,Sheet2!$T$3:$T$1000,$L139) -> 0 | M140: =SUMIFS(Sheet2!$G$3:$G$1000,Sheet2!$D$3:$D$1000,$C140,Sheet2!$T$3:$T$1000,M$2)+SUMIFS(Sheet2!$P$3:$P$1000,Sheet2!$D$3:$D$1000,$C140,Sheet2!$S$3:$S$1000,M$2)-SUMIFS(Sheet2!$J$3:$J$1000,Sheet2!$D$3:$D$1000,$C140,Sheet2!$T$3:$T$1000,M$2)-SUMIFS(Sheet2!$P$3:$P$1000,Sheet2!$D$3:$D$1000,$C140,Sheet2!$T$3:$T$1000,M$2) -> 0 | N140: =SUMIFS(Sheet2!$G$3:$G$1000,Sheet2!$D$3:$D$1000,$C140,Sheet2!$T$3:$T$1000,N$2)+SUMIFS(Sheet2!$P$3:$P$1000,Sheet2!$D$3:$D$1000,$C140,Sheet2!$S$3:$S$1000,N$2)-SUMIFS(Sheet2!$J$3:$J$1000,Sheet2!$D$3:$D$1000,$C140,Sheet2!$T$3:$T$1000,N$2) -> 0 | O140: =SUMIFS(Sheet2!$G$3:$G$1000,Sheet2!$D$3:$D$1000,$C140,Sheet2!$T$3:$T$1000,O$2)+SUMIFS(Sheet2!$P$3:$P$1000,Sheet2!$D$3:$D$1000,$C140,Sheet2!$S$3:$S$1000,O$2)-SUMIFS(Sheet2!$J$3:$J$1000,Sheet2!$D$3:$D$1000,$C140,Sheet2!$T$3:$T$1000,O$2) -> 0 | P140: =SUMIFS(Sheet2!$G$3:$G$1000,Sheet2!$D$3:$D$1000,$C140,Sheet2!$T$3:$T$1000,P$2)+SUMIFS(Sheet2!$P$3:$P$1000,Sheet2!$D$3:$D$1000,$C140,Sheet2!$S$3:$S$1000,P$2)-SUMIFS(Sheet2!$J$3:$J$1000,Sheet2!$D$3:$D$1000,$C140,Sheet2!$T$3:$T$1000,P$2) -> 0 | Q140: =SUMIFS(Sheet2!$G$3:$G$1000,Sheet2!$D$3:$D$1000,$C140,Sheet2!$T$3:$T$1000,Q$2)+SUMIFS(Sheet2!$P$3:$P$1000,Sheet2!$D$3:$D$1000,$C140,Sheet2!$S$3:$S$1000,Q$2)-SUMIFS(Sheet2!$J$3:$J$1000,Sheet2!$D$3:$D$1000,$C140,Sheet2!$T$3:$T$1000,Q$2) -> 0 | R140: =SUMIFS(Sheet2!$G$3:$G$1000,Sheet2!$D$3:$D$1000,$C140,Sheet2!$T$3:$T$1000,R$2)+SUMIFS(Sheet2!$P$3:$P$1000,Sheet2!$D$3:$D$1000,$C140,Sheet2!$S$3:$S$1000,R$2)-SUMIFS(Sheet2!$J$3:$J$1000,Sheet2!$D$3:$D$1000,$C140,Sheet2!$T$3:$T$1000,R$2) -> 0 | AG140: 2018-05-18
K141: 0 | L141: =G141+SUMIFS(Sheet2!$G$3:$G$1000,Sheet2!$D$3:$D$1000,$C141,Sheet2!$T$3:$T$1000,$L140)+SUMIFS(Sheet2!$P$3:$P$1000,Sheet2!$D$3:$D$1000,$C141,Sheet2!$S$3:$S$1000,$L140)-SUMIFS(Sheet2!$J$3:$J$1000,Sheet2!$D$3:$D$1000,$C141,Sheet2!$T$3:$T$1000,$L140) -> 0 | M141: =SUMIFS(Sheet2!$G$3:$G$1000,Sheet2!$D$3:$D$1000,$C141,Sheet2!$T$3:$T$1000,M$2)+SUMIFS(Sheet2!$P$3:$P$1000,Sheet2!$D$3:$D$1000,$C141,Sheet2!$S$3:$S$1000,M$2)-SUMIFS(Sheet2!$J$3:$J$1000,Sheet2!$D$3:$D$1000,$C141,Sheet2!$T$3:$T$1000,M$2)-SUMIFS(Sheet2!$P$3:$P$1000,Sheet2!$D$3:$D$1000,$C141,Sheet2!$T$3:$T$1000,M$2) -> 0 | N141: =SUMIFS(Sheet2!$G$3:$G$1000,Sheet2!$D$3:$D$1000,$C141,Sheet2!$T$3:$T$1000,N$2)+SUMIFS(Sheet2!$P$3:$P$1000,Sheet2!$D$3:$D$1000,$C141,Sheet2!$S$3:$S$1000,N$2)-SUMIFS(Sheet2!$J$3:$J$1000,Sheet2!$D$3:$D$1000,$C141,Sheet2!$T$3:$T$1000,N$2) -> 0 | O141: =SUMIFS(Sheet2!$G$3:$G$1000,Sheet2!$D$3:$D$1000,$C141,Sheet2!$T$3:$T$1000,O$2)+SUMIFS(Sheet2!$P$3:$P$1000,Sheet2!$D$3:$D$1000,$C141,Sheet2!$S$3:$S$1000,O$2)-SUMIFS(Sheet2!$J$3:$J$1000,Sheet2!$D$3:$D$1000,$C141,Sheet2!$T$3:$T$1000,O$2) -> 0 | P141: =SUMIFS(Sheet2!$G$3:$G$1000,Sheet2!$D$3:$D$1000,$C141,Sheet2!$T$3:$T$1000,P$2)+SUMIFS(Sheet2!$P$3:$P$1000,Sheet2!$D$3:$D$1000,$C141,Sheet2!$S$3:$S$1000,P$2)-SUMIFS(Sheet2!$J$3:$J$1000,Sheet2!$D$3:$D$1000,$C141,Sheet2!$T$3:$T$1000,P$2) -> 0 | Q141: =SUMIFS(Sheet2!$G$3:$G$1000,Sheet2!$D$3:$D$1000,$C141,Sheet2!$T$3:$T$1000,Q$2)+SUMIFS(Sheet2!$P$3:$P$1000,Sheet2!$D$3:$D$1000,$C141,Sheet2!$S$3:$S$1000,Q$2)-SUMIFS(Sheet2!$J$3:$J$1000,Sheet2!$D$3:$D$1000,$C141,Sheet2!$T$3:$T$1000,Q$2) -> 0 | R141: =SUMIFS(Sheet2!$G$3:$G$1000,Sheet2!$D$3:$D$1000,$C141,Sheet2!$T$3:$T$1000,R$2)+SUMIFS(Sheet2!$P$3:$P$1000,Sheet2!$D$3:$D$1000,$C141,Sheet2!$S$3:$S$1000,R$2)-SUMIFS(Sheet2!$J$3:$J$1000,Sheet2!$D$3:$D$1000,$C141,Sheet2!$T$3:$T$1000,R$2) -> 0 | AG141: 2018-05-19
K142: 0 | L142: =G142+SUMIFS(Sheet2!$G$3:$G$1000,Sheet2!$D$3:$D$1000,$C142,Sheet2!$T$3:$T$1000,$L141)+SUMIFS(Sheet2!$P$3:$P$1000,Sheet2!$D$3:$D$1000,$C142,Sheet2!$S$3:$S$1000,$L141)-SUMIFS(Sheet2!$J$3:$J$1000,Sheet2!$D$3:$D$1000,$C142,Sheet2!$T$3:$T$1000,$L141) -> 0 | M142: =SUMIFS(Sheet2!$G$3:$G$1000,Sheet2!$D$3:$D$1000,$C142,Sheet2!$T$3:$T$1000,M$2)+SUMIFS(Sheet2!$P$3:$P$1000,Sheet2!$D$3:$D$1000,$C142,Sheet2!$S$3:$S$1000,M$2)-SUMIFS(Sheet2!$J$3:$J$1000,Sheet2!$D$3:$D$1000,$C142,Sheet2!$T$3:$T$1000,M$2)-SUMIFS(Sheet2!$P$3:$P$1000,Sheet2!$D$3:$D$1000,$C142,Sheet2!$T$3:$T$1000,M$2) -> 0 | N142: =SUMIFS(Sheet2!$G$3:$G$1000,Sheet2!$D$3:$D$1000,$C142,Sheet2!$T$3:$T$1000,N$2)+SUMIFS(Sheet2!$P$3:$P$1000,Sheet2!$D$3:$D$1000,$C142,Sheet2!$S$3:$S$1000,N$2)-SUMIFS(Sheet2!$J$3:$J$1000,Sheet2!$D$3:$D$1000,$C142,Sheet2!$T$3:$T$1000,N$2) -> 0 | O142: =SUMIFS(Sheet2!$G$3:$G$1000,Sheet2!$D$3:$D$1000,$C142,Sheet2!$T$3:$T$1000,O$2)+SUMIFS(Sheet2!$P$3:$P$1000,Sheet2!$D$3:$D$1000,$C142,Sheet2!$S$3:$S$1000,O$2)-SUMIFS(Sheet2!$J$3:$J$1000,Sheet2!$D$3:$D$1000,$C142,Sheet2!$T$3:$T$1000,O$2) -> 0 | P142: =SUMIFS(Sheet2!$G$3:$G$1000,Sheet2!$D$3:$D$1000,$C142,Sheet2!$T$3:$T$1000,P$2)+SUMIFS(Sheet2!$P$3:$P$1000,Sheet2!$D$3:$D$1000,$C142,Sheet2!$S$3:$S$1000,P$2)-SUMIFS(Sheet2!$J$3:$J$1000,Sheet2!$D$3:$D$1000,$C142,Sheet2!$T$3:$T$1000,P$2) -> 0 | Q142: =SUMIFS(Sheet2!$G$3:$G$1000,Sheet2!$D$3:$D$1000,$C142,Sheet2!$T$3:$T$1000,Q$2)+SUMIFS(Sheet2!$P$3:$P$1000,Sheet2!$D$3:$D$1000,$C142,Sheet2!$S$3:$S$1000,Q$2)-SUMIFS(Sheet2!$J$3:$J$1000,Sheet2!$D$3:$D$1000,$C142,Sheet2!$T$3:$T$1000,Q$2) -> 0 | R142: =SUMIFS(Sheet2!$G$3:$G$1000,Sheet2!$D$3:$D$1000,$C142,Sheet2!$T$3:$T$1000,R$2)+SUMIFS(Sheet2!$P$3:$P$1000,Sheet2!$D$3:$D$1000,$C142,Sheet2!$S$3:$S$1000,R$2)-SUMIFS(Sheet2!$J$3:$J$1000,Sheet2!$D$3:$D$1000,$C142,Sheet2!$T$3:$T$1000,R$2) -> 0 | AG142: 2018-05-20
K143: 0 | L143: =G143+SUMIFS(Sheet2!$G$3:$G$1000,Sheet2!$D$3:$D$1000,$C143,Sheet2!$T$3:$T$1000,$L142)+SUMIFS(Sheet2!$P$3:$P$1000,Sheet2!$D$3:$D$1000,$C143,Sheet2!$S$3:$S$1000,$L142)-SUMIFS(Sheet2!$J$3:$J$1000,Sheet2!$D$3:$D$1000,$C143,Sheet2!$T$3:$T$1000,$L142) -> 0 | M143: =SUMIFS(Sheet2!$G$3:$G$1000,Sheet2!$D$3:$D$1000,$C143,Sheet2!$T$3:$T$1000,M$2)+SUMIFS(Sheet2!$P$3:$P$1000,Sheet2!$D$3:$D$1000,$C143,Sheet2!$S$3:$S$1000,M$2)-SUMIFS(Sheet2!$J$3:$J$1000,Sheet2!$D$3:$D$1000,$C143,Sheet2!$T$3:$T$1000,M$2)-SUMIFS(Sheet2!$P$3:$P$1000,Sheet2!$D$3:$D$1000,$C143,Sheet2!$T$3:$T$1000,M$2) -> 0 | N143: =SUMIFS(Sheet2!$G$3:$G$1000,Sheet2!$D$3:$D$1000,$C143,Sheet2!$T$3:$T$1000,N$2)+SUMIFS(Sheet2!$P$3:$P$1000,Sheet2!$D$3:$D$1000,$C143,Sheet2!$S$3:$S$1000,N$2)-SUMIFS(Sheet2!$J$3:$J$1000,Sheet2!$D$3:$D$1000,$C143,Sheet2!$T$3:$T$1000,N$2) -> 0 | O143: =SUMIFS(Sheet2!$G$3:$G$1000,Sheet2!$D$3:$D$1000,$C143,Sheet2!$T$3:$T$1000,O$2)+SUMIFS(Sheet2!$P$3:$P$1000,Sheet2!$D$3:$D$1000,$C143,Sheet2!$S$3:$S$1000,O$2)-SUMIFS(Sheet2!$J$3:$J$1000,Sheet2!$D$3:$D$1000,$C143,Sheet2!$T$3:$T$1000,O$2) -> 0 | P143: =SUMIFS(Sheet2!$G$3:$G$1000,Sheet2!$D$3:$D$1000,$C143,Sheet2!$T$3:$T$1000,P$2)+SUMIFS(Sheet2!$P$3:$P$1000,Sheet2!$D$3:$D$1000,$C143,Sheet2!$S$3:$S$1000,P$2)-SUMIFS(Sheet2!$J$3:$J$1000,Sheet2!$D$3:$D$1000,$C143,Sheet2!$T$3:$T$1000,P$2) -> 0 | Q143: =SUMIFS(Sheet2!$G$3:$G$1000,Sheet2!$D$3:$D$1000,$C143,Sheet2!$T$3:$T$1000,Q$2)+SUMIFS(Sheet2!$P$3:$P$1000,Sheet2!$D$3:$D$1000,$C143,Sheet2!$S$3:$S$1000,Q$2)-SUMIFS(Sheet2!$J$3:$J$1000,Sheet2!$D$3:$D$1000,$C143,Sheet2!$T$3:$T$1000,Q$2) -> 0 | R143: =SUMIFS(Sheet2!$G$3:$G$1000,Sheet2!$D$3:$D$1000,$C143,Sheet2!$T$3:$T$1000,R$2)+SUMIFS(Sheet2!$P$3:$P$1000,Sheet2!$D$3:$D$1000,$C143,Sheet2!$S$3:$S$1000,R$2)-SUMIFS(Sheet2!$J$3:$J$1000,Sheet2!$D$3:$D$1000,$C143,Sheet2!$T$3:$T$1000,R$2) -> 0 | AG143: 2018-05-21
K144: 0 | L144: =G144+SUMIFS(Sheet2!$G$3:$G$1000,Sheet2!$D$3:$D$1000,$C144,Sheet2!$T$3:$T$1000,$L143)+SUMIFS(Sheet2!$P$3:$P$1000,Sheet2!$D$3:$D$1000,$C144,Sheet2!$S$3:$S$1000,$L143)-SUMIFS(Sheet2!$J$3:$J$1000,Sheet2!$D$3:$D$1000,$C144,Sheet2!$T$3:$T$1000,$L143) -> 0 | M144: =SUMIFS(Sheet2!$G$3:$G$1000,Sheet2!$D$3:$D$1000,$C144,Sheet2!$T$3:$T$1000,M$2)+SUMIFS(Sheet2!$P$3:$P$1000,Sheet2!$D$3:$D$1000,$C144,Sheet2!$S$3:$S$1000,M$2)-SUMIFS(Sheet2!$J$3:$J$1000,Sheet2!$D$3:$D$1000,$C144,Sheet2!$T$3:$T$1000,M$2)-SUMIFS(Sheet2!$P$3:$P$1000,Sheet2!$D$3:$D$1000,$C144,Sheet2!$T$3:$T$1000,M$2) -> 0 | N144: =SUMIFS(Sheet2!$G$3:$G$1000,Sheet2!$D$3:$D$1000,$C144,Sheet2!$T$3:$T$1000,N$2)+SUMIFS(Sheet2!$P$3:$P$1000,Sheet2!$D$3:$D$1000,$C144,Sheet2!$S$3:$S$1000,N$2)-SUMIFS(Sheet2!$J$3:$J$1000,Sheet2!$D$3:$D$1000,$C144,Sheet2!$T$3:$T$1000,N$2) -> 0 | O144: =SUMIFS(Sheet2!$G$3:$G$1000,Sheet2!$D$3:$D$1000,$C144,Sheet2!$T$3:$T$1000,O$2)+SUMIFS(Sheet2!$P$3:$P$1000,Sheet2!$D$3:$D$1000,$C144,Sheet2!$S$3:$S$1000,O$2)-SUMIFS(Sheet2!$J$3:$J$1000,Sheet2!$D$3:$D$1000,$C144,Sheet2!$T$3:$T$1000,O$2) -> 0 | P144: =SUMIFS(Sheet2!$G$3:$G$1000,Sheet2!$D$3:$D$1000,$C144,Sheet2!$T$3:$T$1000,P$2)+SUMIFS(Sheet2!$P$3:$P$1000,Sheet2!$D$3:$D$1000,$C144,Sheet2!$S$3:$S$1000,P$2)-SUMIFS(Sheet2!$J$3:$J$1000,Sheet2!$D$3:$D$1000,$C144,Sheet2!$T$3:$T$1000,P$2) -> 0 | Q144: =SUMIFS(Sheet2!$G$3:$G$1000,Sheet2!$D$3:$D$1000,$C144,Sheet2!$T$3:$T$1000,Q$2)+SUMIFS(Sheet2!$P$3:$P$1000,Sheet2!$D$3:$D$1000,$C144,Sheet2!$S$3:$S$1000,Q$2)-SUMIFS(Sheet2!$J$3:$J$1000,Sheet2!$D$3:$D$1000,$C144,Sheet2!$T$3:$T$1000,Q$2) -> 0 | R144: =SUMIFS(Sheet2!$G$3:$G$1000,Sheet2!$D$3:$D$1000,$C144,Sheet2!$T$3:$T$1000,R$2)+SUMIFS(Sheet2!$P$3:$P$1000,Sheet2!$D$3:$D$1000,$C144,Sheet2!$S$3:$S$1000,R$2)-SUMIFS(Sheet2!$J$3:$J$1000,Sheet2!$D$3:$D$1000,$C144,Sheet2!$T$3:$T$1000,R$2) -> 0 | AG144: 2018-05-22
K145: 0 | L145: =G145+SUMIFS(Sheet2!$G$3:$G$1000,Sheet2!$D$3:$D$1000,$C145,Sheet2!$T$3:$T$1000,$L144)+SUMIFS(Sheet2!$P$3:$P$1000,Sheet2!$D$3:$D$1000,$C145,Sheet2!$S$3:$S$1000,$L144)-SUMIFS(Sheet2!$J$3:$J$1000,Sheet2!$D$3:$D$1000,$C145,Sheet2!$T$3:$T$1000,$L144) -> 0 | M145: =SUMIFS(Sheet2!$G$3:$G$1000,Sheet2!$D$3:$D$1000,$C145,Sheet2!$T$3:$T$1000,M$2)+SUMIFS(Sheet2!$P$3:$P$1000,Sheet2!$D$3:$D$1000,$C145,Sheet2!$S$3:$S$1000,M$2)-SUMIFS(Sheet2!$J$3:$J$1000,Sheet2!$D$3:$D$1000,$C145,Sheet2!$T$3:$T$1000,M$2)-SUMIFS(Sheet2!$P$3:$P$1000,Sheet2!$D$3:$D$1000,$C145,Sheet2!$T$3:$T$1000,M$2) -> 0 | N145: =SUMIFS(Sheet2!$G$3:$G$1000,Sheet2!$D$3:$D$1000,$C145,Sheet2!$T$3:$T$1000,N$2)+SUMIFS(Sheet2!$P$3:$P$1000,Sheet2!$D$3:$D$1000,$C145,Sheet2!$S$3:$S$1000,N$2)-SUMIFS(Sheet2!$J$3:$J$1000,Sheet2!$D$3:$D$1000,$C145,Sheet2!$T$3:$T$1000,N$2) -> 0 | O145: =SUMIFS(Sheet2!$G$3:$G$1000,Sheet2!$D$3:$D$1000,$C145,Sheet2!$T$3:$T$1000,O$2)+SUMIFS(Sheet2!$P$3:$P$1000,Sheet2!$D$3:$D$1000,$C145,Sheet2!$S$3:$S$1000,O$2)-SUMIFS(Sheet2!$J$3:$J$1000,Sheet2!$D$3:$D$1000,$C145,Sheet2!$T$3:$T$1000,O$2) -> 0 | P145: =SUMIFS(Sheet2!$G$3:$G$1000,Sheet2!$D$3:$D$1000,$C145,Sheet2!$T$3:$T$1000,P$2)+SUMIFS(Sheet2!$P$3:$P$1000,Sheet2!$D$3:$D$1000,$C145,Sheet2!$S$3:$S$1000,P$2)-SUMIFS(Sheet2!$J$3:$J$1000,Sheet2!$D$3:$D$1000,$C145,Sheet2!$T$3:$T$1000,P$2) -> 0 | Q145: =SUMIFS(Sheet2!$G$3:$G$1000,Sheet2!$D$3:$D$1000,$C145,Sheet2!$T$3:$T$1000,Q$2)+SUMIFS(Sheet2!$P$3:$P$1000,Sheet2!$D$3:$D$1000,$C145,Sheet2!$S$3:$S$1000,Q$2)-SUMIFS(Sheet2!$J$3:$J$1000,Sheet2!$D$3:$D$1000,$C145,Sheet2!$T$3:$T$1000,Q$2) -> 0 | R145: =SUMIFS(Sheet2!$G$3:$G$1000,Sheet2!$D$3:$D$1000,$C145,Sheet2!$T$3:$T$1000,R$2)+SUMIFS(Sheet2!$P$3:$P$1000,Sheet2!$D$3:$D$1000,$C145,Sheet2!$S$3:$S$1000,R$2)-SUMIFS(Sheet2!$J$3:$J$1000,Sheet2!$D$3:$D$1000,$C145,Sheet2!$T$3:$T$1000,R$2) -> 0 | AG145: 2018-05-23
K146: 0 | L146: =G146+SUMIFS(Sheet2!$G$3:$G$1000,Sheet2!$D$3:$D$1000,$C146,Sheet2!$T$3:$T$1000,$L145)+SUMIFS(Sheet2!$P$3:$P$1000,Sheet2!$D$3:$D$1000,$C146,Sheet2!$S$3:$S$1000,$L145)-SUMIFS(Sheet2!$J$3:$J$1000,Sheet2!$D$3:$D$1000,$C146,Sheet2!$T$3:$T$1000,$L145) -> 0 | M146: =SUMIFS(Sheet2!$G$3:$G$1000,Sheet2!$D$3:$D$1000,$C146,Sheet2!$T$3:$T$1000,M$2)+SUMIFS(Sheet2!$P$3:$P$1000,Sheet2!$D$3:$D$1000,$C146,Sheet2!$S$3:$S$1000,M$2)-SUMIFS(Sheet2!$J$3:$J$1000,Sheet2!$D$3:$D$1000,$C146,Sheet2!$T$3:$T$1000,M$2)-SUMIFS(Sheet2!$P$3:$P$1000,Sheet2!$D$3:$D$1000,$C146,Sheet2!$T$3:$T$1000,M$2) -> 0 | N146: =SUMIFS(Sheet2!$G$3:$G$1000,Sheet2!$D$3:$D$1000,$C146,Sheet2!$T$3:$T$1000,N$2)+SUMIFS(Sheet2!$P$3:$P$1000,Sheet2!$D$3:$D$1000,$C146,Sheet2!$S$3:$S$1000,N$2)-SUMIFS(Sheet2!$J$3:$J$1000,Sheet2!$D$3:$D$1000,$C146,Sheet2!$T$3:$T$1000,N$2) -> 0 | O146: =SUMIFS(Sheet2!$G$3:$G$1000,Sheet2!$D$3:$D$1000,$C146,Sheet2!$T$3:$T$1000,O$2)+SUMIFS(Sheet2!$P$3:$P$1000,Sheet2!$D$3:$D$1000,$C146,Sheet2!$S$3:$S$1000,O$2)-SUMIFS(Sheet2!$J$3:$J$1000,Sheet2!$D$3:$D$1000,$C146,Sheet2!$T$3:$T$1000,O$2) -> 0 | P146: =SUMIFS(Sheet2!$G$3:$G$1000,Sheet2!$D$3:$D$1000,$C146,Sheet2!$T$3:$T$1000,P$2)+SUMIFS(Sheet2!$P$3:$P$1000,Sheet2!$D$3:$D$1000,$C146,Sheet2!$S$3:$S$1000,P$2)-SUMIFS(Sheet2!$J$3:$J$1000,Sheet2!$D$3:$D$1000,$C146,Sheet2!$T$3:$T$1000,P$2) -> 0 | Q146: =SUMIFS(Sheet2!$G$3:$G$1000,Sheet2!$D$3:$D$1000,$C146,Sheet2!$T$3:$T$1000,Q$2)+SUMIFS(Sheet2!$P$3:$P$1000,Sheet2!$D$3:$D$1000,$C146,Sheet2!$S$3:$S$1000,Q$2)-SUMIFS(Sheet2!$J$3:$J$1000,Sheet2!$D$3:$D$1000,$C146,Sheet2!$T$3:$T$1000,Q$2) -> 0 | R146: =SUMIFS(Sheet2!$G$3:$G$1000,Sheet2!$D$3:$D$1000,$C146,Sheet2!$T$3:$T$1000,R$2)+SUMIFS(Sheet2!$P$3:$P$1000,Sheet2!$D$3:$D$1000,$C146,Sheet2!$S$3:$S$1000,R$2)-SUMIFS(Sheet2!$J$3:$J$1000,Sheet2!$D$3:$D$1000,$C146,Sheet2!$T$3:$T$1000,R$2) -> 0 | AG146: 2018-05-24
K147: 0 | L147: =G147+SUMIFS(Sheet2!$G$3:$G$1000,Sheet2!$D$3:$D$1000,$C147,Sheet2!$T$3:$T$1000,$L146)+SUMIFS(Sheet2!$P$3:$P$1000,Sheet2!$D$3:$D$1000,$C147,Sheet2!$S$3:$S$1000,$L146)-SUMIFS(Sheet2!$J$3:$J$1000,Sheet2!$D$3:$D$1000,$C147,Sheet2!$T$3:$T$1000,$L146) -> 0 | M147: =SUMIFS(Sheet2!$G$3:$G$1000,Sheet2!$D$3:$D$1000,$C147,Sheet2!$T$3:$T$1000,M$2)+SUMIFS(Sheet2!$P$3:$P$1000,Sheet2!$D$3:$D$1000,$C147,Sheet2!$S$3:$S$1000,M$2)-SUMIFS(Sheet2!$J$3:$J$1000,Sheet2!$D$3:$D$1000,$C147,Sheet2!$T$3:$T$1000,M$2)-SUMIFS(Sheet2!$P$3:$P$1000,Sheet2!$D$3:$D$1000,$C147,Sheet2!$T$3:$T$1000,M$2) -> 0 | N147: =SUMIFS(Sheet2!$G$3:$G$1000,Sheet2!$D$3:$D$1000,$C147,Sheet2!$T$3:$T$1000,N$2)+SUMIFS(Sheet2!$P$3:$P$1000,Sheet2!$D$3:$D$1000,$C147,Sheet2!$S$3:$S$1000,N$2)-SUMIFS(Sheet2!$J$3:$J$1000,Sheet2!$D$3:$D$1000,$C147,Sheet2!$T$3:$T$1000,N$2) -> 0 | O147: =SUMIFS(Sheet2!$G$3:$G$1000,Sheet2!$D$3:$D$1000,$C147,Sheet2!$T$3:$T$1000,O$2)+SUMIFS(Sheet2!$P$3:$P$1000,Sheet2!$D$3:$D$1000,$C147,Sheet2!$S$3:$S$1000,O$2)-SUMIFS(Sheet2!$J$3:$J$1000,Sheet2!$D$3:$D$1000,$C147,Sheet2!$T$3:$T$1000,O$2) -> 0 | P147: =SUMIFS(Sheet2!$G$3:$G$1000,Sheet2!$D$3:$D$1000,$C147,Sheet2!$T$3:$T$1000,P$2)+SUMIFS(Sheet2!$P$3:$P$1000,Sheet2!$D$3:$D$1000,$C147,Sheet2!$S$3:$S$1000,P$2)-SUMIFS(Sheet2!$J$3:$J$1000,Sheet2!$D$3:$D$1000,$C147,Sheet2!$T$3:$T$1000,P$2) -> 0 | Q147: =SUMIFS(Sheet2!$G$3:$G$1000,Sheet2!$D$3:$D$1000,$C147,Sheet2!$T$3:$T$1000,Q$2)+SUMIFS(Sheet2!$P$3:$P$1000,Sheet2!$D$3:$D$1000,$C147,Sheet2!$S$3:$S$1000,Q$2)-SUMIFS(Sheet2!$J$3:$J$1000,Sheet2!$D$3:$D$1000,$C147,Sheet2!$T$3:$T$1000,Q$2) -> 0 | R147: =SUMIFS(Sheet2!$G$3:$G$1000,Sheet2!$D$3:$D$1000,$C147,Sheet2!$T$3:$T$1000,R$2)+SUMIFS(Sheet2!$P$3:$P$1000,Sheet2!$D$3:$D$1000,$C147,Sheet2!$S$3:$S$1000,R$2)-SUMIFS(Sheet2!$J$3:$J$1000,Sheet2!$D$3:$D$1000,$C147,Sheet2!$T$3:$T$1000,R$2) -> 0 | AG147: 2018-05-25
K148: 0 | L148: =G148+SUMIFS(Sheet2!$G$3:$G$1000,Sheet2!$D$3:$D$1000,$C148,Sheet2!$T$3:$T$1000,$L147)+SUMIFS(Sheet2!$P$3:$P$1000,Sheet2!$D$3:$D$1000,$C148,Sheet2!$S$3:$S$1000,$L147)-SUMIFS(Sheet2!$J$3:$J$1000,Sheet2!$D$3:$D$1000,$C148,Sheet2!$T$3:$T$1000,$L147) -> 0 | M148: =SUMIFS(Sheet2!$G$3:$G$1000,Sheet2!$D$3:$D$1000,$C148,Sheet2!$T$3:$T$1000,M$2)+SUMIFS(Sheet2!$P$3:$P$1000,Sheet2!$D$3:$D$1000,$C148,Sheet2!$S$3:$S$1000,M$2)-SUMIFS(Sheet2!$J$3:$J$1000,Sheet2!$D$3:$D$1000,$C148,Sheet2!$T$3:$T$1000,M$2)-SUMIFS(Sheet2!$P$3:$P$1000,Sheet2!$D$3:$D$1000,$C148,Sheet2!$T$3:$T$1000,M$2) -> 0 | N148: =SUMIFS(Sheet2!$G$3:$G$1000,Sheet2!$D$3:$D$1000,$C148,Sheet2!$T$3:$T$1000,N$2)+SUMIFS(Sheet2!$P$3:$P$1000,Sheet2!$D$3:$D$1000,$C148,Sheet2!$S$3:$S$1000,N$2)-SUMIFS(Sheet2!$J$3:$J$1000,Sheet2!$D$3:$D$1000,$C148,Sheet2!$T$3:$T$1000,N$2) -> 0 | O148: =SUMIFS(Sheet2!$G$3:$G$1000,Sheet2!$D$3:$D$1000,$C148,Sheet2!$T$3:$T$1000,O$2)+SUMIFS(Sheet2!$P$3:$P$1000,Sheet2!$D$3:$D$1000,$C148,Sheet2!$S$3:$S$1000,O$2)-SUMIFS(Sheet2!$J$3:$J$1000,Sheet2!$D$3:$D$1000,$C148,Sheet2!$T$3:$T$1000,O$2) -> 0 | P148: =SUMIFS(Sheet2!$G$3:$G$1000,Sheet2!$D$3:$D$1000,$C148,Sheet2!$T$3:$T$1000,P$2)+SUMIFS(Sheet2!$P$3:$P$1000,Sheet2!$D$3:$D$1000,$C148,Sheet2!$S$3:$S$1000,P$2)-SUMIFS(Sheet2!$J$3:$J$1000,Sheet2!$D$3:$D$1000,$C148,Sheet2!$T$3:$T$1000,P$2) -> 0 | Q148: =SUMIFS(Sheet2!$G$3:$G$1000,Sheet2!$D$3:$D$1000,$C148,Sheet2!$T$3:$T$1000,Q$2)+SUMIFS(Sheet2!$P$3:$P$1000,Sheet2!$D$3:$D$1000,$C148,Sheet2!$S$3:$S$1000,Q$2)-SUMIFS(Sheet2!$J$3:$J$1000,Sheet2!$D$3:$D$1000,$C148,Sheet2!$T$3:$T$1000,Q$2) -> 0 | R148: =SUMIFS(Sheet2!$G$3:$G$1000,Sheet2!$D$3:$D$1000,$C148,Sheet2!$T$3:$T$1000,R$2)+SUMIFS(Sheet2!$P$3:$P$1000,Sheet2!$D$3:$D$1000,$C148,Sheet2!$S$3:$S$1000,R$2)-SUMIFS(Sheet2!$J$3:$J$1000,Sheet2!$D$3:$D$1000,$C148,Sheet2!$T$3:$T$1000,R$2) -> 0 | AG148: 2018-05-26
K149: 0 | L149: =G149+SUMIFS(Sheet2!$G$3:$G$1000,Sheet2!$D$3:$D$1000,$C149,Sheet2!$T$3:$T$1000,$L148)+SUMIFS(Sheet2!$P$3:$P$1000,Sheet2!$D$3:$D$1000,$C149,Sheet2!$S$3:$S$1000,$L148)-SUMIFS(Sheet2!$J$3:$J$1000,Sheet2!$D$3:$D$1000,$C149,Sheet2!$T$3:$T$1000,$L148) -> 0 | M149: =SUMIFS(Sheet2!$G$3:$G$1000,Sheet2!$D$3:$D$1000,$C149,Sheet2!$T$3:$T$1000,M$2)+SUMIFS(Sheet2!$P$3:$P$1000,Sheet2!$D$3:$D$1000,$C149,Sheet2!$S$3:$S$1000,M$2)-SUMIFS(Sheet2!$J$3:$J$1000,Sheet2!$D$3:$D$1000,$C149,Sheet2!$T$3:$T$1000,M$2)-SUMIFS(Sheet2!$P$3:$P$1000,Sheet2!$D$3:$D$1000,$C149,Sheet2!$T$3:$T$1000,M$2) -> 0 | N149: =SUMIFS(Sheet2!$G$3:$G$1000,Sheet2!$D$3:$D$1000,$C149,Sheet2!$T$3:$T$1000,N$2)+SUMIFS(Sheet2!$P$3:$P$1000,Sheet2!$D$3:$D$1000,$C149,Sheet2!$S$3:$S$1000,N$2)-SUMIFS(Sheet2!$J$3:$J$1000,Sheet2!$D$3:$D$1000,$C149,Sheet2!$T$3:$T$1000,N$2) -> 0 | O149: =SUMIFS(Sheet2!$G$3:$G$1000,Sheet2!$D$3:$D$1000,$C149,Sheet2!$T$3:$T$1000,O$2)+SUMIFS(Sheet2!$P$3:$P$1000,Sheet2!$D$3:$D$1000,$C149,Sheet2!$S$3:$S$1000,O$2)-SUMIFS(Sheet2!$J$3:$J$1000,Sheet2!$D$3:$D$1000,$C149,Sheet2!$T$3:$T$1000,O$2) -> 0 | P149: =SUMIFS(Sheet2!$G$3:$G$1000,Sheet2!$D$3:$D$1000,$C149,Sheet2!$T$3:$T$1000,P$2)+SUMIFS(Sheet2!$P$3:$P$1000,Sheet2!$D$3:$D$1000,$C149,Sheet2!$S$3:$S$1000,P$2)-SUMIFS(Sheet2!$J$3:$J$1000,Sheet2!$D$3:$D$1000,$C149,Sheet2!$T$3:$T$1000,P$2) -> 0 | Q149: =SUMIFS(Sheet2!$G$3:$G$1000,Sheet2!$D$3:$D$1000,$C149,Sheet2!$T$3:$T$1000,Q$2)+SUMIFS(Sheet2!$P$3:$P$1000,Sheet2!$D$3:$D$1000,$C149,Sheet2!$S$3:$S$1000,Q$2)-SUMIFS(Sheet2!$J$3:$J$1000,Sheet2!$D$3:$D$1000,$C149,Sheet2!$T$3:$T$1000,Q$2) -> 0 | R149: =SUMIFS(Sheet2!$G$3:$G$1000,Sheet2!$D$3:$D$1000,$C149,Sheet2!$T$3:$T$1000,R$2)+SUMIFS(Sheet2!$P$3:$P$1000,Sheet2!$D$3:$D$1000,$C149,Sheet2!$S$3:$S$1000,R$2)-SUMIFS(Sheet2!$J$3:$J$1000,Sheet2!$D$3:$D$1000,$C149,Sheet2!$T$3:$T$1000,R$2) -> 0 | AG149: 2018-05-27
K150: 0 | L150: =G150+SUMIFS(Sheet2!$G$3:$G$1000,Sheet2!$D$3:$D$1000,$C150,Sheet2!$T$3:$T$1000,$L149)+SUMIFS(Sheet2!$P$3:$P$1000,Sheet2!$D$3:$D$1000,$C150,Sheet2!$S$3:$S$1000,$L149)-SUMIFS(Sheet2!$J$3:$J$1000,Sheet2!$D$3:$D$1000,$C150,Sheet2!$T$3:$T$1000,$L149) -> 0 | M150: =SUMIFS(Sheet2!$G$3:$G$1000,Sheet2!$D$3:$D$1000,$C150,Sheet2!$T$3:$T$1000,M$2)+SUMIFS(Sheet2!$P$3:$P$1000,Sheet2!$D$3:$D$1000,$C150,Sheet2!$S$3:$S$1000,M$2)-SUMIFS(Sheet2!$J$3:$J$1000,Sheet2!$D$3:$D$1000,$C150,Sheet2!$T$3:$T$1000,M$2)-SUMIFS(Sheet2!$P$3:$P$1000,Sheet2!$D$3:$D$1000,$C150,Sheet2!$T$3:$T$1000,M$2) -> 0 | N150: =SUMIFS(Sheet2!$G$3:$G$1000,Sheet2!$D$3:$D$1000,$C150,Sheet2!$T$3:$T$1000,N$2)+SUMIFS(Sheet2!$P$3:$P$1000,Sheet2!$D$3:$D$1000,$C150,Sheet2!$S$3:$S$1000,N$2)-SUMIFS(Sheet2!$J$3:$J$1000,Sheet2!$D$3:$D$1000,$C150,Sheet2!$T$3:$T$1000,N$2) -> 0 | O150: =SUMIFS(Sheet2!$G$3:$G$1000,Sheet2!$D$3:$D$1000,$C150,Sheet2!$T$3:$T$1000,O$2)+SUMIFS(Sheet2!$P$3:$P$1000,Sheet2!$D$3:$D$1000,$C150,Sheet2!$S$3:$S$1000,O$2)-SUMIFS(Sheet2!$J$3:$J$1000,Sheet2!$D$3:$D$1000,$C150,Sheet2!$T$3:$T$1000,O$2) -> 0 | P150: =SUMIFS(Sheet2!$G$3:$G$1000,Sheet2!$D$3:$D$1000,$C150,Sheet2!$T$3:$T$1000,P$2)+SUMIFS(Sheet2!$P$3:$P$1000,Sheet2!$D$3:$D$1000,$C150,Sheet2!$S$3:$S$1000,P$2)-SUMIFS(Sheet2!$J$3:$J$1000,Sheet2!$D$3:$D$1000,$C150,Sheet2!$T$3:$T$1000,P$2) -> 0 | Q150: =SUMIFS(Sheet2!$G$3:$G$1000,Sheet2!$D$3:$D$1000,$C150,Sheet2!$T$3:$T$1000,Q$2)+SUMIFS(Sheet2!$P$3:$P$1000,Sheet2!$D$3:$D$1000,$C150,Sheet2!$S$3:$S$1000,Q$2)-SUMIFS(Sheet2!$J$3:$J$1000,Sheet2!$D$3:$D$1000,$C150,Sheet2!$T$3:$T$1000,Q$2) -> 0 | R150: =SUMIFS(Sheet2!$G$3:$G$1000,Sheet2!$D$3:$D$1000,$C150,Sheet2!$T$3:$T$1000,R$2)+SUMIFS(Sheet2!$P$3:$P$1000,Sheet2!$D$3:$D$1000,$C150,Sheet2!$S$3:$S$1000,R$2)-SUMIFS(Sheet2!$J$3:$J$1000,Sheet2!$D$3:$D$1000,$C150,Sheet2!$T$3:$T$1000,R$2) -> 0 | AG150: 2018-05-28
K151: 0 | L151: =G151+SUMIFS(Sheet2!$G$3:$G$1000,Sheet2!$D$3:$D$1000,$C151,Sheet2!$T$3:$T$1000,$L150)+SUMIFS(Sheet2!$P$3:$P$1000,Sheet2!$D$3:$D$1000,$C151,Sheet2!$S$3:$S$1000,$L150)-SUMIFS(Sheet2!$J$3:$J$1000,Sheet2!$D$3:$D$1000,$C151,Sheet2!$T$3:$T$1000,$L150) -> 0 | M151: =SUMIFS(Sheet2!$G$3:$G$1000,Sheet2!$D$3:$D$1000,$C151,Sheet2!$T$3:$T$1000,M$2)+SUMIFS(Sheet2!$P$3:$P$1000,Sheet2!$D$3:$D$1000,$C151,Sheet2!$S$3:$S$1000,M$2)-SUMIFS(Sheet2!$J$3:$J$1000,Sheet2!$D$3:$D$1000,$C151,Sheet2!$T$3:$T$1000,M$2)-SUMIFS(Sheet2!$P$3:$P$1000,Sheet2!$D$3:$D$1000,$C151,Sheet2!$T$3:$T$1000,M$2) -> 0 | N151: =SUMIFS(Sheet2!$G$3:$G$1000,Sheet2!$D$3:$D$1000,$C151,Sheet2!$T$3:$T$1000,N$2)+SUMIFS(Sheet2!$P$3:$P$1000,Sheet2!$D$3:$D$1000,$C151,Sheet2!$S$3:$S$1000,N$2)-SUMIFS(Sheet2!$J$3:$J$1000,Sheet2!$D$3:$D$1000,$C151,Sheet2!$T$3:$T$1000,N$2) -> 0 | O151: =SUMIFS(Sheet2!$G$3:$G$1000,Sheet2!$D$3:$D$1000,$C151,Sheet2!$T$3:$T$1000,O$2)+SUMIFS(Sheet2!$P$3:$P$1000,Sheet2!$D$3:$D$1000,$C151,Sheet2!$S$3:$S$1000,O$2)-SUMIFS(Sheet2!$J$3:$J$1000,Sheet2!$D$3:$D$1000,$C151,Sheet2!$T$3:$T$1000,O$2) -> 0 | P151: =SUMIFS(Sheet2!$G$3:$G$1000,Sheet2!$D$3:$D$1000,$C151,Sheet2!$T$3:$T$1000,P$2)+SUMIFS(Sheet2!$P$3:$P$1000,Sheet2!$D$3:$D$1000,$C151,Sheet2!$S$3:$S$1000,P$2)-SUMIFS(Sheet2!$J$3:$J$1000,Sheet2!$D$3:$D$1000,$C151,Sheet2!$T$3:$T$1000,P$2) -> 0 | Q151: =SUMIFS(Sheet2!$G$3:$G$1000,Sheet2!$D$3:$D$1000,$C151,Sheet2!$T$3:$T$1000,Q$2)+SUMIFS(Sheet2!$P$3:$P$1000,Sheet2!$D$3:$D$1000,$C151,Sheet2!$S$3:$S$1000,Q$2)-SUMIFS(Sheet2!$J$3:$J$1000,Sheet2!$D$3:$D$1000,$C151,Sheet2!$T$3:$T$1000,Q$2) -> 0 | R151: =SUMIFS(Sheet2!$G$3:$G$1000,Sheet2!$D$3:$D$1000,$C151,Sheet2!$T$3:$T$1000,R$2)+SUMIFS(Sheet2!$P$3:$P$1000,Sheet2!$D$3:$D$1000,$C151,Sheet2!$S$3:$S$1000,R$2)-SUMIFS(Sheet2!$J$3:$J$1000,Sheet2!$D$3:$D$1000,$C151,Sheet2!$T$3:$T$1000,R$2) -> 0 | AG151: 2018-05-29
K152: 0 | L152: =G152+SUMIFS(Sheet2!$G$3:$G$1000,Sheet2!$D$3:$D$1000,$C152,Sheet2!$T$3:$T$1000,$L151)+SUMIFS(Sheet2!$P$3:$P$1000,Sheet2!$D$3:$D$1000,$C152,Sheet2!$S$3:$S$1000,$L151)-SUMIFS(Sheet2!$J$3:$J$1000,Sheet2!$D$3:$D$1000,$C152,Sheet2!$T$3:$T$1000,$L151) -> 0 | M152: =SUMIFS(Sheet2!$G$3:$G$1000,Sheet2!$D$3:$D$1000,$C152,Sheet2!$T$3:$T$1000,M$2)+SUMIFS(Sheet2!$P$3:$P$1000,Sheet2!$D$3:$D$1000,$C152,Sheet2!$S$3:$S$1000,M$2)-SUMIFS(Sheet2!$J$3:$J$1000,Sheet2!$D$3:$D$1000,$C152,Sheet2!$T$3:$T$1000,M$2)-SUMIFS(Sheet2!$P$3:$P$1000,Sheet2!$D$3:$D$1000,$C152,Sheet2!$T$3:$T$1000,M$2) -> 0 | N152: =SUMIFS(Sheet2!$G$3:$G$1000,Sheet2!$D$3:$D$1000,$C152,Sheet2!$T$3:$T$1000,N$2)+SUMIFS(Sheet2!$P$3:$P$1000,Sheet2!$D$3:$D$1000,$C152,Sheet2!$S$3:$S$1000,N$2)-SUMIFS(Sheet2!$J$3:$J$1000,Sheet2!$D$3:$D$1000,$C152,Sheet2!$T$3:$T$1000,N$2) -> 0 | O152: =SUMIFS(Sheet2!$G$3:$G$1000,Sheet2!$D$3:$D$1000,$C152,Sheet2!$T$3:$T$1000,O$2)+SUMIFS(Sheet2!$P$3:$P$1000,Sheet2!$D$3:$D$1000,$C152,Sheet2!$S$3:$S$1000,O$2)-SUMIFS(Sheet2!$J$3:$J$1000,Sheet2!$D$3:$D$1000,$C152,Sheet2!$T$3:$T$1000,O$2) -> 0 | P152: =SUMIFS(Sheet2!$G$3:$G$1000,Sheet2!$D$3:$D$1000,$C152,Sheet2!$T$3:$T$1000,P$2)+SUMIFS(Sheet2!$P$3:$P$1000,Sheet2!$D$3:$D$1000,$C152,Sheet2!$S$3:$S$1000,P$2)-SUMIFS(Sheet2!$J$3:$J$1000,Sheet2!$D$3:$D$1000,$C152,Sheet2!$T$3:$T$1000,P$2) -> 0 | Q152: =SUMIFS(Sheet2!$G$3:$G$1000,Sheet2!$D$3:$D$1000,$C152,Sheet2!$T$3:$T$1000,Q$2)+SUMIFS(Sheet2!$P$3:$P$1000,Sheet2!$D$3:$D$1000,$C152,Sheet2!$S$3:$S$1000,Q$2)-SUMIFS(Sheet2!$J$3:$J$1000,Sheet2!$D$3:$D$1000,$C152,Sheet2!$T$3:$T$1000,Q$2) -> 0 | R152: =SUMIFS(Sheet2!$G$3:$G$1000,Sheet2!$D$3:$D$1000,$C152,Sheet2!$T$3:$T$1000,R$2)+SUMIFS(Sheet2!$P$3:$P$1000,Sheet2!$D$3:$D$1000,$C152,Sheet2!$S$3:$S$1000,R$2)-SUMIFS(Sheet2!$J$3:$J$1000,Sheet2!$D$3:$D$1000,$C152,Sheet2!$T$3:$T$1000,R$2) -> 0 | AG152: 2018-05-30
K153: 0 | L153: =G153+SUMIFS(Sheet2!$G$3:$G$1000,Sheet2!$D$3:$D$1000,$C153,Sheet2!$T$3:$T$1000,$L152)+SUMIFS(Sheet2!$P$3:$P$1000,Sheet2!$D$3:$D$1000,$C153,Sheet2!$S$3:$S$1000,$L152)-SUMIFS(Sheet2!$J$3:$J$1000,Sheet2!$D$3:$D$1000,$C153,Sheet2!$T$3:$T$1000,$L152) -> 0 | M153: =SUMIFS(Sheet2!$G$3:$G$1000,Sheet2!$D$3:$D$1000,$C153,Sheet2!$T$3:$T$1000,M$2)+SUMIFS(Sheet2!$P$3:$P$1000,Sheet2!$D$3:$D$1000,$C153,Sheet2!$S$3:$S$1000,M$2)-SUMIFS(Sheet2!$J$3:$J$1000,Sheet2!$D$3:$D$1000,$C153,Sheet2!$T$3:$T$1000,M$2)-SUMIFS(Sheet2!$P$3:$P$1000,Sheet2!$D$3:$D$1000,$C153,Sheet2!$T$3:$T$1000,M$2) -> 0 | N153: =SUMIFS(Sheet2!$G$3:$G$1000,Sheet2!$D$3:$D$1000,$C153,Sheet2!$T$3:$T$1000,N$2)+SUMIFS(Sheet2!$P$3:$P$1000,Sheet2!$D$3:$D$1000,$C153,Sheet2!$S$3:$S$1000,N$2)-SUMIFS(Sheet2!$J$3:$J$1000,Sheet2!$D$3:$D$1000,$C153,Sheet2!$T$3:$T$1000,N$2) -> 0 | O153: =SUMIFS(Sheet2!$G$3:$G$1000,Sheet2!$D$3:$D$1000,$C153,Sheet2!$T$3:$T$1000,O$2)+SUMIFS(Sheet2!$P$3:$P$1000,Sheet2!$D$3:$D$1000,$C153,Sheet2!$S$3:$S$1000,O$2)-SUMIFS(Sheet2!$J$3:$J$1000,Sheet2!$D$3:$D$1000,$C153,Sheet2!$T$3:$T$1000,O$2) -> 0 | P153: =SUMIFS(Sheet2!$G$3:$G$1000,Sheet2!$D$3:$D$1000,$C153,Sheet2!$T$3:$T$1000,P$2)+SUMIFS(Sheet2!$P$3:$P$1000,Sheet2!$D$3:$D$1000,$C153,Sheet2!$S$3:$S$1000,P$2)-SUMIFS(Sheet2!$J$3:$J$1000,Sheet2!$D$3:$D$1000,$C153,Sheet2!$T$3:$T$1000,P$2) -> 0 | Q153: =SUMIFS(Sheet2!$G$3:$G$1000,Sheet2!$D$3:$D$1000,$C153,Sheet2!$T$3:$T$1000,Q$2)+SUMIFS(Sheet2!$P$3:$P$1000,Sheet2!$D$3:$D$1000,$C153,Sheet2!$S$3:$S$1000,Q$2)-SUMIFS(Sheet2!$J$3:$J$1000,Sheet2!$D$3:$D$1000,$C153,Sheet2!$T$3:$T$1000,Q$2) -> 0 | R153: =SUMIFS(Sheet2!$G$3:$G$1000,Sheet2!$D$3:$D$1000,$C153,Sheet2!$T$3:$T$1000,R$2)+SUMIFS(Sheet2!$P$3:$P$1000,Sheet2!$D$3:$D$1000,$C153,Sheet2!$S$3:$S$1000,R$2)-SUMIFS(Sheet2!$J$3:$J$1000,Sheet2!$D$3:$D$1000,$C153,Sheet2!$T$3:$T$1000,R$2) -> 0 | AG153: 2018-05-31
K154: 0 | L154: =G154+SUMIFS(Sheet2!$G$3:$G$1000,Sheet2!$D$3:$D$1000,$C154,Sheet2!$T$3:$T$1000,$L153)+SUMIFS(Sheet2!$P$3:$P$1000,Sheet2!$D$3:$D$1000,$C154,Sheet2!$S$3:$S$1000,$L153)-SUMIFS(Sheet2!$J$3:$J$1000,Sheet2!$D$3:$D$1000,$C154,Sheet2!$T$3:$T$1000,$L153) -> 0 | M154: =SUMIFS(Sheet2!$G$3:$G$1000,Sheet2!$D$3:$D$1000,$C154,Sheet2!$T$3:$T$1000,M$2)+SUMIFS(Sheet2!$P$3:$P$1000,Sheet2!$D$3:$D$1000,$C154,Sheet2!$S$3:$S$1000,M$2)-SUMIFS(Sheet2!$J$3:$J$1000,Sheet2!$D$3:$D$1000,$C154,Sheet2!$T$3:$T$1000,M$2)-SUMIFS(Sheet2!$P$3:$P$1000,Sheet2!$D$3:$D$1000,$C154,Sheet2!$T$3:$T$1000,M$2) -> 0 | N154: =SUMIFS(Sheet2!$G$3:$G$1000,Sheet2!$D$3:$D$1000,$C154,Sheet2!$T$3:$T$1000,N$2)+SUMIFS(Sheet2!$P$3:$P$1000,Sheet2!$D$3:$D$1000,$C154,Sheet2!$S$3:$S$1000,N$2)-SUMIFS(Sheet2!$J$3:$J$1000,Sheet2!$D$3:$D$1000,$C154,Sheet2!$T$3:$T$1000,N$2) -> 0 | O154: =SUMIFS(Sheet2!$G$3:$G$1000,Sheet2!$D$3:$D$1000,$C154,Sheet2!$T$3:$T$1000,O$2)+SUMIFS(Sheet2!$P$3:$P$1000,Sheet2!$D$3:$D$1000,$C154,Sheet2!$S$3:$S$1000,O$2)-SUMIFS(Sheet2!$J$3:$J$1000,Sheet2!$D$3:$D$1000,$C154,Sheet2!$T$3:$T$1000,O$2) -> 0 | P154: =SUMIFS(Sheet2!$G$3:$G$1000,Sheet2!$D$3:$D$1000,$C154,Sheet2!$T$3:$T$1000,P$2)+SUMIFS(Sheet2!$P$3:$P$1000,Sheet2!$D$3:$D$1000,$C154,Sheet2!$S$3:$S$1000,P$2)-SUMIFS(Sheet2!$J$3:$J$1000,Sheet2!$D$3:$D$1000,$C154,Sheet2!$T$3:$T$1000,P$2) -> 0 | Q154: =SUMIFS(Sheet2!$G$3:$G$1000,Sheet2!$D$3:$D$1000,$C154,Sheet2!$T$3:$T$1000,Q$2)+SUMIFS(Sheet2!$P$3:$P$1000,Sheet2!$D$3:$D$1000,$C154,Sheet2!$S$3:$S$1000,Q$2)-SUMIFS(Sheet2!$J$3:$J$1000,Sheet2!$D$3:$D$1000,$C154,Sheet2!$T$3:$T$1000,Q$2) -> 0 | R154: =SUMIFS(Sheet2!$G$3:$G$1000,Sheet2!$D$3:$D$1000,$C154,Sheet2!$T$3:$T$1000,R$2)+SUMIFS(Sheet2!$P$3:$P$1000,Sheet2!$D$3:$D$1000,$C154,Sheet2!$S$3:$S$1000,R$2)-SUMIFS(Sheet2!$J$3:$J$1000,Sheet2!$D$3:$D$1000,$C154,Sheet2!$T$3:$T$1000,R$2) -> 0 | AG154: 2018-06-01
K155: 0 | L155: =G155+SUMIFS(Sheet2!$G$3:$G$1000,Sheet2!$D$3:$D$1000,$C155,Sheet2!$T$3:$T$1000,$L154)+SUMIFS(Sheet2!$P$3:$P$1000,Sheet2!$D$3:$D$1000,$C155,Sheet2!$S$3:$S$1000,$L154)-SUMIFS(Sheet2!$J$3:$J$1000,Sheet2!$D$3:$D$1000,$C155,Sheet2!$T$3:$T$1000,$L154) -> 0 | M155: =SUMIFS(Sheet2!$G$3:$G$1000,Sheet2!$D$3:$D$1000,$C155,Sheet2!$T$3:$T$1000,M$2)+SUMIFS(Sheet2!$P$3:$P$1000,Sheet2!$D$3:$D$1000,$C155,Sheet2!$S$3:$S$1000,M$2)-SUMIFS(Sheet2!$J$3:$J$1000,Sheet2!$D$3:$D$1000,$C155,Sheet2!$T$3:$T$1000,M$2)-SUMIFS(Sheet2!$P$3:$P$1000,Sheet2!$D$3:$D$1000,$C155,Sheet2!$T$3:$T$1000,M$2) -> 0 | N155: =SUMIFS(Sheet2!$G$3:$G$1000,Sheet2!$D$3:$D$1000,$C155,Sheet2!$T$3:$T$1000,N$2)+SUMIFS(Sheet2!$P$3:$P$1000,Sheet2!$D$3:$D$1000,$C155,Sheet2!$S$3:$S$1000,N$2)-SUMIFS(Sheet2!$J$3:$J$1000,Sheet2!$D$3:$D$1000,$C155,Sheet2!$T$3:$T$1000,N$2) -> 0 | O155: =SUMIFS(Sheet2!$G$3:$G$1000,Sheet2!$D$3:$D$1000,$C155,Sheet2!$T$3:$T$1000,O$2)+SUMIFS(Sheet2!$P$3:$P$1000,Sheet2!$D$3:$D$1000,$C155,Sheet2!$S$3:$S$1000,O$2)-SUMIFS(Sheet2!$J$3:$J$1000,Sheet2!$D$3:$D$1000,$C155,Sheet2!$T$3:$T$1000,O$2) -> 0 | P155: =SUMIFS(Sheet2!$G$3:$G$1000,Sheet2!$D$3:$D$1000,$C155,Sheet2!$T$3:$T$1000,P$2)+SUMIFS(Sheet2!$P$3:$P$1000,Sheet2!$D$3:$D$1000,$C155,Sheet2!$S$3:$S$1000,P$2)-SUMIFS(Sheet2!$J$3:$J$1000,Sheet2!$D$3:$D$1000,$C155,Sheet2!$T$3:$T$1000,P$2) -> 0 | Q155: =SUMIFS(Sheet2!$G$3:$G$1000,Sheet2!$D$3:$D$1000,$C155,Sheet2!$T$3:$T$1000,Q$2)+SUMIFS(Sheet2!$P$3:$P$1000,Sheet2!$D$3:$D$1000,$C155,Sheet2!$S$3:$S$1000,Q$2)-SUMIFS(Sheet2!$J$3:$J$1000,Sheet2!$D$3:$D$1000,$C155,Sheet2!$T$3:$T$1000,Q$2) -> 0 | R155: =SUMIFS(Sheet2!$G$3:$G$1000,Sheet2!$D$3:$D$1000,$C155,Sheet2!$T$3:$T$1000,R$2)+SUMIFS(Sheet2!$P$3:$P$1000,Sheet2!$D$3:$D$1000,$C155,Sheet2!$S$3:$S$1000,R$2)-SUMIFS(Sheet2!$J$3:$J$1000,Sheet2!$D$3:$D$1000,$C155,Sheet2!$T$3:$T$1000,R$2) -> 0 | AG155: 2018-06-02
K156: 0 | L156: =G156+SUMIFS(Sheet2!$G$3:$G$1000,Sheet2!$D$3:$D$1000,$C156,Sheet2!$T$3:$T$1000,$L155)+SUMIFS(Sheet2!$P$3:$P$1000,Sheet2!$D$3:$D$1000,$C156,Sheet2!$S$3:$S$1000,$L155)-SUMIFS(Sheet2!$J$3:$J$1000,Sheet2!$D$3:$D$1000,$C156,Sheet2!$T$3:$T$1000,$L155) -> 0 | M156: =SUMIFS(Sheet2!$G$3:$G$1000,Sheet2!$D$3:$D$1000,$C156,Sheet2!$T$3:$T$1000,M$2)+SUMIFS(Sheet2!$P$3:$P$1000,Sheet2!$D$3:$D$1000,$C156,Sheet2!$S$3:$S$1000,M$2)-SUMIFS(Sheet2!$J$3:$J$1000,Sheet2!$D$3:$D$1000,$C156,Sheet2!$T$3:$T$1000,M$2)-SUMIFS(Sheet2!$P$3:$P$1000,Sheet2!$D$3:$D$1000,$C156,Sheet2!$T$3:$T$1000,M$2) -> 0 | N156: =SUMIFS(Sheet2!$G$3:$G$1000,Sheet2!$D$3:$D$1000,$C156,Sheet2!$T$3:$T$1000,N$2)+SUMIFS(Sheet2!$P$3:$P$1000,Sheet2!$D$3:$D$1000,$C156,Sheet2!$S$3:$S$1000,N$2)-SUMIFS(Sheet2!$J$3:$J$1000,Sheet2!$D$3:$D$1000,$C156,Sheet2!$T$3:$T$1000,N$2) -> 0 | O156: =SUMIFS(Sheet2!$G$3:$G$1000,Sheet2!$D$3:$D$1000,$C156,Sheet2!$T$3:$T$1000,O$2)+SUMIFS(Sheet2!$P$3:$P$1000,Sheet2!$D$3:$D$1000,$C156,Sheet2!$S$3:$S$1000,O$2)-SUMIFS(Sheet2!$J$3:$J$1000,Sheet2!$D$3:$D$1000,$C156,Sheet2!$T$3:$T$1000,O$2) -> 0 | P156: =SUMIFS(Sheet2!$G$3:$G$1000,Sheet2!$D$3:$D$1000,$C156,Sheet2!$T$3:$T$1000,P$2)+SUMIFS(Sheet2!$P$3:$P$1000,Sheet2!$D$3:$D$1000,$C156,Sheet2!$S$3:$S$1000,P$2)-SUMIFS(Sheet2!$J$3:$J$1000,Sheet2!$D$3:$D$1000,$C156,Sheet2!$T$3:$T$1000,P$2) -> 0 | Q156: =SUMIFS(Sheet2!$G$3:$G$1000,Sheet2!$D$3:$D$1000,$C156,Sheet2!$T$3:$T$1000,Q$2)+SUMIFS(Sheet2!$P$3:$P$1000,Sheet2!$D$3:$D$1000,$C156,Sheet2!$S$3:$S$1000,Q$2)-SUMIFS(Sheet2!$J$3:$J$1000,Sheet2!$D$3:$D$1000,$C156,Sheet2!$T$3:$T$1000,Q$2) -> 0 | R156: =SUMIFS(Sheet2!$G$3:$G$1000,Sheet2!$D$3:$D$1000,$C156,Sheet2!$T$3:$T$1000,R$2)+SUMIFS(Sheet2!$P$3:$P$1000,Sheet2!$D$3:$D$1000,$C156,Sheet2!$S$3:$S$1000,R$2)-SUMIFS(Sheet2!$J$3:$J$1000,Sheet2!$D$3:$D$1000,$C156,Sheet2!$T$3:$T$1000,R$2) -> 0 | AG156: 2018-06-03
K157: 0 | L157: =G157+SUMIFS(Sheet2!$G$3:$G$1000,Sheet2!$D$3:$D$1000,$C157,Sheet2!$T$3:$T$1000,$L156)+SUMIFS(Sheet2!$P$3:$P$1000,Sheet2!$D$3:$D$1000,$C157,Sheet2!$S$3:$S$1000,$L156)-SUMIFS(Sheet2!$J$3:$J$1000,Sheet2!$D$3:$D$1000,$C157,Sheet2!$T$3:$T$1000,$L156) -> 0 | M157: =SUMIFS(Sheet2!$G$3:$G$1000,Sheet2!$D$3:$D$1000,$C157,Sheet2!$T$3:$T$1000,M$2)+SUMIFS(Sheet2!$P$3:$P$1000,Sheet2!$D$3:$D$1000,$C157,Sheet2!$S$3:$S$1000,M$2)-SUMIFS(Sheet2!$J$3:$J$1000,Sheet2!$D$3:$D$1000,$C157,Sheet2!$T$3:$T$1000,M$2)-SUMIFS(Sheet2!$P$3:$P$1000,Sheet2!$D$3:$D$1000,$C157,Sheet2!$T$3:$T$1000,M$2) -> 0 | N157: =SUMIFS(Sheet2!$G$3:$G$1000,Sheet2!$D$3:$D$1000,$C157,Sheet2!$T$3:$T$1000,N$2)+SUMIFS(Sheet2!$P$3:$P$1000,Sheet2!$D$3:$D$1000,$C157,Sheet2!$S$3:$S$1000,N$2)-SUMIFS(Sheet2!$J$3:$J$1000,Sheet2!$D$3:$D$1000,$C157,Sheet2!$T$3:$T$1000,N$2) -> 0 | O157: =SUMIFS(Sheet2!$G$3:$G$1000,Sheet2!$D$3:$D$1000,$C157,Sheet2!$T$3:$T$1000,O$2)+SUMIFS(Sheet2!$P$3:$P$1000,Sheet2!$D$3:$D$1000,$C157,Sheet2!$S$3:$S$1000,O$2)-SUMIFS(Sheet2!$J$3:$J$1000,Sheet2!$D$3:$D$1000,$C157,Sheet2!$T$3:$T$1000,O$2) -> 0 | P157: =SUMIFS(Sheet2!$G$3:$G$1000,Sheet2!$D$3:$D$1000,$C157,Sheet2!$T$3:$T$1000,P$2)+SUMIFS(Sheet2!$P$3:$P$1000,Sheet2!$D$3:$D$1000,$C157,Sheet2!$S$3:$S$1000,P$2)-SUMIFS(Sheet2!$J$3:$J$1000,Sheet2!$D$3:$D$1000,$C157,Sheet2!$T$3:$T$1000,P$2) -> 0 | Q157: =SUMIFS(Sheet2!$G$3:$G$1000,Sheet2!$D$3:$D$1000,$C157,Sheet2!$T$3:$T$1000,Q$2)+SUMIFS(Sheet2!$P$3:$P$1000,Sheet2!$D$3:$D$1000,$C157,Sheet2!$S$3:$S$1000,Q$2)-SUMIFS(Sheet2!$J$3:$J$1000,Sheet2!$D$3:$D$1000,$C157,Sheet2!$T$3:$T$1000,Q$2) -> 0 | R157: =SUMIFS(Sheet2!$G$3:$G$1000,Sheet2!$D$3:$D$1000,$C157,Sheet2!$T$3:$T$1000,R$2)+SUMIFS(Sheet2!$P$3:$P$1000,Sheet2!$D$3:$D$1000,$C157,Sheet2!$S$3:$S$1000,R$2)-SUMIFS(Sheet2!$J$3:$J$1000,Sheet2!$D$3:$D$1000,$C157,Sheet2!$T$3:$T$1000,R$2) -> 0 | AG157: 2018-06-04
K158: 0 | L158: =G158+SUMIFS(Sheet2!$G$3:$G$1000,Sheet2!$D$3:$D$1000,$C158,Sheet2!$T$3:$T$1000,$L157)+SUMIFS(Sheet2!$P$3:$P$1000,Sheet2!$D$3:$D$1000,$C158,Sheet2!$S$3:$S$1000,$L157)-SUMIFS(Sheet2!$J$3:$J$1000,Sheet2!$D$3:$D$1000,$C158,Sheet2!$T$3:$T$1000,$L157) -> 0 | M158: =SUMIFS(Sheet2!$G$3:$G$1000,Sheet2!$D$3:$D$1000,$C158,Sheet2!$T$3:$T$1000,M$2)+SUMIFS(Sheet2!$P$3:$P$1000,Sheet2!$D$3:$D$1000,$C158,Sheet2!$S$3:$S$1000,M$2)-SUMIFS(Sheet2!$J$3:$J$1000,Sheet2!$D$3:$D$1000,$C158,Sheet2!$T$3:$T$1000,M$2)-SUMIFS(Sheet2!$P$3:$P$1000,Sheet2!$D$3:$D$1000,$C158,Sheet2!$T$3:$T$1000,M$2) -> 0 | N158: =SUMIFS(Sheet2!$G$3:$G$1000,Sheet2!$D$3:$D$1000,$C158,Sheet2!$T$3:$T$1000,N$2)+SUMIFS(Sheet2!$P$3:$P$1000,Sheet2!$D$3:$D$1000,$C158,Sheet2!$S$3:$S$1000,N$2)-SUMIFS(Sheet2!$J$3:$J$1000,Sheet2!$D$3:$D$1000,$C158,Sheet2!$T$3:$T$1000,N$2) -> 0 | O158: =SUMIFS(Sheet2!$G$3:$G$1000,Sheet2!$D$3:$D$1000,$C158,Sheet2!$T$3:$T$1000,O$2)+SUMIFS(Sheet2!$P$3:$P$1000,Sheet2!$D$3:$D$1000,$C158,Sheet2!$S$3:$S$1000,O$2)-SUMIFS(Sheet2!$J$3:$J$1000,Sheet2!$D$3:$D$1000,$C158,Sheet2!$T$3:$T$1000,O$2) -> 0 | P158: =SUMIFS(Sheet2!$G$3:$G$1000,Sheet2!$D$3:$D$1000,$C158,Sheet2!$T$3:$T$1000,P$2)+SUMIFS(Sheet2!$P$3:$P$1000,Sheet2!$D$3:$D$1000,$C158,Sheet2!$S$3:$S$1000,P$2)-SUMIFS(Sheet2!$J$3:$J$1000,Sheet2!$D$3:$D$1000,$C158,Sheet2!$T$3:$T$1000,P$2) -> 0 | Q158: =SUMIFS(Sheet2!$G$3:$G$1000,Sheet2!$D$3:$D$1000,$C158,Sheet2!$T$3:$T$1000,Q$2)+SUMIFS(Sheet2!$P$3:$P$1000,Sheet2!$D$3:$D$1000,$C158,Sheet2!$S$3:$S$1000,Q$2)-SUMIFS(Sheet2!$J$3:$J$1000,Sheet2!$D$3:$D$1000,$C158,Sheet2!$T$3:$T$1000,Q$2) -> 0 | R158: =SUMIFS(Sheet2!$G$3:$G$1000,Sheet2!$D$3:$D$1000,$C158,Sheet2!$T$3:$T$1000,R$2)+SUMIFS(Sheet2!$P$3:$P$1000,Sheet2!$D$3:$D$1000,$C158,Sheet2!$S$3:$S$1000,R$2)-SUMIFS(Sheet2!$J$3:$J$1000,Sheet2!$D$3:$D$1000,$C158,Sheet2!$T$3:$T$1000,R$2) -> 0 | AG158: 2018-06-05
K159: 0 | L159: =G159+SUMIFS(Sheet2!$G$3:$G$1000,Sheet2!$D$3:$D$1000,$C159,Sheet2!$T$3:$T$1000,$L158)+SUMIFS(Sheet2!$P$3:$P$1000,Sheet2!$D$3:$D$1000,$C159,Sheet2!$S$3:$S$1000,$L158)-SUMIFS(Sheet2!$J$3:$J$1000,Sheet2!$D$3:$D$1000,$C159,Sheet2!$T$3:$T$1000,$L158) -> 0 | M159: =SUMIFS(Sheet2!$G$3:$G$1000,Sheet2!$D$3:$D$1000,$C159,Sheet2!$T$3:$T$1000,M$2)+SUMIFS(Sheet2!$P$3:$P$1000,Sheet2!$D$3:$D$1000,$C159,Sheet2!$S$3:$S$1000,M$2)-SUMIFS(Sheet2!$J$3:$J$1000,Sheet2!$D$3:$D$1000,$C159,Sheet2!$T$3:$T$1000,M$2)-SUMIFS(Sheet2!$P$3:$P$1000,Sheet2!$D$3:$D$1000,$C159,Sheet2!$T$3:$T$1000,M$2) -> 0 | N159: =SUMIFS(Sheet2!$G$3:$G$1000,Sheet2!$D$3:$D$1000,$C159,Sheet2!$T$3:$T$1000,N$2)+SUMIFS(Sheet2!$P$3:$P$1000,Sheet2!$D$3:$D$1000,$C159,Sheet2!$S$3:$S$1000,N$2)-SUMIFS(Sheet2!$J$3:$J$1000,Sheet2!$D$3:$D$1000,$C159,Sheet2!$T$3:$T$1000,N$2) -> 0 | O159: =SUMIFS(Sheet2!$G$3:$G$1000,Sheet2!$D$3:$D$1000,$C159,Sheet2!$T$3:$T$1000,O$2)+SUMIFS(Sheet2!$P$3:$P$1000,Sheet2!$D$3:$D$1000,$C159,Sheet2!$S$3:$S$1000,O$2)-SUMIFS(Sheet2!$J$3:$J$1000,Sheet2!$D$3:$D$1000,$C159,Sheet2!$T$3:$T$1000,O$2) -> 0 | P159: =SUMIFS(Sheet2!$G$3:$G$1000,Sheet2!$D$3:$D$1000,$C159,Sheet2!$T$3:$T$1000,P$2)+SUMIFS(Sheet2!$P$3:$P$1000,Sheet2!$D$3:$D$1000,$C159,Sheet2!$S$3:$S$1000,P$2)-SUMIFS(Sheet2!$J$3:$J$1000,Sheet2!$D$3:$D$1000,$C159,Sheet2!$T$3:$T$1000,P$2) -> 0 | Q159: =SUMIFS(Sheet2!$G$3:$G$1000,Sheet2!$D$3:$D$1000,$C159,Sheet2!$T$3:$T$1000,Q$2)+SUMIFS(Sheet2!$P$3:$P$1000,Sheet2!$D$3:$D$1000,$C159,Sheet2!$S$3:$S$1000,Q$2)-SUMIFS(Sheet2!$J$3:$J$1000,Sheet2!$D$3:$D$1000,$C159,Sheet2!$T$3:$T$1000,Q$2) -> 0 | R159: =SUMIFS(Sheet2!$G$3:$G$1000,Sheet2!$D$3:$D$1000,$C159,Sheet2!$T$3:$T$1000,R$2)+SUMIFS(Sheet2!$P$3:$P$1000,Sheet2!$D$3:$D$1000,$C159,Sheet2!$S$3:$S$1000,R$2)-SUMIFS(Sheet2!$J$3:$J$1000,Sheet2!$D$3:$D$1000,$C159,Sheet2!$T$3:$T$1000,R$2) -> 0 | AG159: 2018-06-06
K160: 0 | L160: =G160+SUMIFS(Sheet2!$G$3:$G$1000,Sheet2!$D$3:$D$1000,$C160,Sheet2!$T$3:$T$1000,$L159)+SUMIFS(Sheet2!$P$3:$P$1000,Sheet2!$D$3:$D$1000,$C160,Sheet2!$S$3:$S$1000,$L159)-SUMIFS(Sheet2!$J$3:$J$1000,Sheet2!$D$3:$D$1000,$C160,Sheet2!$T$3:$T$1000,$L159) -> 0 | M160: =SUMIFS(Sheet2!$G$3:$G$1000,Sheet2!$D$3:$D$1000,$C160,Sheet2!$T$3:$T$1000,M$2)+SUMIFS(Sheet2!$P$3:$P$1000,Sheet2!$D$3:$D$1000,$C160,Sheet2!$S$3:$S$1000,M$2)-SUMIFS(Sheet2!$J$3:$J$1000,Sheet2!$D$3:$D$1000,$C160,Sheet2!$T$3:$T$1000,M$2)-SUMIFS(Sheet2!$P$3:$P$1000,Sheet2!$D$3:$D$1000,$C160,Sheet2!$T$3:$T$1000,M$2) -> 0 | N160: =SUMIFS(Sheet2!$G$3:$G$1000,Sheet2!$D$3:$D$1000,$C160,Sheet2!$T$3:$T$1000,N$2)+SUMIFS(Sheet2!$P$3:$P$1000,Sheet2!$D$3:$D$1000,$C160,Sheet2!$S$3:$S$1000,N$2)-SUMIFS(Sheet2!$J$3:$J$1000,Sheet2!$D$3:$D$1000,$C160,Sheet2!$T$3:$T$1000,N$2) -> 0 | O160: =SUMIFS(Sheet2!$G$3:$G$1000,Sheet2!$D$3:$D$1000,$C160,Sheet2!$T$3:$T$1000,O$2)+SUMIFS(Sheet2!$P$3:$P$1000,Sheet2!$D$3:$D$1000,$C160,Sheet2!$S$3:$S$1000,O$2)-SUMIFS(Sheet2!$J$3:$J$1000,Sheet2!$D$3:$D$1000,$C160,Sheet2!$T$3:$T$1000,O$2) -> 0 | P160: =SUMIFS(Sheet2!$G$3:$G$1000,Sheet2!$D$3:$D$1000,$C160,Sheet2!$T$3:$T$1000,P$2)+SUMIFS(Sheet2!$P$3:$P$1000,Sheet2!$D$3:$D$1000,$C160,Sheet2!$S$3:$S$1000,P$2)-SUMIFS(Sheet2!$J$3:$J$1000,Sheet2!$D$3:$D$1000,$C160,Sheet2!$T$3:$T$1000,P$2) -> 0 | Q160: =SUMIFS(Sheet2!$G$3:$G$1000,Sheet2!$D$3:$D$1000,$C160,Sheet2!$T$3:$T$1000,Q$2)+SUMIFS(Sheet2!$P$3:$P$1000,Sheet2!$D$3:$D$1000,$C160,Sheet2!$S$3:$S$1000,Q$2)-SUMIFS(Sheet2!$J$3:$J$1000,Sheet2!$D$3:$D$1000,$C160,Sheet2!$T$3:$T$1000,Q$2) -> 0 | R160: =SUMIFS(Sheet2!$G$3:$G$1000,Sheet2!$D$3:$D$1000,$C160,Sheet2!$T$3:$T$1000,R$2)+SUMIFS(Sheet2!$P$3:$P$1000,Sheet2!$D$3:$D$1000,$C160,Sheet2!$S$3:$S$1000,R$2)-SUMIFS(Sheet2!$J$3:$J$1000,Sheet2!$D$3:$D$1000,$C160,Sheet2!$T$3:$T$1000,R$2) -> 0 | AG160: 2018-06-07
K161: 0 | L161: =G161+SUMIFS(Sheet2!$G$3:$G$1000,Sheet2!$D$3:$D$1000,$C161,Sheet2!$T$3:$T$1000,$L160)+SUMIFS(Sheet2!$P$3:$P$1000,Sheet2!$D$3:$D$1000,$C161,Sheet2!$S$3:$S$1000,$L160)-SUMIFS(Sheet2!$J$3:$J$1000,Sheet2!$D$3:$D$1000,$C161,Sheet2!$T$3:$T$1000,$L160) -> 0 | M161: =SUMIFS(Sheet2!$G$3:$G$1000,Sheet2!$D$3:$D$1000,$C161,Sheet2!$T$3:$T$1000,M$2)+SUMIFS(Sheet2!$P$3:$P$1000,Sheet2!$D$3:$D$1000,$C161,Sheet2!$S$3:$S$1000,M$2)-SUMIFS(Sheet2!$J$3:$J$1000,Sheet2!$D$3:$D$1000,$C161,Sheet2!$T$3:$T$1000,M$2)-SUMIFS(Sheet2!$P$3:$P$1000,Sheet2!$D$3:$D$1000,$C161,Sheet2!$T$3:$T$1000,M$2) -> 0 | N161: =SUMIFS(Sheet2!$G$3:$G$1000,Sheet2!$D$3:$D$1000,$C161,Sheet2!$T$3:$T$1000,N$2)+SUMIFS(Sheet2!$P$3:$P$1000,Sheet2!$D$3:$D$1000,$C161,Sheet2!$S$3:$S$1000,N$2)-SUMIFS(Sheet2!$J$3:$J$1000,Sheet2!$D$3:$D$1000,$C161,Sheet2!$T$3:$T$1000,N$2) -> 0 | O161: =SUMIFS(Sheet2!$G$3:$G$1000,Sheet2!$D$3:$D$1000,$C161,Sheet2!$T$3:$T$1000,O$2)+SUMIFS(Sheet2!$P$3:$P$1000,Sheet2!$D$3:$D$1000,$C161,Sheet2!$S$3:$S$1000,O$2)-SUMIFS(Sheet2!$J$3:$J$1000,Sheet2!$D$3:$D$1000,$C161,Sheet2!$T$3:$T$1000,O$2) -> 0 | P161: =SUMIFS(Sheet2!$G$3:$G$1000,Sheet2!$D$3:$D$1000,$C161,Sheet2!$T$3:$T$1000,P$2)+SUMIFS(Sheet2!$P$3:$P$1000,Sheet2!$D$3:$D$1000,$C161,Sheet2!$S$3:$S$1000,P$2)-SUMIFS(Sheet2!$J$3:$J$1000,Sheet2!$D$3:$D$1000,$C161,Sheet2!$T$3:$T$1000,P$2) -> 0 | Q161: =SUMIFS(Sheet2!$G$3:$G$1000,Sheet2!$D$3:$D$1000,$C161,Sheet2!$T$3:$T$1000,Q$2)+SUMIFS(Sheet2!$P$3:$P$1000,Sheet2!$D$3:$D$1000,$C161,Sheet2!$S$3:$S$1000,Q$2)-SUMIFS(Sheet2!$J$3:$J$1000,Sheet2!$D$3:$D$1000,$C161,Sheet2!$T$3:$T$1000,Q$2) -> 0 | R161: =SUMIFS(Sheet2!$G$3:$G$1000,Sheet2!$D$3:$D$1000,$C161,Sheet2!$T$3:$T$1000,R$2)+SUMIFS(Sheet2!$P$3:$P$1000,Sheet2!$D$3:$D$1000,$C161,Sheet2!$S$3:$S$1000,R$2)-SUMIFS(Sheet2!$J$3:$J$1000,Sheet2!$D$3:$D$1000,$C161,Sheet2!$T$3:$T$1000,R$2) -> 0 | AG161: 2018-06-08
K162: 0 | L162: =G162+SUMIFS(Sheet2!$G$3:$G$1000,Sheet2!$D$3:$D$1000,$C162,Sheet2!$T$3:$T$1000,$L161)+SUMIFS(Sheet2!$P$3:$P$1000,Sheet2!$D$3:$D$1000,$C162,Sheet2!$S$3:$S$1000,$L161)-SUMIFS(Sheet2!$J$3:$J$1000,Sheet2!$D$3:$D$1000,$C162,Sheet2!$T$3:$T$1000,$L161) -> 0 | M162: =SUMIFS(Sheet2!$G$3:$G$1000,Sheet2!$D$3:$D$1000,$C162,Sheet2!$T$3:$T$1000,M$2)+SUMIFS(Sheet2!$P$3:$P$1000,Sheet2!$D$3:$D$1000,$C162,Sheet2!$S$3:$S$1000,M$2)-SUMIFS(Sheet2!$J$3:$J$1000,Sheet2!$D$3:$D$1000,$C162,Sheet2!$T$3:$T$1000,M$2)-SUMIFS(Sheet2!$P$3:$P$1000,Sheet2!$D$3:$D$1000,$C162,Sheet2!$T$3:$T$1000,M$2) -> 0 | N162: =SUMIFS(Sheet2!$G$3:$G$1000,Sheet2!$D$3:$D$1000,$C162,Sheet2!$T$3:$T$1000,N$2)+SUMIFS(Sheet2!$P$3:$P$1000,Sheet2!$D$3:$D$1000,$C162,Sheet2!$S$3:$S$1000,N$2)-SUMIFS(Sheet2!$J$3:$J$1000,Sheet2!$D$3:$D$1000,$C162,Sheet2!$T$3:$T$1000,N$2) -> 0 | O162: =SUMIFS(Sheet2!$G$3:$G$1000,Sheet2!$D$3:$D$1000,$C162,Sheet2!$T$3:$T$1000,O$2)+SUMIFS(Sheet2!$P$3:$P$1000,Sheet2!$D$3:$D$1000,$C162,Sheet2!$S$3:$S$1000,O$2)-SUMIFS(Sheet2!$J$3:$J$1000,Sheet2!$D$3:$D$1000,$C162,Sheet2!$T$3:$T$1000,O$2) -> 0 | P162: =SUMIFS(Sheet2!$G$3:$G$1000,Sheet2!$D$3:$D$1000,$C162,Sheet2!$T$3:$T$1000,P$2)+SUMIFS(Sheet2!$P$3:$P$1000,Sheet2!$D$3:$D$1000,$C162,Sheet2!$S$3:$S$1000,P$2)-SUMIFS(Sheet2!$J$3:$J$1000,Sheet2!$D$3:$D$1000,$C162,Sheet2!$T$3:$T$1000,P$2) -> 0 | Q162: =SUMIFS(Sheet2!$G$3:$G$1000,Sheet2!$D$3:$D$1000,$C162,Sheet2!$T$3:$T$1000,Q$2)+SUMIFS(Sheet2!$P$3:$P$1000,Sheet2!$D$3:$D$1000,$C162,Sheet2!$S$3:$S$1000,Q$2)-SUMIFS(Sheet2!$J$3:$J$1000,Sheet2!$D$3:$D$1000,$C162,Sheet2!$T$3:$T$1000,Q$2) -> 0 | R162: =SUMIFS(Sheet2!$G$3:$G$1000,Sheet2!$D$3:$D$1000,$C162,Sheet2!$T$3:$T$1000,R$2)+SUMIFS(Sheet2!$P$3:$P$1000,Sheet2!$D$3:$D$1000,$C162,Sheet2!$S$3:$S$1000,R$2)-SUMIFS(Sheet2!$J$3:$J$1000,Sheet2!$D$3:$D$1000,$C162,Sheet2!$T$3:$T$1000,R$2) -> 0 | AG162: 2018-06-09
K163: 0 | L163: =G163+SUMIFS(Sheet2!$G$3:$G$1000,Sheet2!$D$3:$D$1000,$C163,Sheet2!$T$3:$T$1000,$L162)+SUMIFS(Sheet2!$P$3:$P$1000,Sheet2!$D$3:$D$1000,$C163,Sheet2!$S$3:$S$1000,$L162)-SUMIFS(Sheet2!$J$3:$J$1000,Sheet2!$D$3:$D$1000,$C163,Sheet2!$T$3:$T$1000,$L162) -> 0 | M163: =SUMIFS(Sheet2!$G$3:$G$1000,Sheet2!$D$3:$D$1000,$C163,Sheet2!$T$3:$T$1000,M$2)+SUMIFS(Sheet2!$P$3:$P$1000,Sheet2!$D$3:$D$1000,$C163,Sheet2!$S$3:$S$1000,M$2)-SUMIFS(Sheet2!$J$3:$J$1000,Sheet2!$D$3:$D$1000,$C163,Sheet2!$T$3:$T$1000,M$2)-SUMIFS(Sheet2!$P$3:$P$1000,Sheet2!$D$3:$D$1000,$C163,Sheet2!$T$3:$T$1000,M$2) -> 0 | N163: =SUMIFS(Sheet2!$G$3:$G$1000,Sheet2!$D$3:$D$1000,$C163,Sheet2!$T$3:$T$1000,N$2)+SUMIFS(Sheet2!$P$3:$P$1000,Sheet2!$D$3:$D$1000,$C163,Sheet2!$S$3:$S$1000,N$2)-SUMIFS(Sheet2!$J$3:$J$1000,Sheet2!$D$3:$D$1000,$C163,Sheet2!$T$3:$T$1000,N$2) -> 0 | O163: =SUMIFS(Sheet2!$G$3:$G$1000,Sheet2!$D$3:$D$1000,$C163,Sheet2!$T$3:$T$1000,O$2)+SUMIFS(Sheet2!$P$3:$P$1000,Sheet2!$D$3:$D$1000,$C163,Sheet2!$S$3:$S$1000,O$2)-SUMIFS(Sheet2!$J$3:$J$1000,Sheet2!$D$3:$D$1000,$C163,Sheet2!$T$3:$T$1000,O$2) -> 0 | P163: =SUMIFS(Sheet2!$G$3:$G$1000,Sheet2!$D$3:$D$1000,$C163,Sheet2!$T$3:$T$1000,P$2)+SUMIFS(Sheet2!$P$3:$P$1000,Sheet2!$D$3:$D$1000,$C163,Sheet2!$S$3:$S$1000,P$2)-SUMIFS(Sheet2!$J$3:$J$1000,Sheet2!$D$3:$D$1000,$C163,Sheet2!$T$3:$T$1000,P$2) -> 0 | Q163: =SUMIFS(Sheet2!$G$3:$G$1000,Sheet2!$D$3:$D$1000,$C163,Sheet2!$T$3:$T$1000,Q$2)+SUMIFS(Sheet2!$P$3:$P$1000,Sheet2!$D$3:$D$1000,$C163,Sheet2!$S$3:$S$1000,Q$2)-SUMIFS(Sheet2!$J$3:$J$1000,Sheet2!$D$3:$D$1000,$C163,Sheet2!$T$3:$T$1000,Q$2) -> 0 | R163: =SUMIFS(Sheet2!$G$3:$G$1000,Sheet2!$D$3:$D$1000,$C163,Sheet2!$T$3:$T$1000,R$2)+SUMIFS(Sheet2!$P$3:$P$1000,Sheet2!$D$3:$D$1000,$C163,Sheet2!$S$3:$S$1000,R$2)-SUMIFS(Sheet2!$J$3:$J$1000,Sheet2!$D$3:$D$1000,$C163,Sheet2!$T$3:$T$1000,R$2) -> 0 | AG163: 2018-06-10
